Workbook

Sheet Inicio
B2: Informações das Planilhas
C4: Pastas | D4: Descrição | I4: Cores | J4: Descrição | Q4: Pasta base da Planilha
C5: Inicio | D5: Informações gerais da planilhas | Q5: Planilha protegida por segurança - Senha 1234
C6: Capa | D6: Capa da Planilha | I6: Laranja | J6: Titulos/Referência dados
C7: Resumo | D7: Resumo da apuração do Custo e da Taxa de Retorno | I7: Verde água | J7: Cabeçalho / Entrada dados
C8: Cálculo | D8: Escolha do Cálculo a ser Utilizado | I8: Verde claro | J8: Referência à outra pasta
C9: Apura | D9: Apuração dos Custos do Sistema (km, Veiculo e Mensal) | I9: Azul claro | J9: Digitação (?) Entrada dados
C10: Consumo | D10: Dados, Consumo, Coeficientes e Valores de Referência | I10: Verde escuro | J10: Area Util
C11: DR_Frota | D11: Dados da Frota - Depreciação e Amortização | I11: Vinho | J11: Realce
C12: DR_Equip | D12: Dados de Equipamentos - Depreciação e Amortização
C13: DR_Invest | D13: Dados de Outros Investimentos - Depreciação e Amortização | I13: Objetivos da Planilha
C14: Renov_Frota | D14: Movimento de Renovção da Frota | I14: Cálculo do custo da tarifa considerando 4 (quadro) Cenários diferentes.
C15: Fluxo_Caixa | D15: Demonstração do Fluxo de Caixa
C16: Reajuste | D16: Demonstração do cálculo de reajuste da tarifa
C17: Encargos | D17: Composição do Encargos sociais sobre folha | I17: Apuração do fluxo de caixa utilizando os mesmos dados do custo da tarifa.
C18: Custo_capital | D18: Apuração do Custo médio ponderado de capital
C19: Coeficientes | D19: Cálculo Coeficientes de Depreciação e Remuneração
I20: Entrada de Dados
I21: Cor azul - dados que necessita de digitação.
I23: Elaborado pela Controladoria Geral do Município
I24: Pedro Milton Golfe

Sheet Capa
E3: PREFEITURA MUNICIPAL DE CHAPECÓ
E4: Secretaria de Defesa do Cidadão
D15: SISTEMA DE TRANSPORTE PÚBLICO DE PASSAGEIROS DE CHAPECÓ
D22: ANEXO IX
D32: =+Calculo!D25 -> Maio 2018 - Dados do Sistema = Outubro 2017
C36: Elaborado Pela Controladoria Geral do Município

Sheet Resumo
B2: =+Titulo_01 -> PREFEITURA MUNICIPAL DE CHAPECO
B3: =+Titulo_02 -> SECRETARIA DE DEFESA DO CIDADÃO
B4: =+Titulo_03 -> SISTEMA DE TRANSPORTE PÚBLICO DE PASSAGEIROS
C7: =+Capa!D15 -> SISTEMA DE TRANSPORTE PÚBLICO DE PASSAGEIROS DE CHAPECÓ
C13: RESUMO
C17: Discriminação | E17: unidade | F17: Valor
C19: Premissa de Cálculo | D19: =Calculo!E17 -> Prefeitura Chapecó - Base Edital - Proposta
C21: Passageiros Equivalentes | E21: pass/mês | F21: =+Apura!AB73 -> 750105
C22: Percurso Médio | E22: km/mês | F22: =+Apura!AB69 -> 402640
C23: Frota Total | E23: veículos | F23: =+Apura!AB84 -> 88
C24: Idade Média da Frota | E24: anos | F24: =+Apura!AB105 -> 4.454545455
C25: PMM | E25: km/veículo.mês | F25: =+Apura!AB71 -> 5033
C26: IPK | E26: passageiros/km | F26: =+Apura!AB75 -> 1.862966918
C27: Custo por Quilômetro | E27: R$/km | F27: =+Apura!Z385 -> 5.540011903
C28: Custo por Passageiro | E28: R$/passageiro | F28: =+Apura!X28 -> 0.8524965276
C30: TARIFA
C31: Embarcado e Vale Transporte | E31: R$/passageiro | F31: =+Apura!AB44 -> 2.98
C32: Antecipado | E32: R$/passageiro | F32: =+Apura!AB45 -> 3.25
C33: Estudante | E33: R$/passageiro | F33: =+Apura!AB46 -> 1.1
C35: Taxa de Desconto VPL - (% ao ano | F35: =+FxCxa!J127 -> 0.08
C36: VPL | F36: =+FxCxa!J128 -> 6121066.142
C37: TIR | F37: =+FxCxa!J129 -> 0.1097192818
C39: PMM - Percurso Médio Mensal
C40: IPK - Indice de Passageiros por Quilômetro

Sheet Calculo
C2: Cálculo
C3: =+Titulo_01 -> PREFEITURA MUNICIPAL DE CHAPECO
C4: =+Titulo_02 -> SECRETARIA DE DEFESA DO CIDADÃO
C5: =+Titulo_03 -> SISTEMA DE TRANSPORTE PÚBLICO DE PASSAGEIROS
S6: Pasta base da Planilha
D7: Informações do Cenário (area de dados) | L7: Data base | S7: Planilha protegida por segurança - Senha 1234
D9: Cenário
D10: 1 | E10: Prefeitura Chapecó - Base Edital - base - Out/2017 | L10: 2017-10-31
D11: 2 | E11: Prefeitura Chapecó - Base Edital - Proposta | L11: 2018-06-30
D12: 3 | E12: Prefeitura Chapecó - Base Edital - Não usar | L12: 2018-06-30
D13: 4 | E13: Prefeitura Chapecó - Base Edital - Não usar | L13: 2018-06-30
D15: Escolha do Cenário | K15: 2
E17: =VLOOKUP(K15,Escolha_calc,2) -> Prefeitura Chapecó - Base Edital - Proposta
E18: Area de Cálculo "a" - Por KM | K18: =+K15+2 -> 4
E19: Area de Cálculo "b" - Por Veiculo | K19: =+K15+7 -> 9
E20: Area de Cálculo "c" - Valor Mensal | K20: =+K15+12 -> 14
E21: Area de Cálculo "d" - Dados | K21: =+calc_a -> 4
D25: Maio 2018 - Dados do Sistema = Outubro 2017 | R25: MENSAGEM CAPA

Sheet Apura
B2: APURA | I2: ÁREA DE DADOS E CÁLCULOS - NÃO INCLUIR COLUNA
B3: PREFEITURA MUNICIPAL DE CHAPECO
B4: SECRETARIA DE DEFESA DO CIDADÃO
B5: SISTEMA DE TRANSPORTE PÚBLICO DE PASSAGEIROS
B7: Apuração do Custo do Sistema
B8: =CONCATENATE(+Calculo!$D$9," - ",+Calculo!$E$17) -> Cenário - Prefeitura Chapecó - Base Edital - Proposta | Z8: Dados Para Fluxo de Caixa
B10: ITEM | C10: DISCRIMINAÇÃO | F10: Referência | K10: VALOR CUSTO POR KM | P10: VALOR CUSTO POR VEICULO | U10: VALOR CUSTO MENSAL | Z10: Custo por KM | AA10: Custo por Veiculo | AB10: CUSTO MENSAL
K11: =+Calculo!L10 -> 2017-10-31 | L11: =+Calculo!L11 -> 2018-06-30 | M11: =+Calculo!L12 -> 2018-06-30 | N11: =+Calculo!L13 -> 2018-06-30 | P11: =+K11 -> 2017-10-31 | Q11: =+L11 -> 2018-06-30 | R11: =+M11 -> 2018-06-30 | S11: =+N11 -> 2018-06-30 | U11: =+P11 -> 2017-10-31 | V11: =+Q11 -> 2018-06-30 | W11: =+R11 -> 2018-06-30 | X11: =+S11 -> 2018-06-30
I12: =CONCATENATE("A",ROW()) -> A12 | K12: Cenário 01 | L12: Cenário 02 | M12: Cenário 03 | N12: Cenário 04 | P12: Cenário 01 | Q12: Cenário 02 | R12: Cenário 03 | S12: Cenário 04 | U12: Cenário 01 | V12: Cenário 02 | W12: Cenário 03 | X12: Cenário 04 | AB12: =VLOOKUP($I12,Base_a,calc_c,0) -> Cenário 02
I13: A13
B14: TARIFAS / RESULTADO FLUXO DE CAIXA | I14: A14
I15: A15
B16: 0 | C16: TARIFAS e FLUXO DE CAIXA | I16: A16
I17: A17
C18: 1 | D18: Tarifa Atual | I18: =CONCATENATE("A",ROW()) -> A18
D19: Antecipado e Vale transporte | F19: CONSUMO | G19: =+Consumo!I58 -> B58 | I19: =CONCATENATE("A",ROW()) -> A19 | U19: =+Consumo!K58 -> 2.98 | V19: =+Consumo!L58 -> 2.98 | W19: =+Consumo!M58 -> 2.98 | X19: =+Consumo!N58 -> 2.98 | AB19: =VLOOKUP($I19,Base_a,calc_c,0) -> 2.98
D20: Embarcado | F20: CONSUMO | G20: =+Consumo!I59 -> B59 | I20: A20 | U20: =+Consumo!K59 -> 3.25 | V20: =+Consumo!L59 -> 3.25 | W20: =+Consumo!M59 -> 3.25 | X20: =+Consumo!N59 -> 3.25 | AB20: =VLOOKUP($I20,Base_a,calc_c,0) -> 3.25
D21: Estudante | F21: CONSUMO | G21: =+Consumo!I60 -> B60 | I21: A21 | U21: =+Consumo!K60 -> 1.1 | V21: =+Consumo!L60 -> 1.1 | W21: =+Consumo!M60 -> 1.1 | X21: =+Consumo!N60 -> 1.1 | AB21: =VLOOKUP($I21,Base_a,calc_c,0) -> 1.1
I22: A22
C23: 2 | D23: Percentuais Tarifa Atual Equivalente | I23: A23
D24: Antecipado e Vale transporte | F24: =CONCATENATE(I19," / ",I$19) -> A19 / A19 | I24: A24 | U24: =+U19/U$19 -> 1 | V24: 1 | W24: 1 | X24: 1 | AB24: =VLOOKUP($I24,Base_a,calc_c,0) -> 1
D25: Embarcado | F25: =CONCATENATE(I20," / ",I$19) -> A20 / A19 | I25: A25 | U25: 1.090604027 | V25: 1.090604027 | W25: 1.090604027 | X25: 1.090604027 | AB25: =VLOOKUP($I25,Base_a,calc_c,0) -> 1.090604027
D26: Estudante | F26: =CONCATENATE(I21," / ",I$19) -> A21 / A19 | I26: A26 | U26: 0.3691275168 | V26: 0.3691275168 | W26: 0.3691275168 | X26: 0.3691275168 | AB26: =VLOOKUP($I26,Base_a,calc_c,0) -> 0.3691275168
I27: A27
C28: 3 | D28: Tarifa apurada | F28: =CONCATENATE(" + ",+I389) -> + A389 | I28: A28 | U28: =+K389 -> 2.973757531 | V28: =+L389 -> 2.973757531 | W28: =+M389 -> 0.7135887365 | X28: =+N389 -> 0.8524965276 | AB28: =VLOOKUP($I28,Base_a,calc_c,0) -> 2.973757531 | AD28: =+AB28*AB73 -> 2230630.393
D29: Variação Percentual em relação a atual | F29: =CONCATENATE(I28," / ",I$19) -> A28 / A19 | I29: A29 | U29: =+U28/U19-1 -> -0.002094788354 | V29: =+V28/V19-1 -> -0.002094788354 | W29: =+W28/W19-1 -> -0.7605406924 | X29: =+X28/X19-1 -> -0.7139273397
I30: A30
C31: 4 | D31: Tarifa equivalente apurada | I31: A31
D32: Antecipado e Vale transporte | F32: =CONCATENATE(I$28," x ",I24) -> A28 x A24 | I32: A32 | U32: =ROUND(+U$28*U24,4) -> 2.9738 | V32: =ROUND(+V$28*V24,4) -> 2.9738 | W32: =ROUND(+W$28*W24,4) -> 0.7136 | X32: =ROUND(+X$28*X24,4) -> 0.8525 | AB32: =VLOOKUP($I32,Base_a,calc_c,0) -> 2.9738
D33: Embarcado | F33: =CONCATENATE(I$28," x ",I25) -> A28 x A25 | I33: A33 | U33: =ROUND(+U$28*U25,4) -> 3.2432 | V33: =ROUND(+V$28*V25,4) -> 3.2432 | W33: 0.7782 | X33: =ROUND(+X$28*X25,4) -> 0.9297 | AB33: =VLOOKUP($I33,Base_a,calc_c,0) -> 3.2432
D34: Estudante | F34: =CONCATENATE(I$28," x ",I26) -> A28 x A26 | I34: A34 | U34: =ROUND(+U$28*U26,4) -> 1.0977 | V34: 1.0977 | W34: 0.2634 | X34: =ROUND(+X$28*X26,4) -> 0.3147 | AB34: =VLOOKUP($I34,Base_a,calc_c,0) -> 1.0977
I35: A35
C36: 5 | D36: Media Passageiros (Ultimos 12 meses) | I36: =CONCATENATE("A",ROW()) -> A36
D37: Antecipado | F37: CONSUMO | G37: =+Consumo!I65 -> B65 | I37: A37 | U37: =+Consumo!K65 -> 83916 | V37: =+Consumo!L65 -> 83916 | W37: =+Consumo!M65 -> 83916 | X37: =+Consumo!N65 -> 83916 | AB37: =VLOOKUP($I37,Base_a,calc_c,0) -> 83916 | AD37: =+AB37*AB44 -> 250069.68
D38: Embarcado | F38: CONSUMO | G38: =+Consumo!I66 -> B66 | I38: A38 | U38: =+Consumo!K66 -> 218655 | V38: =+Consumo!L66 -> 218655 | W38: =+Consumo!M66 -> 218655 | X38: =+Consumo!N66 -> 218655 | AB38: =VLOOKUP($I38,Base_a,calc_c,0) -> 218655 | AD38: =+AB38*AB45 -> 710628.75
D39: Estudante | F39: CONSUMO | G39: =+Consumo!I67 -> B67 | I39: A39 | U39: =+Consumo!K67 -> 144977 | V39: =+Consumo!L67 -> 144977 | W39: =+Consumo!M67 -> 144977 | X39: =+Consumo!N67 -> 144977 | AB39: =VLOOKUP($I39,Base_a,calc_c,0) -> 144977 | AD39: =+AB39*AB46 -> 159474.7
D40: Vale transporte | F40: CONSUMO | G40: =+Consumo!I68 -> B68 | I40: A40 | U40: =+Consumo!K68 -> 374208 | V40: =+Consumo!L68 -> 374208 | W40: =+Consumo!M68 -> 374208 | X40: =+Consumo!N68 -> 374208 | AB40: =VLOOKUP($I40,Base_a,calc_c,0) -> 374208 | AD40: =+AB40*AB44 -> 1115139.84
D41: Total | F41: =CONCATENATE("Soma de ",I37,"..",I40) -> Soma de A37..A40 | I41: A41 | U41: =SUM(U37:U40) -> 821756 | V41: =SUM(V37:V40) -> 821756 | W41: =SUM(W37:W40) -> 821756 | X41: =SUM(X37:X40) -> 821756 | AB41: =SUM(AB37:AB40) -> 821756 | AD41: =SUM(AD37:AD40) -> 2235312.97
I42: A42
C43: 6 | D43: Nova Tarifa | I43: A43
D44: Antecipado e Vale transporte | G44: ? | I44: A44 | U44: =+U32 -> 2.9738 | V44: 2.98 | W44: 1 | X44: 1 | AB44: =VLOOKUP($I44,Base_a,calc_c,0) -> 2.98 | AD44: =+AD41/AD28 -> 1.002099217
D45: Embarcado | G45: ? | I45: A45 | U45: 3.2432 | V45: 3.25 | W45: 1 | X45: 1 | AB45: =VLOOKUP($I45,Base_a,calc_c,0) -> 3.25 | AD45: =+AD41/X73 -> 2.980000093
D46: Estudante | G46: ? | I46: A46 | U46: 1.0977 | V46: 1.1 | W46: 1 | X46: 1 | AB46: =VLOOKUP($I46,Base_a,calc_c,0) -> 1.1
I47: A47
C48: 2 | D48: Percentuais Nova Tarifa Equivalente | I48: A48
D49: Antecipado e Vale transporte | F49: =CONCATENATE(I44," / ",I$44) -> A44 / A44 | I49: A49 | U49: =+U44/U$44 -> 1 | V49: 1 | W49: 1 | X49: 1 | AB49: =VLOOKUP($I49,Base_a,calc_c,0) -> 1
D50: Embarcado | F50: =CONCATENATE(I45," / ",I$44) -> A45 / A44 | I50: A50 | U50: 1.090591163 | V50: 1.090604027 | W50: 1 | X50: 1 | AB50: =VLOOKUP($I50,Base_a,calc_c,0) -> 1.090604027
D51: Estudante | F51: =CONCATENATE(I46," / ",I$44) -> A46 / A44 | I51: A51 | U51: 0.3691236801 | V51: 0.3691275168 | W51: 1 | X51: 1 | AB51: =VLOOKUP($I51,Base_a,calc_c,0) -> 0.3691275168
I52: A52
C53: 7 | D53: Percentual de Reajuste | I53: A53 | U53: % reajuste | V53: % reajuste | W53: % reajuste | X53: % reajuste | AB53: % reajuste
D54: Antecipado e Vale transporte | F54: =CONCATENATE(I44," / ",I19) -> A44 / A19 | I54: A54 | U54: =+U44/U19-1 -> -0.002080536913 | V54: 0 | W54: -0.6644295302 | X54: -0.6644295302 | AB54: =VLOOKUP($I54,Base_a,calc_c,0) -> 0
D55: Embarcado | F55: =CONCATENATE(I45," / ",I20) -> A45 / A20 | I55: A55 | U55: -0.002092307692 | V55: 0 | W55: -0.6923076923 | X55: -0.6923076923 | AB55: =VLOOKUP($I55,Base_a,calc_c,0) -> 0
D56: Estudante | F56: =CONCATENATE(I46," / ",I21) -> A46 / A21 | I56: A56 | U56: -0.002090909091 | V56: 0 | W56: -0.09090909091 | X56: -0.09090909091 | AB56: =VLOOKUP($I56,Base_a,calc_c,0) -> 0
I57: A57
C58: 8 | D58: Projeção Passageiros Equivalente | F58: =CONCATENATE("(",I37," x ",I44,") + (",I38," x ",I45,") + (",I39, " x ",I46," + (",I40," x ",I44,") / ",I44) -> (A37 x A44) + (A38 x A45) + (A39 x A46 + (A40 x A44) / A44 | I58: A58 | U58: =ROUND((+U37*U44+U38*U45+U39*U46+U40*U44)/U44,0) -> 750102 | V58: =ROUND((+V37*V44+V38*V45+V39*V46+V40*V44)/V44,0) -> 750105 | W58: =ROUND((+W37*W44+W38*W45+W39*W46+W40*W44)/W44,0) -> 821756 | X58: =ROUND((+X37*X44+X38*X45+X39*X46+X40*X44)/X44,0) -> 821756 | AB58: =VLOOKUP($I58,Base_a,calc_c,0) -> 750105
I59: A59
C60: 9 | D60: Resultado do Fluxo de Caixa | I60: A60
D61: Taxa de desconto | G61: ? | I61: A61 | U61: 0.08 | V61: 0.08 | W61: 0.08 | X61: 0.08 | AB61: =+FxCxa!J127 -> 0.08 | AD61: =VLOOKUP($I61,Base_a,calc_c,0)-AB61 -> 0
D62: VPL - Valor presente Liquido | G62: ? | I62: A62 | U62: 5765985.6 | V62: 6121066.14 | W62: 0 | X62: 0 | AB62: =+FxCxa!J128 -> 6121066.142 | AD62: =VLOOKUP($I62,Base_a,calc_c,0)-AB62 -> -0.00180628337
D63: TIR - Taxa de Retorno | G63: ? | I63: A63 | U63: 0.108 | V63: 0.1097 | W63: 0 | X63: 0 | AB63: =+FxCxa!J129 -> 0.1097192818 | AD63: =VLOOKUP($I63,Base_a,calc_c,0)-AB63 -> -1.928177689e-05
I64: A64
B65: APURAÇÃO DO CUSTO | I65: A65
I66: A66
B67: 1 | C67: QUILOMETRAGEM E PASSAGEIROS | I67: A67
I68: A68
C69: 101 | D69: Percuso Mensal em KM | F69: CONSUMO | G69: =+Consumo!I15 -> B15 | I69: A69 | U69: =+Consumo!K15 -> 402640 | V69: =+Consumo!L15 -> 402640 | W69: =+Consumo!M15 -> 402640 | X69: =+Consumo!N15 -> 402640 | AB69: =VLOOKUP($I69,Base_a,calc_c,0) -> 402640
I70: A70
C71: 102 | D71: PMM - Percurso Médio Mensal por Veiculo | F71: CONSUMO | G71: =+Consumo!I53 -> B53 | I71: A71 | U71: =+Consumo!K53 -> 5033 | V71: =+Consumo!L53 -> 5033 | W71: =+Consumo!M53 -> 5033 | X71: =+Consumo!N53 -> 5033 | AB71: =VLOOKUP($I71,Base_a,calc_c,0) -> 5033
I72: A72
C73: 103 | D73: Passageiros Equivalentes - Média Mensal | F73: CONSUMO | G73: =+Consumo!I62 -> B62 | I73: A73 | U73: =+Consumo!K62 -> 750105 | V73: =+Consumo!L62 -> 750105 | W73: =+Consumo!M62 -> 750105 | X73: =+Consumo!N62 -> 750105 | AB73: =VLOOKUP($I73,Base_a,calc_c,0) -> 750105
I74: A74
C75: 104 | D75: IPK | F75: =CONCATENATE(I73," / ",I$69) -> A73 / A69 | I75: A75 | U75: =+U73/U69 -> 1.862966918 | V75: =+V73/V69 -> 1.862966918 | W75: =+W73/W69 -> 1.862966918 | X75: =+X73/X69 -> 1.862966918 | AB75: =VLOOKUP($I75,Base_a,calc_c,0) -> 1.862966918
I76: A76
B77: 2 | C77: FROTA | I77: A77
I78: A78
C79: 201 | D79: Frota Total | I79: A79 | U79: Quantidade | V79: Quantidade | W79: Quantidade | X79: Quantidade | AB79: =VLOOKUP($I79,Base_a,calc_c,0) -> Quantidade
D80: Micro | F80: DR_FROTA | G80: =+DR_Frota!I98 -> C98 | I80: A80 | U80: =+DR_Frota!K98 -> 1 | V80: =+DR_Frota!L98 -> 1 | W80: =+DR_Frota!M98 -> 1 | X80: =+DR_Frota!N98 -> 1 | AB80: 1
D81: Leve | F81: DR_FROTA | G81: =+DR_Frota!I99 -> C99 | I81: A81 | U81: =+DR_Frota!K99 -> 14 | V81: =+DR_Frota!L99 -> 14 | W81: =+DR_Frota!M99 -> 14 | X81: =+DR_Frota!N99 -> 14 | AB81: 14
D82: Pesado | F82: DR_FROTA | G82: =+DR_Frota!I100 -> C100 | I82: A82 | U82: =+DR_Frota!K100 -> 72 | V82: =+DR_Frota!L100 -> 72 | W82: =+DR_Frota!M100 -> 72 | X82: =+DR_Frota!N100 -> 72 | AB82: 72
D83: Articulado | F83: DR_FROTA | G83: =+DR_Frota!I101 -> C101 | I83: A83 | U83: =+DR_Frota!K101 -> 1 | V83: =+DR_Frota!L101 -> 1 | W83: =+DR_Frota!M101 -> 1 | X83: =+DR_Frota!N101 -> 1 | AB83: 1
D84: Total | F84: =CONCATENATE("Soma de ",I80,"..",I83) -> Soma de A80..A83 | I84: A84 | U84: =SUM(U80:U83) -> 88 | V84: =SUM(V80:V83) -> 88 | W84: =SUM(W80:W83) -> 88 | X84: =SUM(X80:X83) -> 88 | AB84: 88
I85: A85
C86: 202 | D86: Frota Não Operante | I86: A86 | U86: Quantidade | V86: Quantidade | W86: Quantidade | X86: Quantidade | AB86: =VLOOKUP($I86,Base_a,calc_c,0) -> Quantidade
D87: Micro | F87: DR_FROTA | G87: =+DR_Frota!I107 -> C107 | I87: A87 | U87: =+DR_Frota!K107 -> 0 | V87: =+DR_Frota!L107 -> 0 | W87: =+DR_Frota!M107 -> 0 | X87: =+DR_Frota!N107 -> 0 | AB87: 0
D88: Leve | F88: DR_FROTA | G88: =+DR_Frota!I108 -> C108 | I88: A88 | U88: =+DR_Frota!K108 -> 0 | V88: =+DR_Frota!L108 -> 0 | W88: =+DR_Frota!M108 -> 0 | X88: =+DR_Frota!N108 -> 0 | AB88: 0
D89: Pesado | F89: DR_FROTA | G89: =+DR_Frota!I109 -> C109 | I89: A89 | U89: =+DR_Frota!K109 -> 8 | V89: =+DR_Frota!L109 -> 8 | W89: =+DR_Frota!M109 -> 8 | X89: =+DR_Frota!N109 -> 8 | AB89: 8
D90: Articulado | F90: DR_FROTA | G90: =+DR_Frota!I110 -> C110 | I90: A90 | U90: =+DR_Frota!K110 -> 0 | V90: =+DR_Frota!L110 -> 0 | W90: =+DR_Frota!M110 -> 0 | X90: =+DR_Frota!N110 -> 0 | AB90: 0
D91: Total | F91: =CONCATENATE("Soma de ",I87,"..",I90) -> Soma de A87..A90 | I91: A91 | U91: =SUM(U87:U90) -> 8 | V91: =SUM(V87:V90) -> 8 | W91: =SUM(W87:W90) -> 8 | X91: =SUM(X87:X90) -> 8 | AB91: 8
I92: A92
C93: 203 | D93: Frota Operante | I93: A93 | U93: Quantidade | V93: Quantidade | W93: Quantidade | X93: Quantidade | AB93: =VLOOKUP($I93,Base_a,calc_c,0) -> Quantidade
D94: Micro | F94: DR_FROTA | G94: =+DR_Frota!I114 -> C114 | I94: A94 | U94: =+DR_Frota!K114 -> 1 | V94: =+DR_Frota!L114 -> 1 | W94: =+DR_Frota!M114 -> 1 | X94: =+DR_Frota!N114 -> 1 | AB94: 1
D95: Leve | F95: DR_FROTA | G95: =+DR_Frota!I115 -> C115 | I95: A95 | U95: =+DR_Frota!K115 -> 14 | V95: =+DR_Frota!L115 -> 14 | W95: =+DR_Frota!M115 -> 14 | X95: =+DR_Frota!N115 -> 14 | AB95: 14
D96: Pesado | F96: DR_FROTA | G96: =+DR_Frota!I116 -> C116 | I96: A96 | U96: =+DR_Frota!K116 -> 64 | V96: =+DR_Frota!L116 -> 64 | W96: =+DR_Frota!M116 -> 64 | X96: =+DR_Frota!N116 -> 64 | AB96: 64
D97: Articulado | F97: DR_FROTA | G97: =+DR_Frota!I117 -> C117 | I97: A97 | U97: =+DR_Frota!K117 -> 1 | V97: =+DR_Frota!L117 -> 1 | W97: =+DR_Frota!M117 -> 1 | X97: =+DR_Frota!N117 -> 1 | AB97: 1
D98: Total | F98: =CONCATENATE("Soma de ",I94,"..",I97) -> Soma de A94..A97 | I98: A98 | U98: =SUM(U94:U97) -> 80 | V98: =SUM(V94:V97) -> 80 | W98: =SUM(W94:W97) -> 80 | X98: =SUM(X94:X97) -> 80 | AB98: 80
I99: A99
C100: 204 | D100: Idade Média da Frota | I100: A100 | U100: Idade | V100: Idade | W100: Idade | X100: Idade | AB100: =VLOOKUP($I100,Base_a,calc_c,0) -> Idade
D101: Micro | F101: DR_FROTA | G101: =+DR_Frota!I128 -> C128 | I101: A101 | U101: =+DR_Frota!K128 -> 6 | V101: =+DR_Frota!L128 -> 6 | W101: =+DR_Frota!M128 -> 6 | X101: =+DR_Frota!N128 -> 6 | AB101: 6
D102: Leve | F102: DR_FROTA | G102: =+DR_Frota!I129 -> C129 | I102: A102 | U102: =+DR_Frota!K129 -> 4.142857143 | V102: =+DR_Frota!L129 -> 4.142857143 | W102: =+DR_Frota!M129 -> 4.142857143 | X102: =+DR_Frota!N129 -> 4.142857143 | AB102: 4.142857143
D103: Pesado | F103: DR_FROTA | G103: =+DR_Frota!I130 -> C130 | I103: A103 | U103: =+DR_Frota!K130 -> 4.5 | V103: =+DR_Frota!L130 -> 4.5 | W103: =+DR_Frota!M130 -> 4.5 | X103: =+DR_Frota!N130 -> 4.5 | AB103: 4.5
D104: Articulado | F104: DR_FROTA | G104: =+DR_Frota!I131 -> C131 | I104: A104 | U104: =+DR_Frota!K131 -> 4 | V104: =+DR_Frota!L131 -> 4 | W104: =+DR_Frota!M131 -> 4 | X104: =+DR_Frota!N131 -> 4 | AB104: 4
D105: Total | F105: =CONCATENATE("Soma de ",I101,"..",I104) -> Soma de A101..A104 | I105: A105 | U105: =+DR_Frota!K132 -> 4.454545455 | V105: =+DR_Frota!L132 -> 4.454545455 | W105: =+DR_Frota!M132 -> 4.454545455 | X105: =+DR_Frota!N132 -> 4.454545455 | AB105: 4.454545455
I106: A106
C107: 205 | D107: Valor - Onibus com Rodagem | I107: A107
D108: Micro | F108: CONSUMO | G108: =+Consumo!I239 -> B239 | I108: A108 | U108: =+Consumo!K239 -> 250000 | V108: =+Consumo!L239 -> 250000 | W108: =+Consumo!M239 -> 1000 | X108: =+Consumo!N239 -> 1000 | AB108: =VLOOKUP($I108,Base_a,calc_c,0) -> 250000
D109: Leve | F109: CONSUMO | G109: =+Consumo!I240 -> B240 | I109: A109 | U109: =+Consumo!K240 -> 278336.2 | V109: =+Consumo!L240 -> 278336.2 | W109: =+Consumo!M240 -> 1000 | X109: =+Consumo!N240 -> 1000 | AB109: =VLOOKUP($I109,Base_a,calc_c,0) -> 278336.2
D110: Pesado | F110: CONSUMO | G110: =+Consumo!I241 -> B241 | I110: A110 | U110: =+Consumo!K241 -> 303858.5 | V110: =+Consumo!L241 -> 303858.5 | W110: =+Consumo!M241 -> 1000 | X110: =+Consumo!N241 -> 1000 | AB110: =VLOOKUP($I110,Base_a,calc_c,0) -> 303858.5
D111: Articulado | F111: CONSUMO | G111: =+Consumo!I242 -> B242 | I111: A111 | U111: =+Consumo!K242 -> 362649.99 | V111: =+Consumo!L242 -> 362649.99 | W111: =+Consumo!M242 -> 1000 | X111: =+Consumo!N242 -> 1000 | AB111: =VLOOKUP($I111,Base_a,calc_c,0) -> 362649.99
I112: A112
C113: 206 | D113: Valor - Onibus sem Rodagem | I113: A113
D114: Micro | F114: CONSUMO | G114: =+Consumo!I257 -> B257 | I114: A114 | U114: =+Consumo!K257 -> 246606.88 | V114: =+Consumo!L257 -> 246606.88 | W114: =+Consumo!M257 -> -2393.12 | X114: =+Consumo!N257 -> -2393.12 | AB114: =VLOOKUP($I114,Base_a,calc_c,0) -> 246606.88
D115: Leve | F115: CONSUMO | G115: =+Consumo!I258 -> B258 | I115: A115 | U115: =+Consumo!K258 -> 269653.78 | V115: =+Consumo!L258 -> 269653.78 | W115: =+Consumo!M258 -> -7682.42 | X115: =+Consumo!N258 -> -7682.42 | AB115: =VLOOKUP($I115,Base_a,calc_c,0) -> 269653.78
D116: Pesado | F116: CONSUMO | G116: =+Consumo!I259 -> B259 | I116: A116 | U116: =+Consumo!K259 -> 294454.46 | V116: =+Consumo!L259 -> 294454.46 | W116: =+Consumo!M259 -> -8404.04 | X116: =+Consumo!N259 -> -8404.04 | AB116: =VLOOKUP($I116,Base_a,calc_c,0) -> 294454.46
D117: Articulado | F117: CONSUMO | G117: =+Consumo!I260 -> B260 | I117: A117 | U117: =+Consumo!K260 -> 347477.79 | V117: =+Consumo!L260 -> 347477.79 | W117: =+Consumo!M260 -> -14172.2 | X117: =+Consumo!N260 -> -14172.2 | AB117: =VLOOKUP($I117,Base_a,calc_c,0) -> 347477.79
I118: A118
C119: 207 | D119: Valor Total da Frota | I119: A119
D120: Micro | F120: DR_FROTA | G120: =+DR_Frota!I147 -> C147 | I120: A120 | U120: =+DR_Frota!K147 -> 250000 | V120: =+DR_Frota!L147 -> 250000 | W120: =+DR_Frota!M147 -> 1000 | X120: =+DR_Frota!N147 -> 1000 | AB120: =VLOOKUP($I120,Base_a,calc_c,0) -> 250000
D121: Leve | F121: DR_FROTA | G121: =+DR_Frota!I148 -> C148 | I121: A121 | U121: =+DR_Frota!K148 -> 3896706.8 | V121: =+DR_Frota!L148 -> 3896706.8 | W121: =+DR_Frota!M148 -> 14000 | X121: =+DR_Frota!N148 -> 14000 | AB121: =VLOOKUP($I121,Base_a,calc_c,0) -> 3896706.8
D122: Pesado | F122: DR_FROTA | G122: =+DR_Frota!I149 -> C149 | I122: =CONCATENATE("A",ROW()) -> A122 | U122: =+DR_Frota!K149 -> 21877812 | V122: =+DR_Frota!L149 -> 21877812 | W122: =+DR_Frota!M149 -> 72000 | X122: =+DR_Frota!N149 -> 72000 | AB122: =VLOOKUP($I122,Base_a,calc_c,0) -> 21877812
D123: Articulado | F123: DR_FROTA | G123: =+DR_Frota!I150 -> C150 | I123: A123 | U123: =+DR_Frota!K150 -> 362649.99 | V123: =+DR_Frota!L150 -> 362649.99 | W123: =+DR_Frota!M150 -> 1000 | X123: =+DR_Frota!N150 -> 1000 | AB123: =VLOOKUP($I123,Base_a,calc_c,0) -> 362649.99
D124: Total | F124: =CONCATENATE("Soma de ",I120,"..",I123) -> Soma de A120..A123 | I124: A124 | U124: =SUM(U120:U123) -> 26387168.79 | V124: =SUM(V120:V123) -> 26387168.79 | W124: =SUM(W120:W123) -> 88000 | X124: =SUM(X120:X123) -> 88000 | AB124: =VLOOKUP($I124,Base_a,calc_c,0) -> 26387168.79
I125: A125
B126: 3 | C126: CAPITAL - DEPRECIAÇÃO e REMUNERAÇÃO | I126: A126
I127: A127
C128: Os cálculo da Depreciação e Remuneração são efetuados considerando a Frota Total | I128: A128 | K128: =CONCATENATE("Valor custo por km = Custo Mensal / Percurso Mensal (",I$69,")") -> Valor custo por km = Custo Mensal / Percurso Mensal (A69) | P128: =CONCATENATE("Valor custo por Veiculo = Custo Mensal / Frota Total (",I$84,")") -> Valor custo por Veiculo = Custo Mensal / Frota Total (A84)
I129: A129
I130: A130
C131: VEICULOS | I131: A131
I132: A132
C133: 301 | D133: Depreciação Mensal da Frota | I133: A133
D134: Micro | F134: DR_FROTA | G134: =+DR_Frota!I416 -> C416 | I134: A134 | K134: =+U134/U$69 -> 0.005422958474 | L134: 0.005422958474 | M134: -5.262765746e-05 | N134: -5.262765746e-05 | P134: =+U134/U$84 -> 24.8125 | Q134: 24.8125 | R134: -0.2407954545 | S134: -0.2407954545 | U134: =+DR_Frota!K416 -> 2183.5 | V134: =+DR_Frota!L416 -> 2183.5 | W134: =+DR_Frota!M416 -> -21.19 | X134: =+DR_Frota!N416 -> -21.19 | AA134: =VLOOKUP($I134,Base_a,calc_b,0) -> 24.8125 | AB134: =VLOOKUP($I134,Base_a,calc_c,0) -> 2183.5
D135: Leve | F135: DR_FROTA | G135: =+DR_Frota!I417 -> C417 | I135: A135 | K135: 0.08301666501 | L135: 0.08301666501 | M135: -0.002365140076 | N135: -0.002365140076 | P135: 379.8389773 | Q135: 379.8389773 | R135: -10.82159091 | S135: -10.82159091 | U135: =+DR_Frota!K417 -> 33425.83 | V135: =+DR_Frota!L417 -> 33425.83 | W135: =+DR_Frota!M417 -> -952.3 | X135: =+DR_Frota!N417 -> -952.3 | AA135: =VLOOKUP($I135,Base_a,calc_b,0) -> 379.8389773 | AB135: =VLOOKUP($I135,Base_a,calc_c,0) -> 33425.83
D136: Pesado | F136: DR_FROTA | G136: =+DR_Frota!I418 -> C418 | I136: A136 | K136: 0.3949071379 | L136: 0.3949071379 | M136: -0.011271061 | N136: -0.011271061 | P136: 1806.879659 | Q136: 1806.879659 | R136: -51.57022727 | S136: -51.57022727 | U136: =+DR_Frota!K418 -> 159005.41 | V136: =+DR_Frota!L418 -> 159005.41 | W136: =+DR_Frota!M418 -> -4538.18 | X136: =+DR_Frota!N418 -> -4538.18 | AA136: =VLOOKUP($I136,Base_a,calc_b,0) -> 1806.879659 | AB136: =VLOOKUP($I136,Base_a,calc_c,0) -> 159005.41
D137: Articulado | F137: DR_FROTA | G137: =+DR_Frota!I419 -> C419 | I137: A137 | K137: 0.006472481621 | L137: 0.006472481621 | M137: -0.0002639827141 | N137: -0.0002639827141 | P137: 29.61454545 | Q137: 29.61454545 | R137: -1.207840909 | S137: -1.207840909 | U137: =+DR_Frota!K419 -> 2606.08 | V137: =+DR_Frota!L419 -> 2606.08 | W137: =+DR_Frota!M419 -> -106.29 | X137: =+DR_Frota!N419 -> -106.29 | AA137: =VLOOKUP($I137,Base_a,calc_b,0) -> 29.61454545 | AB137: =VLOOKUP($I137,Base_a,calc_c,0) -> 2606.08
D138: Total | F138: =CONCATENATE("Soma de ",I134,"..",I137) -> Soma de A134..A137 | I138: A138 | K138: 0.489819243 | L138: 0.489819243 | M138: -0.01395281144 | N138: -0.01395281144 | P138: =SUM(P134:P137) -> 2241.145682 | Q138: =SUM(Q134:Q137) -> 2241.145682 | R138: =SUM(R134:R137) -> -63.84045455 | S138: =SUM(S134:S137) -> -63.84045455 | U138: =SUM(U134:U137) -> 197220.82 | V138: =SUM(V134:V137) -> 197220.82 | W138: =SUM(W134:W137) -> -5617.96 | X138: =SUM(X134:X137) -> -5617.96 | Z138: =VLOOKUP($I138,Base_a,calc_a,0) -> 0.489819243 | AA138: =VLOOKUP($I138,Base_a,calc_b,0) -> 2241.145682 | AB138: =VLOOKUP($I138,Base_a,calc_c,0) -> 197220.82
I139: A139
C140: 302 | D140: Remuneração Mensal da Frota | I140: A140
D141: Micro | F141: DR_FROTA | G141: =+DR_Frota!I582 -> C582 | I141: A141 | K141: =+U141/U$69 -> 0.002220221538 | L141: 0.002220221538 | M141: -2.155771905e-05 | N141: -2.155771905e-05 | P141: =+U141/U$84 -> 10.15852273 | Q141: 10.15852273 | R141: -0.09863636364 | S141: -0.09863636364 | U141: =+DR_Frota!K582 -> 893.95 | V141: =+DR_Frota!L582 -> 893.95 | W141: =+DR_Frota!M582 -> -8.68 | X141: =+DR_Frota!N582 -> -8.68 | Z141: =VLOOKUP($I141,Base_a,calc_a,0) -> 0.002220221538 | AA141: =VLOOKUP($I141,Base_a,calc_b,0) -> 10.15852273 | AB141: =VLOOKUP($I141,Base_a,calc_c,0) -> 893.95
D142: Leve | F142: DR_FROTA | G142: =+DR_Frota!I583 -> C583 | I142: A142 | K142: 0.05248887344 | L142: 0.05248887344 | M142: -0.001495405325 | N142: -0.001495405325 | P142: 240.1604545 | Q142: 240.1604545 | R142: -6.842159091 | S142: -6.842159091 | U142: =+DR_Frota!K583 -> 21134.12 | V142: =+DR_Frota!L583 -> 21134.12 | W142: =+DR_Frota!M583 -> -602.11 | X142: =+DR_Frota!N583 -> -602.11 | Z142: =VLOOKUP($I142,Base_a,calc_a,0) -> 0.05248887344 | AA142: =VLOOKUP($I142,Base_a,calc_b,0) -> 240.1604545 | AB142: =VLOOKUP($I142,Base_a,calc_c,0) -> 21134.12
D143: Pesado | F143: DR_FROTA | G143: =+DR_Frota!I584 -> C584 | I143: A143 | K143: 0.3132929913 | L143: 0.3132929913 | M143: -0.008941709716 | N143: -0.008941709716 | P143: 1433.457841 | Q143: 1433.457841 | R143: -40.91238636 | S143: -40.91238636 | U143: =+DR_Frota!K584 -> 126144.29 | V143: =+DR_Frota!L584 -> 126144.29 | W143: =+DR_Frota!M584 -> -3600.29 | X143: =+DR_Frota!N584 -> -3600.29 | Z143: =VLOOKUP($I143,Base_a,calc_a,0) -> 0.3132929913 | AA143: =VLOOKUP($I143,Base_a,calc_b,0) -> 1433.457841 | AB143: =VLOOKUP($I143,Base_a,calc_c,0) -> 126144.29
D144: Articulado | F144: DR_FROTA | G144: =+DR_Frota!I585 -> C585 | I144: A144 | K144: 0.0055231969 | L144: 0.0055231969 | M144: -0.0002252632625 | N144: -0.0002252632625 | P144: 25.27113636 | Q144: 25.27113636 | R144: -1.030681818 | S144: -1.030681818 | U144: =+DR_Frota!K585 -> 2223.86 | V144: =+DR_Frota!L585 -> 2223.86 | W144: =+DR_Frota!M585 -> -90.7 | X144: =+DR_Frota!N585 -> -90.7 | Z144: =VLOOKUP($I144,Base_a,calc_a,0) -> 0.0055231969 | AA144: =VLOOKUP($I144,Base_a,calc_b,0) -> 25.27113636 | AB144: =VLOOKUP($I144,Base_a,calc_c,0) -> 2223.86
D145: Total | F145: =CONCATENATE("Soma de ",I141,"..",I144) -> Soma de A141..A144 | I145: A145 | K145: 0.3735252831 | L145: 0.3735252831 | M145: -0.01068393602 | N145: -0.01068393602 | P145: =SUM(P141:P144) -> 1709.047955 | Q145: =SUM(Q141:Q144) -> 1709.047955 | R145: =SUM(R141:R144) -> -48.88386364 | S145: =SUM(S141:S144) -> -48.88386364 | U145: =SUM(U141:U144) -> 150396.22 | V145: =SUM(V141:V144) -> 150396.22 | W145: =SUM(W141:W144) -> -4301.78 | X145: =SUM(X141:X144) -> -4301.78 | Z145: =VLOOKUP($I145,Base_a,calc_a,0) -> 0.3735252831 | AA145: =VLOOKUP($I145,Base_a,calc_b,0) -> 1709.047955 | AB145: =VLOOKUP($I145,Base_a,calc_c,0) -> 150396.22
I146: A146
D147: Total Depreciação e Remuneração de Veiculos | F147: =CONCATENATE(" ",I138,"+",I145) -> A138+A145 | I147: A147 | K147: =+K138+K145 -> 0.8633445261 | L147: =+L138+L145 -> 0.8633445261 | M147: =+M138+M145 -> -0.02463674747 | N147: =+N138+N145 -> -0.02463674747 | P147: =+P138+P145 -> 3950.193636 | Q147: =+Q138+Q145 -> 3950.193636 | R147: =+R138+R145 -> -112.7243182 | S147: =+S138+S145 -> -112.7243182 | U147: =+U138+U145 -> 347617.04 | V147: =+V138+V145 -> 347617.04 | W147: =+W138+W145 -> -9919.74 | X147: =+X138+X145 -> -9919.74 | Z147: =VLOOKUP($I147,Base_a,calc_a,0) -> 0.8633445261 | AA147: =VLOOKUP($I147,Base_a,calc_b,0) -> 3950.193636 | AB147: =VLOOKUP($I147,Base_a,calc_c,0) -> 347617.04
I148: A148
C149: EQUIPAMENTOS | I149: A149
I150: A150
C151: 311 | D151: Depreciação Mensal de Equipamentos | I151: A151
D152: Sistema de Monitoramento e Bilhetagem | F152: DR_EQUIP | G152: =+DR_Equip!I21 -> D21 | I152: A152 | K152: =+U152/U$69 -> 0.02549837738 | L152: 0.02549837738 | M152: 0 | N152: 0 | P152: =+U152/U$84 -> 116.6666667 | Q152: 116.6666667 | R152: 0 | S152: 0 | U152: =+DR_Equip!K21 -> 10266.66667 | V152: =+DR_Equip!L21 -> 10266.66667 | W152: =+DR_Equip!M21 -> 0 | X152: =+DR_Equip!N21 -> 0 | Z152: =VLOOKUP($I152,Base_a,calc_a,0) -> 0.02549837738 | AA152: =VLOOKUP($I152,Base_a,calc_b,0) -> 116.6666667 | AB152: =VLOOKUP($I152,Base_a,calc_c,0) -> 10266.66667
D153: Maquinas, Instalações e Equipamentos | F153: DR_EQUIP | G153: =+DR_Equip!I22 -> D22 | I153: A153 | K153: 0.006083184317 | L153: 0.006083184317 | M153: 2.185575204e-05 | N153: 2.185575204e-05 | P153: 27.83333333 | Q153: 27.83333333 | R153: 0.1 | S153: 0.1 | U153: =+DR_Equip!K22 -> 2449.333333 | V153: =+DR_Equip!L22 -> 2449.333333 | W153: =+DR_Equip!M22 -> 8.8 | X153: =+DR_Equip!N22 -> 8.8 | Z153: 0.006083184317 | AA153: 27.83333333 | AB153: 2449.333333
D154: Total | F154: =CONCATENATE("Soma de ",I152,"..",I152) -> Soma de A152..A152 | I154: A154 | K154: =SUM(K152:K153) -> 0.03158156169 | L154: =SUM(L152:L153) -> 0.03158156169 | M154: 2.185575204e-05 | N154: 2.185575204e-05 | P154: =SUM(P152:P153) -> 144.5 | Q154: =SUM(Q152:Q153) -> 144.5 | R154: 0.1 | S154: 0.1 | U154: =SUM(U152:U153) -> 12716 | V154: =SUM(V152:V153) -> 12716 | W154: =SUM(W152:W153) -> 8.8 | X154: =SUM(X152:X153) -> 8.8 | Z154: 0.03158156169 | AA154: 144.5 | AB154: 12716
I155: A155
C156: 312 | D156: Remuneração Mensal de Equipamentos | I156: A156
D157: Sistema de Monitoramento e Bilhetagem | F157: DR_EQUIP | G157: =+DR_Equip!I26 -> D26 | I157: A157 | K157: =+U157/U$69 -> 0.01529902643 | L157: 0.01529902643 | M157: =+W157/W$69 -> 0 | N157: 0 | P157: =+U157/U$84 -> 70 | Q157: 70 | R157: =+W157/W$84 -> 0 | S157: 0 | U157: =+DR_Equip!K26 -> 6160 | V157: =+DR_Equip!L26 -> 6160 | W157: =+DR_Equip!M26 -> 0 | X157: =+DR_Equip!N26 -> 0 | Z157: 0.01529902643 | AA157: 70 | AB157: 6160
D158: Maquinas, Instalações e Equipamentos | F158: DR_EQUIP | G158: =+DR_Equip!I27 -> D27 | I158: A158 | K158: =+U158/U$69 -> 0.00729982118 | L158: =+V158/V$69 -> 0.00729982118 | M158: =+W158/W$69 -> 2.622690244e-05 | N158: =+X158/X$69 -> 2.622690244e-05 | P158: =+U158/U$84 -> 33.4 | Q158: =+V158/V$84 -> 33.4 | R158: =+W158/W$84 -> 0.12 | S158: =+X158/X$84 -> 0.12 | U158: =+DR_Equip!K27 -> 2939.2 | V158: =+DR_Equip!L27 -> 2939.2 | W158: =+DR_Equip!M27 -> 10.56 | X158: =+DR_Equip!N27 -> 10.56 | Z158: 0.00729982118 | AA158: 33.4 | AB158: 2939.2
D159: Total | F159: =CONCATENATE("Soma de ",I157,"..",I158) -> Soma de A157..A158 | I159: A159 | K159: =SUM(K157:K158) -> 0.02259884761 | L159: =SUM(L157:L158) -> 0.02259884761 | M159: =SUM(M157:M158) -> 2.622690244e-05 | N159: =SUM(N157:N158) -> 2.622690244e-05 | P159: =SUM(P157:P158) -> 103.4 | Q159: =SUM(Q157:Q158) -> 103.4 | R159: =SUM(R157:R158) -> 0.12 | S159: =SUM(S157:S158) -> 0.12 | U159: =SUM(U157:U158) -> 9099.2 | V159: =SUM(V157:V158) -> 9099.2 | W159: =SUM(W157:W158) -> 10.56 | X159: =SUM(X157:X158) -> 10.56 | Z159: 0.02259884761 | AA159: 103.4 | AB159: 9099.2
I160: A160
D161: Total Depreciação e Remuneração de Equipamentos | F161: =CONCATENATE(I154,"+",I159,"+") -> A154+A159+ | I161: A161 | K161: =+K154+K159 -> 0.0541804093 | L161: =+L154+L159 -> 0.0541804093 | M161: =+M154+M159 -> 4.808265448e-05 | N161: =+N154+N159 -> 4.808265448e-05 | P161: =+P154+P159 -> 247.9 | Q161: =+Q154+Q159 -> 247.9 | R161: =+R154+R159 -> 0.22 | S161: =+S154+S159 -> 0.22 | U161: =+U154+U159 -> 21815.2 | V161: =+V154+V159 -> 21815.2 | W161: =+W154+W159 -> 19.36 | X161: =+X154+X159 -> 19.36 | Z161: 0.0541804093 | AA161: 247.9 | AB161: 21815.2
I162: A162
C163: INVESTIMENTOS | I163: A163
I164: A164
C165: 331 | D165: Depreciação Mensal de Investimentos | I165: A165
D166: Terrenos | F166: DR_INVEST | G166: =+DR_Invest!I16 -> E16 | I166: A166 | K166: =+U166/U$69 -> 0 | L166: 0 | M166: =+W166/W$69 -> 0 | N166: 0 | U166: =+DR_Invest!K16 -> 0 | V166: =+DR_Invest!L16 -> 0 | W166: =+DR_Invest!M16 -> 0 | X166: =+DR_Invest!N16 -> 0 | AB166: =VLOOKUP($I166,Base_a,calc_c,0) -> 0
D167: Construções | F167: DR_INVEST | G167: =+DR_Invest!I17 -> E17 | I167: A167 | K167: 0.01345287767 | L167: 0.01345287767 | M167: 0 | N167: =+X167/X$69 -> 0 | U167: =+DR_Invest!K17 -> 5416.666667 | V167: =+DR_Invest!L17 -> 5416.666667 | W167: =+DR_Invest!M17 -> 0 | X167: =+DR_Invest!N17 -> 0 | AB167: =VLOOKUP($I167,Base_a,calc_c,0) -> 5416.666667
D168: Outorga | F168: DR_INVEST | G168: =+DR_Invest!I18 -> E18 | I168: A168 | K168: 0.05806073664 | L168: 0.05806073664 | M168: 0 | N168: =+X168/X$69 -> 0 | U168: =+DR_Invest!K18 -> 23377.575 | V168: =+DR_Invest!L18 -> 23377.575 | W168: =+DR_Invest!M18 -> 0 | X168: =+DR_Invest!N18 -> 0 | AB168: =VLOOKUP($I168,Base_a,calc_c,0) -> 23377.575
D169: Outros Investimentos | F169: DR_INVEST | G169: =+DR_Invest!I19 -> E19 | I169: A169 | K169: 0.001862706139 | L169: 0.001862706139 | M169: 0 | N169: =+X169/X$69 -> 0 | U169: =+DR_Invest!K19 -> 750 | V169: =+DR_Invest!L19 -> 750 | W169: =+DR_Invest!M19 -> 0 | X169: =+DR_Invest!N19 -> 0 | AB169: =VLOOKUP($I169,Base_a,calc_c,0) -> 750
D170: Total | F170: =CONCATENATE("Soma de ",I166,"..",I169) -> Soma de A166..A169 | I170: A170 | K170: =SUM(K166:K169) -> 0.07337632045 | L170: =SUM(L166:L169) -> 0.07337632045 | M170: =SUM(M166:M169) -> 0 | N170: =SUM(N166:N169) -> 0 | P170: =SUM(P166:P169) -> 0 | Q170: =SUM(Q166:Q169) -> 0 | R170: =SUM(R166:R169) -> 0 | S170: =SUM(S166:S169) -> 0 | U170: =SUM(U166:U169) -> 29544.24167 | V170: =SUM(V166:V169) -> 29544.24167 | W170: =SUM(W166:W169) -> 0 | X170: =SUM(X166:X169) -> 0 | Z170: =VLOOKUP($I170,Base_a,calc_a,0) -> 0.07337632045 | AA170: =VLOOKUP($I170,Base_a,calc_b,0) -> 0 | AB170: =VLOOKUP($I170,Base_a,calc_c,0) -> 29544.24167
I171: A171
C172: 332 | D172: Remuneração Mensal de Investimentos | I172: A172
D173: Terrenos | F173: DR_INVEST | G173: =+DR_Invest!I23 -> E23 | I173: A173 | K173: =+U173/U$69 -> 0.1241804093 | L173: 0.1241804093 | M173: =+W173/W$69 -> 0 | N173: 0 | P173: =+U173/U$84 -> 568.1818182 | Q173: 568.1818182 | R173: =+W173/W$84 -> 0 | S173: 0 | U173: =+DR_Invest!K23 -> 50000 | V173: =+DR_Invest!L23 -> 50000 | W173: =+DR_Invest!M23 -> 0 | X173: =+DR_Invest!N23 -> 0 | Z173: =VLOOKUP($I173,Base_a,calc_a,0) -> 0.1241804093 | AA173: =VLOOKUP($I173,Base_a,calc_b,0) -> 568.1818182 | AB173: =VLOOKUP($I173,Base_a,calc_c,0) -> 50000
D174: Construções | F174: DR_INVEST | G174: =+DR_Invest!I24 -> E24 | I174: A174 | K174: 0.06457381284 | L174: 0.06457381284 | M174: 0 | N174: 0 | P174: 295.4545455 | Q174: 295.4545455 | R174: 0 | S174: 0 | U174: =+DR_Invest!K24 -> 26000 | V174: =+DR_Invest!L24 -> 26000 | W174: =+DR_Invest!M24 -> 0 | X174: =+DR_Invest!N24 -> 0 | Z174: =VLOOKUP($I174,Base_a,calc_a,0) -> 0.06457381284 | AA174: =VLOOKUP($I174,Base_a,calc_b,0) -> 295.4545455 | AB174: =VLOOKUP($I174,Base_a,calc_c,0) -> 26000
D175: Outorga | F175: DR_INVEST | G175: =+DR_Invest!I25 -> E25 | I175: A175 | K175: 0.1393457679 | L175: 0.1393457679 | M175: 0 | N175: 0 | P175: 637.5702273 | Q175: 637.5702273 | R175: 0 | S175: 0 | U175: =+DR_Invest!K25 -> 56106.18 | V175: =+DR_Invest!L25 -> 56106.18 | W175: =+DR_Invest!M25 -> 0 | X175: =+DR_Invest!N25 -> 0 | Z175: =VLOOKUP($I175,Base_a,calc_a,0) -> 0.1393457679 | AA175: =VLOOKUP($I175,Base_a,calc_b,0) -> 637.5702273 | AB175: =VLOOKUP($I175,Base_a,calc_c,0) -> 56106.18
D176: Outros Investimentos | F176: DR_INVEST | G176: =+DR_Invest!I26 -> E26 | I176: A176 | K176: 0.002483608186 | L176: 0.002483608186 | M176: 0 | N176: 0 | P176: 11.36363636 | Q176: 11.36363636 | R176: 0 | S176: 0 | U176: =+DR_Invest!K26 -> 1000 | V176: =+DR_Invest!L26 -> 1000 | W176: =+DR_Invest!M26 -> 0 | X176: =+DR_Invest!N26 -> 0 | Z176: =VLOOKUP($I176,Base_a,calc_a,0) -> 0.002483608186 | AA176: =VLOOKUP($I176,Base_a,calc_b,0) -> 11.36363636 | AB176: =VLOOKUP($I176,Base_a,calc_c,0) -> 1000
D177: Total | F177: =CONCATENATE("Soma de ",I173,"..",I176) -> Soma de A173..A176 | I177: A177 | K177: =SUM(K173:K176) -> 0.3305835983 | L177: =SUM(L173:L176) -> 0.3305835983 | M177: =SUM(M173:M176) -> 0 | N177: =SUM(N173:N176) -> 0 | P177: =SUM(P173:P176) -> 1512.570227 | Q177: =SUM(Q173:Q176) -> 1512.570227 | R177: =SUM(R173:R176) -> 0 | S177: =SUM(S173:S176) -> 0 | U177: =SUM(U173:U176) -> 133106.18 | V177: =SUM(V173:V176) -> 133106.18 | W177: =SUM(W173:W176) -> 0 | X177: =SUM(X173:X176) -> 0 | Z177: =VLOOKUP($I177,Base_a,calc_a,0) -> 0.3305835983 | AA177: =VLOOKUP($I177,Base_a,calc_b,0) -> 1512.570227 | AB177: =VLOOKUP($I177,Base_a,calc_c,0) -> 133106.18
I178: A178
D179: Total Depreciação e Remuneração Investimentos | F179: =CONCATENATE(I170,"+",I177) -> A170+A177 | I179: =CONCATENATE("A",ROW()) -> A179 | K179: =+K170+K177 -> 0.4039599187 | L179: =+L170+L177 -> 0.4039599187 | M179: 0 | N179: 0 | P179: =+P170+P177 -> 1512.570227 | Q179: =+Q170+Q177 -> 1512.570227 | R179: 0 | S179: 0 | U179: 162650.4217 | V179: 162650.4217 | W179: 0 | X179: 0 | Z179: =VLOOKUP($I179,Base_a,calc_a,0) -> 0.4039599187 | AA179: =VLOOKUP($I179,Base_a,calc_b,0) -> 1512.570227 | AB179: =VLOOKUP($I179,Base_a,calc_c,0) -> 162650.4217
I180: A180 | Z180: =VLOOKUP($I180,Base_a,calc_a,0) -> 0 | AA180: =VLOOKUP($I180,Base_a,calc_b,0) -> 0 | AB180: =VLOOKUP($I180,Base_a,calc_c,0) -> 0
D181: Total Mensal Depreciação e Remuneração | F181: =CONCATENATE(I147,"+",I161,"+",I179) -> A147+A161+A179 | I181: A181 | K181: =+K147+K161+K179 -> 1.321484854 | L181: =+L147+L161+L179 -> 1.321484854 | M181: =+M147+M161+M179 -> -0.02458866481 | N181: =+N147+N161+N179 -> -0.02458866481 | P181: =+P147+P161+P179 -> 5710.663864 | Q181: =+Q147+Q161+Q179 -> 5710.663864 | R181: =+R147+R161+R179 -> -112.5043182 | S181: =+S147+S161+S179 -> -112.5043182 | U181: =+U147+U161+U179 -> 532082.6617 | V181: =+V147+V161+V179 -> 532082.6617 | W181: =+W147+W161+W179 -> -9900.38 | X181: =+X147+X161+X179 -> -9900.38 | Z181: =VLOOKUP($I181,Base_a,calc_a,0) -> 1.321484854 | AA181: =VLOOKUP($I181,Base_a,calc_b,0) -> 5710.663864 | AB181: =VLOOKUP($I181,Base_a,calc_c,0) -> 532082.6617
I182: A182
B183: 4 | C183: GASTOS VARIÁVEIS | I183: A183
I184: A184
C185: Os cálculo de Gastos Variaeis são efetuados considerando a Frota Operante | I185: A185 | K185: =CONCATENATE("Valor custo por km = Custo Mensal / Percurso Mensal (",I$69,")") -> Valor custo por km = Custo Mensal / Percurso Mensal (A69) | P185: =CONCATENATE("Valor custo por Veiculo = Custo Mensal / Frota Operante (",I$98,")") -> Valor custo por Veiculo = Custo Mensal / Frota Operante (A98)
I186: A186
I187: A187
C188: 401 | D188: Valor combustível | F188: CONSUMO | G188: =+Consumo!I158 -> B158 | I188: A188 | U188: =+Consumo!K158 -> 2.82 | V188: =+Consumo!L158 -> 2.82 | W188: =+Consumo!M158 -> 2.82 | X188: =+Consumo!N158 -> 3.4 | AB188: =VLOOKUP($I188,Base_a,calc_c,0) -> 2.82
I189: A189
C190: 402 | D190: Frota Operante | I190: A190 | U190: Quantidade | V190: Quantidade | W190: Quantidade | X190: Quantidade | AB190: =VLOOKUP($I190,Base_a,calc_c,0) -> Quantidade
D191: Micro | G191: =+I94 -> A94 | I191: A191 | U191: =+U94 -> 1 | V191: 1 | W191: 1 | X191: 1 | AB191: 1
D192: Leve | G192: =+I95 -> A95 | I192: A192 | U192: 14 | V192: 14 | W192: 14 | X192: 14 | AB192: 14
D193: Pesado | G193: =+I96 -> A96 | I193: A193 | U193: 64 | V193: 64 | W193: 64 | X193: 64 | AB193: 64
D194: Articulado | G194: =+I97 -> A97 | I194: A194 | U194: 1 | V194: 1 | W194: 1 | X194: 1 | AB194: 1
D195: Total | F195: =CONCATENATE("Soma de ",I191,"..",I194) -> Soma de A191..A194 | I195: A195 | U195: =SUM(U191:U194) -> 80 | V195: =SUM(V191:V194) -> 80 | W195: =SUM(W191:W194) -> 80 | X195: =SUM(X191:X194) -> 80 | AB195: 80
I196: A196
C197: 403 | D197: Coeficiente Consumo Combustivel (L/Km) | I197: A197
D198: Micro | F198: CONSUMO | G198: =+Consumo!I161 -> B161 | I198: A198 | U198: =+Consumo!K161 -> 0.25 | V198: =+Consumo!L161 -> 0.25 | W198: =+Consumo!M161 -> 0.25 | X198: =+Consumo!N161 -> 0.25 | AB198: =VLOOKUP($I198,Base_a,calc_c,0) -> 0.25
D199: Leve | F199: CONSUMO | G199: =+Consumo!I162 -> B162 | I199: A199 | U199: =+Consumo!K162 -> 0.35 | V199: =+Consumo!L162 -> 0.35 | W199: =+Consumo!M162 -> 0.35 | X199: =+Consumo!N162 -> 0.35 | AB199: =VLOOKUP($I199,Base_a,calc_c,0) -> 0.35
D200: Pesado | F200: CONSUMO | G200: =+Consumo!I163 -> B163 | I200: A200 | U200: =+Consumo!K163 -> 0.42 | V200: =+Consumo!L163 -> 0.42 | W200: =+Consumo!M163 -> 0.42 | X200: =+Consumo!N163 -> 0.42 | AB200: =VLOOKUP($I200,Base_a,calc_c,0) -> 0.42
D201: Articulado | F201: CONSUMO | G201: =+Consumo!I164 -> B164 | I201: A201 | U201: =+Consumo!K164 -> 0.55 | V201: =+Consumo!L164 -> 0.55 | W201: =+Consumo!M164 -> 0.55 | X201: =+Consumo!N164 -> 0.55 | AB201: =VLOOKUP($I201,Base_a,calc_c,0) -> 0.55
I202: A202
C203: 404 | D203: Litros de Combustivel Mensal | I203: A203 | U203: Quantidade | V203: Quantidade | W203: Quantidade | X203: Quantidade | AB203: ={"Quantidade"} -> Quantidade
... 236 more rows

Sheet Consumo
B2: CONSUMO | I2: ÁREA DE DADOS E CÁLCULOS - NÃO INCLUIR COLUNA | W2: =+Apura!U28 -> 2.973757531 | X2: =+Apura!V28 -> 2.973757531 | Y2: =+Apura!W28 -> 0.7135887365 | Z2: =+Apura!X28 -> 0.8524965276
B3: =+Titulo_01 -> PREFEITURA MUNICIPAL DE CHAPECO
B4: =+Titulo_02 -> SECRETARIA DE DEFESA DO CIDADÃO | AC4: =+Apura!AB63 -> 0.1097192818 | AD4: =+Reajuste!Q47 -> 3.10705528
B5: =+Titulo_03 -> SISTEMA DE TRANSPORTE PÚBLICO DE PASSAGEIROS | AD5: =+AD4/2.98 -> 1.042636
L6: Z'
B7: Dados de Consumo Coeficientes e Valores de Referência
B8: =CONCATENATE(+Calculo!$D$9," - ",+Calculo!$E$17) -> Cenário - Prefeitura Chapecó - Base Edital - Proposta | R8: REFERÊNCIA EXTERNA
B10: ITEM | C10: DISCRIMINAÇÃO | F10: Referência | K10: =+Apura!U12 -> Cenário 01 | L10: =+Apura!V12 -> Cenário 02 | M10: =+Apura!W12 -> Cenário 03 | N10: =+Apura!X12 -> Cenário 04 | P10: Fluxo caixa | R10: ANTP | T10: GEIPOT
F11: Data | I11: =CONCATENATE("B",ROW()) -> B11 | K11: =+Calculo!L10 -> 2017-10-31 | L11: =+Calculo!L11 -> 2018-06-30 | M11: =+Calculo!L12 -> 2018-06-30 | N11: =+Calculo!L13 -> 2018-06-30 | P11: =VLOOKUP(I11,Base_b,calc_d,0) -> 2018-06-30
I12: =CONCATENATE("B",ROW()) -> B12
B13: QUILOMETRAGEM e FROTA | I13: =CONCATENATE("B",ROW()) -> B13
I14: =CONCATENATE("B",ROW()) -> B14
B15: 101 | C15: Percurso Mensal Programado em KM | F15: =CONCATENATE("+",I17,"+",I35) -> +B17+B35 | I15: B15 | K15: =+K17+K35 -> 402640 | L15: =+L17+L35 -> 402640 | M15: =+M17+M35 -> 402640 | N15: =+N17+N35 -> 402640 | P15: =VLOOKUP(I15,Base_b,calc_d,0) -> 402640 | W15: Percurso Mensal Programado em KM = Percurso médio mensal dos Veiculos durante o mês
I16: B16
C17: Percurso Operacional | F17: =CONCATENATE("+",I33,"+",12) -> +B33+12 | I17: B17 | K17: =ROUND(+K33/12,0) -> 383467 | L17: =ROUND(+L33/12,0) -> 383467 | M17: =ROUND(+M33/12,0) -> 383467 | N17: =ROUND(+N33/12,0) -> 383467 | P17: =VLOOKUP(I17,Base_b,calc_d,0) -> 383467 | W17: PMM Percurso Médio Mensal = Km/veeiculo mês
I18: B18
B19: 102 | C19: Percurso operacional mensal (ultimos 12 meses) | I19: B19
C20: ="Data Referência ( - ) 12" -> Data Referência ( - ) 12 | F20: =DATE(YEAR(F32)-1,MONTH(F32),DAY(F32)) -> 2016-10-31 | G20: ? | I20: B20 | K20: 0 | L20: 0 | M20: 0 | N20: 0 | P20: =VLOOKUP(I20,Base_b,calc_d,0) -> 0 | W20: Percurso operacional mensal (ultimos 12 meses) para cada periodo de apuração baseado nas informações fornecidas pelas Concessionárias (ajustadas)
C21: ="Data Referência ( - ) 11" -> Data Referência ( - ) 11 | F21: =+F20+32-DAY(F20+32) -> 2016-11-30 | G21: ? | I21: B21 | K21: 372405 | L21: 372405 | M21: 372405 | N21: 372405 | P21: 372405
C22: ="Data Referência ( - ) 10" -> Data Referência ( - ) 10 | F22: =+F21+32-DAY(F21+32) -> 2016-12-31 | G22: ? | I22: B22 | K22: 386009 | L22: 386009 | M22: 386009 | N22: 386009 | P22: 386009
C23: ="Data Referência ( - ) 09" -> Data Referência ( - ) 09 | F23: 2017-01-31 | G23: ? | I23: B23 | K23: 376223 | L23: 376223 | M23: 376223 | N23: 376223 | P23: 376223
C24: ="Data Referência ( - ) 08" -> Data Referência ( - ) 08 | F24: 2017-02-28 | G24: ? | I24: B24 | K24: 349697 | L24: 349697 | M24: 349697 | N24: 349697 | P24: 349697
C25: ="Data Referência ( - ) 07" -> Data Referência ( - ) 07 | F25: 2017-03-31 | G25: ? | I25: B25 | K25: 403808 | L25: 403808 | M25: 403808 | N25: 403808 | P25: 403808
C26: ="Data Referência ( - ) 06" -> Data Referência ( - ) 06 | F26: 2017-04-30 | G26: ? | I26: B26 | K26: 354842 | L26: 354842 | M26: 354842 | N26: 354842 | P26: 354842
C27: ="Data Referência ( - ) 05" -> Data Referência ( - ) 05 | F27: 2017-05-31 | G27: ? | I27: B27 | K27: 405134 | L27: 405134 | M27: 405134 | N27: 405134 | P27: 405134
C28: ="Data Referência ( - ) 04" -> Data Referência ( - ) 04 | F28: 2017-06-30 | G28: ? | I28: B28 | K28: 391247 | L28: 391247 | M28: 391247 | N28: 391247 | P28: 391247
C29: ="Data Referência ( - ) 03" -> Data Referência ( - ) 03 | F29: 2017-07-31 | G29: ? | I29: B29 | K29: 386960 | L29: 386960 | M29: 386960 | N29: 386960 | P29: 386960
C30: ="Data Referência ( - ) 02" -> Data Referência ( - ) 02 | F30: 2017-08-31 | G30: ? | I30: B30 | K30: 404711 | L30: 404711 | M30: 404711 | N30: 404711 | P30: 404711
C31: ="Data Referência ( - ) 01" -> Data Referência ( - ) 01 | F31: 2017-09-30 | G31: ? | I31: B31 | K31: 375785 | L31: 375785 | M31: 375785 | N31: 375785 | P31: 375785
C32: ="Data Referência" -> Data Referência | F32: =+Calculo!L$10 -> 2017-10-31 | G32: ? | I32: B32 | K32: 394778 | L32: 394778 | M32: 394778 | N32: 394778 | P32: 394778
C33: Total | F33: =CONCATENATE("Soma de ",I20,"..",I32) -> Soma de B20..B32 | I33: B33 | K33: =SUM(K20:K32) -> 4601599 | L33: 4601599 | M33: =SUM(M20:M32) -> 4601599 | N33: 4601599 | P33: 4601599
I34: B34
B35: 102 | C35: Percurso Osioso | F35: =CONCATENATE("+",I17," x ",I37) -> +B17 x B37 | I35: B35 | K35: =ROUND(+K17*K37,0) -> 19173 | L35: =ROUND(+L17*L37,0) -> 19173 | M35: =ROUND(+M17*M37,0) -> 19173 | N35: =ROUND(+N17*N37,0) -> 19173 | P35: =VLOOKUP(I35,Base_b,calc_d,0) -> 19173 | W35: Percurso Ocioso = Percuro sem passageiro
I36: B36
B37: 103 | C37: Percentual Percurso Ocioso | G37: ? | I37: B37 | K37: 0.05 | L37: 0.05 | M37: 0.05 | N37: 0.05 | P37: =VLOOKUP(I37,Base_b,calc_d,0) -> 0.05 | W37: Percentual de Percuso Ocioso
I38: B38
B39: 104 | C39: Frota Total | I39: B39
C40: Micro Onibus | F40: DR_FROTA | G40: =+DR_Frota!I98 -> C98 | I40: B40 | K40: =+DR_Frota!K98 -> 1 | L40: =+DR_Frota!L98 -> 1 | M40: =+DR_Frota!M98 -> 1 | N40: =+DR_Frota!N98 -> 1 | P40: =VLOOKUP(I40,Base_b,calc_d,0) -> 1 | W40: Frota Total
C41: Leve | F41: DR_FROTA | G41: =+DR_Frota!I99 -> C99 | I41: B41 | K41: =+DR_Frota!K99 -> 14 | L41: =+DR_Frota!L99 -> 14 | M41: =+DR_Frota!M99 -> 14 | N41: =+DR_Frota!N99 -> 14 | P41: =VLOOKUP(I41,Base_b,calc_d,0) -> 14
C42: Pesado | F42: DR_FROTA | G42: =+DR_Frota!I100 -> C100 | I42: B42 | K42: =+DR_Frota!K100 -> 72 | L42: =+DR_Frota!L100 -> 72 | M42: =+DR_Frota!M100 -> 72 | N42: =+DR_Frota!N100 -> 72 | P42: =VLOOKUP(I42,Base_b,calc_d,0) -> 72
C43: Articulado | F43: DR_FROTA | G43: =+DR_Frota!I101 -> C101 | I43: B43 | K43: =+DR_Frota!K101 -> 1 | L43: =+DR_Frota!L101 -> 1 | M43: =+DR_Frota!M101 -> 1 | N43: =+DR_Frota!N101 -> 1 | P43: =VLOOKUP(I43,Base_b,calc_d,0) -> 1
C44: Total | F44: =CONCATENATE("Soma de ",I40,"..",I43) -> Soma de B40..B43 | I44: B44 | K44: =SUM(K40:K43) -> 88 | L44: =SUM(L40:L43) -> 88 | M44: =SUM(M40:M43) -> 88 | N44: =SUM(N40:N43) -> 88 | P44: =VLOOKUP(I44,Base_b,calc_d,0) -> 88
I45: B45
B46: 105 | C46: Frota Operante | I46: B46
C47: Micro Onibus | F47: DR_FROTA | G47: =+DR_Frota!I114 -> C114 | I47: B47 | K47: =+DR_Frota!K114 -> 1 | L47: =+DR_Frota!L114 -> 1 | M47: =+DR_Frota!M114 -> 1 | N47: =+DR_Frota!N114 -> 1 | P47: =VLOOKUP(I47,Base_b,calc_d,0) -> 1 | W47: Frota Operante = Frota Total (-) Frota não Operante
C48: Leve | F48: DR_FROTA | G48: =+DR_Frota!I115 -> C115 | I48: B48 | K48: =+DR_Frota!K115 -> 14 | L48: =+DR_Frota!L115 -> 14 | M48: =+DR_Frota!M115 -> 14 | N48: =+DR_Frota!N115 -> 14 | P48: =VLOOKUP(I48,Base_b,calc_d,0) -> 14
C49: Pesado | F49: DR_FROTA | G49: =+DR_Frota!I116 -> C116 | I49: B49 | K49: =+DR_Frota!K116 -> 64 | L49: =+DR_Frota!L116 -> 64 | M49: =+DR_Frota!M116 -> 64 | N49: =+DR_Frota!N116 -> 64 | P49: =VLOOKUP(I49,Base_b,calc_d,0) -> 64
C50: Articulado | F50: DR_FROTA | G50: =+DR_Frota!I117 -> C117 | I50: B50 | K50: =+DR_Frota!K117 -> 1 | L50: =+DR_Frota!L117 -> 1 | M50: =+DR_Frota!M117 -> 1 | N50: =+DR_Frota!N117 -> 1 | P50: =VLOOKUP(I50,Base_b,calc_d,0) -> 1
C51: Total | F51: =CONCATENATE("Soma de ",I47,"..",I50) -> Soma de B47..B50 | I51: B51 | K51: =SUM(K47:K50) -> 80 | L51: =SUM(L47:L50) -> 80 | M51: =SUM(M47:M50) -> 80 | N51: =SUM(N47:N50) -> 80 | P51: =VLOOKUP(I51,Base_b,calc_d,0) -> 80
I52: B52
B53: 106 | C53: PMM - Percurso Médio Mensal por Veiculo | F53: =CONCATENATE(I15,"/",I51) -> B15/B51 | I53: B53 | K53: =+K15/K51 -> 5033 | L53: =+L15/L51 -> 5033 | M53: =+M15/M51 -> 5033 | N53: =+N15/N51 -> 5033 | P53: =VLOOKUP(I53,Base_b,calc_d,0) -> 5033 | R53: 6500 | S53: 6500 | W53: PMM - Percurso Médio Mensal por Veiculo = Percurso Mensal (KM) / Prota Operante
I54: B54
B55: PASSAGEIROS | I55: B55
I56: B56
B57: 201 | C57: Valor da Tarifa atual | I57: B57
C58: Antecipado e vale transporte | G58: ? | I58: B58 | K58: 2.98 | L58: 2.98 | M58: 2.98 | N58: 2.98 | P58: =VLOOKUP(I58,Base_b,calc_d,0) -> 2.98 | W58: Valor da Tarifa atual
C59: Embarcado | G59: ? | I59: B59 | K59: 3.25 | L59: 3.25 | M59: 3.25 | N59: 3.25 | P59: =VLOOKUP(I59,Base_b,calc_d,0) -> 3.25
C60: Estudante | G60: ? | I60: B60 | K60: 1.1 | L60: 1.1 | M60: 1.1 | N60: 1.1 | P60: =VLOOKUP(I60,Base_b,calc_d,0) -> 1.1
I61: B61
B62: 202 | C62: Cálculo Passageiros Equivalentes | F62: =CONCATENATE("((",I65,"x",I58,") + ","(",I66,"x",I59,") + ","(",I67,"x",I60,") + ",,I68,"x",I58,")) / ",I58) -> ((B65xB58) + (B66xB59) + (B67xB60) + B68xB58)) / B58 | I62: B62 | K62: =ROUND((+K65*K58+K66*K59+K67*K60+K68*K58)/K58,0) -> 750105 | L62: =ROUND((+L65*L58+L66*L59+L67*L60+L68*L58)/L58,0) -> 750105 | M62: =ROUND((+M65*M58+M66*M59+M67*M60+M68*M58)/M58,0) -> 750105 | N62: =ROUND((+N65*N58+N66*N59+N67*N60+N68*N58)/N58,0) -> 750105 | P62: =VLOOKUP(I62,Base_b,calc_d,0) -> 750105 | W62: Cálculo Passageiros Equivalentes = Valor da Tarifa x Passageiros
I63: B63
B64: 203 | C64: Media Passageiros (Ultimos 12 meses) | I64: B64
C65: Antecipado | F65: =CONCATENATE(I89,"/","12") -> B89/12 | I65: B65 | K65: =ROUND(+K89/12,0) -> 83916 | L65: =ROUND(+L89/12,0) -> 83916 | M65: =ROUND(+M89/12,0) -> 83916 | N65: =ROUND(+N89/12,0) -> 83916 | P65: =VLOOKUP(I65,Base_b,calc_d,0) -> 83916 | W65: Média de Passageiros Transportado por Tipo de Tarifa
C66: Embarcado | F66: =CONCATENATE(I105,"/","12") -> B105/12 | I66: B66 | K66: =ROUND(+K105/12,0) -> 218655 | L66: =ROUND(+L105/12,0) -> 218655 | M66: =ROUND(+M105/12,0) -> 218655 | N66: =ROUND(+N105/12,0) -> 218655 | P66: =VLOOKUP(I66,Base_b,calc_d,0) -> 218655
C67: Estudante | F67: =CONCATENATE(I121,"/","12") -> B121/12 | I67: B67 | K67: =ROUND(+K121/12,0) -> 144977 | L67: =ROUND(+L121/12,0) -> 144977 | M67: =ROUND(+M121/12,0) -> 144977 | N67: =ROUND(+N121/12,0) -> 144977 | P67: =VLOOKUP(I67,Base_b,calc_d,0) -> 144977
C68: Vale transporte | F68: =CONCATENATE(I137,"/","12") -> B137/12 | I68: B68 | K68: =ROUND(+K137/12,0) -> 374208 | L68: =ROUND(+L137/12,0) -> 374208 | M68: =ROUND(+M137/12,0) -> 374208 | N68: =ROUND(+N137/12,0) -> 374208 | P68: =VLOOKUP(I68,Base_b,calc_d,0) -> 374208
C69: Total | F69: =CONCATENATE("Soma de ",I65,"..",I68) -> Soma de B65..B68 | I69: B69 | K69: =SUM(K65:K68) -> 821756 | L69: =SUM(L65:L68) -> 821756 | M69: =SUM(M65:M68) -> 821756 | N69: =SUM(N65:N68) -> 821756 | P69: =VLOOKUP(I69,Base_b,calc_d,0) -> 821756
I70: B70
B71: 204 | C71: Gratuidades | F71: =CONCATENATE(I153,"/","12") -> B153/12 | I71: B71 | K71: =ROUND(+K153/12,0) -> 149038 | L71: =ROUND(+L153/12,0) -> 149038 | M71: =ROUND(+M153/12,0) -> 149038 | N71: =ROUND(+N153/12,0) -> 149038 | P71: =VLOOKUP(I71,Base_b,calc_d,0) -> 149038 | W71: Média de passageiros Gratuidades
I72: B72
B73: 205 | C73: Total de Passageiros | F73: =CONCATENATE("+",I69,"+",I71) -> +B69+B71 | I73: B73 | K73: =+K69+K71 -> 970794 | L73: =+L69+L71 -> 970794 | M73: =+M69+M71 -> 970794 | N73: =+N69+N71 -> 970794 | P73: =VLOOKUP(I73,Base_b,calc_d,0) -> 970794 | W73: Média Total de Passageiros Transportados
I74: B74
B75: 206 | C75: Passageiros Antecipado | I75: B75
C76: ="Data Referência ( - ) 12" -> Data Referência ( - ) 12 | F76: =DATE(YEAR(F88)-1,MONTH(F88),DAY(F88)) -> 2016-10-31 | G76: ? | I76: B76 | K76: 0 | L76: 0 | M76: 0 | N76: 0 | P76: =VLOOKUP(I76,Base_b,calc_d,0) -> 0 | W76: Número de Passageiros transportados no últimos 12 meses
C77: ="Data Referência ( - ) 11" -> Data Referência ( - ) 11 | F77: =+F76+32-DAY(F76+32) -> 2016-11-30 | G77: ? | I77: B77 | K77: 84382 | L77: 84382 | M77: 84382 | N77: 84382 | P77: 84382
C78: ="Data Referência ( - ) 10" -> Data Referência ( - ) 10 | F78: =+F77+32-DAY(F77+32) -> 2016-12-31 | G78: ? | I78: B78 | K78: 83717 | L78: 83717 | M78: 83717 | N78: 83717 | P78: 83717
C79: ="Data Referência ( - ) 09" -> Data Referência ( - ) 09 | F79: 2017-01-31 | G79: ? | I79: B79 | K79: 88764 | L79: 88764 | M79: 88764 | N79: 88764 | P79: 88764
C80: ="Data Referência ( - ) 08" -> Data Referência ( - ) 08 | F80: 2017-02-28 | G80: ? | I80: B80 | K80: 82813 | L80: 82813 | M80: 82813 | N80: 82813 | P80: 82813
C81: ="Data Referência ( - ) 07" -> Data Referência ( - ) 07 | F81: 2017-03-31 | G81: ? | I81: B81 | K81: 100376 | L81: 100376 | M81: 100376 | N81: 100376 | P81: 100376
C82: ="Data Referência ( - ) 06" -> Data Referência ( - ) 06 | F82: 2017-04-30 | G82: ? | I82: B82 | K82: 77250 | L82: 77250 | M82: 77250 | N82: 77250 | P82: 77250
C83: ="Data Referência ( - ) 05" -> Data Referência ( - ) 05 | F83: 2017-05-31 | G83: ? | I83: B83 | K83: 80290 | L83: 80290 | M83: 80290 | N83: 80290 | P83: 80290
C84: ="Data Referência ( - ) 04" -> Data Referência ( - ) 04 | F84: 2017-06-30 | G84: ? | I84: B84 | K84: 79240 | L84: 79240 | M84: 79240 | N84: 79240 | P84: 79240
C85: ="Data Referência ( - ) 03" -> Data Referência ( - ) 03 | F85: 2017-07-31 | G85: ? | I85: B85 | K85: 81142 | L85: 81142 | M85: 81142 | N85: 81142 | P85: 81142
C86: ="Data Referência ( - ) 02" -> Data Referência ( - ) 02 | F86: 2017-08-31 | G86: ? | I86: B86 | K86: 86978 | L86: 86978 | M86: 86978 | N86: 86978 | P86: 86978
C87: ="Data Referência ( - ) 01" -> Data Referência ( - ) 01 | F87: 2017-09-30 | G87: ? | I87: B87 | K87: 80256 | L87: 80256 | M87: 80256 | N87: 80256 | P87: 80256
C88: ="Data Referência" -> Data Referência | F88: =+Calculo!L$10 -> 2017-10-31 | G88: ? | I88: B88 | K88: 81781 | L88: 81781 | M88: 81781 | N88: 81781 | P88: 81781
C89: Total | F89: =CONCATENATE("Soma de ",I76,"..",I88) -> Soma de B76..B88 | I89: B89 | K89: =SUM(K76:K88) -> 1006989 | L89: 1006989 | M89: =SUM(M76:M88) -> 1006989 | N89: 1006989 | P89: 1006989
I90: B90
B91: 207 | C91: Passageiros Embarcado | I91: B91
C92: ="Data Referência ( - ) 12" -> Data Referência ( - ) 12 | F92: =DATE(YEAR(F104)-1,MONTH(F104),DAY(F104)) -> 2016-10-31 | G92: ? | I92: =CONCATENATE("B",ROW()) -> B92 | P92: =VLOOKUP(I92,Base_b,calc_d,0) -> 0 | W92: Número de Passageiros transportados no últimos 12 meses
C93: ="Data Referência ( - ) 11" -> Data Referência ( - ) 11 | F93: =+F92+32-DAY(F92+32) -> 2016-11-30 | G93: ? | I93: B93 | K93: 208150 | L93: 208150 | M93: 208150 | N93: 208150 | P93: 208150
C94: ="Data Referência ( - ) 10" -> Data Referência ( - ) 10 | F94: =+F93+32-DAY(F93+32) -> 2016-12-31 | G94: ? | I94: B94 | K94: 207693 | L94: 207693 | M94: 207693 | N94: 207693 | P94: 207693
C95: ="Data Referência ( - ) 09" -> Data Referência ( - ) 09 | F95: 2017-01-31 | G95: ? | I95: B95 | K95: 197420 | L95: 197420 | M95: 197420 | N95: 197420 | P95: 197420
C96: ="Data Referência ( - ) 08" -> Data Referência ( - ) 08 | F96: 2017-02-28 | G96: ? | I96: B96 | K96: 211480 | L96: 211480 | M96: 211480 | N96: 211480 | P96: 211480
C97: ="Data Referência ( - ) 07" -> Data Referência ( - ) 07 | F97: 2017-03-31 | G97: ? | I97: B97 | K97: 242423 | L97: 242423 | M97: 242423 | N97: 242423 | P97: 242423
C98: ="Data Referência ( - ) 06" -> Data Referência ( - ) 06 | F98: 2017-04-30 | G98: ? | I98: B98 | K98: 201482 | L98: 201482 | M98: 201482 | N98: 201482 | P98: 201482
C99: ="Data Referência ( - ) 05" -> Data Referência ( - ) 05 | F99: 2017-05-31 | G99: ? | I99: B99 | K99: 226015 | L99: 226015 | M99: 226015 | N99: 226015 | P99: 226015
C100: ="Data Referência ( - ) 04" -> Data Referência ( - ) 04 | F100: 2017-06-30 | G100: ? | I100: B100 | K100: 213414 | L100: 213414 | M100: 213414 | N100: 213414 | P100: 213414
C101: ="Data Referência ( - ) 03" -> Data Referência ( - ) 03 | F101: 2017-07-31 | G101: ? | I101: B101 | K101: 217062 | L101: 217062 | M101: 217062 | N101: 217062 | P101: 217062
C102: ="Data Referência ( - ) 02" -> Data Referência ( - ) 02 | F102: 2017-08-31 | G102: ? | I102: B102 | K102: 237093 | L102: 237093 | M102: 237093 | N102: 237093 | P102: 237093
C103: ="Data Referência ( - ) 01" -> Data Referência ( - ) 01 | F103: 2017-09-30 | G103: ? | I103: B103 | K103: 222777 | L103: 222777 | M103: 222777 | N103: 222777 | P103: 222777
C104: ="Data Referência" -> Data Referência | F104: =+Calculo!L$10 -> 2017-10-31 | G104: ? | I104: B104 | K104: 238855 | L104: 238855 | M104: 238855 | N104: 238855 | P104: 238855
C105: Total | F105: =CONCATENATE("Soma de ",I92,"..",I104) -> Soma de B92..B104 | I105: B105 | K105: =SUM(K92:K104) -> 2623864 | L105: 2623864 | M105: =SUM(M92:M104) -> 2623864 | N105: 2623864 | P105: 2623864
I106: B106 | P106: 0
B107: 208 | C107: Passageiros Estudante | I107: B107 | P107: 0
C108: ="Data Referência ( - ) 12" -> Data Referência ( - ) 12 | F108: =DATE(YEAR(F120)-1,MONTH(F120),DAY(F120)) -> 2016-10-31 | G108: ? | I108: B108 | P108: 0 | W108: Número de Passageiros transportados no últimos 12 meses
C109: ="Data Referência ( - ) 11" -> Data Referência ( - ) 11 | F109: =+F108+32-DAY(F108+32) -> 2016-11-30 | G109: ? | I109: B109 | K109: 144875 | L109: 144875 | M109: 144875 | N109: 144875 | P109: 144875
C110: ="Data Referência ( - ) 10" -> Data Referência ( - ) 10 | F110: =+F109+32-DAY(F109+32) -> 2016-12-31 | G110: ? | I110: B110 | K110: 72894 | L110: 72894 | M110: 72894 | N110: 72894 | P110: 72894
C111: ="Data Referência ( - ) 09" -> Data Referência ( - ) 09 | F111: 2017-01-31 | G111: ? | I111: B111 | K111: 7045 | L111: 7045 | M111: 7045 | N111: 7045 | P111: 7045
C112: ="Data Referência ( - ) 08" -> Data Referência ( - ) 08 | F112: 2017-02-28 | G112: ? | I112: B112 | K112: 90342 | L112: 90342 | M112: 90342 | N112: 90342 | P112: 90342
C113: ="Data Referência ( - ) 07" -> Data Referência ( - ) 07 | F113: 2017-03-31 | G113: ? | I113: B113 | K113: 203220 | L113: 203220 | M113: 203220 | N113: 203220 | P113: 203220
C114: ="Data Referência ( - ) 06" -> Data Referência ( - ) 06 | F114: 2017-04-30 | G114: ? | I114: B114 | K114: 173109 | L114: 173109 | M114: 173109 | N114: 173109 | P114: 173109
C115: ="Data Referência ( - ) 05" -> Data Referência ( - ) 05 | F115: 2017-05-31 | G115: ? | I115: B115 | K115: 202061 | L115: 202061 | M115: 202061 | N115: 202061 | P115: 202061
C116: ="Data Referência ( - ) 04" -> Data Referência ( - ) 04 | F116: 2017-06-30 | G116: ? | I116: B116 | K116: 179668 | L116: 179668 | M116: 179668 | N116: 179668 | P116: 179668
C117: ="Data Referência ( - ) 03" -> Data Referência ( - ) 03 | F117: 2017-07-31 | G117: ? | I117: B117 | K117: 109301 | L117: 109301 | M117: 109301 | N117: 109301 | P117: 109301
C118: ="Data Referência ( - ) 02" -> Data Referência ( - ) 02 | F118: 2017-08-31 | G118: ? | I118: B118 | K118: 185679 | L118: 185679 | M118: 185679 | N118: 185679 | P118: 185679
C119: ="Data Referência ( - ) 01" -> Data Referência ( - ) 01 | F119: 2017-09-30 | G119: ? | I119: B119 | K119: 190483 | L119: 190483 | M119: 190483 | N119: 190483 | P119: 190483
C120: ="Data Referência" -> Data Referência | F120: =+Calculo!L$10 -> 2017-10-31 | G120: ? | I120: B120 | K120: 181041 | L120: 181041 | M120: 181041 | N120: 181041 | P120: 181041
C121: Total | F121: =CONCATENATE("Soma de ",I108,"..",I120) -> Soma de B108..B120 | I121: B121 | K121: =SUM(K108:K120) -> 1739718 | L121: 1739718 | M121: =SUM(M108:M120) -> 1739718 | N121: 1739718 | P121: 1739718
I122: B122
B123: 209 | C123: Passageiros Vale Transporte | I123: B123
C124: ="Data Referência ( - ) 12" -> Data Referência ( - ) 12 | F124: =DATE(YEAR(F136)-1,MONTH(F136),DAY(F136)) -> 2016-10-31 | G124: ? | I124: B124 | P124: =VLOOKUP(I124,Base_b,calc_d,0) -> 0 | W124: Número de Passageiros transportados no últimos 12 meses
C125: ="Data Referência ( - ) 11" -> Data Referência ( - ) 11 | F125: =+F124+32-DAY(F124+32) -> 2016-11-30 | G125: ? | I125: B125 | K125: 383877 | L125: 383877 | M125: 383877 | N125: 383877 | P125: 383877
C126: ="Data Referência ( - ) 10" -> Data Referência ( - ) 10 | F126: =+F125+32-DAY(F125+32) -> 2016-12-31 | G126: ? | I126: B126 | K126: 367570 | L126: 367570 | M126: 367570 | N126: 367570 | P126: 367570
C127: ="Data Referência ( - ) 09" -> Data Referência ( - ) 09 | F127: 2017-01-31 | G127: ? | I127: B127 | K127: 354673 | L127: 354673 | M127: 354673 | N127: 354673 | P127: 354673
C128: ="Data Referência ( - ) 08" -> Data Referência ( - ) 08 | F128: 2017-02-28 | G128: ? | I128: B128 | K128: 355333 | L128: 355333 | M128: 355333 | N128: 355333 | P128: 355333
C129: ="Data Referência ( - ) 07" -> Data Referência ( - ) 07 | F129: 2017-03-31 | G129: ? | I129: B129 | K129: 439785 | L129: 439785 | M129: 439785 | N129: 439785 | P129: 439785
C130: ="Data Referência ( - ) 06" -> Data Referência ( - ) 06 | F130: 2017-04-30 | G130: ? | I130: B130 | K130: 349972 | L130: 349972 | M130: 349972 | N130: 349972 | P130: 349972
C131: ="Data Referência ( - ) 05" -> Data Referência ( - ) 05 | F131: 2017-05-31 | G131: ? | I131: B131 | K131: 380338 | L131: 380338 | M131: 380338 | N131: 380338 | P131: 380338
C132: ="Data Referência ( - ) 04" -> Data Referência ( - ) 04 | F132: 2017-06-30 | G132: ? | I132: B132 | K132: 362118 | L132: 362118 | M132: 362118 | N132: 362118 | P132: 362118
C133: ="Data Referência ( - ) 03" -> Data Referência ( - ) 03 | F133: 2017-07-31 | G133: ? | I133: B133 | K133: 358409 | L133: 358409 | M133: 358409 | N133: 358409 | P133: 358409
C134: ="Data Referência ( - ) 02" -> Data Referência ( - ) 02 | F134: 2017-08-31 | G134: ? | I134: B134 | K134: 390412 | L134: 390412 | M134: 390412 | N134: 390412 | P134: 390412
C135: ="Data Referência ( - ) 01" -> Data Referência ( - ) 01 | F135: 2017-09-30 | G135: ? | I135: B135 | K135: 366574 | L135: 366574 | M135: 366574 | N135: 366574 | P135: 366574
C136: ="Data Referência" -> Data Referência | F136: =+Calculo!L$10 -> 2017-10-31 | G136: ? | I136: B136 | K136: 381440 | L136: 381440 | M136: 381440 | N136: 381440 | P136: 381440
C137: Total | F137: =CONCATENATE("Soma de ",I124,"..",I136) -> Soma de B124..B136 | I137: B137 | K137: =SUM(K124:K136) -> 4490501 | L137: 4490501 | M137: =SUM(M124:M136) -> 4490501 | N137: 4490501 | P137: 4490501
I138: B138
B139: 210 | C139: Passageiros Gratuidades | I139: B139
C140: ="Data Referência ( - ) 12" -> Data Referência ( - ) 12 | F140: =DATE(YEAR(F152)-1,MONTH(F152),DAY(F152)) -> 2016-10-31 | G140: ? | I140: B140 | M140: 0 | N140: 0 | P140: =VLOOKUP(I140,Base_b,calc_d,0) -> 0 | W140: Número de Passageiros transportados no últimos 12 meses
C141: ="Data Referência ( - ) 11" -> Data Referência ( - ) 11 | F141: =+F140+32-DAY(F140+32) -> 2016-11-30 | G141: ? | I141: B141 | K141: 153140 | L141: 153140 | M141: 153140 | N141: 153140 | P141: 153140
C142: ="Data Referência ( - ) 10" -> Data Referência ( - ) 10 | F142: =+F141+32-DAY(F141+32) -> 2016-12-31 | G142: ? | I142: B142 | K142: 143174 | L142: 143174 | M142: 143174 | N142: 143174 | P142: 143174
C143: ="Data Referência ( - ) 09" -> Data Referência ( - ) 09 | F143: 2017-01-31 | G143: ? | I143: B143 | K143: 139881 | L143: 139881 | M143: 139881 | N143: 139881 | P143: 139881
C144: ="Data Referência ( - ) 08" -> Data Referência ( - ) 08 | F144: 2017-02-28 | G144: ? | I144: B144 | K144: 136773 | L144: 136773 | M144: 136773 | N144: 136773 | P144: 136773
C145: ="Data Referência ( - ) 07" -> Data Referência ( - ) 07 | F145: 2017-03-31 | G145: ? | I145: B145 | K145: 172979 | L145: 172979 | M145: 172979 | N145: 172979 | P145: 172979
C146: ="Data Referência ( - ) 06" -> Data Referência ( - ) 06 | F146: 2017-04-30 | G146: ? | I146: B146 | K146: 139574 | L146: 139574 | M146: 139574 | N146: 139574 | P146: 139574
C147: ="Data Referência ( - ) 05" -> Data Referência ( - ) 05 | F147: 2017-05-31 | G147: ? | I147: B147 | K147: 153017 | L147: 153017 | M147: 153017 | N147: 153017 | P147: 153017
C148: ="Data Referência ( - ) 04" -> Data Referência ( - ) 04 | F148: 2017-06-30 | G148: ? | I148: B148 | K148: 144185 | L148: 144185 | M148: 144185 | N148: 144185 | P148: 144185
C149: ="Data Referência ( - ) 03" -> Data Referência ( - ) 03 | F149: 2017-07-31 | G149: ? | I149: B149 | K149: 147313 | L149: 147313 | M149: 147313 | N149: 147313 | P149: 147313
C150: ="Data Referência ( - ) 02" -> Data Referência ( - ) 02 | F150: 2017-08-31 | G150: ? | I150: B150 | K150: 160712 | L150: 160712 | M150: 160712 | N150: 160712 | P150: 160712
C151: ="Data Referência ( - ) 01" -> Data Referência ( - ) 01 | F151: 2017-09-30 | G151: ? | I151: B151 | K151: 146135 | L151: 146135 | M151: 146135 | N151: 146135 | P151: 146135
C152: ="Data Referência" -> Data Referência | F152: =+Calculo!L$10 -> 2017-10-31 | G152: ? | I152: B152 | K152: 151574 | L152: 151574 | M152: 151574 | N152: 151574 | P152: 151574
C153: Total | F153: =CONCATENATE("Soma de ",I140,"..",I152) -> Soma de B140..B152 | I153: B153 | K153: =SUM(K140:K152) -> 1788457 | L153: 1788457 | M153: =SUM(M140:M152) -> 1788457 | N153: 1788457 | P153: 1788457
I154: B154
B155: COMBUSTIVEL | I155: B155
I156: =CONCATENATE("B",ROW()) -> B156
B157: 301 | C157: Combustivel | I157: B157
C158: Preço Médio Litro de Combustivel | G158: ? | I158: B158 | K158: 2.82 | L158: 2.82 | M158: 2.82 | N158: 3.4 | P158: =VLOOKUP(I158,Base_b,calc_d,0) -> 2.82 | W158: Valor do Preço Médio do Combustivel
I159: B159
B160: 302 | C160: Coeficiente Consumo Combustivel (Litros/Km) | I160: B160 | K160: =(+K47*K161+K48*K162+K49*K163+K50*K164)/K51 -> 0.40725 | L160: 0.40725 | M160: =(+M47*M161+M48*M162+M49*M163+M50*M164)/M51 -> 0.40725 | N160: 0.40725
C161: Micro Onibus | G161: ? | I161: B161 | K161: 0.25 | L161: 0.25 | M161: 0.25 | N161: 0.25 | P161: =VLOOKUP(I161,Base_b,calc_d,0) -> 0.25 | R161: 0.24 | S161: 0.29 | W161: Coeficiente de Consumo de Combustível (Litros por Km percorido) de cada tipo de Veiculo
C162: Leve | G162: ? | I162: B162 | K162: 0.35 | L162: 0.35 | M162: 0.35 | N162: 0.35 | P162: =VLOOKUP(I162,Base_b,calc_d,0) -> 0.35 | R162: 0.34 | S162: 0.38 | T162: 0.35 | U162: 0.39
C163: Pesado | G163: ? | I163: B163 | K163: 0.42 | L163: 0.42 | M163: 0.42 | N163: 0.42 | P163: =VLOOKUP(I163,Base_b,calc_d,0) -> 0.42 | R163: 0.45 | S163: 0.65 | T163: 0.45 | U163: 0.5
C164: Articulado | G164: ? | I164: B164 | K164: 0.55 | L164: 0.55 | M164: 0.55 | N164: 0.55 | P164: =VLOOKUP(I164,Base_b,calc_d,0) -> 0.55 | R164: 0.65 | S164: 0.85 | T164: 0.53 | U164: 0.65
I165: B165
B166: 303 | C166: Coeficiente Consumo Lubrificante | I166: B166
C167: Litros de combustivel por km | G167: ? | I167: B167 | K167: 0.03 | L167: 0.03 | M167: 0.03 | N167: 0.03 | P167: =VLOOKUP(I167,Base_b,calc_d,0) -> 0.03 | R167: 0.024 | S167: 0.029 | T167: 0.04 | U167: 0.06 | W167: Coeficiente de Consumo de Lubrificante - Litros de Combustível por Km
B168: DESPESAS DE PESSOAL | I168: B168
I169: B169
C170: Despesa com Pessoal por Veiculo apurada | F170: APURA | G170: =+Apura!I319 -> A319 | I170: B170 | K170: =+Apura!P319 -> 9806.836218 | L170: =+Apura!Q319 -> 9806.836218 | M170: =+Apura!R319 -> 9.31232835 | N170: =+Apura!S319 -> 9.31232835 | W170: Despesa Apurada Comparada com o Histórico de Despesa de Pessoal Efetiva
C171: Estatistica Despesa de Pessoal por Veiculo | F171: =+Hist_salarial!S17 -> 9443.459412 | G171: ? | I171: B171 | K171: =+F171 -> 9443.459412 | L171: =+K171*(1+L174) -> 9443.459412 | M171: =+L171*(1+M174) -> 9443.459412 | N171: =+L171 -> 9443.459412
C172: Percentual | I172: B172 | K172: =+K170/K171-1 -> 0.03847920449 | L172: =+L170/L171-1 -> 0.03847920449 | M172: =+M170/M171-1 -> -0.9990138859 | N172: =+N170/N171-1 -> -0.9990138859
I173: B173
B174: 401 | C174: Salário Médio Mensal | I174: B174
C175: Salário base Motorista | G175: ? | I175: B175 | K175: =1720.78 -> 1720.78 | L175: 1720.78 | M175: 1 | N175: 1 | P175: =VLOOKUP(I175,Base_b,calc_d,0) -> 1720.78 | W175: Salário médio mensal do Pessoal de Operação.
C176: Adicionais | G176: ? | I176: B176 | K176: 300 | L176: 300 | M176: 1 | N176: 1 | P176: 300
C177: Total salário do Motorista | F177: =CONCATENATE(I175," + ",I176) -> B175 + B176 | I177: B177 | K177: =+K175+K176 -> 2020.78 | L177: =+L175+L176 -> 2020.78 | M177: =+M175+M176 -> 2 | N177: 2 | P177: 2020.78
C178: Cobrador | G178: ? | I178: B178 | K178: 1078 | L178: =+K178*(1+L$174) -> 1078 | M178: 1 | N178: 1 | P178: 1078
C179: Fiscal/Despachante | G179: ? | I179: B179 | K179: 1653.2 | L179: 1653.2 | M179: 1 | N179: 1 | P179: 1653.2
C180: Bilheteiro/Agente Terminal | G180: ? | I180: B180 | K180: 1129.67 | L180: 1129.67 | M180: 1 | N180: 1 | P180: 1129.67
I181: B181
B182: 402 | C182: Fator de Utilização Pessoal | I182: B182
C183: Motorista | G183: ? | I183: B183 | K183: 2.2 | L183: 2.2 | M183: 2.2 | N183: 2.2 | P183: =VLOOKUP(I183,Base_b,calc_d,0) -> 2.2 | R183: 2.9 | S183: 2.9 | T183: 2.2 | U183: 2.8 | W183: Fatores de Utilização de Pessoal de Operação.
C184: Cobrador | G184: ? | I184: B184 | K184: 0.01 | L184: 0.01 | M184: 0.01 | N184: 0.01 | P184: =VLOOKUP(I184,Base_b,calc_d,0) -> 0.01 | R184: 2.9 | S184: 2.9 | T184: 2.2 | U184: 2.8
C185: Fiscal/Despachante | G185: ? | I185: B185 | K185: 0.3 | L185: =+K185 -> 0.3 | M185: =+L185 -> 0.3 | N185: =+M185 -> 0.3 | P185: =VLOOKUP(I185,Base_b,calc_d,0) -> 0.3 | R185: 2.45 | S185: 2.45 | T185: 0.2 | U185: 0.5
C186: Bilheteiro/Agente Terminal | G186: ? | I186: B186 | K186: 0.1 | L186: 0.1 | M186: 0.1 | N186: 0.1 | P186: =VLOOKUP(I186,Base_b,calc_d,0) -> 0.1 | R186: 0.0001 | S186: 0.0001 | T186: 0.0001 | U186: 0.0001
I187: B187
B188: 403 | C188: Encargos Sociais sobre Pessoal | I188: B188
C189: Percentual de Encargos sociais | G189: ? | I189: B189 | K189: 0.4341 | L189: 0.4341 | M189: 0.4341 | N189: 0.4341 | P189: =VLOOKUP(I189,Base_b,calc_d,0) -> 0.4341 | R189: 0.4199 | S189: 0.4199 | T189: 0.6287 | U189: 0.6287 | W189: Percentual de Encargos sóciais
I190: B190
B191: 404 | C191: Pessoal Indireto | I191: B191
C192: Pessoal de Manutenção | G192: ? | I192: B192 | K192: 0.13 | L192: =+K192 -> 0.13 | M192: =+L192 -> 0.13 | N192: =+M192 -> 0.13 | P192: =VLOOKUP(I192,Base_b,calc_d,0) -> 0.13 | R192: 0.15 | S192: 0.2 | T192: 0.12 | U192: 0.15 | W192: Percentuais de Pessoal indireto Sobre o Custo de Pessoal de Operação
C193: Pessoal Administração e vendas | G193: ? | I193: B193 | K193: 0.22 | L193: =+K193 -> 0.22 | M193: 0.22 | N193: =+M193 -> 0.22 | P193: =VLOOKUP(I193,Base_b,calc_d,0) -> 0.22 | R193: 0.13 | S193: 0.17 | T193: 0.08 | U193: 0.13
C194: Benefícios sociais | G194: ? | I194: B194 | K194: 0.08 | L194: 0.08 | M194: 0.08 | N194: 0.08 | P194: =VLOOKUP(I194,Base_b,calc_d,0) -> 0.08
C195: Honorários diretoria | G195: ? | I195: B195 | K195: 0.025 | L195: 0.025 | M195: 0.025 | N195: 0.025 | P195: =VLOOKUP(I195,Base_b,calc_d,0) -> 0.025 | R195: 0.02 | S195: 0.03
I196: B196
B197: DESPESAS ADMINISTRATIVAS | I197: B197
I198: =CONCATENATE("B",ROW()) -> B198
B199: 501 | C199: Serviços de bilhetagem | I199: B199
C200: Serviço de Bilhetagem Eletronica | G200: ? | I200: B200 | K200: 8550 | L200: 8550 | M200: 100 | N200: 100 | P200: =VLOOKUP(I200,Base_b,calc_d,0) -> 8550 | W200: Despesas de Serviços (não incluí as Despesas de Pessoal)
C201: Alugueis e despesas administrativa | G201: ? | I201: B201 | K201: 15000 | L201: 15000 | M201: 100 | N201: 100 | P201: =VLOOKUP(I201,Base_b,calc_d,0) -> 15000
C202: Serviço de Atendimento ao Passsageiro - SAC | G202: ? | I202: B202 | K202: 5000 | L202: 5000 | M202: 100 | N202: 100 | P202: =VLOOKUP(I202,Base_b,calc_d,0) -> 5000
... 184 more rows

Sheet DR_Frota
K1: =+K102 -> 88 | L1: =+L102 -> 88 | M1: 88 | N1: 88
B2: DR_FROTA | I2: ÁREA DE DADOS E CÁLCULOS - NÃO INCLUIR COLUNA | W2: =+Apura!U28 -> 2.973757531 | X2: =+Apura!V28 -> 2.973757531 | Y2: =+Apura!W28 -> 0.7135887365 | Z2: =+Apura!X28 -> 0.8524965276
B3: =+Titulo_01 -> PREFEITURA MUNICIPAL DE CHAPECO
B4: =+Titulo_02 -> SECRETARIA DE DEFESA DO CIDADÃO
B5: =+Titulo_03 -> SISTEMA DE TRANSPORTE PÚBLICO DE PASSAGEIROS
B7: Cálculo Depreciação/Remuneração da Frota
B8: =CONCATENATE(+Calculo!$D$9," - ",+Calculo!$E$17) -> Cenário - Prefeitura Chapecó - Base Edital - Proposta
B10: ITEM | C10: DISCRIMINAÇÃO | F10: Referência | K10: =+Apura!U12 -> Cenário 01 | L10: =+Apura!V12 -> Cenário 02 | M10: =+Apura!W12 -> Cenário 03 | N10: =+Apura!X12 -> Cenário 04 | P10: CALC FC
F11: Data | I11: =CONCATENATE("C",ROW()) -> C11 | K11: =+Consumo!K11 -> 2017-10-31 | L11: =+Consumo!L11 -> 2018-06-30 | M11: =+Consumo!M11 -> 2018-06-30 | N11: =+Consumo!N11 -> 2018-06-30 | P11: =VLOOKUP(I11,Base_c,calc_d,0) -> 2018-06-30
I12: C12
B13: FROTA DE VEICULOS | I13: C13
I14: C14
B15: 101 | C15: Distribuição da Frota por Ano | I15: C15
I16: =CONCATENATE("C",ROW()) -> C16
B17: 10101 | C17: MICRO ONIBUS | D17: Anos | I17: C17
B18: =+B17 -> 10101 | C18: 0 a 1 ano | D18: 0 | G18: ? | I18: C18 | K18: 0 | L18: 0 | M18: 0 | N18: 0 | P18: =VLOOKUP(I18,Base_c,calc_d,0) -> 0
B19: =+B18 -> 10101 | C19: 1 a 2 anos | D19: =+D18+1 -> 1 | G19: ? | I19: C19 | K19: 0 | L19: 0 | M19: 0 | N19: 0 | P19: 0
B20: 10101 | C20: 2 a 3 anos | D20: =+D19+1 -> 2 | G20: ? | I20: C20 | K20: 0 | L20: 0 | M20: 0 | N20: 0 | P20: 0
B21: 10101 | C21: 3 a 4 anos | D21: 3 | G21: ? | I21: C21 | K21: 0 | L21: 0 | M21: 0 | N21: 0 | P21: 0
B22: 10101 | C22: 4 a 5 anos | D22: 4 | G22: ? | I22: C22 | K22: 0 | L22: 0 | M22: 0 | N22: 0 | P22: 0
B23: 10101 | C23: 5 a 6 anos | D23: 5 | G23: ? | I23: C23 | K23: 0 | L23: 0 | M23: 0 | N23: 0 | P23: 0
B24: 10101 | C24: 6 a 7 anos | D24: 6 | G24: ? | I24: C24 | K24: 1 | L24: 1 | M24: 1 | N24: 1 | P24: 1
B25: 10101 | C25: 7 a 8 anos | D25: 7 | G25: ? | I25: C25 | K25: 0 | L25: 0 | M25: 0 | N25: 0 | P25: 0
B26: 10101 | C26: 8 a 9 anos | D26: 8 | G26: ? | I26: C26 | K26: 0 | L26: 0 | M26: 0 | N26: 0 | P26: 0
B27: 10101 | C27: 9 a 10 anos | D27: 9 | G27: ? | I27: C27 | K27: 0 | L27: 0 | M27: 0 | N27: 0 | P27: 0
B28: 10101 | C28: 10 a 11 anos | D28: 10 | G28: ? | I28: C28 | K28: 0 | L28: 0 | M28: 0 | N28: 0 | P28: 0
B29: 10101 | C29: 11 a 12 anos | D29: 11 | G29: ? | I29: C29 | K29: 0 | L29: 0 | M29: 0 | N29: 0 | P29: 0
B30: 10101 | C30: 12 a 13 anos | D30: 12 | G30: ? | I30: C30 | K30: 0 | L30: 0 | M30: 0 | N30: 0 | P30: 0
B31: 10101 | C31: 13 a 14 anos | D31: 13 | G31: ? | I31: C31 | K31: 0 | L31: 0 | M31: 0 | N31: 0 | P31: 0
B32: 10101 | C32: 14 a 15 anos | D32: 14 | G32: ? | I32: C32 | K32: 0 | L32: 0 | M32: 0 | N32: 0 | P32: 0
B33: 10101 | C33: + de 15 anos | D33: 15 | G33: ? | I33: C33 | K33: 0 | L33: 0 | M33: 0 | N33: 0 | P33: 0
B34: 10101 | C34: TOTAL | F34: =CONCATENATE("Soma de ",I18,"..",I33) -> Soma de C18..C33 | I34: C34 | K34: =SUM(K18:K33) -> 1 | L34: 1 | M34: =SUM(M18:M33) -> 1 | N34: =SUM(N18:N33) -> 1 | P34: 1
B35: 10101 | C35: TOTAL DE ANOS | F35: =CONCATENATE("Soma Produtos de ",I18,"..",I33," x anos ") -> Soma Produtos de C18..C33 x anos | I35: C35 | K35: =SUMPRODUCT($D18:$D33,K18:K33) -> 6 | L35: =SUMPRODUCT($D18:$D33,L18:L33) -> 6 | M35: =SUMPRODUCT($D18:$D33,M18:M33) -> 6 | N35: =SUMPRODUCT($D18:$D33,N18:N33) -> 6 | P35: 6
I36: C36
B37: 10102 | C37: ONIBUS LEVE | D37: Anos | I37: C37
B38: =+B37 -> 10102 | C38: 0 a 1 ano | D38: 0 | G38: ? | I38: C38 | K38: 0 | L38: 0 | M38: 0 | N38: 0 | P38: =VLOOKUP(I38,Base_c,calc_d,0) -> 0
B39: =+B38 -> 10102 | C39: 1 a 2 anos | D39: =+D38+1 -> 1 | G39: ? | I39: C39 | K39: 0 | L39: 0 | M39: 0 | N39: 0 | P39: 0
B40: 10102 | C40: 2 a 3 anos | D40: =+D39+1 -> 2 | G40: ? | I40: C40 | K40: 2 | L40: 2 | M40: 2 | N40: 2 | P40: 2
B41: 10102 | C41: 3 a 4 anos | D41: 3 | G41: ? | I41: C41 | K41: 3 | L41: 3 | M41: 3 | N41: 3 | P41: 3
B42: 10102 | C42: 4 a 5 anos | D42: 4 | G42: ? | I42: C42 | K42: 3 | L42: 3 | M42: 3 | N42: 3 | P42: 3
B43: 10102 | C43: 5 a 6 anos | D43: 5 | G43: ? | I43: C43 | K43: 3 | L43: 3 | M43: 3 | N43: 3 | P43: 3
B44: 10102 | C44: 6 a 7 anos | D44: 6 | G44: ? | I44: C44 | K44: 3 | L44: 3 | M44: 3 | N44: 3 | P44: 3
B45: 10102 | C45: 7 a 8 anos | D45: 7 | G45: ? | I45: C45 | K45: 0 | L45: 0 | M45: 0 | N45: 0 | P45: 0
B46: 10102 | C46: 8 a 9 anos | D46: 8 | G46: ? | I46: C46 | K46: 0 | L46: 0 | M46: 0 | N46: 0 | P46: 0
B47: 10102 | C47: 9 a 10 anos | D47: 9 | G47: ? | I47: C47 | K47: 0 | L47: 0 | M47: 0 | N47: 0 | P47: 0
B48: 10102 | C48: 10 a 11 anos | D48: 10 | G48: ? | I48: C48 | K48: 0 | L48: 0 | M48: 0 | N48: 0 | P48: 0
B49: 10102 | C49: 11 a 12 anos | D49: 11 | G49: ? | I49: C49 | K49: 0 | L49: 0 | M49: 0 | N49: 0 | P49: 0
B50: 10102 | C50: 12 a 13 anos | D50: 12 | G50: ? | I50: C50 | K50: 0 | L50: 0 | M50: 0 | N50: 0 | P50: 0
B51: 10102 | C51: 13 a 14 anos | D51: 13 | G51: ? | I51: C51 | K51: 0 | L51: 0 | M51: 0 | N51: 0 | P51: 0
B52: 10102 | C52: 14 a 15 anos | D52: 14 | G52: ? | I52: C52 | K52: 0 | L52: 0 | M52: 0 | N52: 0 | P52: 0
B53: 10102 | C53: + de 15 anos | D53: 15 | G53: ? | I53: C53 | K53: 0 | L53: 0 | M53: 0 | N53: 0 | P53: 0
B54: 10102 | C54: TOTAL | F54: =CONCATENATE("Soma de ",I38,"..",I53) -> Soma de C38..C53 | I54: C54 | K54: =SUM(K38:K53) -> 14 | L54: 14 | M54: =SUM(M38:M53) -> 14 | N54: =SUM(N38:N53) -> 14 | P54: 14
B55: 10102 | C55: TOTAL DE ANOS | F55: =CONCATENATE("Soma Produtos de ",I38,"..",I53," x anos ") -> Soma Produtos de C38..C53 x anos | I55: C55 | K55: =SUMPRODUCT($D38:$D53,K38:K53) -> 58 | L55: =SUMPRODUCT($D38:$D53,L38:L53) -> 58 | M55: =SUMPRODUCT($D38:$D53,M38:M53) -> 58 | N55: =SUMPRODUCT($D38:$D53,N38:N53) -> 58 | P55: 58
I56: C56
B57: 10103 | C57: ONIBUS PESADO | D57: Anos | I57: C57
B58: =+B57 -> 10103 | C58: 0 a 1 ano | D58: 0 | G58: ? | I58: C58 | K58: 0 | L58: 0 | M58: 0 | N58: 0 | P58: =VLOOKUP(I58,Base_c,calc_d,0) -> 0
B59: =+B58 -> 10103 | C59: 1 a 2 anos | D59: =+D58+1 -> 1 | G59: ? | I59: C59 | K59: 0 | L59: 0 | M59: 0 | N59: 0 | P59: 0
B60: 10103 | C60: 2 a 3 anos | D60: =+D59+1 -> 2 | G60: ? | I60: C60 | K60: 12 | L60: 12 | M60: 12 | N60: 12 | P60: 12
B61: 10103 | C61: 3 a 4 anos | D61: 3 | G61: ? | I61: C61 | K61: 12 | L61: 12 | M61: 12 | N61: 12 | P61: 12
B62: 10103 | C62: 4 a 5 anos | D62: 4 | G62: ? | I62: C62 | K62: 12 | L62: 12 | M62: 12 | N62: 12 | P62: 12
B63: 10103 | C63: 5 a 6 anos | D63: 5 | G63: ? | I63: C63 | K63: 12 | L63: 12 | M63: 12 | N63: 12 | P63: 12
B64: 10103 | C64: 6 a 7 anos | D64: 6 | G64: ? | I64: C64 | K64: 12 | L64: 12 | M64: 12 | N64: 12 | P64: 12
B65: 10103 | C65: 7 a 8 anos | D65: 7 | G65: ? | I65: C65 | K65: 12 | L65: 12 | M65: 12 | N65: 12 | P65: 12
B66: 10103 | C66: 8 a 9 anos | D66: 8 | G66: ? | I66: C66 | K66: 0 | L66: 0 | M66: 0 | N66: 0 | P66: 0
B67: 10103 | C67: 9 a 10 anos | D67: 9 | G67: ? | I67: C67 | K67: 0 | L67: 0 | M67: 0 | N67: 0 | P67: 0
B68: 10103 | C68: 10 a 11 anos | D68: 10 | G68: ? | I68: C68 | K68: 0 | L68: 0 | M68: 0 | N68: 0 | P68: 0
B69: 10103 | C69: 11 a 12 anos | D69: 11 | G69: ? | I69: C69 | K69: 0 | L69: 0 | M69: 0 | N69: 0 | P69: 0
B70: 10103 | C70: 12 a 13 anos | D70: 12 | G70: ? | I70: C70 | K70: 0 | L70: 0 | M70: 0 | N70: 0 | P70: 0
B71: 10103 | C71: 13 a 14 anos | D71: 13 | G71: ? | I71: C71 | K71: 0 | L71: 0 | M71: 0 | N71: 0 | P71: 0
B72: 10103 | C72: 14 a 15 anos | D72: 14 | G72: ? | I72: C72 | K72: 0 | L72: 0 | M72: 0 | N72: 0 | P72: 0
B73: 10103 | C73: + de 15 anos | D73: 15 | G73: ? | I73: C73 | K73: 0 | L73: 0 | M73: 0 | N73: 0 | P73: 0
B74: 10103 | C74: TOTAL | F74: =CONCATENATE("Soma de ",I58,"..",I73) -> Soma de C58..C73 | I74: C74 | K74: =SUM(K58:K73) -> 72 | L74: 72 | M74: =SUM(M58:M73) -> 72 | N74: =SUM(N58:N73) -> 72 | P74: 72
B75: 10103 | C75: TOTAL DE ANOS | F75: =CONCATENATE("Soma Produtos de ",I58,"..",I73," x anos ") -> Soma Produtos de C58..C73 x anos | I75: C75 | K75: =SUMPRODUCT($D58:$D73,K58:K73) -> 324 | L75: =SUMPRODUCT($D58:$D73,L58:L73) -> 324 | M75: =SUMPRODUCT($D58:$D73,M58:M73) -> 324 | N75: =SUMPRODUCT($D58:$D73,N58:N73) -> 324 | P75: 324
I76: =CONCATENATE("C",ROW()) -> C76
B77: 10104 | C77: ONIBUS ARTICULADO | D77: Anos | I77: C77
B78: =+B77 -> 10104 | C78: 0 a 1 ano | D78: 0 | G78: ? | I78: C78 | K78: 0 | L78: 0 | M78: 0 | N78: 0 | P78: =VLOOKUP(I78,Base_c,calc_d,0) -> 0
B79: =+B78 -> 10104 | C79: 1 a 2 anos | D79: =+D78+1 -> 1 | G79: ? | I79: C79 | K79: 0 | L79: 0 | M79: 0 | N79: 0 | P79: 0
B80: 10104 | C80: 2 a 3 anos | D80: =+D79+1 -> 2 | G80: ? | I80: C80 | K80: 0 | L80: 0 | M80: 0 | N80: 0 | P80: 0
B81: 10104 | C81: 3 a 4 anos | D81: 3 | G81: ? | I81: C81 | K81: 0 | L81: 0 | M81: 0 | N81: 0 | P81: 0
B82: 10104 | C82: 4 a 5 anos | D82: 4 | G82: ? | I82: C82 | K82: 1 | L82: 1 | M82: 1 | N82: 1 | P82: 1
B83: 10104 | C83: 5 a 6 anos | D83: 5 | G83: ? | I83: C83 | K83: 0 | L83: 0 | M83: 0 | N83: 0 | P83: 0
B84: 10104 | C84: 6 a 7 anos | D84: 6 | G84: ? | I84: C84 | K84: 0 | L84: 0 | M84: 0 | N84: 0 | P84: 0
B85: 10104 | C85: 7 a 8 anos | D85: 7 | G85: ? | I85: C85 | K85: 0 | L85: 0 | M85: 0 | N85: 0 | P85: 0
B86: 10104 | C86: 8 a 9 anos | D86: 8 | G86: ? | I86: C86 | K86: 0 | L86: 0 | M86: 0 | N86: 0 | P86: 0
B87: 10104 | C87: 9 a 10 anos | D87: 9 | G87: ? | I87: C87 | K87: 0 | L87: 0 | M87: 0 | N87: 0 | P87: 0
B88: 10104 | C88: 10 a 11 anos | D88: 10 | G88: ? | I88: C88 | K88: 0 | L88: 0 | M88: 0 | N88: 0 | P88: 0
B89: 10104 | C89: 11 a 12 anos | D89: 11 | G89: ? | I89: C89 | K89: 0 | L89: 0 | M89: 0 | N89: 0 | P89: 0
B90: 10104 | C90: 12 a 13 anos | D90: 12 | G90: ? | I90: C90 | K90: 0 | L90: 0 | M90: 0 | N90: 0 | P90: 0
B91: 10104 | C91: 13 a 14 anos | D91: 13 | G91: ? | I91: C91 | K91: 0 | L91: 0 | M91: 0 | N91: 0 | P91: 0
B92: 10104 | C92: 14 a 15 anos | D92: 14 | G92: ? | I92: C92 | K92: 0 | L92: 0 | M92: 0 | N92: 0 | P92: 0
B93: 10104 | C93: + de 15 anos | D93: 15 | G93: ? | I93: C93 | K93: 0 | L93: 0 | M93: 0 | N93: 0 | P93: 0
B94: 10104 | C94: TOTAL | F94: =CONCATENATE("Soma de ",I78,"..",I93) -> Soma de C78..C93 | I94: C94 | K94: =SUM(K78:K93) -> 1 | L94: 1 | M94: =SUM(M78:M93) -> 1 | N94: =SUM(N78:N93) -> 1 | P94: 1
B95: 10104 | C95: TOTAL DE ANOS | F95: =CONCATENATE("Soma Produtos de ",I78,"..",I93," x anos ") -> Soma Produtos de C78..C93 x anos | I95: C95 | K95: =SUMPRODUCT($D78:$D93,K78:K93) -> 4 | L95: =SUMPRODUCT($D78:$D93,L78:L93) -> 4 | M95: =SUMPRODUCT($D78:$D93,M78:M93) -> 4 | N95: =SUMPRODUCT($D78:$D93,N78:N93) -> 4 | P95: 4
I96: C96
B97: 102 | C97: Frota Total | I97: C97
C98: Mircro Onibus | F98: =CONCATENATE("+",I34) -> +C34 | I98: C98 | K98: =+K34 -> 1 | L98: =SUM(L18:L33) -> 1 | M98: =SUM(M18:M33) -> 1 | N98: =SUM(N18:N33) -> 1 | P98: =VLOOKUP(I98,Base_c,calc_d,0) -> 1
C99: Leve | F99: =CONCATENATE("+",I54) -> +C54 | I99: C99 | K99: =+K54 -> 14 | L99: =SUM(L38:L53) -> 14 | M99: =SUM(M38:M53) -> 14 | N99: =SUM(N38:N53) -> 14 | P99: =VLOOKUP(I99,Base_c,calc_d,0) -> 14
C100: Pesado | F100: =CONCATENATE("+",I74) -> +C74 | I100: C100 | K100: =+K74 -> 72 | L100: =SUM(L58:L73) -> 72 | M100: =SUM(M58:M73) -> 72 | N100: =SUM(N58:N73) -> 72 | P100: =VLOOKUP(I100,Base_c,calc_d,0) -> 72
C101: Articulado | F101: =CONCATENATE("+",I94) -> +C94 | I101: C101 | K101: =+K94 -> 1 | L101: =+L94 -> 1 | M101: =+M94 -> 1 | N101: =+N94 -> 1 | P101: =VLOOKUP(I101,Base_c,calc_d,0) -> 1
C102: TOTAL | F102: =CONCATENATE("Soma de ",I98,"..",I101) -> Soma de C98..C101 | I102: C102 | K102: =SUM(K98:K101) -> 88 | L102: =SUM(L98:L101) -> 88 | M102: =SUM(M98:M101) -> 88 | N102: =SUM(N98:N101) -> 88 | P102: =VLOOKUP(I102,Base_c,calc_d,0) -> 88
I103: C103
B104: 103 | C104: Percentual Frota Não operante | F104: =CONCATENATE("+",I111," / ",I102) -> +C111 / C102 | I104: C104 | K104: =K111/K102 -> 0.09090909091 | L104: =L111/L102 -> 0.09090909091 | M104: =M111/M102 -> 0.09090909091 | N104: =N111/N102 -> 0.09090909091 | P104: =VLOOKUP(I104,Base_c,calc_d,0) -> 0.09090909091
I105: C105
B106: 104 | C106: Frota Não Operante | I106: C106
C107: Mircro Onibus | G107: ? | I107: C107 | K107: 0 | L107: 0 | M107: 0 | N107: 0 | P107: =VLOOKUP(I107,Base_c,calc_d,0) -> 0
C108: Leve | G108: ? | I108: C108 | K108: 0 | L108: 0 | M108: 0 | N108: 0 | P108: =VLOOKUP(I108,Base_c,calc_d,0) -> 0
C109: Pesado | G109: ? | I109: C109 | K109: 8 | L109: 8 | M109: 8 | N109: 8 | P109: =VLOOKUP(I109,Base_c,calc_d,0) -> 8
C110: Articulado | G110: ? | I110: C110 | K110: 0 | L110: 0 | M110: 0 | N110: 0 | P110: =VLOOKUP(I110,Base_c,calc_d,0) -> 0
C111: TOTAL | F111: =CONCATENATE("Soma de ",I107,"..",I110) -> Soma de C107..C110 | I111: C111 | K111: =SUM(K107:K110) -> 8 | L111: =SUM(L107:L110) -> 8 | M111: =SUM(M107:M110) -> 8 | N111: =SUM(N107:N110) -> 8 | P111: =VLOOKUP(I111,Base_c,calc_d,0) -> 8
I112: C112
B113: 105 | C113: Frota Operante | I113: C113
C114: Mircro Onibus | F114: =CONCATENATE("+",I98," - ",I107) -> +C98 - C107 | I114: C114 | K114: =+K98-K107 -> 1 | L114: 1 | M114: 1 | N114: 1 | P114: =VLOOKUP(I114,Base_c,calc_d,0) -> 1
C115: Leve | F115: =CONCATENATE("+",I99," - ",I108) -> +C99 - C108 | I115: C115 | K115: 14 | L115: 14 | M115: 14 | N115: 14 | P115: =VLOOKUP(I115,Base_c,calc_d,0) -> 14
C116: Pesado | F116: =CONCATENATE("+",I100," - ",I109) -> +C100 - C109 | I116: C116 | K116: 64 | L116: 64 | M116: 64 | N116: 64 | P116: =VLOOKUP(I116,Base_c,calc_d,0) -> 64
C117: Articulado | F117: =CONCATENATE("+",I101," - ",I110) -> +C101 - C110 | I117: C117 | K117: 1 | L117: 1 | M117: 1 | N117: 1 | P117: =VLOOKUP(I117,Base_c,calc_d,0) -> 1
C118: TOTAL | F118: =CONCATENATE("Soma de ",I114,"..",I117) -> Soma de C114..C117 | I118: C118 | K118: =SUM(K114:K117) -> 80 | L118: =SUM(L114:L117) -> 80 | M118: =SUM(M114:M117) -> 80 | N118: =SUM(N114:N117) -> 80 | P118: =VLOOKUP(I118,Base_c,calc_d,0) -> 80
I119: C119
B120: 106 | C120: Idade Total dos Veiculos (anos) | I120: C120
C121: Mircro Onibus | F121: =CONCATENATE("+",I35) -> +C35 | I121: C121 | K121: =+K35 -> 6 | L121: =+L35 -> 6 | M121: =+M35 -> 6 | N121: =+N35 -> 6 | P121: =VLOOKUP(I121,Base_c,calc_d,0) -> 6
C122: Leve | F122: =CONCATENATE("+",I55) -> +C55 | I122: C122 | K122: =+K55 -> 58 | L122: =+L55 -> 58 | M122: =+M55 -> 58 | N122: =+N55 -> 58 | P122: =VLOOKUP(I122,Base_c,calc_d,0) -> 58
C123: Pesado | F123: =CONCATENATE("+",I75) -> +C75 | I123: C123 | K123: =+K75 -> 324 | L123: =+L75 -> 324 | M123: =+M75 -> 324 | N123: =+N75 -> 324 | P123: =VLOOKUP(I123,Base_c,calc_d,0) -> 324
C124: Articulado | F124: =CONCATENATE("+",I95) -> +C95 | I124: C124 | K124: =+K95 -> 4 | L124: =+L95 -> 4 | M124: =+M95 -> 4 | N124: =+N95 -> 4 | P124: =VLOOKUP(I124,Base_c,calc_d,0) -> 4
C125: TOTAL | F125: =CONCATENATE("Soma de ",I121,"..",I124) -> Soma de C121..C124 | I125: C125 | K125: =SUM(K121:K124) -> 392 | L125: =SUM(L121:L124) -> 392 | M125: =SUM(M121:M124) -> 392 | N125: =SUM(N121:N124) -> 392 | P125: =VLOOKUP(I125,Base_c,calc_d,0) -> 392
I126: C126
B127: 107 | C127: Idade Média dos Veiculos (anos) | I127: C127
C128: Mircro Onibus | F128: =CONCATENATE("+",I121," / ",I98) -> +C121 / C98 | I128: C128 | K128: =IF(K121=0,0,+K121/K98) -> 6 | L128: 6 | M128: 6 | N128: 6 | P128: =VLOOKUP(I128,Base_c,calc_d,0) -> 6
C129: Leve | F129: =CONCATENATE("+",I122," / ",I99) -> +C122 / C99 | I129: C129 | K129: 4.142857143 | L129: 4.142857143 | M129: 4.142857143 | N129: 4.142857143 | P129: =VLOOKUP(I129,Base_c,calc_d,0) -> 4.142857143
C130: Pesado | F130: =CONCATENATE("+",I123," / ",I100) -> +C123 / C100 | I130: C130 | K130: 4.5 | L130: 4.5 | M130: 4.5 | N130: 4.5 | P130: =VLOOKUP(I130,Base_c,calc_d,0) -> 4.5
C131: Articulado | F131: =CONCATENATE("+",I124," / ",I101) -> +C124 / C101 | I131: C131 | K131: 4 | L131: 4 | M131: 4 | N131: 4 | P131: =VLOOKUP(I131,Base_c,calc_d,0) -> 4
C132: TOTAL | F132: =CONCATENATE("+",I125," / ",I102) -> +C125 / C102 | I132: C132 | K132: =+K125/K102 -> 4.454545455 | L132: =+L125/L102 -> 4.454545455 | M132: =+M125/M102 -> 4.454545455 | N132: =+N125/N102 -> 4.454545455 | P132: =VLOOKUP(I132,Base_c,calc_d,0) -> 4.454545455
I133: =CONCATENATE("C",ROW()) -> C133
B134: 108 | C134: Preço do Veiculo Com Rodagem | I134: C134
C135: Mircro Onibus | F135: CONSUMO | G135: =+Consumo!I239 -> B239 | I135: C135 | K135: =+Consumo!K239 -> 250000 | L135: =+Consumo!L239 -> 250000 | M135: =+Consumo!M239 -> 1000 | N135: =+Consumo!N239 -> 1000 | P135: =VLOOKUP(I135,Base_c,calc_d,0) -> 250000
C136: Leve | F136: CONSUMO | G136: =+Consumo!I240 -> B240 | I136: C136 | K136: =+Consumo!K240 -> 278336.2 | L136: =+Consumo!L240 -> 278336.2 | M136: =+Consumo!M240 -> 1000 | N136: =+Consumo!N240 -> 1000 | P136: =VLOOKUP(I136,Base_c,calc_d,0) -> 278336.2
C137: Pesado | F137: CONSUMO | G137: =+Consumo!I241 -> B241 | I137: C137 | K137: =+Consumo!K241 -> 303858.5 | L137: =+Consumo!L241 -> 303858.5 | M137: =+Consumo!M241 -> 1000 | N137: =+Consumo!N241 -> 1000 | P137: =VLOOKUP(I137,Base_c,calc_d,0) -> 303858.5
C138: Articulado | F138: CONSUMO | G138: =+Consumo!I242 -> B242 | I138: C138 | K138: =+Consumo!K242 -> 362649.99 | L138: =+Consumo!L242 -> 362649.99 | M138: =+Consumo!M242 -> 1000 | N138: =+Consumo!N242 -> 1000 | P138: =VLOOKUP(I138,Base_c,calc_d,0) -> 362649.99
I139: C139
B140: 109 | C140: Valor do Veiculo sem Rodagem | I140: C140
C141: Mircro Onibus | F141: CONSUMO | G141: =+Consumo!I257 -> B257 | I141: C141 | K141: =+Consumo!K257 -> 246606.88 | L141: =+Consumo!L257 -> 246606.88 | M141: =+Consumo!M257 -> -2393.12 | N141: =+Consumo!N257 -> -2393.12 | P141: =VLOOKUP(I141,Base_c,calc_d,0) -> 246606.88
C142: Leve | F142: CONSUMO | G142: =+Consumo!I258 -> B258 | I142: C142 | K142: =+Consumo!K258 -> 269653.78 | L142: =+Consumo!L258 -> 269653.78 | M142: =+Consumo!M258 -> -7682.42 | N142: =+Consumo!N258 -> -7682.42 | P142: =VLOOKUP(I142,Base_c,calc_d,0) -> 269653.78
C143: Pesado | F143: CONSUMO | G143: =+Consumo!I259 -> B259 | I143: C143 | K143: =+Consumo!K259 -> 294454.46 | L143: =+Consumo!L259 -> 294454.46 | M143: =+Consumo!M259 -> -8404.04 | N143: =+Consumo!N259 -> -8404.04 | P143: =VLOOKUP(I143,Base_c,calc_d,0) -> 294454.46
C144: Articulado | F144: CONSUMO | G144: =+Consumo!I260 -> B260 | I144: C144 | K144: =+Consumo!K260 -> 347477.79 | L144: =+Consumo!L260 -> 347477.79 | M144: =+Consumo!M260 -> -14172.2 | N144: =+Consumo!N260 -> -14172.2 | P144: =VLOOKUP(I144,Base_c,calc_d,0) -> 347477.79
I145: C145
B146: 110 | C146: Valor Total da Frota Com Rodagem | I146: C146
C147: Mircro Onibus | F147: =CONCATENATE("+",I98," x ",I135) -> +C98 x C135 | I147: C147 | K147: =+K135*K98 -> 250000 | L147: 250000 | M147: 1000 | N147: 1000 | P147: =VLOOKUP(I147,Base_c,calc_d,0) -> 250000
C148: Leve | F148: =CONCATENATE("+",I99," x ",I136) -> +C99 x C136 | I148: C148 | K148: 3896706.8 | L148: 3896706.8 | M148: 14000 | N148: 14000 | P148: =VLOOKUP(I148,Base_c,calc_d,0) -> 3896706.8
C149: Pesado | F149: =CONCATENATE("+",I100," x ",I137) -> +C100 x C137 | I149: C149 | K149: 21877812 | L149: 21877812 | M149: 72000 | N149: 72000 | P149: =VLOOKUP(I149,Base_c,calc_d,0) -> 21877812
C150: Articulado | F150: =CONCATENATE("+",I101," x ",I138) -> +C101 x C138 | I150: C150 | K150: 362649.99 | L150: 362649.99 | M150: 1000 | N150: 1000 | P150: =VLOOKUP(I150,Base_c,calc_d,0) -> 362649.99
C151: TOTAL | F151: =CONCATENATE("Soma de ",I147,"..",I150) -> Soma de C147..C150 | I151: C151 | K151: =SUM(K147:K150) -> 26387168.79 | L151: =SUM(L147:L150) -> 26387168.79 | M151: =SUM(M147:M150) -> 88000 | N151: =SUM(N147:N150) -> 88000 | P151: =VLOOKUP(I151,Base_c,calc_d,0) -> 26387168.79
I152: C152
B153: 111 | C153: Valor Médio do Veiculo Completo | F153: =CONCATENATE("+",I151," / ",I102) -> +C151 / C102 | I153: C153 | K153: =+K151/K102 -> 299854.1908 | L153: =+L151/L102 -> 299854.1908 | M153: =+M151/M102 -> 1000 | N153: =+N151/N102 -> 1000 | P153: =VLOOKUP(I153,Base_c,calc_d,0) -> 299854.1908
I154: C154
B155: 112 | C155: Valor Total da Frota sem Rodagem | I155: C155
C156: Mircro Onibus | F156: =CONCATENATE("+",I241) -> +C241 | I156: C156 | K156: =+K241 -> 246606.88 | L156: 246606.88 | M156: -2393.12 | N156: -2393.12 | P156: =VLOOKUP(I156,Base_c,calc_d,0) -> 246606.88
C157: Leve | F157: =CONCATENATE("+",I242) -> +C242 | I157: C157 | K157: 3775152.92 | L157: 3775152.92 | M157: -107553.88 | N157: -107553.88 | P157: =VLOOKUP(I157,Base_c,calc_d,0) -> 3775152.92
C158: Pesado | F158: +C243 | I158: C158 | K158: 21200721.12 | L158: 21200721.12 | M158: -605090.88 | N158: -605090.88 | P158: =VLOOKUP(I158,Base_c,calc_d,0) -> 21200721.12
C159: Articulado | F159: +C244 | I159: C159 | K159: 347477.79 | L159: 347477.79 | M159: -14172.2 | N159: -14172.2 | P159: =VLOOKUP(I159,Base_c,calc_d,0) -> 347477.79
C160: TOTAL | F160: =CONCATENATE("Soma de ",I156,"..",I159) -> Soma de C156..C159 | I160: C160 | K160: =SUM(K156:K159) -> 25569958.71 | L160: =SUM(L156:L159) -> 25569958.71 | M160: =SUM(M156:M159) -> -729210.08 | N160: =SUM(N156:N159) -> -729210.08 | P160: =VLOOKUP(I160,Base_c,calc_d,0) -> 25569958.71
I161: C161
B162: 200 | C162: Valor da Frota sem Rodagem por ano | I162: =CONCATENATE("C",ROW()) -> C162
I163: C163
B164: 201 | C164: MICRO ONIBUS | D164: Anos | I164: C164
B165: =+B164 -> 201 | C165: 0 a 1 ano | D165: 0 | F165: =CONCATENATE(I18," x ",I$141) -> C18 x C141 | I165: C165 | K165: =+K18*K$141 -> 0 | L165: 0 | M165: 0 | N165: 0 | P165: =VLOOKUP(I165,Base_c,calc_d,0) -> 0
B166: =+B165 -> 201 | C166: 1 a 2 anos | D166: =+D165+1 -> 1 | F166: C19 x C141 | I166: C166 | K166: 0 | L166: 0 | M166: 0 | N166: 0 | P166: 0
B167: 201 | C167: 2 a 3 anos | D167: =+D166+1 -> 2 | F167: C20 x C141 | I167: C167 | K167: 0 | L167: 0 | M167: 0 | N167: 0 | P167: 0
B168: 201 | C168: 3 a 4 anos | D168: 3 | F168: C21 x C141 | I168: =CONCATENATE("C",ROW()) -> C168 | K168: 0 | L168: 0 | M168: 0 | N168: 0 | P168: 0
B169: 201 | C169: 4 a 5 anos | D169: 4 | F169: C22 x C141 | I169: C169 | K169: 0 | L169: 0 | M169: 0 | N169: 0 | P169: 0
B170: 201 | C170: 5 a 6 anos | D170: 5 | F170: C23 x C141 | I170: C170 | K170: 0 | L170: 0 | M170: 0 | N170: 0 | P170: 0
B171: 201 | C171: 6 a 7 anos | D171: 6 | F171: C24 x C141 | I171: C171 | K171: 246606.88 | L171: 246606.88 | M171: -2393.12 | N171: -2393.12 | P171: 246606.88
B172: 201 | C172: 7 a 8 anos | D172: 7 | F172: C25 x C141 | I172: C172 | K172: 0 | L172: 0 | M172: 0 | N172: 0 | P172: 0
B173: 201 | C173: 8 a 9 anos | D173: 8 | F173: C26 x C141 | I173: C173 | K173: 0 | L173: 0 | M173: 0 | N173: 0 | P173: 0
B174: 201 | C174: 9 a 10 anos | D174: 9 | F174: C27 x C141 | I174: C174 | K174: 0 | L174: 0 | M174: 0 | N174: 0 | P174: 0
B175: 201 | C175: 10 a 11 anos | D175: 10 | F175: C28 x C141 | I175: C175 | K175: 0 | L175: 0 | M175: 0 | N175: 0 | P175: 0
B176: 201 | C176: 11 a 12 anos | D176: 11 | F176: C29 x C141 | I176: C176 | K176: 0 | L176: 0 | M176: 0 | N176: 0 | P176: 0
B177: 201 | C177: 12 a 13 anos | D177: 12 | F177: C30 x C141 | I177: C177 | K177: 0 | L177: 0 | M177: 0 | N177: 0 | P177: 0
B178: 201 | C178: 13 a 14 anos | D178: 13 | F178: C31 x C141 | I178: C178 | K178: 0 | L178: 0 | M178: 0 | N178: 0 | P178: 0
B179: 201 | C179: 14 a 15 anos | D179: 14 | F179: C32 x C141 | I179: C179 | K179: 0 | L179: 0 | M179: 0 | N179: 0 | P179: 0
B180: 201 | C180: + de 15 anos | D180: 15 | F180: C33 x C141 | I180: C180 | K180: 0 | L180: 0 | M180: 0 | N180: 0 | P180: 0
B181: 201 | C181: TOTAL | F181: =CONCATENATE("Soma de ",I165,"..",I180) -> Soma de C165..C180 | I181: C181 | K181: =SUM(K165:K180) -> 246606.88 | L181: =SUM(L165:L180) -> 246606.88 | M181: =SUM(M165:M180) -> -2393.12 | N181: =SUM(N165:N180) -> -2393.12 | P181: 246606.88
I182: C182
B183: 202 | C183: ONIBUS LEVE | D183: Anos | I183: C183
B184: =+B183 -> 202 | C184: 0 a 1 ano | D184: 0 | F184: =CONCATENATE(I38," x ",I$142) -> C38 x C142 | I184: C184 | K184: =+K38*K$142 -> 0 | L184: 0 | M184: 0 | N184: 0 | P184: =VLOOKUP(I184,Base_c,calc_d,0) -> 0
B185: =+B184 -> 202 | C185: 1 a 2 anos | D185: =+D184+1 -> 1 | F185: C39 x C142 | I185: C185 | K185: 0 | L185: 0 | M185: 0 | N185: 0 | P185: 0
B186: 202 | C186: 2 a 3 anos | D186: =+D185+1 -> 2 | F186: C40 x C142 | I186: C186 | K186: 539307.56 | L186: 539307.56 | M186: -15364.84 | N186: -15364.84 | P186: 539307.56
B187: 202 | C187: 3 a 4 anos | D187: 3 | F187: C41 x C142 | I187: C187 | K187: 808961.34 | L187: 808961.34 | M187: -23047.26 | N187: -23047.26 | P187: 808961.34
B188: 202 | C188: 4 a 5 anos | D188: 4 | F188: C42 x C142 | I188: C188 | K188: 808961.34 | L188: 808961.34 | M188: -23047.26 | N188: -23047.26 | P188: 808961.34
B189: 202 | C189: 5 a 6 anos | D189: 5 | F189: C43 x C142 | I189: C189 | K189: 808961.34 | L189: 808961.34 | M189: -23047.26 | N189: -23047.26 | P189: 808961.34
B190: 202 | C190: 6 a 7 anos | D190: 6 | F190: C44 x C142 | I190: C190 | K190: 808961.34 | L190: 808961.34 | M190: -23047.26 | N190: -23047.26 | P190: 808961.34
B191: 202 | C191: 7 a 8 anos | D191: 7 | F191: C45 x C142 | I191: C191 | K191: 0 | L191: 0 | M191: 0 | N191: 0 | P191: 0
B192: 202 | C192: 8 a 9 anos | D192: 8 | F192: C46 x C142 | I192: C192 | K192: 0 | L192: 0 | M192: 0 | N192: 0 | P192: 0
B193: 202 | C193: 9 a 10 anos | D193: 9 | F193: C47 x C142 | I193: C193 | K193: 0 | L193: 0 | M193: 0 | N193: 0 | P193: 0
B194: 202 | C194: 10 a 11 anos | D194: 10 | F194: C48 x C142 | I194: C194 | K194: 0 | L194: 0 | M194: 0 | N194: 0 | P194: 0
B195: 202 | C195: 11 a 12 anos | D195: 11 | F195: C49 x C142 | I195: C195 | K195: 0 | L195: 0 | M195: 0 | N195: 0 | P195: 0
B196: 202 | C196: 12 a 13 anos | D196: 12 | F196: C50 x C142 | I196: C196 | K196: 0 | L196: 0 | M196: 0 | N196: 0 | P196: 0
B197: 202 | C197: 13 a 14 anos | D197: 13 | F197: C51 x C142 | I197: C197 | K197: 0 | L197: 0 | M197: 0 | N197: 0 | P197: 0
B198: 202 | C198: 14 a 15 anos | D198: 14 | F198: C52 x C142 | I198: =CONCATENATE("C",ROW()) -> C198 | K198: 0 | L198: 0 | M198: 0 | N198: 0 | P198: 0
B199: 202 | C199: + de 15 anos | D199: 15 | F199: C53 x C142 | I199: C199 | K199: 0 | L199: 0 | M199: 0 | N199: 0 | P199: 0
B200: 202 | C200: TOTAL | F200: =CONCATENATE("Soma de ",I184,"..",I199) -> Soma de C184..C199 | I200: C200 | K200: =SUM(K184:K199) -> 3775152.92 | L200: =SUM(L184:L199) -> 3775152.92 | M200: =SUM(M184:M199) -> -107553.88 | N200: =SUM(N184:N199) -> -107553.88 | P200: 3775152.92
I201: C201
B202: 203 | C202: ONIBUS PESADO | D202: Anos | I202: C202
... 384 more rows

Sheet DR_Equip
B2: DR_EQUIP | I2: ÁREA DE DADOS E CÁLCULOS - NÃO INCLUIR COLUNA | W2: =+Apura!U28 -> 2.973757531 | X2: =+Apura!V28 -> 2.973757531 | Y2: =+Apura!W28 -> 0.7135887365 | Z2: =+Apura!X28 -> 0.8524965276
B3: =+Titulo_01 -> PREFEITURA MUNICIPAL DE CHAPECO
B4: =+Titulo_02 -> SECRETARIA DE DEFESA DO CIDADÃO
B5: =+Titulo_03 -> SISTEMA DE TRANSPORTE PÚBLICO DE PASSAGEIROS
B7: Cálculo Depreciação/Remuneração de Equipamentos
B8: =CONCATENATE(+Calculo!$D$9," - ",+Calculo!$E$17) -> Cenário - Prefeitura Chapecó - Base Edital - Proposta
B10: ITEM | C10: DISCRIMINAÇÃO | F10: Referência | K10: =+Apura!U12 -> Cenário 01 | L10: =+Apura!V12 -> Cenário 02 | M10: =+Apura!W12 -> Cenário 03 | N10: =+Apura!X12 -> Cenário 04 | P10: CALC FC
F11: Data | I11: =CONCATENATE("D",ROW()) -> D11 | K11: =+Consumo!K11 -> 2017-10-31 | L11: =+Consumo!L11 -> 2018-06-30 | M11: =+Consumo!M11 -> 2018-06-30 | N11: =+Consumo!N11 -> 2018-06-30 | P11: =VLOOKUP(I11,Base_d,calc_d,0) -> 2018-06-30
I12: =CONCATENATE("D",ROW()) -> D12
B13: EQUIPAMENTOS | I13: =CONCATENATE("D",ROW()) -> D13
I14: =CONCATENATE("D",ROW()) -> D14
B15: 100 | C15: EQUIPAMENTOS | I15: D15
C16: Sistema de Monitoramento e Bilhetagem | F16: =CONCATENATE(" + ",I76) -> + D76 | I16: D16 | K16: =+K76 -> 616000 | L16: =+L76 -> 616000 | M16: =+M76 -> 0 | N16: =+N76 -> 0 | P16: =VLOOKUP(I16,Base_d,calc_d,0) -> 616000
C17: Maquinas, Instalações e Equipamentos | F17: =CONCATENATE(" + ",I89) -> + D89 | I17: D17 | K17: =+K89 -> 293920 | L17: =+L89 -> 293920 | M17: =+M89 -> 1056 | N17: =+N89 -> 1056 | P17: =VLOOKUP(I17,Base_d,calc_d,0) -> 293920
C18: TOTAL | F18: =CONCATENATE("Soma de ",I16,"..",I17) -> Soma de D16..D17 | I18: D18 | K18: =SUM(K16:K17) -> 909920 | L18: =SUM(L16:L17) -> 909920 | M18: =SUM(M16:M17) -> 1056 | N18: =SUM(N16:N17) -> 1056 | P18: =SUM(P16:P17) -> 909920
I19: D19
B20: 200 | C20: DEPRECIAÇÃO MENSAL DE EQUIPAMENTOS | I20: D20
C21: Sistema de Monitoramento e Bilhetagem | F21: =CONCATENATE(I148," / 12") -> D148 / 12 | I21: D21 | K21: =+K148/12 -> 10266.66667 | L21: =+L148/12 -> 10266.66667 | M21: 0 | N21: 0 | P21: =VLOOKUP(I21,Base_d,calc_d,0) -> 10266.66667
C22: Maquinas, Instalações e Equipamentos | F22: =CONCATENATE(I149," / 12") -> D149 / 12 | I22: D22 | K22: =+K149/12 -> 2449.333333 | L22: 2449.333333 | M22: 8.8 | N22: 8.8 | P22: =VLOOKUP(I22,Base_d,calc_d,0) -> 2449.333333
C23: TOTAL | F23: =CONCATENATE("Soma de ",I21,"..",I22) -> Soma de D21..D22 | I23: D23 | K23: =SUM(K21:K22) -> 12716 | L23: =SUM(L21:L22) -> 12716 | M23: =SUM(M21:M22) -> 8.8 | N23: =SUM(N21:N22) -> 8.8 | P23: =SUM(P21:P22) -> 12716
I24: D24
B25: 300 | C25: REMUNERAÇÃO MENSAL DE EQUIPAMENTOS | I25: D25
C26: Sistema de Monitoramento e Bilhetagem | F26: =CONCATENATE(I207," / 12") -> D207 / 12 | I26: D26 | K26: =+K207/12 -> 6160 | L26: =+L207/12 -> 6160 | M26: 0 | N26: 0 | P26: =VLOOKUP(I26,Base_d,calc_d,0) -> 6160
C27: Maquinas, Instalações e Equipamentos | F27: =CONCATENATE(I208," / 12") -> D208 / 12 | I27: D27 | K27: =+K208/12 -> 2939.2 | L27: 2939.2 | M27: 10.56 | N27: 10.56 | P27: =VLOOKUP(I27,Base_d,calc_d,0) -> 2939.2
C28: TOTAL | F28: =CONCATENATE("Soma de ",I26,"..",I27) -> Soma de D26..D27 | I28: D28 | K28: =SUM(K26:K27) -> 9099.2 | L28: =SUM(L26:L27) -> 9099.2 | M28: =SUM(M26:M27) -> 10.56 | N28: =SUM(N26:N27) -> 10.56 | P28: =SUM(P26:P27) -> 9099.2
I29: D29
B30: 400 | C30: DADOS DOS EQUIPAMENTOS | I30: D30
I31: D31
B32: 401 | C32: Sist. de Bilhetagem monitoramento/validação | D32: Anos | I32: D32 | K32: Quantidade | L32: Quantidade | M32: Quantidade | N32: Quantidade | P32: =VLOOKUP(I32,Base_d,calc_d,0) -> Quantidade
B33: 401 | C33: 0 a 1 ano | D33: 1 | G33: ? | I33: D33 | K33: 88 | L33: 88 | M33: 88 | N33: 88 | P33: 88
B34: 401 | C34: =CONCATENATE(D33," a ",D34," anos") -> 1 a 2 anos | D34: =+D33+1 -> 2 | G34: ? | I34: D34 | K34: 0 | L34: 0 | M34: 0 | N34: 0 | P34: 0
B35: 401 | C35: =CONCATENATE(D34," a ",D35," anos") -> 2 a 3 anos | D35: 3 | G35: ? | I35: D35 | K35: 0 | L35: 0 | M35: 0 | N35: 0 | P35: 0
B36: 401 | C36: 3 a 4 anos | D36: 4 | G36: ? | I36: D36 | K36: 0 | L36: 0 | M36: 0 | N36: 0 | P36: 0
B37: 401 | C37: 4 a 5 anos | D37: =+D36+1 -> 5 | G37: ? | I37: D37 | K37: 0 | L37: 0 | M37: 0 | N37: 0 | P37: 0
B38: 401 | C38: 5 a 6 anos | D38: =+D37+1 -> 6 | G38: ? | I38: D38 | K38: 0 | L38: 0 | M38: 0 | N38: 0 | P38: 0
B39: 401 | C39: 6 a 7 anos | D39: 7 | G39: ? | I39: D39 | K39: 0 | L39: 0 | M39: 0 | N39: 0 | P39: 0
B40: 401 | C40: 7 a 8 anos | D40: 8 | G40: ? | I40: D40 | K40: 0 | L40: 0 | M40: 0 | N40: 0 | P40: 0
B41: 401 | C41: 8 a 9 anos | D41: 9 | G41: ? | I41: D41 | K41: 0 | L41: 0 | M41: 0 | N41: 0 | P41: 0
B42: 401 | C42: acima de 10 anos | D42: 10 | G42: ? | I42: D42 | K42: 0 | L42: 0 | M42: 0 | N42: 0 | P42: 0
C43: TOTAL | F43: =CONCATENATE("Soma de ",I33,"..",I42) -> Soma de D33..D42 | I43: D43 | K43: =SUM(K33:K42) -> 88 | L43: =SUM(L33:L42) -> 88 | M43: =SUM(M33:M42) -> 88 | N43: =SUM(N33:N42) -> 88 | P43: 88
I44: D44
B45: 402 | C45: Maquinas, Instalações e Equipamentos | D45: Anos | I45: D45 | K45: Quantidade | L45: Quantidade | M45: Quantidade | N45: Quantidade | P45: =VLOOKUP(I45,Base_d,calc_d,0) -> Quantidade
B46: 402 | C46: 0 a 1 ano | D46: 1 | F46: =CONCATENATE("+",I33) -> +D33 | I46: D46 | K46: =+K33 -> 88 | L46: 88 | M46: 88 | N46: 88 | P46: 88
B47: 402 | C47: =CONCATENATE(D46," a ",D47," anos") -> 1 a 2 anos | D47: =+D46+1 -> 2 | F47: =CONCATENATE("+",I34) -> +D34 | I47: D47 | K47: 0 | L47: 0 | M47: 0 | N47: 0 | P47: 0
B48: 402 | C48: =CONCATENATE(D47," a ",D48," anos") -> 2 a 3 anos | D48: 3 | F48: =CONCATENATE("+",I35) -> +D35 | I48: D48 | K48: 0 | L48: 0 | M48: 0 | N48: 0 | P48: 0
B49: 402 | C49: 3 a 4 anos | D49: 4 | F49: =CONCATENATE("+",I36) -> +D36 | I49: D49 | K49: =+K36 -> 0 | L49: 0 | M49: 0 | N49: 0 | P49: 0
B50: 402 | C50: 4 a 5 anos | D50: =+D49+1 -> 5 | F50: +D37 | I50: D50 | K50: =+K37 -> 0 | L50: 0 | M50: 0 | N50: 0 | P50: 0
B51: 402 | C51: 5 a 6 anos | D51: =+D50+1 -> 6 | F51: +D38 | I51: D51 | K51: =+K38 -> 0 | L51: 0 | M51: 0 | N51: 0 | P51: 0
B52: 402 | C52: 6 a 7 anos | D52: 7 | F52: +D39 | I52: D52 | K52: =+K39 -> 0 | L52: 0 | M52: 0 | N52: 0 | P52: 0
B53: 402 | C53: 7 a 8 anos | D53: 8 | F53: +D40 | I53: D53 | K53: =+K40 -> 0 | L53: 0 | M53: 0 | N53: 0 | P53: 0
B54: 402 | C54: 8 a 9 anos | D54: 9 | F54: +D41 | I54: D54 | K54: =+K41 -> 0 | L54: 0 | M54: 0 | N54: 0 | P54: 0
B55: 402 | C55: acima de 10 anos | D55: 10 | F55: +D42 | I55: D55 | K55: =+K42 -> 0 | L55: 0 | M55: 0 | N55: 0 | P55: 0
C56: TOTAL | F56: =CONCATENATE("Soma de ",I46,"..",I55) -> Soma de D46..D55 | I56: D56 | K56: =SUM(K46:K55) -> 88 | L56: =SUM(L46:L55) -> 88 | M56: =SUM(M46:M55) -> 88 | N56: =SUM(N46:N55) -> 88 | P56: 88
I57: D57
B58: 402 | C58: VALOR EQUIPAMENTOS POR VEICULO | I58: D58
C59: Sist. de Bilhetagem monitoramento/validação | F59: CONSUMO | G59: =+Consumo!I337 -> B337 | I59: D59 | K59: =+Consumo!K337 -> 7000 | L59: =+Consumo!L337 -> 7000 | M59: =+Consumo!M337 -> 0 | N59: =+Consumo!N337 -> 0 | P59: =VLOOKUP(I59,Base_d,calc_d,0) -> 7000
C60: Maquinas, Instalações e Equipamentos | F60: CONSUMO | G60: =+Consumo!I338 -> B338 | I60: D60 | K60: =+Consumo!K338 -> 3340 | L60: =+Consumo!L338 -> 3340 | M60: =+Consumo!M338 -> 12 | N60: =+Consumo!N338 -> 12 | P60: =VLOOKUP(I60,Base_d,calc_d,0) -> 3340
C61: TOTAL | F61: =CONCATENATE("Soma de ",I59,"..",I60) -> Soma de D59..D60 | I61: D61 | K61: =SUM(K59:K60) -> 10340 | L61: =SUM(L59:L60) -> 10340 | M61: 12 | N61: 12 | P61: 10340
I62: D62
B63: 500 | C63: VALOR DOS EQUIPAMENTOS POR ANO | I63: D63
I64: D64
B65: 501 | C65: Sist. de Bilhetagem monitoramento/validação | D65: Anos | I65: D65
B66: 501 | C66: 0 a 1 ano | D66: 1 | F66: =CONCATENATE(I$59," x ",I33) -> D59 x D33 | I66: D66 | K66: =+K$59*K33 -> 616000 | L66: =+L$59*L33 -> 616000 | M66: 0 | N66: 0 | P66: =VLOOKUP(I66,Base_d,calc_d,0) -> 616000
B67: 501 | C67: =CONCATENATE(D66," a ",D67," anos") -> 1 a 2 anos | D67: =+D66+1 -> 2 | F67: =CONCATENATE(I$59," x ",I34) -> D59 x D34 | I67: D67 | K67: =+K$59*K34 -> 0 | L67: 0 | M67: 0 | N67: 0 | P67: =VLOOKUP(I67,Base_d,calc_d,0) -> 0
B68: 501 | C68: =CONCATENATE(D67," a ",D68," anos") -> 2 a 3 anos | D68: 3 | F68: D59 x D35 | I68: D68 | K68: =+K$59*K35 -> 0 | L68: 0 | M68: 0 | N68: 0
B69: 501 | C69: 3 a 4 anos | D69: 4 | F69: D59 x D36 | I69: D69 | K69: =+K$59*K36 -> 0 | L69: 0 | M69: 0 | N69: 0
B70: 501 | C70: 4 a 5 anos | D70: =+D69+1 -> 5 | F70: D59 x D37 | I70: D70 | K70: =+K$59*K37 -> 0 | L70: 0 | M70: 0 | N70: 0
B71: 501 | C71: 5 a 6 anos | D71: =+D70+1 -> 6 | F71: D59 x D38 | I71: D71 | K71: =+K$59*K38 -> 0 | L71: 0 | M71: 0 | N71: 0
B72: 501 | C72: 6 a 7 anos | D72: 7 | F72: D59 x D39 | I72: D72 | K72: =+K$59*K39 -> 0 | L72: 0 | M72: 0 | N72: 0
B73: 501 | C73: 7 a 8 anos | D73: 8 | F73: D59 x D40 | I73: D73 | K73: =+K$59*K40 -> 0 | L73: 0 | M73: 0 | N73: 0 | P73: =VLOOKUP(I73,Base_d,calc_d,0) -> 0
B74: 501 | C74: 8 a 9 anos | D74: 9 | F74: D59 x D41 | I74: D74 | K74: =+K$59*K41 -> 0 | L74: 0 | M74: 0 | N74: 0 | P74: =VLOOKUP(I74,Base_d,calc_d,0) -> 0
B75: 501 | C75: acima de 10 anos | D75: 10 | F75: D59 x D42 | I75: D75 | K75: =+K$59*K42 -> 0 | L75: 0 | M75: 0 | N75: 0 | P75: =VLOOKUP(I75,Base_d,calc_d,0) -> 0
C76: TOTAL | F76: =CONCATENATE("Soma de ",I66,"..",I75) -> Soma de D66..D75 | I76: D76 | K76: =SUM(K66:K75) -> 616000 | L76: =SUM(L66:L75) -> 616000 | M76: 0 | N76: 0 | P76: 616000
I77: D77
B78: 502 | C78: Maquinas, Instalações e Equipamentos | D78: Anos | I78: =CONCATENATE("D",ROW()) -> D78
B79: 502 | C79: 0 a 1 ano | D79: 1 | F79: =CONCATENATE(I$60," x ",I46) -> D60 x D46 | I79: D79 | K79: =+K$60*K46 -> 293920 | L79: =+L$60*L46 -> 293920 | M79: 1056 | N79: 1056 | P79: =VLOOKUP(I79,Base_d,calc_d,0) -> 293920
B80: 502 | C80: =CONCATENATE(D79," a ",D80," anos") -> 1 a 2 anos | D80: =+D79+1 -> 2 | F80: =CONCATENATE(I$60," x ",I47) -> D60 x D47 | I80: D80 | K80: =+K$60*K47 -> 0 | L80: 0 | M80: 0 | N80: 0 | P80: =VLOOKUP(I80,Base_d,calc_d,0) -> 0
B81: 502 | C81: =CONCATENATE(D80," a ",D81," anos") -> 2 a 3 anos | D81: 3 | F81: D60 x D48 | I81: D81 | K81: =+K$60*K48 -> 0 | L81: 0 | M81: 0 | N81: 0
B82: 502 | C82: 3 a 4 anos | D82: 4 | F82: D60 x D49 | I82: D82 | K82: =+K$60*K49 -> 0 | L82: 0 | M82: 0 | N82: 0
B83: 502 | C83: 4 a 5 anos | D83: =+D82+1 -> 5 | F83: D60 x D50 | I83: D83 | K83: =+K$60*K50 -> 0 | L83: 0 | M83: 0 | N83: 0
B84: 502 | C84: 5 a 6 anos | D84: =+D83+1 -> 6 | F84: D60 x D51 | I84: D84 | K84: =+K$60*K51 -> 0 | L84: 0 | M84: 0 | N84: 0
B85: 502 | C85: 6 a 7 anos | D85: 7 | F85: D60 x D52 | I85: D85 | K85: =+K$60*K52 -> 0 | L85: 0 | M85: 0 | N85: 0
B86: 502 | C86: 7 a 8 anos | D86: 8 | F86: D60 x D53 | I86: D86 | K86: =+K$60*K53 -> 0 | L86: 0 | M86: 0 | N86: 0 | P86: =VLOOKUP(I86,Base_d,calc_d,0) -> 0
B87: 502 | C87: 8 a 9 anos | D87: 9 | F87: D60 x D54 | I87: D87 | K87: =+K$60*K54 -> 0 | L87: 0 | M87: 0 | N87: 0 | P87: =VLOOKUP(I87,Base_d,calc_d,0) -> 0
B88: 502 | C88: acima de 10 anos | D88: 10 | F88: D60 x D55 | I88: D88 | K88: =+K$60*K55 -> 0 | L88: 0 | M88: 0 | N88: 0 | P88: =VLOOKUP(I88,Base_d,calc_d,0) -> 0
C89: TOTAL | F89: =CONCATENATE("Soma de ",I79,"..",I88) -> Soma de D79..D88 | I89: D89 | K89: =SUM(K79:K88) -> 293920 | L89: =SUM(L79:L88) -> 293920 | M89: =SUM(M79:M88) -> 1056 | N89: =SUM(N79:N88) -> 1056 | P89: =SUM(P79:P88) -> 293920
I90: D90
B91: 600 | C91: FATORES DE DEPRECIAÇÃO | I91: D91
I92: D92
B93: 601 | C93: Sist. de Bilhetagem monitoramento/validação | D93: Anos | I93: D93 | K93: C depr anual | L93: C depr anual | M93: C depr anual | N93: C depr anual | P93: =VLOOKUP(I93,Base_d,calc_d,0) -> C depr anual
B94: 601 | C94: 0 a 1 ano | D94: 1 | G94: ? | I94: D94 | K94: 0.2 | L94: 0.2 | M94: 0.2 | N94: 0.2 | P94: 0.2
B95: 601 | C95: =CONCATENATE(D94," a ",D95," anos") -> 1 a 2 anos | D95: =+D94+1 -> 2 | G95: ? | I95: D95 | K95: 0.2 | L95: 0.2 | M95: 0.2 | N95: 0.2 | P95: 0.2
B96: 601 | C96: =CONCATENATE(D95," a ",D96," anos") -> 2 a 3 anos | D96: 3 | G96: ? | I96: D96 | K96: 0.2 | L96: 0.2 | M96: 0.2 | N96: 0.2 | P96: 0.2
B97: 601 | C97: 3 a 4 anos | D97: 4 | G97: ? | I97: D97 | K97: 0.2 | L97: 0.2 | M97: 0.2 | N97: 0.2 | P97: 0.2
B98: 601 | C98: 4 a 5 anos | D98: =+D97+1 -> 5 | G98: ? | I98: D98 | K98: 0.2 | L98: 0.2 | M98: 0.2 | N98: 0.2 | P98: 0.2
B99: 601 | C99: 5 a 6 anos | D99: =+D98+1 -> 6 | G99: ? | I99: D99 | K99: 0 | L99: 0 | M99: 0 | N99: 0 | P99: 0
B100: 601 | C100: 6 a 7 anos | D100: 7 | G100: ? | I100: D100 | K100: 0 | L100: 0 | M100: 0 | N100: 0 | P100: 0
B101: 601 | C101: 7 a 8 anos | D101: 8 | G101: ? | I101: D101 | K101: 0 | L101: 0 | M101: 0 | N101: 0 | P101: 0
B102: 601 | C102: 8 a 9 anos | D102: 9 | G102: ? | I102: D102 | K102: 0 | L102: 0 | M102: 0 | N102: 0 | P102: 0
B103: 601 | C103: acima de 10 anos | D103: 10 | G103: ? | I103: D103 | K103: 0 | L103: 0 | M103: 0 | N103: 0 | P103: 0
B104: 601 | C104: TOTAL | F104: =CONCATENATE("Soma de ",I94,"..",I103) -> Soma de D94..D103 | I104: D104 | K104: =SUM(K94:K103) -> 1 | L104: =SUM(L94:L103) -> 1 | M104: =SUM(M94:M103) -> 1 | N104: =SUM(N94:N103) -> 1 | P104: =SUM(P94:P103) -> 1
I105: D105
B106: 602 | C106: Maquinas, Instalações e Equipamentos | D106: Anos | I106: D106 | K106: C depr anual | L106: C depr anual | M106: C depr anual | N106: C depr anual | P106: =VLOOKUP(I106,Base_d,calc_d,0) -> C depr anual
B107: 602 | C107: 0 a 1 ano | D107: 1 | G107: ? | I107: D107 | K107: 0.1 | L107: 0.1 | M107: 0.1 | N107: 0.1 | P107: 0.1
B108: 602 | C108: =CONCATENATE(D107," a ",D108," anos") -> 1 a 2 anos | D108: =+D107+1 -> 2 | G108: ? | I108: D108 | K108: 0.1 | L108: 0.1 | M108: 0.1 | N108: 0.1 | P108: 0.1
B109: 602 | C109: =CONCATENATE(D108," a ",D109," anos") -> 2 a 3 anos | D109: 3 | G109: ? | I109: D109 | K109: 0.1 | L109: 0.1 | M109: 0.1 | N109: 0.1 | P109: 0.1
B110: 602 | C110: 3 a 4 anos | D110: 4 | G110: ? | I110: D110 | K110: 0.1 | L110: 0.1 | M110: 0.1 | N110: 0.1 | P110: 0.1
B111: 602 | C111: 4 a 5 anos | D111: =+D110+1 -> 5 | G111: ? | I111: D111 | K111: 0.1 | L111: 0.1 | M111: 0.1 | N111: 0.1 | P111: 0.1
B112: 602 | C112: 5 a 6 anos | D112: =+D111+1 -> 6 | G112: ? | I112: D112 | K112: 0.1 | L112: 0.1 | M112: 0.1 | N112: 0.1 | P112: 0.1
B113: 602 | C113: 6 a 7 anos | D113: 7 | G113: ? | I113: D113 | K113: 0.1 | L113: 0.1 | M113: 0.1 | N113: 0.1 | P113: 0.1
B114: 602 | C114: 7 a 8 anos | D114: 8 | G114: ? | I114: D114 | K114: 0.1 | L114: 0.1 | M114: 0.1 | N114: 0.1 | P114: 0.1
B115: 602 | C115: 8 a 9 anos | D115: 9 | G115: ? | I115: D115 | K115: 0.1 | L115: 0.1 | M115: 0.1 | N115: 0.1 | P115: 0.1
B116: 602 | C116: acima de 10 anos | D116: 10 | G116: ? | I116: D116 | K116: 0.1 | L116: 0.1 | M116: 0.1 | N116: 0.1 | P116: 0.1
B117: 602 | C117: TOTAL | F117: =CONCATENATE("Soma de ",I107,"..",I116) -> Soma de D107..D116 | I117: D117 | K117: =SUM(K107:K116) -> 1 | L117: =SUM(L107:L116) -> 1 | M117: =SUM(M107:M116) -> 1 | N117: =SUM(N107:N116) -> 1 | P117: =SUM(P107:P116) -> 1
I118: D118
B119: 700 | C119: DEPRECIAÇÃO ANUAL DE EQUIPAMENTOS | I119: D119
I120: D120
B121: 701 | C121: Sist. de Bilhetagem monitoramento/validação | D121: Anos | I121: D121
B122: 701 | C122: 0 a 1 ano | D122: 1 | F122: =CONCATENATE(I66," x ",I94) -> D66 x D94 | I122: D122 | K122: =ROUND(K66*K94,2) -> 123200 | L122: 123200 | M122: 0 | N122: 0 | P122: =VLOOKUP(I122,Base_d,calc_d,0) -> 123200
B123: 701 | C123: =CONCATENATE(D122," a ",D123," anos") -> 1 a 2 anos | D123: =+D122+1 -> 2 | F123: D67 x D95 | I123: D123 | K123: 0 | L123: 0 | M123: 0 | N123: 0 | P123: 0
B124: 701 | C124: =CONCATENATE(D123," a ",D124," anos") -> 2 a 3 anos | D124: 3 | F124: D68 x D96 | I124: D124 | K124: 0 | L124: 0 | M124: 0 | N124: 0 | P124: 0
B125: 701 | C125: 3 a 4 anos | D125: 4 | F125: D69 x D97 | I125: D125 | K125: 0 | L125: 0 | M125: 0 | N125: 0 | P125: 0
B126: 701 | C126: 4 a 5 anos | D126: =+D125+1 -> 5 | F126: D70 x D98 | I126: D126 | K126: 0 | L126: 0 | M126: 0 | N126: 0 | P126: 0
B127: 701 | C127: 5 a 6 anos | D127: =+D126+1 -> 6 | F127: D71 x D99 | I127: D127 | K127: 0 | L127: 0 | M127: 0 | N127: 0 | P127: 0
B128: 701 | C128: 6 a 7 anos | D128: 7 | F128: D72 x D100 | I128: D128 | K128: 0 | L128: 0 | M128: 0 | N128: 0 | P128: 0
B129: 701 | C129: 7 a 8 anos | D129: 8 | F129: D73 x D101 | I129: D129 | K129: 0 | L129: 0 | M129: 0 | N129: 0 | P129: 0
B130: 701 | C130: 8 a 9 anos | D130: 9 | F130: D74 x D102 | I130: D130 | K130: 0 | L130: 0 | M130: 0 | N130: 0 | P130: 0
B131: 701 | C131: acima de 10 anos | D131: 10 | F131: D75 x D103 | I131: D131 | K131: 0 | L131: 0 | M131: 0 | N131: 0 | P131: 0
B132: 701 | C132: TOTAL | F132: =CONCATENATE("Soma de ",I122,"..",I131) -> Soma de D122..D131 | I132: D132 | K132: =SUM(K122:K131) -> 123200 | L132: =SUM(L122:L131) -> 123200 | M132: =SUM(M122:M131) -> 0 | N132: =SUM(N122:N131) -> 0 | P132: =SUM(P122:P131) -> 123200
I133: D133
B134: 702 | C134: Maquinas, Instalações e Equipamentos | D134: Anos | I134: D134
B135: 702 | C135: 0 a 1 ano | D135: 1 | F135: =CONCATENATE(I79," x ",I107) -> D79 x D107 | I135: D135 | K135: =ROUND(K79*K107,2) -> 29392 | L135: 29392 | M135: 105.6 | N135: 105.6 | P135: =VLOOKUP(I135,Base_d,calc_d,0) -> 29392
B136: 702 | C136: =CONCATENATE(D135," a ",D136," anos") -> 1 a 2 anos | D136: =+D135+1 -> 2 | F136: D80 x D108 | I136: D136 | K136: 0 | L136: 0 | M136: 0 | N136: 0 | P136: 0
B137: 702 | C137: =CONCATENATE(D136," a ",D137," anos") -> 2 a 3 anos | D137: 3 | F137: D81 x D109 | I137: D137 | K137: 0 | L137: 0 | M137: 0 | N137: 0 | P137: 0
B138: 702 | C138: 3 a 4 anos | D138: 4 | F138: D82 x D110 | I138: D138 | K138: 0 | L138: 0 | M138: 0 | N138: 0 | P138: 0
B139: 702 | C139: 4 a 5 anos | D139: =+D138+1 -> 5 | F139: D83 x D111 | I139: D139 | K139: 0 | L139: 0 | M139: 0 | N139: 0 | P139: 0
B140: 702 | C140: 5 a 6 anos | D140: =+D139+1 -> 6 | F140: D84 x D112 | I140: D140 | K140: 0 | L140: 0 | M140: 0 | N140: 0 | P140: 0
B141: 702 | C141: 6 a 7 anos | D141: 7 | F141: D85 x D113 | I141: D141 | K141: 0 | L141: 0 | M141: 0 | N141: 0 | P141: 0
B142: 702 | C142: 7 a 8 anos | D142: 8 | F142: D86 x D114 | I142: =CONCATENATE("D",ROW()) -> D142 | K142: 0 | L142: 0 | M142: 0 | N142: 0 | P142: 0
B143: 702 | C143: 8 a 9 anos | D143: 9 | F143: D87 x D115 | I143: D143 | K143: 0 | L143: 0 | M143: 0 | N143: 0 | P143: 0
B144: 702 | C144: acima de 10 anos | D144: 10 | F144: D88 x D116 | I144: D144 | K144: 0 | L144: 0 | M144: 0 | N144: 0 | P144: 0
B145: 702 | C145: TOTAL | F145: =CONCATENATE("Soma de ",I135,"..",I144) -> Soma de D135..D144 | I145: D145 | K145: =SUM(K135:K144) -> 29392 | L145: =SUM(L135:L144) -> 29392 | M145: =SUM(M135:M144) -> 105.6 | N145: =SUM(N135:N144) -> 105.6 | P145: =SUM(P135:P144) -> 29392
I146: D146
B147: 703 | C147: DEPRECIAÇÃO ANUAL DE EQUIPAMENTOS | I147: D147
C148: Sistema de Monitoramento e Bilhetagem | F148: =CONCATENATE(" + ",I132) -> + D132 | I148: =CONCATENATE("D",ROW()) -> D148 | K148: =+K132 -> 123200 | L148: =+L132 -> 123200 | M148: 0 | N148: 0 | P148: =VLOOKUP(I148,Base_d,calc_d,0) -> 123200
C149: Maquinas, Instalações e Equipamentos | F149: =CONCATENATE(" + ",I145) -> + D145 | I149: D149 | K149: =+K145 -> 29392 | L149: =+L145 -> 29392 | M149: 105.6 | N149: 105.6 | P149: =VLOOKUP(I149,Base_d,calc_d,0) -> 29392
C150: TOTAL | F150: =CONCATENATE("Soma de ",I148,"..",I149) -> Soma de D148..D149 | I150: D150 | K150: =SUM(K148:K149) -> 152592 | L150: =SUM(L148:L149) -> 152592 | M150: =SUM(M148:M149) -> 105.6 | N150: =SUM(N148:N149) -> 105.6 | P150: =SUM(P148:P149) -> 152592
I151: D151
B152: 800 | C152: FATORES DE REMUNERAÇÃO | I152: D152
I153: D153
B154: 801 | C154: Sist. de Bilhetagem monitoramento/validação | D154: Anos | I154: =CONCATENATE("D",ROW()) -> D154 | K154: Fat Rem. Anual | L154: Fat Rem. Anual | M154: Fat Rem. Anual | N154: Fat Rem. Anual | P154: =VLOOKUP(I154,Base_d,calc_d,0) -> Fat Rem. Anual | U154: Fat depr anual | V154: Fat depr anual
B155: 801 | C155: 0 a 1 ano | D155: 1 | G155: ? | I155: D155 | K155: =+L155 -> 0.12 | L155: =+M155 -> 0.12 | M155: =+N155 -> 0.12 | N155: =IF(calc_depr=2,U155,V155) -> 0.12 | P155: 0.12 | U155: =+Coeficientes!M117 -> 0.12 | V155: =+Coeficientes!T117 -> 0.12
B156: 801 | C156: =CONCATENATE(D155," a ",D156," anos") -> 1 a 2 anos | D156: =+D155+1 -> 2 | G156: ? | I156: D156 | K156: 0.096 | L156: 0.096 | M156: 0.096 | N156: 0.096 | P156: 0.096 | U156: =+Coeficientes!M118 -> 0.08 | V156: =+Coeficientes!T118 -> 0.096
B157: 801 | C157: =CONCATENATE(D156," a ",D157," anos") -> 2 a 3 anos | D157: 3 | G157: ? | I157: D157 | K157: 0.072 | L157: 0.072 | M157: 0.072 | N157: 0.072 | P157: 0.072 | U157: =+Coeficientes!M119 -> 0.048 | V157: =+Coeficientes!T119 -> 0.072
B158: 801 | C158: 3 a 4 anos | D158: 4 | G158: ? | I158: D158 | K158: 0.048 | L158: 0.048 | M158: 0.048 | N158: 0.048 | P158: 0.048 | U158: =+Coeficientes!M120 -> 0.024 | V158: =+Coeficientes!T120 -> 0.048
B159: 801 | C159: 4 a 5 anos | D159: =+D158+1 -> 5 | G159: ? | I159: D159 | K159: 0.024 | L159: 0.024 | M159: 0.024 | N159: 0.024 | P159: 0.024 | U159: =+Coeficientes!M121 -> 0.008 | V159: =+Coeficientes!T121 -> 0.024
B160: 801 | C160: 5 a 6 anos | D160: =+D159+1 -> 6 | G160: ? | I160: D160 | K160: =+L160 -> 0 | L160: =+M160 -> 0 | M160: =+N160 -> 0 | N160: =IF(calc_depr=2,U160,V160) -> 0 | P160: 0 | U160: =+Coeficientes!M122 -> 0 | V160: =+Coeficientes!T122 -> 0
B161: 801 | C161: 6 a 7 anos | D161: 7 | G161: ? | I161: D161 | K161: 0 | L161: 0 | M161: 0 | N161: 0 | P161: 0 | U161: =+Coeficientes!M123 -> 0 | V161: =+Coeficientes!T123 -> 0
B162: 801 | C162: 7 a 8 anos | D162: 8 | G162: ? | I162: D162 | K162: 0 | L162: 0 | M162: 0 | N162: 0 | P162: 0 | U162: =+Coeficientes!M124 -> 0 | V162: =+Coeficientes!T124 -> 0
B163: 801 | C163: 8 a 9 anos | D163: 9 | G163: ? | I163: D163 | K163: 0 | L163: 0 | M163: 0 | N163: 0 | P163: 0 | U163: =+Coeficientes!M125 -> 0 | V163: =+Coeficientes!T125 -> 0
B164: 801 | C164: acima de 10 anos | D164: 10 | G164: ? | I164: D164 | K164: 0 | L164: 0 | M164: 0 | N164: 0 | P164: 0 | U164: =+Coeficientes!M126 -> 0 | V164: =+Coeficientes!T126 -> 0
B166: 802 | C166: Maquinas, Instalações e Equipamentos | D166: Anos | I166: D166 | K166: Fat Rem. Anual | L166: Fat Rem. Anual | M166: Fat Rem. Anual | N166: Fat Rem. Anual | P166: =VLOOKUP(I166,Base_d,calc_d,0) -> Fat Rem. Anual | U166: Fat depr anual | V166: Fat depr anual
B167: 802 | C167: 0 a 1 ano | D167: 1 | G167: ? | I167: D167 | K167: =+L167 -> 0.12 | L167: =+M167 -> 0.12 | M167: =+N167 -> 0.12 | N167: =IF(calc_depr=2,U167,V167) -> 0.12 | P167: 0.12 | U167: =+Coeficientes!M130 -> 0 | V167: =+Coeficientes!T140 -> 0.12
B168: 802 | C168: =CONCATENATE(D167," a ",D168," anos") -> 1 a 2 anos | D168: =+D167+1 -> 2 | G168: ? | I168: D168 | K168: 0.108 | L168: 0.108 | M168: 0.108 | N168: 0.108 | P168: 0.108 | U168: =+Coeficientes!M131 -> 0 | V168: =+Coeficientes!T141 -> 0.108
B169: 802 | C169: =CONCATENATE(D168," a ",D169," anos") -> 2 a 3 anos | D169: 3 | G169: ? | I169: D169 | K169: 0.096 | L169: 0.096 | M169: 0.096 | N169: 0.096 | P169: 0.096 | U169: =+Coeficientes!M132 -> 0 | V169: =+Coeficientes!T142 -> 0.096
B170: 802 | C170: 3 a 4 anos | D170: 4 | G170: ? | I170: D170 | K170: 0.084 | L170: 0.084 | M170: 0.084 | N170: 0.084 | P170: 0.084 | U170: =+Coeficientes!M133 -> 0 | V170: =+Coeficientes!T143 -> 0.084
B171: 802 | C171: 4 a 5 anos | D171: =+D170+1 -> 5 | G171: ? | I171: D171 | K171: 0.072 | L171: 0.072 | M171: 0.072 | N171: 0.072 | P171: 0.072 | U171: =+Coeficientes!M134 ->  | V171: =+Coeficientes!T144 -> 0.072
B172: 802 | C172: 5 a 6 anos | D172: =+D171+1 -> 6 | G172: ? | I172: D172 | K172: 0.06 | L172: 0.06 | M172: 0.06 | N172: 0.06 | P172: 0.06 | U172: =+Coeficientes!M158 -> 0 | V172: =+Coeficientes!T145 -> 0.06
B173: 802 | C173: 6 a 7 anos | D173: 7 | G173: ? | I173: D173 | K173: 0.048 | L173: 0.048 | M173: 0.048 | N173: 0.048 | P173: 0.048 | U173: =+Coeficientes!M159 -> 0 | V173: =+Coeficientes!T146 -> 0.048
B174: 802 | C174: 7 a 8 anos | D174: 8 | G174: ? | I174: D174 | K174: 0.036 | L174: 0.036 | M174: 0.036 | N174: 0.036 | P174: 0.036 | U174: =+Coeficientes!M160 -> 0 | V174: =+Coeficientes!T147 -> 0.036
B175: 802 | C175: 8 a 9 anos | D175: 9 | G175: ? | I175: D175 | K175: 0.024 | L175: 0.024 | M175: 0.024 | N175: 0.024 | P175: 0.024 | U175: =+Coeficientes!M161 -> 0 | V175: =+Coeficientes!T148 -> 0.024
B176: 802 | C176: acima de 10 anos | D176: 10 | G176: ? | I176: D176 | K176: 0.012 | L176: 0.012 | M176: 0.012 | N176: 0.012 | P176: 0.012 | U176: =+Coeficientes!M162 -> 0 | V176: =+Coeficientes!T149 -> 0.012
B178: 900 | C178: REMUNERAÇÃO ANUAL DE EQUIPAMENTOS | I178: D178
I179: D179
B180: 901 | C180: Sist. de Bilhetagem monitoramento/validação | D180: Anos | I180: D180
B181: 901 | C181: 0 a 1 ano | D181: 1 | F181: =CONCATENATE(I66," x ",I155) -> D66 x D155 | I181: D181 | K181: =ROUND(+K66*K155,2) -> 73920 | L181: 73920 | M181: 0 | N181: 0 | P181: =VLOOKUP(I181,Base_d,calc_d,0) -> 73920
B182: 901 | C182: =CONCATENATE(D181," a ",D182," anos") -> 1 a 2 anos | D182: =+D181+1 -> 2 | F182: D67 x D156 | I182: D182 | K182: 0 | L182: 0 | M182: 0 | N182: 0 | P182: 0
B183: 901 | C183: =CONCATENATE(D182," a ",D183," anos") -> 2 a 3 anos | D183: 3 | F183: D68 x D157 | I183: D183 | K183: 0 | L183: 0 | M183: 0 | N183: 0 | P183: 0
B184: 901 | C184: 3 a 4 anos | D184: 4 | F184: D69 x D158 | I184: D184 | K184: 0 | L184: 0 | M184: 0 | N184: 0 | P184: 0
B185: 901 | C185: 4 a 5 anos | D185: =+D184+1 -> 5 | F185: D70 x D159 | I185: D185 | K185: 0 | L185: 0 | M185: 0 | N185: 0 | P185: 0
B186: 901 | C186: 5 a 6 anos | D186: =+D185+1 -> 6 | F186: D71 x D160 | I186: D186 | K186: 0 | L186: 0 | M186: 0 | N186: 0 | P186: 0
B187: 901 | C187: 6 a 7 anos | D187: 7 | F187: D72 x D161 | I187: D187 | K187: 0 | L187: 0 | M187: 0 | N187: 0 | P187: 0
B188: 901 | C188: 7 a 8 anos | D188: 8 | F188: D73 x D162 | I188: D188 | K188: 0 | L188: 0 | M188: 0 | N188: 0 | P188: 0
B189: 901 | C189: 8 a 9 anos | D189: 9 | F189: D74 x D163 | I189: D189 | K189: 0 | L189: 0 | M189: 0 | N189: 0 | P189: 0
B190: 901 | C190: acima de 10 anos | D190: 10 | F190: D75 x D164 | I190: D190 | K190: 0 | L190: 0 | M190: 0 | N190: 0 | P190: 0
B191: 901 | C191: TOTAL | F191: =CONCATENATE("Soma de ",I181,"..",I190) -> Soma de D181..D190 | I191: D191 | K191: =SUM(K181:K190) -> 73920 | L191: =SUM(L181:L190) -> 73920 | M191: =SUM(M181:M190) -> 0 | N191: =SUM(N181:N190) -> 0 | P191: =SUM(P181:P190) -> 73920
I192: D192
B193: 902 | C193: Maquinas, Instalações e Equipamentos | D193: Anos | I193: D193
B194: 902 | C194: 0 a 1 ano | D194: 1 | F194: =CONCATENATE(I79," x ",I167) -> D79 x D167 | I194: D194 | K194: =ROUND(+K79*K167,2) -> 35270.4 | L194: 35270.4 | M194: 126.72 | N194: 126.72 | P194: =VLOOKUP(I194,Base_d,calc_d,0) -> 35270.4
B195: 902 | C195: =CONCATENATE(D194," a ",D195," anos") -> 1 a 2 anos | D195: =+D194+1 -> 2 | F195: D80 x D168 | I195: D195 | K195: 0 | L195: 0 | M195: 0 | N195: 0 | P195: 0
B196: 902 | C196: =CONCATENATE(D195," a ",D196," anos") -> 2 a 3 anos | D196: 3 | F196: D81 x D169 | I196: D196 | K196: 0 | L196: 0 | M196: 0 | N196: 0 | P196: 0
B197: 902 | C197: 3 a 4 anos | D197: 4 | F197: D82 x D170 | I197: D197 | K197: 0 | L197: 0 | M197: 0 | N197: 0 | P197: 0
B198: 902 | C198: 4 a 5 anos | D198: =+D197+1 -> 5 | F198: D83 x D171 | I198: D198 | K198: 0 | L198: 0 | M198: 0 | N198: 0 | P198: 0
B199: 902 | C199: 5 a 6 anos | D199: =+D198+1 -> 6 | F199: D84 x D172 | I199: D199 | K199: 0 | L199: 0 | M199: 0 | N199: 0 | P199: 0
B200: 902 | C200: 6 a 7 anos | D200: 7 | F200: D85 x D173 | I200: D200 | K200: 0 | L200: 0 | M200: 0 | N200: 0 | P200: 0
B201: 902 | C201: 7 a 8 anos | D201: 8 | F201: D86 x D174 | I201: D201 | K201: 0 | L201: 0 | M201: 0 | N201: 0 | P201: 0
B202: 902 | C202: 8 a 9 anos | D202: 9 | F202: D87 x D175 | I202: D202 | K202: 0 | L202: 0 | M202: 0 | N202: 0 | P202: 0
B203: 902 | C203: acima de 10 anos | D203: 10 | F203: D88 x D176 | I203: D203 | K203: 0 | L203: 0 | M203: 0 | N203: 0 | P203: 0
B204: 902 | C204: TOTAL | F204: =CONCATENATE("Soma de ",I194,"..",I203) -> Soma de D194..D203 | I204: D204 | K204: =SUM(K194:K203) -> 35270.4 | L204: =SUM(L194:L203) -> 35270.4 | M204: =SUM(M194:M203) -> 126.72 | N204: =SUM(N194:N203) -> 126.72 | P204: =SUM(P194:P203) -> 35270.4
I205: D205
... 4 more rows

Sheet DR_Invest
B2: DR_INVEST | I2: ÁREA DE DADOS E CÁLCULOS - NÃO INCLUIR COLUNA | W2: =+Apura!U28 -> 2.973757531 | X2: =+Apura!V28 -> 2.973757531 | Y2: =+Apura!W28 -> 0.7135887365 | Z2: =+Apura!X28 -> 0.8524965276
B3: =+Titulo_01 -> PREFEITURA MUNICIPAL DE CHAPECO
B4: =+Titulo_02 -> SECRETARIA DE DEFESA DO CIDADÃO
B5: =+Titulo_03 -> SISTEMA DE TRANSPORTE PÚBLICO DE PASSAGEIROS
B7: Cálculo Depreciação/Remuneração de Investimentos
B8: =CONCATENATE(+Calculo!$D$9," - ",+Calculo!$E$17) -> Cenário - Prefeitura Chapecó - Base Edital - Proposta
B10: ITEM | C10: DISCRIMINAÇÃO | F10: Referência | K10: =+Apura!U12 -> Cenário 01 | L10: =+Apura!V12 -> Cenário 02 | M10: =+Apura!W12 -> Cenário 03 | N10: =+Apura!X12 -> Cenário 04 | P10: CALC FC
F11: Data | I11: =CONCATENATE("E",ROW()) -> E11 | K11: =+Consumo!K11 -> 2017-10-31 | L11: =+Consumo!L11 -> 2018-06-30 | M11: =+Consumo!M11 -> 2018-06-30 | N11: =+Consumo!N11 -> 2018-06-30 | P11: =VLOOKUP(I11,Base_e,calc_d,0) -> 2018-06-30
I12: =CONCATENATE("E",ROW()) -> E12
B13: INVESTSIMENTOS | I13: E13
I14: E14
B15: 101 | C15: Deprecição/Amortização Mensal Investimentos | I15: E15
C16: Terrenos | I16: E16 | K16: =+K124 -> 0 | L16: =+L124 -> 0 | M16: 0 | N16: 0 | P16: =VLOOKUP(I16,Base_e,calc_d,0) -> 0
C17: Construções | I17: =CONCATENATE("E",ROW()) -> E17 | K17: =+K125 -> 5416.666667 | L17: 5416.666667 | M17: 0 | N17: 0 | P17: =VLOOKUP(I17,Base_e,calc_d,0) -> 5416.666667
C18: Outorga | I18: E18 | K18: =+K126 -> 23377.575 | L18: 23377.575 | M18: 0 | N18: 0 | P18: =VLOOKUP(I18,Base_e,calc_d,0) -> 23377.575
C19: Outros Investimentos | I19: E19 | K19: =+K127 -> 750 | L19: 750 | M19: 0 | N19: 0 | P19: =VLOOKUP(I19,Base_e,calc_d,0) -> 750
C20: TOTAL | F20: =CONCATENATE("Soma de ",I16,"..",I19) -> Soma de E16..E19 | I20: E20 | K20: =SUM(K16:K19) -> 29544.24167 | L20: =SUM(L16:L19) -> 29544.24167 | M20: =SUM(M16:M19) -> 0 | N20: =SUM(N16:N19) -> 0 | P20: =VLOOKUP(I20,Base_e,calc_d,0) -> 29544.24167
I21: E21
B22: 102 | C22: Remuneração Mensal de Investimentos | I22: E22
C23: Terrenos | F23: =CONCATENATE(" + ",I169) -> + E169 | I23: E23 | K23: =+K169 -> 50000 | L23: 50000 | M23: 0 | N23: 0 | P23: =VLOOKUP(I23,Base_e,calc_d,0) -> 50000
C24: Construções | F24: =CONCATENATE(" + ",I170) -> + E170 | I24: E24 | K24: 26000 | L24: 26000 | M24: 0 | N24: 0 | P24: =VLOOKUP(I24,Base_e,calc_d,0) -> 26000
C25: Outorga | F25: + E171 | I25: E25 | K25: 56106.18 | L25: 56106.18 | M25: 0 | N25: 0 | P25: =VLOOKUP(I25,Base_e,calc_d,0) -> 56106.18
C26: Outros Investimentos | F26: + E172 | I26: E26 | K26: 1000 | L26: 1000 | M26: 0 | N26: 0 | P26: =VLOOKUP(I26,Base_e,calc_d,0) -> 1000
C27: TOTAL | F27: =CONCATENATE("Soma de ",I23,"..",I26) -> Soma de E23..E26 | I27: E27 | K27: =SUM(K23:K26) -> 133106.18 | L27: =SUM(L23:L26) -> 133106.18 | M27: =SUM(M23:M26) -> 0 | N27: =SUM(N23:N26) -> 0 | P27: =VLOOKUP(I27,Base_e,calc_d,0) -> 133106.18
I28: E28
B29: 104 | C29: Valor dos Investimentos | I29: E29
C30: Terrenos | F30: CONSUMO | G30: =+Consumo!I351 -> B351 | I30: E30 | K30: =+Consumo!K351 -> 5000000 | L30: =+Consumo!L351 -> 5000000 | M30: =+Consumo!M351 -> 0 | N30: =+Consumo!N351 -> 0 | P30: =VLOOKUP(I30,Base_e,calc_d,0) -> 5000000
C31: Construções | F31: CONSUMO | G31: =+Consumo!I352 -> B352 | I31: E31 | K31: =+Consumo!K352 -> 2600000 | L31: =+Consumo!L352 -> 2600000 | M31: =+Consumo!M352 -> 0 | N31: =+Consumo!N352 -> 0 | P31: =VLOOKUP(I31,Base_e,calc_d,0) -> 2600000
C32: Outorga | F32: CONSUMO | G32: =+Consumo!I353 -> B353 | I32: E32 | K32: =+Consumo!K353 -> 5610618 | L32: =+Consumo!L353 -> 5610618 | M32: =+Consumo!M353 -> 0 | N32: =+Consumo!N353 -> 0 | P32: =VLOOKUP(I32,Base_e,calc_d,0) -> 5610618
C33: Outros Investimentos | F33: CONSUMO | G33: =+Consumo!I354 -> B354 | I33: E33 | K33: =+Consumo!K354 -> 100000 | L33: =+Consumo!L354 -> 100000 | M33: =+Consumo!M354 -> 0 | N33: =+Consumo!N354 -> 0 | P33: =VLOOKUP(I33,Base_e,calc_d,0) -> 100000
C34: TOTAL | F34: =CONCATENATE("Soma de ",I30,"..",I33) -> Soma de E30..E33 | I34: E34 | K34: =SUM(K30:K33) -> 13310618 | L34: 13310618 | M34: =SUM(M30:M33) -> 0 | N34: =SUM(N30:N33) -> 0 | P34: =VLOOKUP(I34,Base_e,calc_d,0) -> 13310618
I35: E35
B36: 106 | C36: VALOR RESIDUAL | I36: E36 | K36: % | L36: % | M36: % | N36: % | P36: =VLOOKUP(I36,Base_e,calc_d,0) -> %
C37: Terrenos | F37: CONSUMO | G37: =+Consumo!I358 -> B358 | I37: E37 | K37: =+Consumo!K358 -> 1 | L37: =+Consumo!L358 -> 1 | M37: =+Consumo!M358 -> 1 | N37: =+Consumo!N358 -> 1 | P37: =VLOOKUP(I37,Base_e,calc_d,0) -> 1
C38: Construções | F38: CONSUMO | G38: =+Consumo!I359 -> B359 | I38: E38 | K38: =+Consumo!K359 -> 0.5 | L38: =+Consumo!L359 -> 0.5 | M38: =+Consumo!M359 -> 0.5 | N38: =+Consumo!N359 -> 0.5 | P38: =VLOOKUP(I38,Base_e,calc_d,0) -> 0.5
C39: Outorga | F39: CONSUMO | G39: =+Consumo!I360 -> B360 | I39: E39 | K39: =+Consumo!K360 -> 0 | L39: =+Consumo!L360 -> 0 | M39: =+Consumo!M360 -> 0 | N39: =+Consumo!N360 -> 0 | P39: =VLOOKUP(I39,Base_e,calc_d,0) -> 0
C40: Outros Investimentos | F40: CONSUMO | G40: =+Consumo!I361 -> B361 | I40: E40 | K40: =+Consumo!K361 -> 0.1 | L40: =+Consumo!L361 -> 0.1 | M40: =+Consumo!M361 -> 0.1 | N40: =+Consumo!N361 -> 0.1 | P40: =VLOOKUP(I40,Base_e,calc_d,0) -> 0.1
I41: E41
B42: 105 | C42: VIDA UTIL | I42: E42 | K42: Anos | L42: Anos | M42: Anos | N42: Anos | P42: Anos
C43: Terrenos | F43: CONSUMO | G43: =+Consumo!I364 -> B364 | I43: E43 | K43: =+Consumo!K364 -> 0 | L43: =+Consumo!L364 -> 0 | M43: =+Consumo!M364 -> 0 | N43: =+Consumo!N364 -> 0 | P43: =VLOOKUP(I43,Base_e,calc_d,0) -> 0
C44: Construções | F44: CONSUMO | G44: =+Consumo!I365 -> B365 | I44: E44 | K44: =+Consumo!K365 -> 20 | L44: =+Consumo!L365 -> 20 | M44: =+Consumo!M365 -> 20 | N44: =+Consumo!N365 -> 20 | P44: =VLOOKUP(I44,Base_e,calc_d,0) -> 20
C45: Outorga | F45: CONSUMO | G45: =+Consumo!I366 -> B366 | I45: E45 | K45: =+Consumo!K366 -> 20 | L45: =+Consumo!L366 -> 20 | M45: =+Consumo!M366 -> 20 | N45: =+Consumo!N366 -> 20 | P45: =VLOOKUP(I45,Base_e,calc_d,0) -> 20
C46: Outros Investimentos | F46: CONSUMO | G46: =+Consumo!I367 -> B367 | I46: E46 | K46: =+Consumo!K367 -> 10 | L46: =+Consumo!L367 -> 10 | M46: =+Consumo!M367 -> 10 | N46: =+Consumo!N367 -> 10 | P46: =VLOOKUP(I46,Base_e,calc_d,0) -> 10
I47: E47
B48: 200 | C48: FATORES DE DEPRECIAÇÃO e AMORTIZAÇÃO | I48: E48
I49: E49
B50: 201 | C50: Construções | D50: Anos | I50: E50 | K50: C depr anual | L50: C depr anual | M50: C depr anual | N50: C depr anual | P50: Anos | T50: 1 | U50: 1 | V50: 1 | W50: 1
C51: =CONCATENATE("Ano ",D51-1," a ",D51) -> Ano 0 a 1 | D51: 1 | F51: =CONCATENATE(" 1/ ",I$44," x (1-",I$38,")") -> 1/ E44 x (1-E38) | I51: E51 | K51: =1/K$44*(1-K$38) -> 0.025 | L51: 0.025 | M51: 0.025 | N51: 0.025 | P51: =VLOOKUP(I51,Base_e,calc_d,0) -> 0.025 | T51: =+T50-K51 -> 0.975 | U51: =+U50-L51 -> 0.975 | V51: 0.975 | W51: 0.975
C52: =CONCATENATE("Ano ",D52-1," a ",D52) -> Ano 1 a 2 | D52: =+D51+1 -> 2 | F52: 1/ E44 x (1-E38) | I52: E52 | K52: 0.025 | L52: 0.025 | M52: 0.025 | N52: 0.025 | P52: 0.025 | T52: =+T51-K52 -> 0.95 | U52: 0.95 | V52: 0.95 | W52: 0.95
C53: Ano 2 a 3 | D53: =+D52+1 -> 3 | F53: 1/ E44 x (1-E38) | I53: E53 | K53: 0.025 | L53: 0.025 | M53: 0.025 | N53: 0.025 | P53: 0.025 | T53: 0.925 | U53: 0.925 | V53: 0.925 | W53: 0.925
C54: Ano 3 a 4 | D54: 4 | F54: 1/ E44 x (1-E38) | I54: E54 | K54: 0.025 | L54: 0.025 | M54: 0.025 | N54: 0.025 | P54: 0.025 | T54: 0.9 | U54: 0.9 | V54: 0.9 | W54: 0.9
C55: Ano 4 a 5 | D55: =+D54+1 -> 5 | F55: 1/ E44 x (1-E38) | I55: E55 | K55: 0.025 | L55: 0.025 | M55: 0.025 | N55: 0.025 | P55: 0.025 | T55: 0.875 | U55: 0.875 | V55: 0.875 | W55: 0.875
C56: Ano 5 a 6 | D56: 6 | F56: 1/ E44 x (1-E38) | I56: E56 | K56: 0.025 | L56: 0.025 | M56: 0.025 | N56: 0.025 | P56: 0.025 | T56: 0.85 | U56: 0.85 | V56: 0.85 | W56: 0.85
C57: Ano 6 a 7 | D57: 7 | F57: 1/ E44 x (1-E38) | I57: E57 | K57: 0.025 | L57: 0.025 | M57: 0.025 | N57: 0.025 | P57: 0.025 | T57: 0.825 | U57: 0.825 | V57: 0.825 | W57: 0.825
C58: Ano 7 a 8 | D58: 8 | F58: 1/ E44 x (1-E38) | I58: E58 | K58: 0.025 | L58: 0.025 | M58: 0.025 | N58: 0.025 | P58: 0.025 | T58: 0.8 | U58: 0.8 | V58: 0.8 | W58: 0.8
C59: Ano 8 a 9 | D59: 9 | F59: 1/ E44 x (1-E38) | I59: E59 | K59: 0.025 | L59: 0.025 | M59: 0.025 | N59: 0.025 | P59: 0.025 | T59: 0.775 | U59: 0.775 | V59: 0.775 | W59: 0.775
C60: Ano 9 a 10 | D60: 10 | F60: 1/ E44 x (1-E38) | I60: E60 | K60: 0.025 | L60: 0.025 | M60: 0.025 | N60: 0.025 | P60: 0.025 | T60: 0.75 | U60: 0.75 | V60: 0.75 | W60: 0.75
C61: Ano 10 a 11 | D61: 11 | F61: 1/ E44 x (1-E38) | I61: E61 | K61: 0.025 | L61: 0.025 | M61: 0.025 | N61: 0.025 | P61: 0.025 | T61: 0.725 | U61: 0.725 | V61: 0.725 | W61: 0.725
C62: Ano 11 a 12 | D62: 12 | F62: 1/ E44 x (1-E38) | I62: E62 | K62: 0.025 | L62: 0.025 | M62: 0.025 | N62: 0.025 | P62: 0.025 | T62: 0.7 | U62: 0.7 | V62: 0.7 | W62: 0.7
C63: Ano 12 a 13 | D63: 13 | F63: 1/ E44 x (1-E38) | I63: E63 | K63: 0.025 | L63: 0.025 | M63: 0.025 | N63: 0.025 | P63: 0.025 | T63: 0.675 | U63: 0.675 | V63: 0.675 | W63: 0.675
C64: Ano 13 a 14 | D64: 14 | F64: 1/ E44 x (1-E38) | I64: E64 | K64: 0.025 | L64: 0.025 | M64: 0.025 | N64: 0.025 | P64: 0.025 | T64: 0.65 | U64: 0.65 | V64: 0.65 | W64: 0.65
C65: Ano 14 a 15 | D65: 15 | F65: 1/ E44 x (1-E38) | I65: E65 | K65: 0.025 | L65: 0.025 | M65: 0.025 | N65: 0.025 | P65: 0.025 | T65: 0.625 | U65: 0.625 | V65: 0.625 | W65: 0.625
C66: Ano 15 a 16 | D66: 16 | F66: 1/ E44 x (1-E38) | I66: E66 | K66: 0.025 | L66: 0.025 | M66: 0.025 | N66: 0.025 | P66: 0.025 | T66: 0.6 | U66: 0.6 | V66: 0.6 | W66: 0.6
C67: Ano 16 a 17 | D67: 17 | F67: 1/ E44 x (1-E38) | I67: E67 | K67: 0.025 | L67: 0.025 | M67: 0.025 | N67: 0.025 | P67: 0.025 | T67: 0.575 | U67: =+U66-L67 -> 0.575 | V67: =+V66-M67 -> 0.575 | W67: =+W66-N67 -> 0.575
C68: Ano 17 a 18 | D68: 18 | F68: 1/ E44 x (1-E38) | I68: E68 | K68: 0.025 | L68: 0.025 | M68: 0.025 | N68: 0.025 | P68: 0.025 | T68: 0.55 | U68: 0.55 | V68: 0.55 | W68: 0.55
C69: Ano 18 a 19 | D69: 19 | F69: 1/ E44 x (1-E38) | I69: E69 | K69: 0.025 | L69: 0.025 | M69: 0.025 | N69: 0.025 | P69: 0.025 | T69: 0.525 | U69: 0.525 | V69: 0.525 | W69: 0.525
C70: Ano 19 a 20 | D70: 20 | F70: 1/ E44 x (1-E38) | I70: E70 | K70: 0.025 | L70: 0.025 | M70: 0.025 | N70: 0.025 | P70: 0.025 | T70: 0.5 | U70: 0.5 | V70: 0.5 | W70: 0.5
I71: E71
B72: 202 | C72: Outorga | D72: Anos | I72: E72 | K72: C depr anual | L72: C depr anual | M72: C depr anual | N72: C depr anual | P72: Anos | T72: 1 | U72: 1 | V72: 1 | W72: 1
C73: =CONCATENATE("Ano ",D73-1," a ",D73) -> Ano 0 a 1 | D73: 1 | F73: =CONCATENATE(" 1/ ",I$45," x (1-",I$39,")") -> 1/ E45 x (1-E39) | I73: E73 | K73: =1/K$45*(1-K$39) -> 0.05 | L73: 0.05 | M73: 0.05 | N73: 0.05 | P73: =VLOOKUP(I73,Base_e,calc_d,0) -> 0.05 | T73: =+T72-K73 -> 0.95 | U73: =+U72-L73 -> 0.95 | V73: =+V72-M73 -> 0.95 | W73: =+W72-N73 -> 0.95
C74: Ano 1 a 2 | D74: =+D73+1 -> 2 | F74: 1/ E45 x (1-E39) | I74: E74 | K74: 0.05 | L74: 0.05 | M74: 0.05 | N74: 0.05 | P74: 0.05 | T74: =+T73-K74 -> 0.9 | U74: 0.9 | V74: 0.9 | W74: 0.9
C75: Ano 2 a 3 | D75: =+D74+1 -> 3 | F75: 1/ E45 x (1-E39) | I75: E75 | K75: 0.05 | L75: 0.05 | M75: 0.05 | N75: 0.05 | P75: 0.05 | T75: 0.85 | U75: 0.85 | V75: 0.85 | W75: 0.85
C76: Ano 3 a 4 | D76: 4 | F76: 1/ E45 x (1-E39) | I76: E76 | K76: 0.05 | L76: 0.05 | M76: 0.05 | N76: 0.05 | P76: 0.05 | T76: 0.8 | U76: 0.8 | V76: 0.8 | W76: 0.8
C77: Ano 4 a 5 | D77: 5 | F77: 1/ E45 x (1-E39) | I77: E77 | K77: 0.05 | L77: 0.05 | M77: 0.05 | N77: 0.05 | P77: 0.05 | T77: 0.75 | U77: 0.75 | V77: 0.75 | W77: 0.75
C78: Ano 5 a 6 | D78: 6 | F78: 1/ E45 x (1-E39) | I78: E78 | K78: 0.05 | L78: 0.05 | M78: 0.05 | N78: 0.05 | P78: 0.05 | T78: 0.7 | U78: 0.7 | V78: 0.7 | W78: 0.7
C79: Ano 6 a 7 | D79: 7 | F79: 1/ E45 x (1-E39) | I79: E79 | K79: 0.05 | L79: 0.05 | M79: 0.05 | N79: 0.05 | P79: 0.05 | T79: 0.65 | U79: 0.65 | V79: 0.65 | W79: 0.65
C80: Ano 7 a 8 | D80: 8 | F80: 1/ E45 x (1-E39) | I80: E80 | K80: 0.05 | L80: 0.05 | M80: 0.05 | N80: 0.05 | P80: 0.05 | T80: 0.6 | U80: 0.6 | V80: 0.6 | W80: 0.6
C81: Ano 8 a 9 | D81: 9 | F81: 1/ E45 x (1-E39) | I81: E81 | K81: 0.05 | L81: 0.05 | M81: 0.05 | N81: 0.05 | P81: 0.05 | T81: 0.55 | U81: 0.55 | V81: 0.55 | W81: 0.55
C82: Ano 9 a 10 | D82: 10 | F82: 1/ E45 x (1-E39) | I82: E82 | K82: 0.05 | L82: 0.05 | M82: 0.05 | N82: 0.05 | P82: 0.05 | T82: 0.5 | U82: 0.5 | V82: 0.5 | W82: 0.5
C83: Ano 10 a 11 | D83: 11 | F83: 1/ E45 x (1-E39) | I83: E83 | K83: 0.05 | L83: 0.05 | M83: 0.05 | N83: 0.05 | P83: 0.05 | T83: 0.45 | U83: 0.45 | V83: 0.45 | W83: 0.45
C84: Ano 11 a 12 | D84: 12 | F84: 1/ E45 x (1-E39) | I84: E84 | K84: 0.05 | L84: 0.05 | M84: 0.05 | N84: 0.05 | P84: 0.05 | T84: 0.4 | U84: 0.4 | V84: 0.4 | W84: 0.4
C85: Ano 12 a 13 | D85: 13 | F85: 1/ E45 x (1-E39) | I85: E85 | K85: 0.05 | L85: 0.05 | M85: 0.05 | N85: 0.05 | P85: 0.05 | T85: 0.35 | U85: 0.35 | V85: 0.35 | W85: 0.35
C86: Ano 13 a 14 | D86: 14 | F86: 1/ E45 x (1-E39) | I86: E86 | K86: 0.05 | L86: 0.05 | M86: 0.05 | N86: 0.05 | P86: 0.05 | T86: 0.3 | U86: 0.3 | V86: 0.3 | W86: 0.3
C87: Ano 14 a 15 | D87: 15 | F87: 1/ E45 x (1-E39) | I87: E87 | K87: 0.05 | L87: 0.05 | M87: 0.05 | N87: 0.05 | P87: 0.05 | T87: 0.25 | U87: 0.25 | V87: 0.25 | W87: 0.25
C88: Ano 15 a 16 | D88: 16 | F88: 1/ E45 x (1-E39) | I88: E88 | K88: 0.05 | L88: 0.05 | M88: 0.05 | N88: 0.05 | P88: 0.05 | T88: 0.2 | U88: 0.2 | V88: 0.2 | W88: 0.2
C89: Ano 16 a 17 | D89: 17 | F89: 1/ E45 x (1-E39) | I89: E89 | K89: 0.05 | L89: 0.05 | M89: 0.05 | N89: 0.05 | P89: 0.05 | T89: 0.15 | U89: 0.15 | V89: 0.15 | W89: 0.15
C90: Ano 17 a 18 | D90: 18 | F90: 1/ E45 x (1-E39) | I90: E90 | K90: 0.05 | L90: 0.05 | M90: 0.05 | N90: 0.05 | P90: 0.05 | T90: 0.1 | U90: 0.1 | V90: 0.1 | W90: 0.1
C91: Ano 18 a 19 | D91: 19 | F91: 1/ E45 x (1-E39) | I91: E91 | K91: 0.05 | L91: 0.05 | M91: 0.05 | N91: 0.05 | P91: 0.05 | T91: 0.05 | U91: 0.05 | V91: 0.05 | W91: 0.05
C92: Ano 19 a 20 | D92: 20 | F92: 1/ E45 x (1-E39) | I92: E92 | K92: 0.05 | L92: 0.05 | M92: 0.05 | N92: 0.05 | P92: 0.05 | T92: -3.191891196e-16 | U92: -3.191891196e-16 | V92: -3.191891196e-16 | W92: -3.191891196e-16
I93: E93
B94: 203 | C94: Outros investimentos | D94: Anos | I94: E94 | K94: C depr anual | L94: C depr anual | M94: C depr anual | N94: C depr anual | P94: Anos
C95: =CONCATENATE("Ano ",D95-1," a ",D95) -> Ano 0 a 1 | D95: 1 | F95: =CONCATENATE(" 1/ ",I$46," x (1-",I$40,")") -> 1/ E46 x (1-E40) | I95: E95 | K95: =1/K$46*(1-K$40) -> 0.09 | L95: 0.09 | M95: 0.09 | N95: 0.09 | P95: =VLOOKUP(I95,Base_e,calc_d,0) -> 0.09
C96: Ano 1 a 2 | D96: =+D95+1 -> 2 | F96: 1/ E46 x (1-E40) | I96: E96 | K96: 0.09 | L96: 0.09 | M96: 0.09 | N96: 0.09 | P96: 0.09
C97: Ano 2 a 3 | D97: =+D96+1 -> 3 | F97: 1/ E46 x (1-E40) | I97: E97 | K97: 0.09 | L97: 0.09 | M97: 0.09 | N97: 0.09 | P97: 0.09
C98: Ano 3 a 4 | D98: 4 | F98: 1/ E46 x (1-E40) | I98: =CONCATENATE("E",ROW()) -> E98 | K98: 0.09 | L98: 0.09 | M98: 0.09 | N98: 0.09 | P98: 0.09
C99: Ano 4 a 5 | D99: 5 | F99: 1/ E46 x (1-E40) | I99: E99 | K99: 0.09 | L99: 0.09 | M99: 0.09 | N99: 0.09 | P99: 0.09
C100: Ano 5 a 6 | D100: 6 | F100: 1/ E46 x (1-E40) | I100: E100 | K100: 0.09 | L100: 0.09 | M100: 0.09 | N100: 0.09 | P100: 0.09
C101: Ano 6 a 7 | D101: 7 | F101: 1/ E46 x (1-E40) | I101: E101 | K101: 0.09 | L101: 0.09 | M101: 0.09 | N101: 0.09 | P101: 0.09
C102: Ano 7 a 8 | D102: 8 | F102: 1/ E46 x (1-E40) | I102: E102 | K102: 0.09 | L102: 0.09 | M102: 0.09 | N102: 0.09 | P102: 0.09
C103: Ano 8 a 9 | D103: 9 | F103: 1/ E46 x (1-E40) | I103: E103 | K103: 0.09 | L103: 0.09 | M103: 0.09 | N103: 0.09 | P103: 0.09
C104: Ano 9 a 10 | D104: 10 | F104: 1/ E46 x (1-E40) | I104: E104 | K104: 0.09 | L104: 0.09 | M104: 0.09 | N104: 0.09 | P104: 0.09
C105: Ano 10 a 11 | D105: 11 | F105: 1/ E46 x (1-E40) | I105: E105 | K105: 0.09 | L105: 0.09 | M105: 0.09 | N105: 0.09 | P105: 0.09
C106: Ano 11 a 12 | D106: 12 | F106: 1/ E46 x (1-E40) | I106: E106 | K106: 0.09 | L106: 0.09 | M106: 0.09 | N106: 0.09 | P106: 0.09
C107: Ano 12 a 13 | D107: 13 | F107: 1/ E46 x (1-E40) | I107: E107 | K107: 0.09 | L107: 0.09 | M107: 0.09 | N107: 0.09 | P107: 0.09
C108: Ano 13 a 14 | D108: 14 | F108: 1/ E46 x (1-E40) | I108: E108 | K108: 0.09 | L108: 0.09 | M108: 0.09 | N108: 0.09 | P108: 0.09
C109: Ano 14 a 15 | D109: 15 | F109: 1/ E46 x (1-E40) | I109: E109 | K109: 0.09 | L109: 0.09 | M109: 0.09 | N109: 0.09 | P109: 0.09
C110: Ano 15 a 16 | D110: 16 | F110: 1/ E46 x (1-E40) | I110: E110 | K110: 0.09 | L110: 0.09 | M110: 0.09 | N110: 0.09 | P110: 0.09
C111: Ano 16 a 17 | D111: 17 | F111: 1/ E46 x (1-E40) | I111: E111 | K111: 0.09 | L111: 0.09 | M111: 0.09 | N111: 0.09 | P111: 0.09
C112: Ano 17 a 18 | D112: 18 | F112: 1/ E46 x (1-E40) | I112: E112 | K112: 0.09 | L112: 0.09 | M112: 0.09 | N112: 0.09 | P112: 0.09
C113: Ano 18 a 19 | D113: 19 | F113: 1/ E46 x (1-E40) | I113: E113 | K113: 0.09 | L113: 0.09 | M113: 0.09 | N113: 0.09 | P113: 0.09
C114: Ano 19 a 20 | D114: 20 | F114: 1/ E46 x (1-E40) | I114: E114 | K114: 0.09 | L114: 0.09 | M114: 0.09 | N114: 0.09 | P114: 0.09
I115: E115
B116: 204 | C116: VALOR DEPRECIAÇÃO ANUAL | I116: E116
C117: Terrenos | F117: Sem depreciação | I117: E117 | K117: 0 | L117: 0 | M117: 0 | N117: 0 | P117: =VLOOKUP(I117,Base_e,calc_d,0) -> 0
C118: Construções | F118: =CONCATENATE(I31," x ",I51) -> E31 x E51 | I118: E118 | K118: =+K31*K51 -> 65000 | L118: =+L31*L51 -> 65000 | M118: =+M31*M51 -> 0 | N118: =+N31*N51 -> 0 | P118: =VLOOKUP(I118,Base_e,calc_d,0) -> 65000
C119: Outorga | F119: =CONCATENATE(I32," x ",I73) -> E32 x E73 | I119: E119 | K119: =+K32*K73 -> 280530.9 | L119: =+L32*L73 -> 280530.9 | M119: =+M32*M73 -> 0 | N119: =+N32*N73 -> 0 | P119: =VLOOKUP(I119,Base_e,calc_d,0) -> 280530.9
C120: Outros Investimentos | F120: =CONCATENATE(I33," x ",I95) -> E33 x E95 | I120: E120 | K120: =+K33*K95 -> 9000 | L120: =+L33*L95 -> 9000 | M120: =+M33*M95 -> 0 | N120: =+N33*N95 -> 0 | P120: =VLOOKUP(I120,Base_e,calc_d,0) -> 9000
C121: TOTAL | F121: =CONCATENATE("Soma de ",I117,"..",I120) -> Soma de E117..E120 | I121: E121 | K121: =SUM(K117:K120) -> 354530.9 | L121: 354530.9 | M121: =SUM(M117:M120) -> 0 | N121: =SUM(N117:N120) -> 0 | P121: =VLOOKUP(I121,Base_e,calc_d,0) -> 354530.9
I122: E122
B123: 205 | C123: VALOR DEPRECIAÇÃO MENSAL | I123: E123
C124: Terrenos | F124: Sem depreciação | I124: E124 | K124: =ROUND(+K117/12,2) -> 0 | L124: 0 | M124: 0 | N124: 0 | P124: =VLOOKUP(I124,Base_e,calc_d,0) -> 0
C125: Construções | F125: =CONCATENATE(I44," x ",I58) -> E44 x E58 | I125: E125 | K125: =+K118/12 -> 5416.666667 | L125: =+L118/12 -> 5416.666667 | M125: =+M118/12 -> 0 | N125: 0 | P125: =VLOOKUP(I125,Base_e,calc_d,0) -> 5416.666667
C126: Outorga | F126: =CONCATENATE(I45," x ",I80) -> E45 x E80 | I126: E126 | K126: =+K119/12 -> 23377.575 | L126: =+L119/12 -> 23377.575 | M126: 0 | N126: 0 | P126: =VLOOKUP(I126,Base_e,calc_d,0) -> 23377.575
C127: Outros Investimentos | F127: =CONCATENATE(I46," x ",I102) -> E46 x E102 | I127: E127 | K127: =+K120/12 -> 750 | L127: 750 | M127: 0 | N127: 0 | P127: =VLOOKUP(I127,Base_e,calc_d,0) -> 750
C128: TOTAL | F128: =CONCATENATE("Soma de ",I124,"..",I127) -> Soma de E124..E127 | I128: E128 | K128: =SUM(K124:K127) -> 29544.24167 | L128: 29544.24167 | M128: =SUM(M124:M127) -> 0 | N128: =SUM(N124:N127) -> 0 | P128: =VLOOKUP(I128,Base_e,calc_d,0) -> 29544.24167
I129: E129
B130: 300 | C130: Fatores de Remuneração de Investimentos | I130: E130
I131: E131
C132: Terrenos | D132: Anos | I132: E132 | K132: Fat Rem. Anual | L132: Fat Rem. Anual | M132: Fat Rem. Anual | N132: Fat Rem. Anual | P132: Fat Rem. Anual | T132: 1 | U132: 1 | V132: 1 | W132: 1
C133: =CONCATENATE("Ano ",D133-1," a ",D133) -> Ano 0 a 1 | D133: 1 | I133: E133 | K133: =+T132*Taxa_remuner -> 0.12 | L133: =+U132*Taxa_remuner -> 0.12 | M133: =+V132*Taxa_remuner -> 0.12 | N133: =+W132*Taxa_remuner -> 0.12 | P133: =VLOOKUP(I133,Base_e,calc_d,0) -> 0.12 | T133: =+T132 -> 1 | U133: =+U132 -> 1 | V133: =+V132 -> 1 | W133: =+W132 -> 1
C134: Ano 1 a 2 | D134: =+D133+1 -> 2 | I134: E134 | K134: 0.12 | L134: 0.12 | M134: 0.12 | N134: 0.12 | P134: 0.12 | T134: =+T133 -> 1 | U134: 1 | V134: 1 | W134: 1
C135: Ano 2 a 3 | D135: =+D134+1 -> 3 | I135: E135 | K135: 0.12 | L135: 0.12 | M135: 0.12 | N135: 0.12 | P135: 0.12 | T135: 1 | U135: 1 | V135: 1 | W135: 1
C136: Ano 3 a 4 | D136: 4 | I136: E136 | K136: 0.12 | L136: 0.12 | M136: 0.12 | N136: 0.12 | P136: 0.12 | T136: 1 | U136: 1 | V136: 1 | W136: 1
C137: Ano 4 a 5 | D137: 5 | I137: E137 | K137: 0.12 | L137: 0.12 | M137: 0.12 | N137: 0.12 | P137: 0.12 | T137: 1 | U137: 1 | V137: 1 | W137: 1
C138: Ano 5 a 6 | D138: 6 | I138: E138 | K138: 0.12 | L138: 0.12 | M138: 0.12 | N138: 0.12 | P138: 0.12 | T138: 1 | U138: 1 | V138: 1 | W138: 1
C139: Ano 6 a 7 | D139: 7 | I139: E139 | K139: 0.12 | L139: 0.12 | M139: 0.12 | N139: 0.12 | P139: 0.12 | T139: 1 | U139: 1 | V139: 1 | W139: 1
C140: Ano 7 a 8 | D140: 8 | I140: E140 | K140: 0.12 | L140: 0.12 | M140: 0.12 | N140: 0.12 | P140: 0.12 | T140: 1 | U140: 1 | V140: 1 | W140: 1
C141: Ano 8 a 9 | D141: 9 | I141: E141 | K141: 0.12 | L141: 0.12 | M141: 0.12 | N141: 0.12 | P141: 0.12 | T141: 1 | U141: 1 | V141: 1 | W141: 1
C142: Ano 9 a 10 | D142: 10 | I142: E142 | K142: 0.12 | L142: 0.12 | M142: 0.12 | N142: 0.12 | P142: 0.12 | T142: 1 | U142: 1 | V142: 1 | W142: 1
C143: Ano 10 a 11 | D143: 11 | I143: E143 | K143: 0.12 | L143: 0.12 | M143: 0.12 | N143: 0.12 | P143: 0.12 | T143: 1 | U143: 1 | V143: 1 | W143: 1
C144: Ano 11 a 12 | D144: 12 | I144: E144 | K144: 0.12 | L144: 0.12 | M144: 0.12 | N144: 0.12 | P144: 0.12 | T144: 1 | U144: 1 | V144: 1 | W144: 1
C145: Ano 12 a 13 | D145: 13 | I145: E145 | K145: 0.12 | L145: 0.12 | M145: 0.12 | N145: 0.12 | P145: 0.12 | T145: 1 | U145: 1 | V145: 1 | W145: 1
C146: Ano 13 a 14 | D146: 14 | I146: E146 | K146: 0.12 | L146: 0.12 | M146: 0.12 | N146: 0.12 | P146: 0.12 | T146: 1 | U146: 1 | V146: 1 | W146: 1
C147: Ano 14 a 15 | D147: 15 | I147: E147 | K147: 0.12 | L147: 0.12 | M147: 0.12 | N147: 0.12 | P147: 0.12 | T147: 1 | U147: 1 | V147: 1 | W147: 1
C148: Ano 15 a 16 | D148: 16 | I148: E148 | K148: 0.12 | L148: 0.12 | M148: 0.12 | N148: 0.12 | P148: 0.12 | T148: 1 | U148: 1 | V148: 1 | W148: 1
C149: Ano 16 a 17 | D149: 17 | I149: E149 | K149: 0.12 | L149: 0.12 | M149: 0.12 | N149: 0.12 | P149: 0.12 | T149: 1 | U149: 1 | V149: 1 | W149: 1
C150: Ano 17 a 18 | D150: 18 | I150: E150 | K150: 0.12 | L150: 0.12 | M150: 0.12 | N150: 0.12 | P150: 0.12 | T150: 1 | U150: 1 | V150: 1 | W150: 1
C151: Ano 18 a 19 | D151: 19 | I151: E151 | K151: 0.12 | L151: 0.12 | M151: 0.12 | N151: 0.12 | P151: 0.12 | T151: 1 | U151: 1 | V151: 1 | W151: 1
C152: Ano 19 a 20 | D152: 20 | I152: E152 | K152: 0.12 | L152: 0.12 | M152: 0.12 | N152: 0.12 | P152: 0.12 | T152: 1 | U152: 1 | V152: 1 | W152: 1
I153: E153
I154: E154 | K154: Fat Rem. Anual | L154: Fat Rem. Anual | M154: Fat Rem. Anual | N154: Fat Rem. Anual | P154: Fat Rem. Anual
C155: Terrenos | G155: ? | I155: E155 | K155: =+Taxa_remuner -> 0.12 | L155: 0.12 | M155: 0.12 | N155: 0.12 | P155: =VLOOKUP(I155,Base_e,calc_d,0) -> 0.12
C156: Construções | G156: ? | I156: E156 | K156: 0.12 | L156: 0.12 | M156: 0.12 | N156: 0.12 | P156: =VLOOKUP(I156,Base_e,calc_d,0) -> 0.12
C157: Outorga | G157: ? | I157: E157 | K157: 0.12 | L157: 0.12 | M157: =+Taxa_remuner -> 0.12 | N157: =+Taxa_remuner -> 0.12 | P157: =VLOOKUP(I157,Base_e,calc_d,0) -> 0.12
C158: Outros Investimentos | G158: ? | I158: E158 | K158: 0.12 | L158: 0.12 | M158: =+Taxa_remuner -> 0.12 | N158: =+Taxa_remuner -> 0.12 | P158: =VLOOKUP(I158,Base_e,calc_d,0) -> 0.12
I159: E159
B160: 108 | C160: Remuneração Anual de Investimentos | I160: E160
I161: E161
C162: Terrenos | F162: =CONCATENATE(I30," x ",I155) -> E30 x E155 | I162: E162 | K162: =ROUND(K30*K155,2) -> 600000 | L162: 600000 | M162: 0 | N162: 0 | P162: =VLOOKUP(I162,Base_e,calc_d,0) -> 600000
C163: Construções | F163: =CONCATENATE(I31," x ",I156) -> E31 x E156 | I163: E163 | K163: 312000 | L163: 312000 | M163: 0 | N163: 0 | P163: 312000
C164: Outorga | F164: =CONCATENATE(I32," x ",I157) -> E32 x E157 | I164: E164 | K164: 673274.16 | L164: 673274.16 | M164: 0 | N164: 0 | P164: 673274.16
C165: Outros Investimentos | F165: =CONCATENATE(I33," x ",I158) -> E33 x E158 | I165: E165 | K165: 12000 | L165: 12000 | M165: 0 | N165: 0 | P165: 12000
C166: TOTAL | F166: =CONCATENATE("Soma de ",I162,"..",I165) -> Soma de E162..E165 | I166: E166 | K166: =SUM(K162:K165) -> 1597274.16 | L166: =SUM(L162:L165) -> 1597274.16 | M166: =SUM(M162:M165) -> 0 | N166: =SUM(N162:N165) -> 0 | P166: 1597274.16
I167: E167
B168: 109 | C168: Remuneração Mensal de Investimentos | I168: =CONCATENATE("E",ROW()) -> E168
C169: Terrenos | F169: =CONCATENATE("+",I162," / 12") -> +E162 / 12 | I169: =CONCATENATE("E",ROW()) -> E169 | K169: =ROUND(+K162/12,2) -> 50000 | L169: 50000 | M169: 0 | N169: 0 | P169: =VLOOKUP(I169,Base_e,calc_d,0) -> 50000
C170: Construções | F170: +E163 / 12 | I170: E170 | K170: 26000 | L170: 26000 | M170: 0 | N170: 0 | P170: =VLOOKUP(I170,Base_e,calc_d,0) -> 26000
C171: Outorga | F171: +E164 / 12 | I171: E171 | K171: 56106.18 | L171: 56106.18 | M171: 0 | N171: 0 | P171: =VLOOKUP(I171,Base_e,calc_d,0) -> 56106.18
C172: Outros Investimentos | F172: =CONCATENATE("+",I165," / 12") -> +E165 / 12 | I172: E172 | K172: 1000 | L172: 1000 | M172: 0 | N172: 0 | P172: =VLOOKUP(I172,Base_e,calc_d,0) -> 1000
C173: TOTAL | F173: =CONCATENATE("Soma de ",I169,"..",I172) -> Soma de E169..E172 | I173: E173 | K173: =SUM(K169:K172) -> 133106.18 | L173: =SUM(L169:L172) -> 133106.18 | M173: =SUM(M169:M172) -> 0 | N173: =SUM(N169:N172) -> 0 | P173: =VLOOKUP(I173,Base_e,calc_d,0) -> 133106.18
I174: E174

Sheet Renov_Frota
B2: FC_FROTA
B3: =+Titulo_01 -> PREFEITURA MUNICIPAL DE CHAPECO
B4: =+Titulo_02 -> SECRETARIA DE DEFESA DO CIDADÃO
B5: =+Titulo_03 -> SISTEMA DE TRANSPORTE PÚBLICO DE PASSAGEIROS
B7: APURAÇÃO MOVIMENTO RENOVAÇÃO DA FROTA
B8: =CONCATENATE(+Calculo!$D$9," - ",+Calculo!$E$17) -> Cenário - Prefeitura Chapecó - Base Edital - Proposta
B10: ITEM | C10: DISCRIMINAÇÃO | E10: ANO | G10: REFERÊNIA | J10: ORDEM | L10: CATEGORIA DE VEICULO | P10: TOTAL | R10: M | S10: L | T10: P | U10: A | V10: T
B12: DADOS INICIAIS DA FROTA | L12: Micro Onibus | M12: Leve | N12: Pesado | O12: Articulado | P12: Total
B14: 101 | C14: Valor Veiculo Novo com Rodagem | G14: CONSUMO | H14: 501 | L14: =+Consumo!P239 -> 250000 | M14: =+Consumo!P240 -> 278336.2 | N14: =+Consumo!P241 -> 303858.5 | O14: =+Consumo!P242 -> 362649.99
B16: 102 | C16: Valor do Veiculo sem Rodagem | G16: CONSUMO | H16: 504 | L16: =+Consumo!P257 -> 246606.88 | M16: =+Consumo!P258 -> 269653.78 | N16: =+Consumo!P259 -> 294454.46 | O16: =+Consumo!P260 -> 347477.79
B18: 103 | C18: Vida Útil (anos) | G18: CONSUMO | H18: 502 | L18: =+Consumo!$P251 -> 8 | M18: =+Consumo!$P251 -> 8 | N18: =+Consumo!$P251 -> 8 | O18: =+Consumo!$P251 -> 8 | R18: =+L18 -> 8 | S18: =+M18 -> 8 | T18: =+N18 -> 8 | U18: =+O18 -> 8
B20: 103 | C20: Valor Residual | G20: CONSUMO | H20: 503 | L20: =+Consumo!$P245 -> 0.15 | M20: =+Consumo!$P245 -> 0.15 | N20: =+Consumo!$P245 -> 0.15 | O20: =+Consumo!$P245 -> 0.15
B22: COEFICIENTE DE DEPRECIAÇÃO
B24: 201 | C24: Coeficiente Deprec ano | D24: Anos
C25: 0 a 1 ano | D25: 0 | G25: DR_FROTA | H25: 615 | L25: =+DR_Frota!P251 -> 0.10625 | M25: =+DR_Frota!P271 -> 0.10625 | N25: =+DR_Frota!P291 -> 0.09 | O25: =+DR_Frota!P311 -> 0.09
C26: 1 a 2 anos | D26: =+D25+1 -> 1 | G26: DR_FROTA | H26: =+H25 -> 615 | L26: =+DR_Frota!P252 -> 0.10625 | M26: =+DR_Frota!P272 -> 0.10625 | N26: =+DR_Frota!P292 -> 0.09 | O26: =+DR_Frota!P312 -> 0.09
C27: 2 a 3 anos | D27: =+D26+1 -> 2 | G27: DR_FROTA | H27: =+H26 -> 615 | L27: =+DR_Frota!P253 -> 0.10625 | M27: =+DR_Frota!P273 -> 0.10625 | N27: =+DR_Frota!P293 -> 0.09 | O27: =+DR_Frota!P313 -> 0.09
C28: 3 a 4 anos | D28: 3 | G28: DR_FROTA | H28: 615 | L28: =+DR_Frota!P254 -> 0.10625 | M28: =+DR_Frota!P274 -> 0.10625 | N28: =+DR_Frota!P294 -> 0.09 | O28: =+DR_Frota!P314 -> 0.09
C29: 4 a 5 anos | D29: 4 | G29: DR_FROTA | H29: 615 | L29: =+DR_Frota!P255 -> 0.10625 | M29: =+DR_Frota!P275 -> 0.10625 | N29: =+DR_Frota!P295 -> 0.09 | O29: =+DR_Frota!P315 -> 0.09
C30: 5 a 6 anos | D30: 5 | G30: DR_FROTA | H30: 615 | L30: =+DR_Frota!P256 -> 0.10625 | M30: =+DR_Frota!P276 -> 0.10625 | N30: =+DR_Frota!P296 -> 0.09 | O30: =+DR_Frota!P316 -> 0.09
C31: 6 a 7 anos | D31: 6 | G31: DR_FROTA | H31: 615 | L31: =+DR_Frota!P257 -> 0.10625 | M31: =+DR_Frota!P277 -> 0.10625 | N31: =+DR_Frota!P297 -> 0.09 | O31: =+DR_Frota!P317 -> 0.09
C32: 7 a 8 anos | D32: 7 | G32: DR_FROTA | H32: 615 | L32: =+DR_Frota!P258 -> 0.10625 | M32: =+DR_Frota!P278 -> 0.10625 | N32: =+DR_Frota!P298 -> 0.09 | O32: =+DR_Frota!P318 -> 0.09
C33: 8 a 9 anos | D33: 8 | G33: DR_FROTA | H33: 615 | L33: =+DR_Frota!P259 -> 0 | M33: =+DR_Frota!P279 -> 0 | N33: =+DR_Frota!P299 -> 0.09 | O33: =+DR_Frota!P319 -> 0.09
C34: 9 a 10 anos | D34: 9 | G34: DR_FROTA | H34: 615 | L34: =+DR_Frota!P260 -> 0 | M34: =+DR_Frota!P280 -> 0 | N34: =+DR_Frota!P300 -> 0.09 | O34: =+DR_Frota!P320 -> 0.09
C35: 10 a 11 anos | D35: 10 | G35: DR_FROTA | H35: 615 | L35: =+DR_Frota!P261 -> 0 | M35: =+DR_Frota!P281 -> 0 | N35: =+DR_Frota!P301 -> 0 | O35: =+DR_Frota!P321 -> 0
C36: 11 a 12 anos | D36: 11 | G36: DR_FROTA | H36: 615 | L36: =+DR_Frota!P262 -> 0 | M36: =+DR_Frota!P282 -> 0 | N36: =+DR_Frota!P302 -> 0 | O36: =+DR_Frota!P322 -> 0
C37: 12 a 13 anos | D37: 12 | G37: DR_FROTA | H37: 615 | L37: =+DR_Frota!P263 -> 0 | M37: =+DR_Frota!P283 -> 0 | N37: =+DR_Frota!P303 -> 0 | O37: =+DR_Frota!P323 -> 0
C38: 13 a 14 anos | D38: 13 | G38: DR_FROTA | H38: 615 | L38: =+DR_Frota!P264 -> 0 | M38: =+DR_Frota!P284 -> 0 | N38: =+DR_Frota!P304 -> 0 | O38: =+DR_Frota!P324 -> 0
C39: 14 a 15 anos | D39: 14 | G39: DR_FROTA | H39: 615 | L39: =+DR_Frota!P265 -> 0 | M39: =+DR_Frota!P285 -> 0 | N39: =+DR_Frota!P305 -> 0 | O39: =+DR_Frota!P325 -> 0
C40: + de 15 anos | D40: 15 | G40: DR_FROTA | H40: 615 | L40: =+DR_Frota!P266 -> 0 | M40: =+DR_Frota!P286 -> 0 | N40: =+DR_Frota!P306 -> 0 | O40: =+DR_Frota!P326 -> 0
C41: TOTAL | H41: = | L41: =SUM(L25:L40) -> 0.85 | M41: =SUM(M25:M40) -> 0.85 | N41: =SUM(N25:N40) -> 0.9 | O41: =SUM(O25:O40) -> 0.9
B43: 202 | C43: Coeficiente Acumulado Inicio Ano | D43: Anos
C44: 0 a 1 ano | D44: 0 | H44: = | L44: =+L43+L24 -> 0 | M44: =+M43+M24 -> 0 | N44: 0 | O44: 0
C45: 1 a 2 anos | D45: =+D44+1 -> 1 | H45: = | L45: =+L44+L25 -> 0.10625 | M45: 0.10625 | N45: 0.09 | O45: 0.09
C46: 2 a 3 anos | D46: =+D45+1 -> 2 | H46: = | L46: 0.2125 | M46: 0.2125 | N46: 0.18 | O46: 0.18
C47: 3 a 4 anos | D47: 3 | H47: = | L47: 0.31875 | M47: 0.31875 | N47: 0.27 | O47: 0.27
C48: 4 a 5 anos | D48: 4 | H48: = | L48: 0.425 | M48: 0.425 | N48: 0.36 | O48: 0.36
C49: 5 a 6 anos | D49: 5 | H49: = | L49: 0.53125 | M49: 0.53125 | N49: 0.45 | O49: 0.45
C50: 6 a 7 anos | D50: 6 | H50: = | L50: 0.6375 | M50: 0.6375 | N50: 0.54 | O50: 0.54
C51: 7 a 8 anos | D51: 7 | H51: = | L51: 0.74375 | M51: 0.74375 | N51: 0.63 | O51: 0.63
C52: 8 a 9 anos | D52: 8 | H52: = | L52: 0.85 | M52: 0.85 | N52: 0.72 | O52: 0.72
C53: 9 a 10 anos | D53: 9 | H53: = | L53: 0.85 | M53: 0.85 | N53: 0.81 | O53: 0.81
C54: 10 a 11 anos | D54: 10 | H54: = | L54: 0.85 | M54: 0.85 | N54: 0.9 | O54: 0.9
C55: 11 a 12 anos | D55: 11 | H55: = | L55: 0.85 | M55: 0.85 | N55: 0.9 | O55: 0.9
C56: 12 a 13 anos | D56: 12 | H56: = | L56: 0.85 | M56: 0.85 | N56: 0.9 | O56: 0.9
C57: 13 a 14 anos | D57: 13 | H57: = | L57: 0.85 | M57: 0.85 | N57: 0.9 | O57: 0.9
C58: 14 a 15 anos | D58: 14 | H58: = | L58: 0.85 | M58: 0.85 | N58: 0.9 | O58: 0.9
C59: + de 15 anos | D59: 15 | H59: = | L59: 0.85 | M59: 0.85 | N59: 0.9 | O59: 0.9
B61: 202 | C61: Coeficiente Acumulado Final Ano | D61: Anos
C62: 0 a 1 ano | D62: 0 | H62: = | L62: =+L61+L25 -> 0.10625 | M62: =+M61+M25 -> 0.10625 | N62: =+N61+N25 -> 0.09 | O62: =+O61+O25 -> 0.09
C63: 1 a 2 anos | D63: =+D62+1 -> 1 | H63: = | L63: 0.2125 | M63: 0.2125 | N63: 0.18 | O63: 0.18
C64: 2 a 3 anos | D64: =+D63+1 -> 2 | H64: = | L64: 0.31875 | M64: 0.31875 | N64: 0.27 | O64: 0.27
C65: 3 a 4 anos | D65: 3 | H65: = | L65: 0.425 | M65: 0.425 | N65: 0.36 | O65: 0.36
C66: 4 a 5 anos | D66: 4 | H66: = | L66: 0.53125 | M66: 0.53125 | N66: 0.45 | O66: 0.45
C67: 5 a 6 anos | D67: 5 | H67: = | L67: 0.6375 | M67: 0.6375 | N67: 0.54 | O67: 0.54
C68: 6 a 7 anos | D68: 6 | H68: = | L68: 0.74375 | M68: 0.74375 | N68: 0.63 | O68: 0.63
C69: 7 a 8 anos | D69: 7 | H69: = | L69: 0.85 | M69: 0.85 | N69: 0.72 | O69: 0.72
C70: 8 a 9 anos | D70: 8 | H70: = | L70: 0.85 | M70: 0.85 | N70: 0.81 | O70: 0.81
C71: 9 a 10 anos | D71: 9 | H71: = | L71: 0.85 | M71: 0.85 | N71: 0.9 | O71: 0.9
C72: 10 a 11 anos | D72: 10 | H72: = | L72: 0.85 | M72: 0.85 | N72: 0.9 | O72: 0.9
C73: 11 a 12 anos | D73: 11 | H73: = | L73: 0.85 | M73: 0.85 | N73: 0.9 | O73: 0.9
C74: 12 a 13 anos | D74: 12 | H74: = | L74: 0.85 | M74: 0.85 | N74: 0.9 | O74: 0.9
C75: 13 a 14 anos | D75: 13 | H75: = | L75: 0.85 | M75: 0.85 | N75: 0.9 | O75: 0.9
C76: 14 a 15 anos | D76: 14 | H76: = | L76: 0.85 | M76: 0.85 | N76: 0.9 | O76: 0.9
C77: + de 15 anos | D77: 15 | H77: = | L77: 0.85 | M77: 0.85 | N77: 0.9 | O77: 0.9
B79: FROTA INICIAL | E79: 0 | L79: Micro Onibus | M79: Leve | N79: Pesado | O79: Articulado | P79: Total
B81: 302 | C81: Aquisição veiculos Ano | D81: Anos
B82: =+B81*100+E82 -> 30200 | C82: 0 a 1 ano | D82: 0 | E82: =+E79 -> 0 | H82: = | L82: =+L$16*L136 -> 0 | M82: 0 | N82: 0 | O82: 0 | P82: =SUM(L82:O82) -> 0
B83: =+B82 -> 30200 | C83: 1 a 2 anos | D83: =+D82+1 -> 1 | E83: =+E82 -> 0 | H83: = | L83: 0 | M83: 0 | N83: 0 | O83: 0 | P83: =SUM(L83:O83) -> 0
B84: =+B83 -> 30200 | C84: 2 a 3 anos | D84: =+D83+1 -> 2 | E84: =+E83 -> 0 | H84: = | L84: 0 | M84: 539307.56 | N84: 3533453.52 | O84: 0 | P84: 4072761.08
B85: 30200 | C85: 3 a 4 anos | D85: 3 | E85: 0 | H85: = | L85: 0 | M85: 808961.34 | N85: 3533453.52 | O85: 0 | P85: 4342414.86
B86: 30200 | C86: 4 a 5 anos | D86: 4 | E86: 0 | H86: = | L86: 0 | M86: 808961.34 | N86: 3533453.52 | O86: 347477.79 | P86: 4689892.65
B87: 30200 | C87: 5 a 6 anos | D87: 5 | E87: 0 | H87: = | L87: 0 | M87: 808961.34 | N87: 3533453.52 | O87: 0 | P87: 4342414.86
B88: 30200 | C88: 6 a 7 anos | D88: 6 | E88: 0 | H88: = | L88: 246606.88 | M88: 808961.34 | N88: 3533453.52 | O88: 0 | P88: 4589021.74
B89: 30200 | C89: 7 a 8 anos | D89: 7 | E89: 0 | H89: = | L89: 0 | M89: 0 | N89: 3533453.52 | O89: 0 | P89: 3533453.52
B90: 30200 | C90: 8 a 9 anos | D90: 8 | E90: 0 | H90: = | L90: 0 | M90: 0 | N90: 0 | O90: 0 | P90: 0
B91: 30200 | C91: 9 a 10 anos | D91: 9 | E91: 0 | H91: = | L91: 0 | M91: 0 | N91: 0 | O91: 0 | P91: 0
B92: 30200 | C92: 10 a 11 anos | D92: 10 | E92: 0 | H92: = | L92: 0 | M92: 0 | N92: 0 | O92: 0 | P92: 0
B93: 30200 | C93: 11 a 12 anos | D93: 11 | E93: 0 | H93: = | L93: 0 | M93: 0 | N93: 0 | O93: 0 | P93: 0
B94: 30200 | C94: 12 a 13 anos | D94: 12 | E94: 0 | H94: = | L94: 0 | M94: 0 | N94: 0 | O94: 0 | P94: 0
B95: 30200 | C95: 13 a 14 anos | D95: 13 | E95: 0 | H95: = | L95: 0 | M95: 0 | N95: 0 | O95: 0 | P95: 0
B96: 30200 | C96: 14 a 15 anos | D96: 14 | E96: 0 | H96: = | L96: 0 | M96: 0 | N96: 0 | O96: 0 | P96: 0
B97: 30200 | C97: + de 15 anos | D97: 15 | E97: 0 | H97: = | L97: 0 | M97: 0 | N97: 0 | O97: 0 | P97: 0
C98: TOTAL | H98: = | L98: =SUM(L82:L97) -> 246606.88 | M98: =SUM(M82:M97) -> 3775152.92 | N98: =SUM(N82:N97) -> 21200721.12 | O98: =SUM(O82:O97) -> 347477.79 | P98: =SUM(P82:P97) -> 25569958.71
B100: 303 | C100: Depreciação Acumulada Inicio do Ano | D100: Anos
B101: =+B100*100+E101 -> 30300 | C101: 0 a 1 ano | D101: 0 | E101: =+E97 -> 0 | H101: = | L101: =+L82*-L$44 -> 0 | M101: =+M82*-M44 -> 0 | N101: 0 | O101: 0 | P101: =SUM(L101:O101) -> 0
B102: =+B101 -> 30300 | C102: 1 a 2 anos | D102: =+D101+1 -> 1 | E102: =+E101 -> 0 | H102: = | L102: =+L83*-L$45 -> 0 | M102: 0 | N102: 0 | O102: 0 | P102: =SUM(L102:O102) -> 0
B103: =+B102 -> 30300 | C103: 2 a 3 anos | D103: =+D102+1 -> 2 | E103: =+E102 -> 0 | H103: = | L103: =+L84*-L$46 -> 0 | M103: -114602.8565 | N103: -636021.6336 | O103: 0 | P103: -750624.4901
B104: 30300 | C104: 3 a 4 anos | D104: 3 | E104: 0 | H104: = | L104: =+L85*-L$47 -> 0 | M104: -257856.4271 | N104: -954032.4504 | O104: 0 | P104: -1211888.878
B105: 30300 | C105: 4 a 5 anos | D105: 4 | E105: 0 | H105: = | L105: =+L86*-L$48 -> 0 | M105: -343808.5695 | N105: -1272043.267 | O105: -125092.0044 | P105: -1740943.841
B106: 30300 | C106: 5 a 6 anos | D106: 5 | E106: 0 | H106: = | L106: =+L87*-L$49 -> 0 | M106: -429760.7119 | N106: -1590054.084 | O106: 0 | P106: -2019814.796
B107: 30300 | C107: 6 a 7 anos | D107: 6 | E107: 0 | H107: = | L107: =+L88*-L$50 -> -157211.886 | M107: -515712.8543 | N107: -1908064.901 | O107: 0 | P107: -2580989.641
B108: 30300 | C108: 7 a 8 anos | D108: 7 | E108: 0 | H108: = | L108: =+L89*-L$51 -> 0 | M108: 0 | N108: -2226075.718 | O108: 0 | P108: -2226075.718
B109: 30300 | C109: 8 a 9 anos | D109: 8 | E109: 0 | H109: = | L109: =+L90*-L$52 -> 0 | M109: 0 | N109: 0 | O109: 0 | P109: 0
B110: 30300 | C110: 9 a 10 anos | D110: 9 | E110: 0 | H110: = | L110: =+L91*-L$53 -> 0 | M110: 0 | N110: 0 | O110: 0 | P110: 0
B111: 30300 | C111: 10 a 11 anos | D111: 10 | E111: 0 | H111: = | L111: =+L92*-L$54 -> 0 | M111: 0 | N111: 0 | O111: 0 | P111: 0
B112: 30300 | C112: 11 a 12 anos | D112: 11 | E112: 0 | H112: = | L112: =+L93*-L$55 -> 0 | M112: 0 | N112: 0 | O112: 0 | P112: 0
B113: 30300 | C113: 12 a 13 anos | D113: 12 | E113: 0 | H113: = | L113: =+L94*-L$56 -> 0 | M113: 0 | N113: 0 | O113: 0 | P113: 0
B114: 30300 | C114: 13 a 14 anos | D114: 13 | E114: 0 | H114: = | L114: =+L95*-L$57 -> 0 | M114: 0 | N114: 0 | O114: 0 | P114: 0
B115: 30300 | C115: 14 a 15 anos | D115: 14 | E115: 0 | H115: = | L115: =+L96*-L$58 -> 0 | M115: 0 | N115: 0 | O115: 0 | P115: 0
B116: 30300 | C116: + de 15 anos | D116: 15 | E116: 0 | H116: = | L116: =+L97*-L$59 -> 0 | M116: 0 | N116: 0 | O116: 0 | P116: 0
C117: TOTAL | H117: = | L117: =SUM(L101:L116) -> -157211.886 | M117: =SUM(M101:M116) -> -1661741.419 | N117: =SUM(N101:N116) -> -8586292.054 | O117: =SUM(O101:O116) -> -125092.0044 | P117: =SUM(P101:P116) -> -10530337.36
B119: 304 | C119: VALOR DA FROTA | E119: Ano
C120: Saldo inicial | E120: =+E116 -> 0 | L120: 0 | M120: 0 | N120: 0 | O120: 0 | P120: =SUM(L120:O120) -> 0
C121: Aquisições | E121: =+E120 -> 0 | L121: 0 | M121: 0 | N121: 0 | O121: 0 | P121: =SUM(L121:O121) -> 0
C122: Baixa | E122: =+E121 -> 0 | L122: 0 | M122: 0 | N122: 0 | O122: 0 | P122: =SUM(L122:O122) -> 0
C123: Saldo final | E123: 0 | L123: =+L98 -> 246606.88 | M123: =+M98 -> 3775152.92 | N123: =+N98 -> 21200721.12 | O123: =+O98 -> 347477.79 | P123: =SUM(L123:O123) -> 25569958.71
E124: 0
B125: 305 | C125: DEPRECIAÇÃO ACUMULADA | E125: 0
C126: Saldo inicial | E126: 0 | L126: =+L103 -> 0 | M126: =+M103 -> -114602.8565 | N126: =+N103 -> -636021.6336 | O126: =+O103 -> 0 | P126: =SUM(L126:O126) -> -750624.4901
C127: Depreciação do Ano | E127: 0 | L127: =+L35 -> 0 | M127: 0 | N127: 0 | O127: 0 | P127: =SUM(L127:O127) -> 0
C128: Baixa Depreciação | E128: 0 | L128: 0 | M128: =+M125+M126+M127 -> -114602.8565 | N128: =+N125+N126+N127 -> -636021.6336 | O128: =+O125+O126+O127 -> 0 | P128: =SUM(L128:O128) -> -750624.4901
C129: Saldo final da Depreciação | E129: 0 | L129: =+L117 -> -157211.886 | M129: =+M117 -> -1661741.419 | N129: =+N117 -> -8586292.054 | O129: =+O117 -> -125092.0044 | P129: =SUM(L129:O129) -> -10530337.36
E130: 0
B131: 306 | C131: VALOR LIQUIDO | E131: 0 | L131: =+L123+L129 -> 89394.994 | M131: =+M123+M129 -> 2113411.501 | N131: =+N123+N129 -> 12614429.07 | O131: =+O123+O129 -> 222385.7856 | P131: =SUM(L131:O131) -> 15039621.35
B133: FROTA DO ANO | E133: 1 | J133: =+E133*1000 -> 1000 | L133: Micro Onibus | M133: Leve | N133: Pesado | O133: Articulado | P133: Total
J134: =+J133+1 -> 1001
B135: 311 | C135: Distribuição da Frota por Ano | D135: Anos | E135: =+E133 -> 1 | J135: =+J134+1 -> 1002
B136: =+B135*100+E136 -> 31101 | C136: 0 a 1 ano | D136: 0 | E136: =+E135 -> 1 | G136: DR_FROTA | H136: 608 | J136: =+J135+1 -> 1003 | L136: =+DR_Frota!P18 -> 0 | M136: =+DR_Frota!P38 -> 0 | N136: =+DR_Frota!P58 -> 0 | O136: =+DR_Frota!P78 -> 0 | P136: =SUM(L136:O136) -> 0 | R136: =IF($D136>R$18-1,L136,0) -> 0 | S136: =IF($D136>S$18-1,M136,0) -> 0 | T136: =IF($D136>T$18-1,N136,0) -> 0 | U136: =IF($D136>U$18-1,O136,0) -> 0 | V136: =SUM(R136:U136) -> 0
B137: =+B136 -> 31101 | C137: 1 a 2 anos | D137: =+D136+1 -> 1 | E137: =+E136 -> 1 | G137: DR_FROTA | H137: 608 | J137: =+J136+1 -> 1004 | L137: =+DR_Frota!P19 -> 0 | M137: =+DR_Frota!P39 -> 0 | N137: =+DR_Frota!P59 -> 0 | O137: =+DR_Frota!P79 -> 0 | P137: =SUM(L137:O137) -> 0 | R137: 0 | S137: 0 | T137: 0 | U137: 0 | V137: =SUM(R137:U137) -> 0
B138: =+B137 -> 31101 | C138: 2 a 3 anos | D138: =+D137+1 -> 2 | E138: =+E137 -> 1 | G138: DR_FROTA | H138: 608 | J138: 1005 | L138: =+DR_Frota!P20 -> 0 | M138: =+DR_Frota!P40 -> 2 | N138: =+DR_Frota!P60 -> 12 | O138: =+DR_Frota!P80 -> 0 | P138: 14 | R138: 0 | S138: 0 | T138: 0 | U138: 0 | V138: 0
B139: 31101 | C139: 3 a 4 anos | D139: 3 | E139: 1 | G139: DR_FROTA | H139: 608 | J139: 1006 | L139: =+DR_Frota!P21 -> 0 | M139: =+DR_Frota!P41 -> 3 | N139: =+DR_Frota!P61 -> 12 | O139: =+DR_Frota!P81 -> 0 | P139: 15 | R139: 0 | S139: 0 | T139: 0 | U139: 0 | V139: 0
B140: 31101 | C140: 4 a 5 anos | D140: 4 | E140: 1 | G140: DR_FROTA | H140: 608 | J140: 1007 | L140: =+DR_Frota!P22 -> 0 | M140: =+DR_Frota!P42 -> 3 | N140: =+DR_Frota!P62 -> 12 | O140: =+DR_Frota!P82 -> 1 | P140: 16 | R140: 0 | S140: 0 | T140: 0 | U140: 0 | V140: 0
B141: 31101 | C141: 5 a 6 anos | D141: 5 | E141: 1 | G141: DR_FROTA | H141: 608 | J141: 1008 | L141: =+DR_Frota!P23 -> 0 | M141: =+DR_Frota!P43 -> 3 | N141: =+DR_Frota!P63 -> 12 | O141: =+DR_Frota!P83 -> 0 | P141: 15 | R141: 0 | S141: 0 | T141: 0 | U141: 0 | V141: 0
B142: 31101 | C142: 6 a 7 anos | D142: 6 | E142: 1 | G142: DR_FROTA | H142: 608 | J142: 1009 | L142: =+DR_Frota!P24 -> 1 | M142: =+DR_Frota!P44 -> 3 | N142: =+DR_Frota!P64 -> 12 | O142: =+DR_Frota!P84 -> 0 | P142: 16 | R142: 0 | S142: 0 | T142: 0 | U142: 0 | V142: 0
B143: 31101 | C143: 7 a 8 anos | D143: 7 | E143: 1 | G143: DR_FROTA | H143: 608 | J143: 1010 | L143: =+DR_Frota!P25 -> 0 | M143: =+DR_Frota!P45 -> 0 | N143: =+DR_Frota!P65 -> 12 | O143: =+DR_Frota!P85 -> 0 | P143: 12 | R143: 0 | S143: 0 | T143: 0 | U143: 0 | V143: 0
B144: 31101 | C144: 8 a 9 anos | D144: 8 | E144: 1 | G144: DR_FROTA | H144: 608 | J144: 1011 | L144: =+DR_Frota!P26 -> 0 | M144: =+DR_Frota!P46 -> 0 | N144: =+DR_Frota!P66 -> 0 | O144: =+DR_Frota!P86 -> 0 | P144: 0 | R144: 0 | S144: 0 | T144: 0 | U144: 0 | V144: 0
B145: 31101 | C145: 9 a 10 anos | D145: 9 | E145: 1 | G145: DR_FROTA | H145: 608 | J145: 1012 | L145: =+DR_Frota!P27 -> 0 | M145: =+DR_Frota!P47 -> 0 | N145: =+DR_Frota!P67 -> 0 | O145: =+DR_Frota!P87 -> 0 | P145: 0 | R145: 0 | S145: 0 | T145: 0 | U145: 0 | V145: 0
B146: 31101 | C146: 10 a 11 anos | D146: 10 | E146: 1 | G146: DR_FROTA | H146: 608 | J146: 1013 | L146: =+DR_Frota!P28 -> 0 | M146: =+DR_Frota!P48 -> 0 | N146: =+DR_Frota!P68 -> 0 | O146: =+DR_Frota!P88 -> 0 | P146: 0 | R146: 0 | S146: 0 | T146: 0 | U146: 0 | V146: 0
B147: 31101 | C147: 11 a 12 anos | D147: 11 | E147: 1 | G147: DR_FROTA | H147: 608 | J147: 1014 | L147: =+DR_Frota!P29 -> 0 | M147: =+DR_Frota!P49 -> 0 | N147: =+DR_Frota!P69 -> 0 | O147: =+DR_Frota!P89 -> 0 | P147: 0 | R147: 0 | S147: 0 | T147: 0 | U147: 0 | V147: 0
B148: 31101 | C148: 12 a 13 anos | D148: 12 | E148: 1 | G148: DR_FROTA | H148: 608 | J148: 1015 | L148: =+DR_Frota!P30 -> 0 | M148: =+DR_Frota!P50 -> 0 | N148: =+DR_Frota!P70 -> 0 | O148: =+DR_Frota!P90 -> 0 | P148: 0 | R148: 0 | S148: 0 | T148: 0 | U148: 0 | V148: 0
B149: 31101 | C149: 13 a 14 anos | D149: 13 | E149: 1 | G149: DR_FROTA | H149: 608 | J149: 1016 | L149: =+DR_Frota!P31 -> 0 | M149: =+DR_Frota!P51 -> 0 | N149: =+DR_Frota!P71 -> 0 | O149: =+DR_Frota!P91 -> 0 | P149: 0 | R149: 0 | S149: 0 | T149: 0 | U149: 0 | V149: 0
B150: 31101 | C150: 14 a 15 anos | D150: 14 | E150: 1 | G150: DR_FROTA | H150: 608 | J150: 1017 | L150: =+DR_Frota!P32 -> 0 | M150: =+DR_Frota!P52 -> 0 | N150: =+DR_Frota!P72 -> 0 | O150: =+DR_Frota!P92 -> 0 | P150: 0 | R150: 0 | S150: 0 | T150: 0 | U150: 0 | V150: 0
B151: 31101 | C151: + de 15 anos | D151: 15 | E151: 1 | G151: DR_FROTA | H151: 608 | J151: 1018 | L151: =+DR_Frota!P33 -> 0 | M151: =+DR_Frota!P53 -> 0 | N151: =+DR_Frota!P73 -> 0 | O151: =+DR_Frota!P93 -> 0 | P151: 0 | R151: 0 | S151: 0 | T151: 0 | U151: 0 | V151: 0
C152: TOTAL | H152: = | J152: 1019 | L152: =SUM(L136:L151) -> 1 | M152: =SUM(M136:M151) -> 14 | N152: =SUM(N136:N151) -> 72 | O152: =SUM(O136:O151) -> 1 | P152: =SUM(L152:O152) -> 88 | R152: =SUM(R136:R151) -> 0 | S152: =SUM(S136:S151) -> 0 | T152: =SUM(T136:T151) -> 0 | U152: =SUM(U136:U151) -> 0 | V152: 0
C153: Idade Total dos Veiculos (anos) | G153: Produto = Quantidade x Ano | H153: = | J153: 1020 | L153: =SUMPRODUCT($D136:$D151,L136:L151) -> 6 | M153: =SUMPRODUCT($D136:$D151,M136:M151) -> 58 | N153: =SUMPRODUCT($D136:$D151,N136:N151) -> 324 | O153: =SUMPRODUCT($D136:$D151,O136:O151) -> 4 | P153: =SUM(L153:O153) -> 392
C154: Idade Média dos Veiculos (anos) | H154: = | J154: 1021 | L154: =+L153/L152 -> 6 | M154: =+M153/M152 -> 4.142857143 | N154: =+N153/N152 -> 4.5 | O154: =+O153/O152 -> 4 | P154: =+P153/P152 -> 4.454545455
J155: 1022
B156: 312 | C156: Valor da Frota | D156: Anos | J156: 1023
B157: =+B156*100+E157 -> 31201 | C157: 0 a 1 ano | D157: 0 | E157: =+E151 -> 1 | H157: = | J157: 1024 | L157: =+L$16*L136 -> 0 | M157: 0 | N157: 0 | O157: 0 | P157: =SUM(L157:O157) -> 0
B158: =+B157 -> 31201 | C158: 1 a 2 anos | D158: =+D157+1 -> 1 | E158: =+E157 -> 1 | H158: = | J158: 1025 | L158: 0 | M158: 0 | N158: 0 | O158: 0 | P158: =SUM(L158:O158) -> 0
B159: =+B158 -> 31201 | C159: 2 a 3 anos | D159: =+D158+1 -> 2 | E159: =+E158 -> 1 | H159: = | J159: 1026 | L159: =+L$16*L138 -> 0 | M159: 539307.56 | N159: 3533453.52 | O159: 0 | P159: =SUM(L159:O159) -> 4072761.08
B160: 31201 | C160: 3 a 4 anos | D160: 3 | E160: 1 | H160: = | J160: 1027 | L160: 0 | M160: 808961.34 | N160: 3533453.52 | O160: 0 | P160: 4342414.86
B161: 31201 | C161: 4 a 5 anos | D161: 4 | E161: 1 | H161: = | J161: 1028 | L161: 0 | M161: 808961.34 | N161: 3533453.52 | O161: 347477.79 | P161: 4689892.65
B162: 31201 | C162: 5 a 6 anos | D162: 5 | E162: 1 | H162: = | J162: 1029 | L162: 0 | M162: 808961.34 | N162: 3533453.52 | O162: 0 | P162: 4342414.86
B163: 31201 | C163: 6 a 7 anos | D163: 6 | E163: 1 | H163: = | J163: 1030 | L163: 246606.88 | M163: 808961.34 | N163: 3533453.52 | O163: 0 | P163: 4589021.74
B164: 31201 | C164: 7 a 8 anos | D164: 7 | E164: 1 | H164: = | J164: 1031 | L164: 0 | M164: 0 | N164: 3533453.52 | O164: 0 | P164: 3533453.52
B165: 31201 | C165: 8 a 9 anos | D165: 8 | E165: 1 | H165: = | J165: 1032 | L165: 0 | M165: 0 | N165: 0 | O165: 0 | P165: 0
B166: 31201 | C166: 9 a 10 anos | D166: 9 | E166: 1 | H166: = | J166: 1033 | L166: 0 | M166: 0 | N166: 0 | O166: 0 | P166: 0
B167: 31201 | C167: 10 a 11 anos | D167: 10 | E167: 1 | H167: = | J167: 1034 | L167: 0 | M167: 0 | N167: 0 | O167: 0 | P167: 0
B168: 31201 | C168: 11 a 12 anos | D168: 11 | E168: 1 | H168: = | J168: 1035 | L168: 0 | M168: 0 | N168: 0 | O168: 0 | P168: 0
B169: 31201 | C169: 12 a 13 anos | D169: 12 | E169: 1 | H169: = | J169: 1036 | L169: 0 | M169: 0 | N169: 0 | O169: 0 | P169: 0
B170: 31201 | C170: 13 a 14 anos | D170: 13 | E170: 1 | H170: = | J170: 1037 | L170: 0 | M170: 0 | N170: 0 | O170: 0 | P170: 0
B171: 31201 | C171: 14 a 15 anos | D171: 14 | E171: 1 | H171: = | J171: 1038 | L171: 0 | M171: 0 | N171: 0 | O171: 0 | P171: 0
B172: 31201 | C172: + de 15 anos | D172: 15 | E172: 1 | H172: = | J172: 1039 | L172: 0 | M172: 0 | N172: 0 | O172: 0 | P172: 0
C173: TOTAL | H173: = | J173: 1040 | L173: =SUM(L157:L172) -> 246606.88 | M173: =SUM(M157:M172) -> 3775152.92 | N173: =SUM(N157:N172) -> 21200721.12 | O173: =SUM(O157:O172) -> 347477.79 | P173: =SUM(P157:P172) -> 25569958.71
J174: 1041
B175: 313 | C175: Depreciação do Ano | D175: Anos | J175: 1042
B176: =+B175*100+E176 -> 31301 | C176: 0 a 1 ano | D176: 0 | E176: =+E170 -> 1 | H176: = | J176: 1043 | L176: =+L157*-L$25 -> 0 | M176: =+M157*-M$25 -> 0 | N176: =+N157*-N$25 -> 0 | O176: =+O157*-O$25 -> 0 | P176: =SUM(L176:O176) -> 0
B177: =+B176 -> 31301 | C177: 1 a 2 anos | D177: =+D176+1 -> 1 | E177: =+E176 -> 1 | H177: = | J177: 1044 | L177: =+L158*-L$26 -> 0 | M177: =+M158*-M$26 -> 0 | N177: =+N158*-N$26 -> 0 | O177: =+O158*-O$26 -> 0 | P177: =SUM(L177:O177) -> 0
B178: =+B177 -> 31301 | C178: 2 a 3 anos | D178: =+D177+1 -> 2 | E178: =+E177 -> 1 | H178: = | J178: 1045 | L178: =+L159*-L$27 -> 0 | M178: =+M159*-M$27 -> -57301.42825 | N178: =+N159*-N$27 -> -318010.8168 | O178: =+O159*-O$27 -> 0 | P178: -375312.2451
B179: 31301 | C179: 3 a 4 anos | D179: 3 | E179: 1 | H179: = | J179: 1046 | L179: =+L160*-L$28 -> 0 | M179: =+M160*-M$28 -> -85952.14238 | N179: =+N160*-N$28 -> -318010.8168 | O179: =+O160*-O$28 -> 0 | P179: -403962.9592
B180: 31301 | C180: 4 a 5 anos | D180: 4 | E180: 1 | H180: = | J180: 1047 | L180: =+L161*-L$29 -> 0 | M180: =+M161*-M$29 -> -85952.14238 | N180: =+N161*-N$29 -> -318010.8168 | O180: =+O161*-O$29 -> -31273.0011 | P180: -435235.9603
B181: 31301 | C181: 5 a 6 anos | D181: 5 | E181: 1 | H181: = | J181: 1048 | L181: =+L162*-L$30 -> 0 | M181: =+M162*-M$30 -> -85952.14238 | N181: =+N162*-N$30 -> -318010.8168 | O181: =+O162*-O$30 -> 0 | P181: -403962.9592
B182: 31301 | C182: 6 a 7 anos | D182: 6 | E182: 1 | H182: = | J182: 1049 | L182: =+L163*-L$31 -> -26201.981 | M182: =+M163*-M$31 -> -85952.14237 | N182: =+N163*-N$31 -> -318010.8168 | O182: =+O163*-O$31 -> 0 | P182: -430164.9402
B183: 31301 | C183: 7 a 8 anos | D183: 7 | E183: 1 | H183: = | J183: 1050 | L183: =+L164*-L$32 -> 0 | M183: =+M164*-M$32 -> 0 | N183: =+N164*-N$32 -> -318010.8168 | O183: =+O164*-O$32 -> 0 | P183: -318010.8168
B184: 31301 | C184: 8 a 9 anos | D184: 8 | E184: 1 | H184: = | J184: 1051 | L184: =+L165*-L$33 -> 0 | M184: =+M165*-M$33 -> 0 | N184: =+N165*-N$33 -> 0 | O184: =+O165*-O$33 -> 0 | P184: 0
B185: 31301 | C185: 9 a 10 anos | D185: 9 | E185: 1 | H185: = | J185: 1052 | L185: =+L166*-L$34 -> 0 | M185: =+M166*-M$34 -> 0 | N185: =+N166*-N$34 -> 0 | O185: =+O166*-O$34 -> 0 | P185: 0
B186: 31301 | C186: 10 a 11 anos | D186: 10 | E186: 1 | H186: = | J186: 1053 | L186: =+L167*-L$35 -> 0 | M186: =+M167*-M$35 -> 0 | N186: =+N167*-N$35 -> 0 | O186: =+O167*-O$35 -> 0 | P186: 0
B187: 31301 | C187: 11 a 12 anos | D187: 11 | E187: 1 | H187: = | J187: 1054 | L187: =+L168*-L$36 -> 0 | M187: =+M168*-M$36 -> 0 | N187: =+N168*-N$36 -> 0 | O187: =+O168*-O$36 -> 0 | P187: 0
B188: 31301 | C188: 12 a 13 anos | D188: 12 | E188: 1 | H188: = | J188: 1055 | L188: =+L169*-L$37 -> 0 | M188: =+M169*-M$37 -> 0 | N188: =+N169*-N$37 -> 0 | O188: =+O169*-O$37 -> 0 | P188: 0
B189: 31301 | C189: 13 a 14 anos | D189: 13 | E189: 1 | H189: = | J189: 1056 | L189: =+L170*-L$38 -> 0 | M189: =+M170*-M$38 -> 0 | N189: =+N170*-N$38 -> 0 | O189: =+O170*-O$38 -> 0 | P189: 0
B190: 31301 | C190: 14 a 15 anos | D190: 14 | E190: 1 | H190: = | J190: 1057 | L190: =+L171*-L$39 -> 0 | M190: =+M171*-M$39 -> 0 | N190: =+N171*-N$39 -> 0 | O190: =+O171*-O$39 -> 0 | P190: 0
B191: 31301 | C191: + de 15 anos | D191: 15 | E191: 1 | H191: = | J191: 1058 | L191: =+L172*-L$40 -> 0 | M191: =+M172*-M$40 -> 0 | N191: =+N172*-N$40 -> 0 | O191: =+O172*-O$40 -> 0 | P191: 0
C192: TOTAL | H192: = | J192: 1059 | L192: =SUM(L176:L191) -> -26201.981 | M192: =SUM(M176:M191) -> -401109.9978 | N192: =SUM(N176:N191) -> -1908064.901 | O192: =SUM(O176:O191) -> -31273.0011 | P192: =SUM(P176:P191) -> -2366649.881
J193: 1060
B194: 314 | C194: Depreciação Acumulada | D194: Anos | J194: 1061
B195: =+B194*100+E195 -> 31401 | C195: 0 a 1 ano | D195: 0 | E195: =+E172 -> 1 | H195: = | J195: 1062 | L195: =+L157*-L$62 -> 0 | M195: =+M157*-M$62 -> 0 | N195: =+N157*-N$62 -> 0 | O195: =+O157*-O$62 -> 0 | P195: =SUM(L195:O195) -> 0
B196: =+B195 -> 31401 | C196: 1 a 2 anos | D196: =+D195+1 -> 1 | E196: =+E195 -> 1 | H196: = | J196: 1063 | L196: =+L158*-L$63 -> 0 | M196: =+M158*-M$63 -> 0 | N196: =+N158*-N$63 -> 0 | O196: =+O158*-O$63 -> 0 | P196: =SUM(L196:O196) -> 0
B197: =+B196 -> 31401 | C197: 2 a 3 anos | D197: =+D196+1 -> 2 | E197: =+E196 -> 1 | H197: = | J197: 1064 | L197: =+L159*-L$64 -> 0 | M197: =+M159*-M$64 -> -171904.2847 | N197: =+N159*-N$64 -> -954032.4504 | O197: =+O159*-O$64 -> 0 | P197: -1125936.735
B198: 31401 | C198: 3 a 4 anos | D198: 3 | E198: 1 | H198: = | J198: 1065 | L198: =+L160*-L$65 -> 0 | M198: =+M160*-M$65 -> -343808.5695 | N198: =+N160*-N$65 -> -1272043.267 | O198: =+O160*-O$65 -> 0 | P198: -1615851.837
B199: 31401 | C199: 4 a 5 anos | D199: 4 | E199: 1 | H199: = | J199: 1066 | L199: =+L161*-L$66 -> 0 | M199: =+M161*-M$66 -> -429760.7119 | N199: =+N161*-N$66 -> -1590054.084 | O199: =+O161*-O$66 -> -156365.0055 | P199: -2176179.801
B200: 31401 | C200: 5 a 6 anos | D200: 5 | E200: 1 | H200: = | J200: 1067 | L200: =+L162*-L$67 -> 0 | M200: =+M162*-M$67 -> -515712.8543 | N200: =+N162*-N$67 -> -1908064.901 | O200: =+O162*-O$67 -> 0 | P200: -2423777.755
B201: 31401 | C201: 6 a 7 anos | D201: 6 | E201: 1 | H201: = | J201: =+J200+1 -> 1068 | L201: =+L163*-L$68 -> -183413.867 | M201: =+M163*-M$68 -> -601664.9966 | N201: =+N163*-N$68 -> -2226075.718 | O201: =+O163*-O$68 -> 0 | P201: -3011154.581
B202: 31401 | C202: 7 a 8 anos | D202: 7 | E202: 1 | H202: = | J202: 1069 | L202: =+L164*-L$69 -> 0 | M202: =+M164*-M$69 -> 0 | N202: =+N164*-N$69 -> -2544086.534 | O202: =+O164*-O$69 -> 0 | P202: -2544086.534
B203: 31401 | C203: 8 a 9 anos | D203: 8 | E203: 1 | H203: = | J203: 1070 | L203: =+L165*-L$70 -> 0 | M203: =+M165*-M$70 -> 0 | N203: =+N165*-N$70 -> 0 | O203: =+O165*-O$70 -> 0 | P203: 0
B204: 31401 | C204: 9 a 10 anos | D204: 9 | E204: 1 | H204: = | J204: 1071 | L204: =+L166*-L$71 -> 0 | M204: =+M166*-M$71 -> 0 | N204: =+N166*-N$71 -> 0 | O204: =+O166*-O$71 -> 0 | P204: 0
B205: 31401 | C205: 10 a 11 anos | D205: 10 | E205: 1 | H205: = | J205: 1072 | L205: =+L167*-L$72 -> 0 | M205: =+M167*-M$72 -> 0 | N205: =+N167*-N$72 -> 0 | O205: =+O167*-O$72 -> 0 | P205: 0
B206: 31401 | C206: 11 a 12 anos | D206: 11 | E206: 1 | H206: = | J206: 1073 | L206: =+L168*-L$73 -> 0 | M206: =+M168*-M$73 -> 0 | N206: =+N168*-N$73 -> 0 | O206: =+O168*-O$73 -> 0 | P206: 0
B207: 31401 | C207: 12 a 13 anos | D207: 12 | E207: 1 | H207: = | J207: 1074 | L207: =+L169*-L$74 -> 0 | M207: =+M169*-M$74 -> 0 | N207: =+N169*-N$74 -> 0 | O207: =+O169*-O$74 -> 0 | P207: 0
B208: 31401 | C208: 13 a 14 anos | D208: 13 | E208: 1 | H208: = | J208: 1075 | L208: =+L170*-L$75 -> 0 | M208: =+M170*-M$75 -> 0 | N208: =+N170*-N$75 -> 0 | O208: =+O170*-O$75 -> 0 | P208: 0
B209: 31401 | C209: 14 a 15 anos | D209: 14 | E209: 1 | H209: = | J209: 1076 | L209: =+L171*-L$76 -> 0 | M209: =+M171*-M$76 -> 0 | N209: =+N171*-N$76 -> 0 | O209: =+O171*-O$76 -> 0 | P209: 0
B210: 31401 | C210: + de 15 anos | D210: 15 | E210: 1 | H210: = | J210: 1077 | L210: =+L172*-L$77 -> 0 | M210: =+M172*-M$77 -> 0 | N210: =+N172*-N$77 -> 0 | O210: =+O172*-O$77 -> 0 | P210: 0
C211: TOTAL | H211: = | J211: 1078 | L211: =SUM(L195:L210) -> -183413.867 | M211: =SUM(M195:M210) -> -2062851.417 | N211: =SUM(N195:N210) -> -10494356.95 | O211: =SUM(O195:O210) -> -156365.0055 | P211: =SUM(P195:P210) -> -12896987.24
J212: 1079
B213: 315 | C213: VALOR DA FROTA | E213: Ano | J213: 1080
B214: =+B213*100+E214 -> 31501 | C214: Saldo inicial | E214: =+E210 -> 1 | J214: 1081 | L214: =+L123 -> 246606.88 | M214: =+M123 -> 3775152.92 | N214: =+N123 -> 21200721.12 | O214: =+O123 -> 347477.79 | P214: =SUM(L214:O214) -> 25569958.71
B215: =+B214 -> 31501 | C215: Aquisições | E215: =+E214 -> 1 | J215: 1082 | L215: 0 | M215: 0 | N215: 0 | O215: 0 | P215: =SUM(L215:O215) -> 0
B216: =+B215 -> 31501 | C216: Baixa | E216: =+E215 -> 1 | J216: 1083 | L216: =-L214-L215+L217 -> 0 | M216: =-M214-M215+M217 -> 0 | N216: =-N214-N215+N217 -> 0 | O216: =-O214-O215+O217 -> 0 | P216: =SUM(L216:O216) -> 0
B217: =+B216 -> 31501 | C217: Saldo final | E217: 1 | J217: 1084 | L217: =+L173 -> 246606.88 | M217: =+M173 -> 3775152.92 | N217: =+N173 -> 21200721.12 | O217: =+O173 -> 347477.79 | P217: =SUM(L217:O217) -> 25569958.71
... 1962 more rows

Sheet FxCxa
C2: Fluxo_Caixa | J2: =+AD125 -> 0
C3: =+Titulo_01 -> PREFEITURA MUNICIPAL DE CHAPECO
C4: =+Titulo_02 -> SECRETARIA DE DEFESA DO CIDADÃO
C5: =+Titulo_03 -> SISTEMA DE TRANSPORTE PÚBLICO DE PASSAGEIROS
C7: RESULTADO ECONOMICO E FLUXO DE CAIXA
C8: =CONCATENATE(+Calculo!$D$9," - ",+Calculo!$E$17) -> Cenário - Prefeitura Chapecó - Base Edital - Proposta | G8: =+Apura!AB12 -> Cenário 02
C10: ITEM | D10: DISCRIMINAÇÃO | G10: REFERÊNCIA | J10: 2018 | K10: =+J10+1 -> 2019 | L10: 2020 | M10: 2021 | N10: 2022 | O10: 2023 | P10: 2024 | Q10: 2025 | R10: 2026 | S10: 2027 | T10: 2028 | U10: 2029 | V10: 2030 | W10: =+V10+1 -> 2031 | X10: =+W10+1 -> 2032 | Y10: 2033 | Z10: 2034 | AA10: =+Z10+1 -> 2035 | AB10: 2036 | AC10: 2037 | AD10: TOTAL
J11: 1 | K11: =+J11+1 -> 2 | L11: 3 | M11: 4 | N11: 5 | O11: 6 | P11: 7 | Q11: 8 | R11: 9 | S11: 10 | T11: 11 | U11: 12 | V11: 13 | W11: =+V11+1 -> 14 | X11: =+W11+1 -> 15 | Y11: 16 | Z11: 17 | AA11: =+Z11+1 -> 18 | AB11: 19 | AC11: 20
B12: DRE | C12: RESULTADO ECONÔMICO
B13: DRE
B14: DRE | C14: 100 | D14: RECEITAS | H14: = | J14: =+J16+J23 -> 26929354.8 | K14: =+K16+K23 -> 26929354.8 | L14: 26929354.8 | M14: 26929354.8 | N14: 26929354.8 | O14: 26929354.8 | P14: 26929354.8 | Q14: 26929354.8 | R14: 26929354.8 | S14: 26929354.8 | T14: 26929354.8 | U14: 26929354.8 | V14: 26929354.8 | W14: 26929354.8 | X14: 26929354.8 | Y14: 26929354.8 | Z14: 26929354.8 | AA14: 26929354.8 | AB14: 26929354.8 | AC14: 26929354.8 | AD14: 538587096
B15: DRE
B16: DRE | C16: 101 | D16: Receita de Tarifa | H16: = | J16: =+J18*J21 -> 26823754.8 | K16: =+K18*K21 -> 26823754.8 | L16: 26823754.8 | M16: 26823754.8 | N16: 26823754.8 | O16: 26823754.8 | P16: 26823754.8 | Q16: 26823754.8 | R16: 26823754.8 | S16: 26823754.8 | T16: 26823754.8 | U16: 26823754.8 | V16: 26823754.8 | W16: 26823754.8 | X16: 26823754.8 | Y16: 26823754.8 | Z16: 26823754.8 | AA16: 26823754.8 | AB16: 26823754.8 | AC16: 26823754.8 | AD16: =SUM(J16:AC16) -> 536475096
B17: DRE
B18: DRE | D18: Número de Passageiros Equivalentes | E18: A | J18: =+J19*12 -> 9001260 | K18: =+J18 -> 9001260 | L18: =+K18 -> 9001260 | M18: 9001260 | N18: 9001260 | O18: 9001260 | P18: 9001260 | Q18: 9001260 | R18: 9001260 | S18: 9001260 | T18: 9001260 | U18: 9001260 | V18: 9001260 | W18: =+V18 -> 9001260 | X18: =+W18 -> 9001260 | Y18: 9001260 | Z18: 9001260 | AA18: =+Z18 -> 9001260 | AB18: 9001260 | AC18: 9001260 | AD18: =SUM(J18:AC18) -> 180025200
B19: DRE | D19: Número de Passageiros Equivalentes | E19: M | G19: APURA | H19: =+Apura!I58 -> A58 | J19: =+Apura!AB58 -> 750105
B20: DRE
B21: DRE | D21: Nova Tarifa | G21: APURA | H21: =+Apura!I44 -> A44 | J21: =+Apura!AB44 -> 2.98 | K21: =+J21 -> 2.98 | L21: =+K21 -> 2.98 | M21: =+L21 -> 2.98 | N21: =+M21 -> 2.98 | O21: 2.98 | P21: 2.98 | Q21: 2.98 | R21: 2.98 | S21: 2.98 | T21: 2.98 | U21: 2.98 | V21: 2.98 | W21: =+V21 -> 2.98 | X21: =+W21 -> 2.98 | Y21: 2.98 | Z21: 2.98 | AA21: =+Z21 -> 2.98 | AB21: 2.98 | AC21: =+AB21 -> 2.98
B22: DRE
B23: DRE | C23: 102 | D23: Receitas Complementares | G23: APURA | H23: =+Apura!I353 -> A353 | J23: =-Apura!AB353*12 -> 105600 | K23: =+$J23 -> 105600 | L23: =+$J23 -> 105600 | M23: =+$J23 -> 105600 | N23: 105600 | O23: 105600 | P23: 105600 | Q23: 105600 | R23: 105600 | S23: 105600 | T23: 105600 | U23: 105600 | V23: 105600 | W23: 105600 | X23: 105600 | Y23: 105600 | Z23: 105600 | AA23: 105600 | AB23: 105600 | AC23: 105600 | AD23: =SUM(J23:AC23) -> 2112000
B24: DRE
B25: DRE | C25: 200 | D25: IMPOSTOS SOBRE VENDA | J25: =+J29 -> -538587.096 | K25: =+K29 -> -538587.096 | L25: -538587.096 | M25: -538587.096 | N25: -538587.096 | O25: -538587.096 | P25: -538587.096 | Q25: -538587.096 | R25: -538587.096 | S25: -538587.096 | T25: -538587.096 | U25: -538587.096 | V25: -538587.096 | W25: -538587.096 | X25: -538587.096 | Y25: -538587.096 | Z25: -538587.096 | AA25: -538587.096 | AB25: -538587.096 | AC25: -538587.096 | AD25: -10771741.92
B26: DRE
B27: DRE | C27: 201 | D27: Impostos sobre Vendas
B28: DRE | D28: % de Pis/Cofins e Contrib Previd s/receita | G28: Consumo | H28: =+Consumo!I373 -> B373 | J28: =+Apura!AB382 -> 0.02 | K28: =+J28 -> 0.02 | L28: =+K28 -> 0.02 | M28: 0.02 | N28: 0.02 | O28: 0.02 | P28: 0.02 | Q28: 0.02 | R28: 0.02 | S28: 0.02 | T28: 0.02 | U28: 0.02 | V28: 0.02 | W28: =+V28 -> 0.02 | X28: =+W28 -> 0.02 | Y28: 0.02 | Z28: 0.02 | AA28: =+Z28 -> 0.02 | AB28: 0.02 | AC28: 0.02
B29: DRE | D29: Valor de Pis/Cofins e INSS | J29: =-J14*J28 -> -538587.096 | K29: =-K14*K28 -> -538587.096 | L29: -538587.096 | M29: -538587.096 | N29: -538587.096 | O29: -538587.096 | P29: -538587.096 | Q29: -538587.096 | R29: -538587.096 | S29: -538587.096 | T29: -538587.096 | U29: -538587.096 | V29: -538587.096 | W29: -538587.096 | X29: -538587.096 | Y29: -538587.096 | Z29: -538587.096 | AA29: -538587.096 | AB29: -538587.096 | AC29: -538587.096 | AD29: =SUM(J29:AC29) -> -10771741.92
B30: DRE
B31: DRE | C31: 300 | D31: CUSTOS | H31: = | J31: =SUM(J37:J39) -> -19952821.48 | K31: =SUM(K37:K39) -> -19952821.48 | L31: =SUM(L37:L39) -> -19952821.48 | M31: -19952821.48 | N31: -19952821.48 | O31: -19952821.48 | P31: -19952821.48 | Q31: -19952821.48 | R31: -19952821.48 | S31: -19952821.48 | T31: -19952821.48 | U31: -19952821.48 | V31: -19952821.48 | W31: -19952821.48 | X31: -19952821.48 | Y31: -19952821.48 | Z31: -19952821.48 | AA31: -19952821.48 | AB31: -19952821.48 | AC31: -19952821.48 | AD31: =SUM(J31:AC31) -> -399056429.5
B32: DRE
B33: DRE | C33: 301 | D33: Gastos Variáveis | E33: M | G33: APURA | H33: =+Apura!C361 -> 802 | J33: =-Apura!AB361 -> -678343.8146
B34: DRE | C34: 302 | D34: Custo com Pessoal | E34: M | G34: APURA | H34: =+Apura!C367 -> 803 | J34: =-Apura!AB367 -> -845567.2117
B35: DRE | C35: 303 | D35: Despesass Administrativas | E35: M | G35: APURA | H35: =+Apura!C371 -> 804 | J35: =-Apura!AB371 -> -138824.0968
B36: DRE
B37: DRE | C37: 304 | D37: Gastos Variáveis | E37: A | H37: = | J37: =+J33*12 -> -8140125.775 | K37: =+J37 -> -8140125.775 | L37: =+K37 -> -8140125.775 | M37: -8140125.775 | N37: -8140125.775 | O37: -8140125.775 | P37: -8140125.775 | Q37: -8140125.775 | R37: -8140125.775 | S37: -8140125.775 | T37: -8140125.775 | U37: -8140125.775 | V37: -8140125.775 | W37: =+V37 -> -8140125.775 | X37: -8140125.775 | Y37: -8140125.775 | Z37: -8140125.775 | AA37: =+Z37 -> -8140125.775 | AB37: -8140125.775 | AC37: -8140125.775
B38: DRE | C38: 305 | D38: Custo com Pessoal | E38: A | H38: = | J38: =+J34*12 -> -10146806.54 | K38: =+J38 -> -10146806.54 | L38: -10146806.54 | M38: -10146806.54 | N38: -10146806.54 | O38: -10146806.54 | P38: -10146806.54 | Q38: -10146806.54 | R38: -10146806.54 | S38: -10146806.54 | T38: -10146806.54 | U38: -10146806.54 | V38: -10146806.54 | W38: -10146806.54 | X38: -10146806.54 | Y38: -10146806.54 | Z38: -10146806.54 | AA38: =+Z38 -> -10146806.54 | AB38: -10146806.54 | AC38: -10146806.54
B39: DRE | C39: 306 | D39: Despesass Administrativas | E39: A | H39: = | J39: =+J35*12 -> -1665889.162 | K39: -1665889.162 | L39: -1665889.162 | M39: -1665889.162 | N39: -1665889.162 | O39: -1665889.162 | P39: -1665889.162 | Q39: -1665889.162 | R39: -1665889.162 | S39: -1665889.162 | T39: -1665889.162 | U39: -1665889.162 | V39: -1665889.162 | W39: -1665889.162 | X39: -1665889.162 | Y39: -1665889.162 | Z39: -1665889.162 | AA39: =+Z39 -> -1665889.162 | AB39: -1665889.162 | AC39: -1665889.162
B40: DRE
B41: DRE | C41: 400 | D41: DEPRECIAÇÃO | H41: = | J41: =SUM(J43:J47) -> -2873772.781 | K41: -2873772.781 | L41: -2873772.781 | M41: -2873772.781 | N41: -2873772.781 | O41: -2873772.781 | P41: -2873772.781 | Q41: -2873772.781 | R41: -2873772.781 | S41: -2873772.781 | T41: -2873772.781 | U41: -2873772.781 | V41: -2873772.781 | W41: -2873772.781 | X41: -2873772.781 | Y41: -2873772.781 | Z41: -2873772.781 | AA41: -2873772.781 | AB41: -2873772.781 | AC41: -2873772.781 | AD41: =SUM(J41:AC41) -> -57475455.61
B42: DRE
B43: DRE | C43: 401 | D43: Depreciação da Frota | G43: Frota_FC | H43: 402 | J43: =+Renov_Frota!P2098 -> -2366649.881 | K43: =+Renov_Frota!P2099 -> -2366649.881 | L43: =+Renov_Frota!P2100 -> -2366649.881 | M43: =+Renov_Frota!P2101 -> -2366649.881 | N43: =+Renov_Frota!P2102 -> -2366649.881 | O43: =+Renov_Frota!P2103 -> -2366649.881 | P43: =+Renov_Frota!P2104 -> -2366649.881 | Q43: =+Renov_Frota!P2105 -> -2366649.881 | R43: =+Renov_Frota!P2106 -> -2366649.881 | S43: =+Renov_Frota!P2107 -> -2366649.881 | T43: =+Renov_Frota!P2108 -> -2366649.881 | U43: =+Renov_Frota!P2109 -> -2366649.881 | V43: =+Renov_Frota!P2110 -> -2366649.881 | W43: =+Renov_Frota!P2111 -> -2366649.881 | X43: =+Renov_Frota!P2112 -> -2366649.881 | Y43: =+Renov_Frota!P2113 -> -2366649.881 | Z43: =+Renov_Frota!P2114 -> -2366649.881 | AA43: =+Renov_Frota!P2115 -> -2366649.881 | AB43: =+Renov_Frota!P2116 -> -2366649.881 | AC43: =+Renov_Frota!P2117 -> -2366649.881 | AD43: =SUM(J43:AC43) -> -47332997.61
B44: DRE | C44: =+C43+1 -> 402 | D44: Depreciação de Equipamentos | G44: APURA | J44: =-Apura!AB154*12 -> -152592 | K44: =+J44 -> -152592 | L44: =+K44 -> -152592 | M44: -152592 | N44: -152592 | O44: -152592 | P44: -152592 | Q44: -152592 | R44: -152592 | S44: -152592 | T44: -152592 | U44: -152592 | V44: -152592 | W44: =+V44 -> -152592 | X44: -152592 | Y44: -152592 | Z44: -152592 | AA44: =+Z44 -> -152592 | AB44: -152592 | AC44: -152592 | AD44: =SUM(J44:AC44) -> -3051840
B45: DRE | C45: =+C44+1 -> 403 | D45: Amortização Outorga | G45: APURA | J45: =(-Apura!AB168)*12 -> -280530.9 | K45: =+J45 -> -280530.9 | L45: -280530.9 | M45: -280530.9 | N45: -280530.9 | O45: -280530.9 | P45: -280530.9 | Q45: -280530.9 | R45: -280530.9 | S45: -280530.9 | T45: -280530.9 | U45: -280530.9 | V45: -280530.9 | W45: -280530.9 | X45: -280530.9 | Y45: -280530.9 | Z45: -280530.9 | AA45: =+Z45 -> -280530.9 | AB45: -280530.9 | AC45: -280530.9 | AD45: =SUM(J45:AC45) -> -5610618
B46: DRE | C46: =+C45+1 -> 404 | D46: Depreciação de Construções | G46: APURA | J46: =(-Apura!AB167)*12 -> -65000 | K46: =+J46 -> -65000 | L46: -65000 | M46: -65000 | N46: -65000 | O46: -65000 | P46: -65000 | Q46: -65000 | R46: -65000 | S46: -65000 | T46: -65000 | U46: -65000 | V46: -65000 | W46: -65000 | X46: -65000 | Y46: -65000 | Z46: -65000 | AA46: =+Z46 -> -65000 | AB46: -65000 | AC46: -65000 | AD46: =SUM(J46:AC46) -> -1300000
B47: DRE | C47: 405 | D47: Depreciação Outros Investimentos | G47: APURA | J47: =(-Apura!AB169)*12 -> -9000 | K47: =+J47 -> -9000 | L47: =+K47 -> -9000 | M47: -9000 | N47: -9000 | O47: -9000 | P47: -9000 | Q47: -9000 | R47: -9000 | S47: -9000 | T47: -9000 | U47: -9000 | V47: -9000 | W47: -9000 | X47: -9000 | Y47: -9000 | Z47: -9000 | AA47: =+Z47 -> -9000 | AB47: -9000 | AC47: -9000 | AD47: =SUM(J47:AC47) -> -180000
B48: DRE
B49: DRE | C49: 500 | D49: RESULTADO OPERACIONAL | H49: = | J49: =+J14+J25+J31+J41 -> 3564173.447 | K49: 3564173.447 | L49: 3564173.447 | M49: 3564173.447 | N49: 3564173.447 | O49: 3564173.447 | P49: 3564173.447 | Q49: 3564173.447 | R49: 3564173.447 | S49: 3564173.447 | T49: 3564173.447 | U49: 3564173.447 | V49: 3564173.447 | W49: 3564173.447 | X49: 3564173.447 | Y49: 3564173.447 | Z49: 3564173.447 | AA49: 3564173.447 | AB49: 3564173.447 | AC49: 3564173.447 | AD49: =SUM(J49:AC49) -> 71283468.93
B50: DRE
B51: DRE | C51: 500 | D51: RESULTADO NÃO OPERACIONAL | J51: =+J53+J60 -> 0 | K51: =+K53+K60 -> 0 | L51: 0 | M51: 0 | N51: 0 | O51: 0 | P51: 0 | Q51: 0 | R51: 0 | S51: 0 | T51: 0 | U51: 0 | V51: 0 | W51: 0 | X51: 0 | Y51: 0 | Z51: 0 | AA51: 0 | AB51: 0 | AC51: 0 | AD51: =SUM(J51:AC51) -> 0
B52: DRE
B53: DRE | D53: Venda de Ativo | J53: =SUM(J54:J58) -> 0 | K53: 742025.2392 | L53: 820857.768 | M53: 621916.783 | N53: 666208.7614 | O53: 515913.1774 | P53: 313515.1574 | Q53: 323899.906 | R53: 353345.352 | S53: 0 | T53: 549959.6648 | U53: 515913.1774 | V53: 530759.7098 | W53: 462911.3746 | X53: 366516.9602 | Y53: 259119.9248 | Z53: 315066.2722 | AA53: 235563.568 | AB53: 511680.585 | AC53: =SUM(AC54:AC58) -> 19514806.25 | AD53: =SUM(AD54:AD58) -> 27619979.63
B54: DRE | D54: Renovação da frota | G54: Frota_FC | H54: 2 | J54: =+Renov_Frota!P2120 -> 0 | K54: =+Renov_Frota!P2121 -> 742025.2392 | L54: =+Renov_Frota!P2122 -> 820857.768 | M54: =+Renov_Frota!P2123 -> 621916.783 | N54: =+Renov_Frota!P2124 -> 666208.7614 | O54: =+Renov_Frota!P2125 -> 515913.1774 | P54: =+Renov_Frota!P2126 -> 313515.1574 | Q54: =+Renov_Frota!P2127 -> 323899.906 | R54: =+Renov_Frota!P2128 -> 353345.352 | S54: =+Renov_Frota!P2129 -> 0 | T54: =+Renov_Frota!P2130 -> 549959.6648 | U54: =+Renov_Frota!P2131 -> 515913.1774 | V54: =+Renov_Frota!P2132 -> 530759.7098 | W54: =+Renov_Frota!P2133 -> 462911.3746 | X54: =+Renov_Frota!P2134 -> 366516.9602 | Y54: =+Renov_Frota!P2135 -> 259119.9248 | Z54: =+Renov_Frota!P2136 -> 315066.2722 | AA54: =+Renov_Frota!P2137 -> 235563.568 | AB54: =+Renov_Frota!P2138 -> 511680.585 | AC54: =+Renov_Frota!P2139 -> 233236.8958 | AD54: =SUM(J54:AC54) -> 8338410.277
B55: DRE | D55: Valor Residual da Frota | AC55: =+Renov_Frota!P2068 -> 12961569.36 | AD55: =SUM(J55:AC55) -> 12961569.36
B56: DRE | D56: Valor Residual Terreno | AC56: =-AD106 -> 5000000 | AD56: =SUM(J56:AC56) -> 5000000
B57: DRE | D57: Valor Residual Construções | AC57: =-AD107+AD46 -> 1300000 | AD57: =SUM(J57:AC57) -> 1300000
B58: DRE | D58: Valor Residual Outros investimentos | AC58: =-AD109-AD115+AD47 -> 20000 | AD58: =SUM(J58:AC58) -> 20000
B59: DRE
B60: DRE | D60: Custo venda de Imobilizado | H60: = | J60: =-J53 -> 0 | K60: -742025.2392 | L60: -820857.768 | M60: -621916.783 | N60: -666208.7614 | O60: -515913.1774 | P60: -313515.1574 | Q60: -323899.906 | R60: -353345.352 | S60: 0 | T60: -549959.6648 | U60: -515913.1774 | V60: -530759.7098 | W60: -462911.3746 | X60: -366516.9602 | Y60: -259119.9248 | Z60: -315066.2722 | AA60: -235563.568 | AB60: -511680.585 | AC60: -19514806.25 | AD60: -27619979.63
B61: DRE
B62: DRE | C62: 600 | D62: RESULTADO ANTES IRENDA | J62: =+J49+J51 -> 3564173.447 | K62: =+K49+K51 -> 3564173.447 | L62: 3564173.447 | M62: 3564173.447 | N62: 3564173.447 | O62: 3564173.447 | P62: 3564173.447 | Q62: 3564173.447 | R62: 3564173.447 | S62: 3564173.447 | T62: 3564173.447 | U62: 3564173.447 | V62: 3564173.447 | W62: 3564173.447 | X62: 3564173.447 | Y62: 3564173.447 | Z62: 3564173.447 | AA62: 3564173.447 | AB62: 3564173.447 | AC62: 3564173.447 | AD62: =SUM(J62:AC62) -> 71283468.93
B63: DRE
B64: DRE | C64: 700 | D64: IMPOSTO DE RENDA E CONTRIB SOCIAL | J64: =SUM(J78:J80) -> -1187818.972 | K64: =SUM(K78:K80) -> -1187818.972 | L64: -1187818.972 | M64: =SUM(M78:M80) -> -1187818.972 | N64: -1187818.972 | O64: -1187818.972 | P64: -1187818.972 | Q64: -1187818.972 | R64: -1187818.972 | S64: -1187818.972 | T64: -1187818.972 | U64: -1187818.972 | V64: -1187818.972 | W64: -1187818.972 | X64: -1187818.972 | Y64: -1187818.972 | Z64: -1187818.972 | AA64: -1187818.972 | AB64: -1187818.972 | AC64: -1187818.972 | AD64: =SUM(J64:AC64) -> -23756379.44
B65: DRE
B66: DRE | C66: 701 | D66: Percentual - Impostos sobre Lucro
B67: DRE | D67: Contribuição social | J67: =+Consumo!P379 -> 0.09 | K67: 0.09 | L67: 0.09 | M67: 0.09 | N67: 0.09 | O67: 0.09 | P67: 0.09 | Q67: 0.09 | R67: 0.09 | S67: 0.09 | T67: 0.09 | U67: 0.09 | V67: 0.09 | W67: 0.09 | X67: 0.09 | Y67: 0.09 | Z67: 0.09 | AA67: 0.09 | AB67: 0.09 | AC67: 0.09
B68: DRE | D68: Imposto de Renda | J68: =+Consumo!P380 -> 0.15 | K68: 0.15 | L68: 0.15 | M68: 0.15 | N68: 0.15 | O68: 0.15 | P68: 0.15 | Q68: 0.15 | R68: 0.15 | S68: 0.15 | T68: 0.15 | U68: 0.15 | V68: 0.15 | W68: 0.15 | X68: 0.15 | Y68: 0.15 | Z68: 0.15 | AA68: 0.15 | AB68: 0.15 | AC68: 0.15
B69: DRE | D69: Adicional de Impost de Renda | J69: =+Consumo!P381 -> 0.1 | K69: 0.1 | L69: 0.1 | M69: 0.1 | N69: 0.1 | O69: 0.1 | P69: 0.1 | Q69: 0.1 | R69: 0.1 | S69: 0.1 | T69: 0.1 | U69: 0.1 | V69: 0.1 | W69: 0.1 | X69: 0.1 | Y69: 0.1 | Z69: 0.1 | AA69: 0.1 | AB69: 0.1 | AC69: 0.1
B70: DRE
B71: DRE | C71: 702 | D71: Base de Cálculo - Impostos sobre Lucro
B72: DRE | D72: Da Contribuição social | J72: =+J62 -> 3564173.447 | K72: =+K62 -> 3564173.447 | L72: 3564173.447 | M72: 3564173.447 | N72: 3564173.447 | O72: 3564173.447 | P72: 3564173.447 | Q72: 3564173.447 | R72: 3564173.447 | S72: 3564173.447 | T72: 3564173.447 | U72: 3564173.447 | V72: 3564173.447 | W72: 3564173.447 | X72: 3564173.447 | Y72: 3564173.447 | Z72: 3564173.447 | AA72: 3564173.447 | AB72: 3564173.447 | AC72: 3564173.447
B73: DRE | D73: Do Imposto de Renda | J73: =+J62 -> 3564173.447 | K73: =+K62 -> 3564173.447 | L73: 3564173.447 | M73: 3564173.447 | N73: 3564173.447 | O73: 3564173.447 | P73: 3564173.447 | Q73: 3564173.447 | R73: 3564173.447 | S73: 3564173.447 | T73: 3564173.447 | U73: 3564173.447 | V73: 3564173.447 | W73: 3564173.447 | X73: 3564173.447 | Y73: 3564173.447 | Z73: 3564173.447 | AA73: 3564173.447 | AB73: 3564173.447 | AC73: 3564173.447
B74: DRE | D74: Do Adicional de Impost de Renda | J74: =+J73-J75 -> 3324173.447 | K74: =+K73-K75 -> 3324173.447 | L74: 3324173.447 | M74: 3324173.447 | N74: 3324173.447 | O74: 3324173.447 | P74: 3324173.447 | Q74: 3324173.447 | R74: 3324173.447 | S74: 3324173.447 | T74: 3324173.447 | U74: 3324173.447 | V74: 3324173.447 | W74: 3324173.447 | X74: 3324173.447 | Y74: 3324173.447 | Z74: 3324173.447 | AA74: 3324173.447 | AB74: 3324173.447 | AC74: 3324173.447
B75: DRE | D75: Limite Adicional de Impost de Renda | J75: =+Consumo!P382 -> 240000 | K75: 240000 | L75: 240000 | M75: 240000 | N75: 240000 | O75: 240000 | P75: 240000 | Q75: 240000 | R75: 240000 | S75: 240000 | T75: 240000 | U75: 240000 | V75: 240000 | W75: 240000 | X75: 240000 | Y75: 240000 | Z75: 240000 | AA75: 240000 | AB75: 240000 | AC75: 240000
B76: DRE
B77: DRE | C77: 703 | D77: Valor Impostos sobre Lucro
B78: DRE | D78: Contribuição social | J78: =+J72*-J67 -> -320775.6102 | K78: =+K72*-K67 -> -320775.6102 | L78: -320775.6102 | M78: -320775.6102 | N78: -320775.6102 | O78: -320775.6102 | P78: -320775.6102 | Q78: -320775.6102 | R78: -320775.6102 | S78: -320775.6102 | T78: -320775.6102 | U78: -320775.6102 | V78: -320775.6102 | W78: -320775.6102 | X78: -320775.6102 | Y78: -320775.6102 | Z78: -320775.6102 | AA78: -320775.6102 | AB78: -320775.6102 | AC78: -320775.6102 | AD78: =SUM(J78:AC78) -> -6415512.204
B79: DRE | D79: Imposto de Renda | J79: =+J73*-J68 -> -534626.017 | K79: =+K73*-K68 -> -534626.017 | L79: -534626.017 | M79: -534626.017 | N79: -534626.017 | O79: -534626.017 | P79: -534626.017 | Q79: -534626.017 | R79: -534626.017 | S79: -534626.017 | T79: -534626.017 | U79: -534626.017 | V79: -534626.017 | W79: -534626.017 | X79: -534626.017 | Y79: -534626.017 | Z79: -534626.017 | AA79: -534626.017 | AB79: -534626.017 | AC79: -534626.017 | AD79: =SUM(J79:AC79) -> -10692520.34
B80: DRE | D80: Adicional de Impost de Renda | J80: =+J74*-J69 -> -332417.3447 | K80: =+K74*-K69 -> -332417.3447 | L80: -332417.3447 | M80: -332417.3447 | N80: -332417.3447 | O80: -332417.3447 | P80: -332417.3447 | Q80: -332417.3447 | R80: -332417.3447 | S80: -332417.3447 | T80: -332417.3447 | U80: -332417.3447 | V80: -332417.3447 | W80: -332417.3447 | X80: -332417.3447 | Y80: -332417.3447 | Z80: -332417.3447 | AA80: -332417.3447 | AB80: -332417.3447 | AC80: -332417.3447 | AD80: =SUM(J80:AC80) -> -6648346.893
B81: DRE
B82: DRE | C82: 700 | D82: RESULTADO ECONÔMICO LÍQUIDO | J82: =+J62+J64 -> 2376354.475 | K82: =+K62+K64 -> 2376354.475 | L82: 2376354.475 | M82: 2376354.475 | N82: 2376354.475 | O82: 2376354.475 | P82: 2376354.475 | Q82: 2376354.475 | R82: 2376354.475 | S82: 2376354.475 | T82: 2376354.475 | U82: 2376354.475 | V82: 2376354.475 | W82: 2376354.475 | X82: 2376354.475 | Y82: 2376354.475 | Z82: 2376354.475 | AA82: 2376354.475 | AB82: 2376354.475 | AC82: 2376354.475 | AD82: =SUM(J82:AC82) -> 47527089.5
B84: FC | C84: ITEM | D84: DISCRIMINAÇÃO | G84: REFERÊNCIA | J84: 2018 | K84: =+J84+1 -> 2019 | L84: 2020 | M84: 2021 | N84: 2022 | O84: 2023 | P84: 2024 | Q84: 2025 | R84: 2026 | S84: 2027 | T84: 2028 | U84: 2029 | V84: 2030 | W84: =+V84+1 -> 2031 | X84: =+W84+1 -> 2032 | Y84: 2033 | Z84: 2034 | AA84: =+Z84+1 -> 2035 | AB84: 2036 | AC84: 2037 | AD84: TOTAL
B85: FC | J85: 1 | K85: =+J85+1 -> 2 | L85: 3 | M85: 4 | N85: 5 | O85: 6 | P85: 7 | Q85: 8 | R85: 9 | S85: 10 | T85: 11 | U85: 12 | V85: 13 | W85: =+V85+1 -> 14 | X85: =+W85+1 -> 15 | Y85: 16 | Z85: 17 | AA85: =+Z85+1 -> 18 | AB85: 19 | AC85: 20
B86: FC
B87: FC | C87: FLUXO DE CAIXA
B88: FC
B89: FC | C89: 100 | D89: RECEITAS OPERACIONAL | J89: =+J91+J92 -> 26929354.8 | K89: =+K91+K92 -> 26929354.8 | L89: =+L91+L92 -> 26929354.8 | M89: 26929354.8 | N89: 26929354.8 | O89: 26929354.8 | P89: 26929354.8 | Q89: 26929354.8 | R89: 26929354.8 | S89: 26929354.8 | T89: 26929354.8 | U89: 26929354.8 | V89: 26929354.8 | W89: 26929354.8 | X89: 26929354.8 | Y89: 26929354.8 | Z89: 26929354.8 | AA89: 26929354.8 | AB89: 26929354.8 | AC89: 26929354.8 | AD89: =SUM(J89:AC89) -> 538587096
B90: FC
B91: FC | D91: Receita de Tarifa | J91: =+J16 -> 26823754.8 | K91: 26823754.8 | L91: 26823754.8 | M91: 26823754.8 | N91: 26823754.8 | O91: 26823754.8 | P91: 26823754.8 | Q91: 26823754.8 | R91: 26823754.8 | S91: 26823754.8 | T91: 26823754.8 | U91: 26823754.8 | V91: 26823754.8 | W91: 26823754.8 | X91: 26823754.8 | Y91: 26823754.8 | Z91: 26823754.8 | AA91: 26823754.8 | AB91: 26823754.8 | AC91: 26823754.8 | AD91: =SUM(J91:AC91) -> 536475096
B92: FC | D92: Receitas Complementares | J92: =+J23 -> 105600 | K92: 105600 | L92: 105600 | M92: 105600 | N92: 105600 | O92: 105600 | P92: 105600 | Q92: 105600 | R92: 105600 | S92: 105600 | T92: 105600 | U92: 105600 | V92: 105600 | W92: 105600 | X92: 105600 | Y92: 105600 | Z92: 105600 | AA92: 105600 | AB92: 105600 | AC92: 105600 | AD92: =SUM(J92:AC92) -> 2112000
B93: FC
B94: FC | C94: 200 | D94: IMPOSTOS SOBRE VENDA | J94: =+J25 -> -538587.096 | K94: -538587.096 | L94: -538587.096 | M94: -538587.096 | N94: -538587.096 | O94: -538587.096 | P94: -538587.096 | Q94: -538587.096 | R94: -538587.096 | S94: -538587.096 | T94: -538587.096 | U94: -538587.096 | V94: -538587.096 | W94: -538587.096 | X94: -538587.096 | Y94: -538587.096 | Z94: -538587.096 | AA94: -538587.096 | AB94: -538587.096 | AC94: -538587.096 | AD94: =SUM(J94:AC94) -> -10771741.92
B95: FC
B96: FC | C96: 300 | D96: CUSTOS | J96: =+J31 -> -19952821.48 | K96: -19952821.48 | L96: -19952821.48 | M96: -19952821.48 | N96: -19952821.48 | O96: -19952821.48 | P96: -19952821.48 | Q96: -19952821.48 | R96: -19952821.48 | S96: -19952821.48 | T96: -19952821.48 | U96: -19952821.48 | V96: -19952821.48 | W96: -19952821.48 | X96: -19952821.48 | Y96: -19952821.48 | Z96: -19952821.48 | AA96: -19952821.48 | AB96: -19952821.48 | AC96: -19952821.48 | AD96: =SUM(J96:AC96) -> -399056429.5
B97: FC
B98: FC | C98: 400 | D98: FLUXO DE CAIXA OPERACIONAL | J98: =+J89+J94+J96 -> 6437946.227 | K98: 6437946.227 | L98: 6437946.227 | M98: 6437946.227 | N98: 6437946.227 | O98: 6437946.227 | P98: 6437946.227 | Q98: 6437946.227 | R98: 6437946.227 | S98: 6437946.227 | T98: 6437946.227 | U98: 6437946.227 | V98: 6437946.227 | W98: 6437946.227 | X98: 6437946.227 | Y98: 6437946.227 | Z98: 6437946.227 | AA98: 6437946.227 | AB98: 6437946.227 | AC98: 6437946.227 | AD98: =SUM(J98:AC98) -> 128758924.5
B99: FC
B100: FC | C100: 500 | D100: FLUXO DE CAIXA DE INVESTIMENTOS | J100: =+J102+J111+J117 -> -29260159.35 | K100: -1908064.901 | L100: -2884800.592 | M100: -2542680.237 | N100: -2845866.049 | O100: -3264683.843 | P100: -2286973.623 | Q100: -2915099.154 | R100: -3180108.168 | S100: 0 | T100: -3576709.775 | U100: -2648683.843 | V100: -2686860.64 | W100: -2701685.645 | X100: -2233971.82 | Y100: -2418061.295 | Z100: -2040569.408 | AA100: -2120072.112 | AB100: -4077341.155 | AC100: 18116935.99 | AD100: =SUM(J100:AC100) -> -57475455.61 | AH100: =+AD60+AD41 -> -85095435.25
B101: FC
B102: FC | C102: 501 | D102: Investimento Inicial | J102: =SUM(J103:J109) -> -29260159.35 | K102: 0 | L102: 0 | M102: 0 | N102: 0 | O102: 0 | P102: 0 | Q102: 0 | R102: 0 | S102: 0 | T102: 0 | U102: 0 | V102: 0 | W102: 0 | X102: 0 | Y102: 0 | Z102: 0 | AA102: 0 | AB102: 0 | AC102: 0 | AD102: =SUM(J102:AC102) -> -29260159.35 | AH102: =+AD102+AD111 -> -85095435.25
B103: FC | D103: Frota de Veiculos | G103: Renov_frota | J103: =-Renov_Frota!P131 -> -15039621.35 | AD103: -15039621.35
B104: FC | D104: Sist. Bilhet. Monitoramento/Valid. | G104: DR_Equip | J104: =-DR_Equip!P16 -> -616000 | AD104: -616000
D105: Maquinas, Instalações e Equipamentos | G105: DR_Equip | J105: =-DR_Equip!P17 -> -293920 | AD105: -293920
B106: FC | D106: Terrenos | G106: DR_Invest | J106: =-DR_Invest!K30 -> -5000000 | AD106: -5000000
B107: FC | D107: Construções | G107: DR_Invest | J107: =-DR_Invest!K31 -> -2600000 | AD107: -2600000
B108: FC | D108: Outorga | G108: DR_Invest | J108: =-DR_Invest!K32 -> -5610618 | AD108: -5610618
B109: FC | D109: Outros Investimentos | G109: DR_Invest | J109: =-DR_Invest!K33 -> -100000 | AD109: -100000
B110: FC
B111: FC | C111: 502 | D111: Investimento Anual | J111: =SUM(J112:J115) -> 0 | K111: -2650090.14 | L111: -3705658.36 | M111: -3164597.02 | N111: -3512074.81 | O111: -3780597.02 | P111: -2600488.78 | Q111: -3238999.06 | R111: -3533453.52 | S111: 0 | T111: -4126669.44 | U111: -3164597.02 | V111: -3217620.35 | W111: -3164597.02 | X111: -2600488.78 | Y111: -2677181.22 | Z111: -2355635.68 | AA111: -2355635.68 | AB111: -4589021.74 | AC111: =SUM(AC112:AC115) -> -1397870.26 | AD111: =SUM(AD112:AD115) -> -55835275.9
B112: FC | D112: Renovação da Frota | G112: Frota_FC | H112: 401 | J112: =-Renov_Frota!O2077 -> 0 | K112: =-Renov_Frota!P2077 -> -2650090.14 | L112: =-Renov_Frota!P2078 -> -3705658.36 | M112: =-Renov_Frota!P2079 -> -3164597.02 | N112: =-Renov_Frota!P2080 -> -3512074.81 | O112: =-Renov_Frota!P2081 -> -3164597.02 | P112: =-Renov_Frota!P2082 -> -2600488.78 | Q112: =-Renov_Frota!P2083 -> -3238999.06 | R112: =-Renov_Frota!P2084 -> -3533453.52 | S112: =-Renov_Frota!P2085 -> 0 | T112: =-Renov_Frota!P2086 -> -3116749.44 | U112: =-Renov_Frota!P2087 -> -3164597.02 | V112: =-Renov_Frota!P2088 -> -3217620.35 | W112: =-Renov_Frota!P2089 -> -3164597.02 | X112: =-Renov_Frota!P2090 -> -2600488.78 | Y112: =-Renov_Frota!P2091 -> -2061181.22 | Z112: =-Renov_Frota!P2092 -> -2355635.68 | AA112: =-Renov_Frota!P2093 -> -2355635.68 | AB112: =-Renov_Frota!P2094 -> -4589021.74 | AC112: =-Renov_Frota!P2095 -> -1397870.26 | AD112: =SUM(J112:AC112) -> -53593355.9 | AH112: =+AD112+AD103 -> -68632977.25
B113: FC | D113: Renov Sist. Bilhet. Monitoramento/Valid. | J113: 0 | K113: 0 | L113: 0 | M113: 0 | N113: 0 | O113: =+J104 -> -616000 | T113: =+O113 -> -616000 | Y113: =+T113 -> -616000 | AD113: =SUM(J113:AC113) -> -1848000
D114: Renov Maq. Instalações e Equipamentos | K114: 0 | L114: 0 | M114: 0 | N114: 0 | O114: 0 | T114: =+J105 -> -293920 | AD114: =SUM(J114:AC114) -> -293920
D115: Renov Outros investimentos | K115: 0 | L115: 0 | M115: 0 | N115: 0 | O115: 0 | P115: 0 | Q115: 0 | R115: 0 | S115: 0 | T115: =+J109 -> -100000 | U115: 0 | V115: 0 | W115: 0 | X115: 0 | Y115: 0 | Z115: 0 | AA115: 0 | AB115: 0 | AC115: 0 | AD115: =SUM(J115:AC115) -> -100000
B116: FC
B117: FC | C117: 503 | D117: Venda de Imobilizado | J117: =+J53 -> 0 | K117: 742025.2392 | L117: 820857.768 | M117: 621916.783 | N117: 666208.7614 | O117: 515913.1774 | P117: 313515.1574 | Q117: 323899.906 | R117: 353345.352 | S117: 0 | T117: 549959.6648 | U117: 515913.1774 | V117: 530759.7098 | W117: 462911.3746 | X117: 366516.9602 | Y117: 259119.9248 | Z117: 315066.2722 | AA117: 235563.568 | AB117: 511680.585 | AC117: 19514806.25 | AD117: =SUM(J117:AC117) -> 27619979.63
B118: FC
B119: FC | C119: 600 | D119: IMPOSTO DE RENDA E CONTRIB SOCIAL | J119: =+J64 -> -1187818.972 | K119: -1187818.972 | L119: -1187818.972 | M119: -1187818.972 | N119: -1187818.972 | O119: -1187818.972 | P119: -1187818.972 | Q119: -1187818.972 | R119: -1187818.972 | S119: -1187818.972 | T119: -1187818.972 | U119: -1187818.972 | V119: -1187818.972 | W119: -1187818.972 | X119: -1187818.972 | Y119: -1187818.972 | Z119: -1187818.972 | AA119: -1187818.972 | AB119: -1187818.972 | AC119: -1187818.972 | AD119: =SUM(J119:AC119) -> -23756379.44
B120: FC
B121: FC | C121: 700 | D121: SALDO DE CAIXA | J121: =+J89+J94+J96+J100+J119 -> -24010032.09 | K121: 3342062.355 | L121: 2365326.664 | M121: 2707447.019 | N121: 2404261.207 | O121: 1985443.413 | P121: 2963153.633 | Q121: 2335028.102 | R121: 2070019.088 | S121: 5250127.256 | T121: 1673417.48 | U121: 2601443.413 | V121: 2563266.615 | W121: 2548441.61 | X121: 3016155.436 | Y121: 2832065.96 | Z121: 3209557.848 | AA121: 3130055.144 | AB121: 1172786.101 | AC121: 23367063.25 | AD121: =SUM(J121:AC121) -> 47527089.5
B122: FC
B123: FC | C123: 800 | D123: SALDO ACUMULADO DE CAIXA | J123: =+J121+I123 -> -24010032.09 | K123: =+K121+J123 -> -20667969.74 | L123: -18302643.07 | M123: -15595196.05 | N123: -13190934.85 | O123: -11205491.43 | P123: -8242337.802 | Q123: -5907309.7 | R123: -3837290.613 | S123: 1412836.643 | T123: 3086254.123 | U123: 5687697.536 | V123: 8250964.151 | W123: =+W121+V123 -> 10799405.76 | X123: =+X121+W123 -> 13815561.2 | Y123: 16647627.16 | Z123: 19857185 | AA123: =+AA121+Z123 -> 22987240.15 | AB123: 24160026.25 | AC123: 47527089.5
B124: FC
B125: FC | C125: 900 | D125: INDICADORES | AD125: =+AD121-AD82 -> 0
B126: FC
B127: FC | D127: Taxa de Desconto VPL - (% ao ano) | G127: APURA | H127: =+Apura!I156 -> A156 | J127: =+Taxa_desconto -> 0.08
B128: FC | D128: VPL | J128: =NPV(J127,J121:AC121) -> 6121066.142
B129: FC | D129: TIR | J129: =IRR(J121:AC121) -> 0.1097192818

Sheet Reajuste
B2: REAJUSTES
B3: =+Titulo_01 -> PREFEITURA MUNICIPAL DE CHAPECO
B4: =+Titulo_02 -> SECRETARIA DE DEFESA DO CIDADÃO
B5: =+Titulo_03 -> SISTEMA DE TRANSPORTE PÚBLICO DE PASSAGEIROS
B7: DEMONSTRAÇÃO DO CÁLCULO DO REAJUSTE DA TARIFA
B9: Item | C9: Discriminação | F9: REFERÊNCIA | K9: Valores | M9: % | O9: Composição tarifa para Rejuste | Q9: Coeficiente de Reajuste
K10: k1 | L10: k2 | M10: k3 | O10: k4
B12: REEQUILIBRIO | I12: =CONCATENATE("K",ROW()) -> K12
I13: K13
I14: K14
I15: K15
B16: 100 | C16: Coeficiente de Variação do IPK | F16: =CONCATENATE("(K1 - K2) / K2 + 1") -> (K1 - K2) / K2 + 1 | I16: K16 | K16: =+K28/K37 -> 1.862966918 | L16: =+L28/L37 -> 1.862966918 | Q16: =(ROUND((+K16-L16)/L16,6))+1 -> 1
I17: K17
B18: 101 | C18: Valor da Tarifa atual | I18: K18
C19: Antecipado e vale transporte | G19: ? | I19: K19 | K19: 2.98 | L19: 2.98
C20: Embarcado | G20: ? | I20: K20 | K20: 3.25 | L20: 3.25
C21: Estudante | G21: ? | I21: K21 | K21: 1.1 | L21: 1.1
I22: K22
C23: Valor da Tarifa atual | I23: K23
C24: Antecipado e vale transporte | I24: K24 | K24: =+K19/K$19 -> 1 | L24: =+L19/L$19 -> 1
C25: Embarcado | I25: K25 | K25: =+K20/K$19 -> 1.090604027 | L25: 1.090604027
C26: Estudante | I26: K26 | K26: =+K21/K$19 -> 0.3691275168 | L26: 0.3691275168
I27: K27
B28: 102 | C28: Passageiros equivalentes | F28: =CONCATENATE("((",I31,"x",I19,") + ","(",I32,"x",I20,") + ","(",I33,"x",I21,") + ",,I34,"x",I19,")) / ",I19) -> ((K31xK19) + (K32xK20) + (K33xK21) + K34xK19)) / K19 | I28: K28 | K28: =ROUND((+K31*K19+K32*K20+K33*K21+K34*K19)/K19,0) -> 750105 | L28: =ROUND((+L31*L19+L32*L20+L33*L21+L34*L19)/L19,0) -> 750105
I29: K29
B30: 103 | C30: Media Passageiros (Ultimos 12 meses) | I30: K30
C31: Antecipado | I31: K31 | K31: 83916 | L31: =+K31 -> 83916
C32: Embarcado | I32: K32 | K32: 218655 | L32: =+K32 -> 218655
C33: Estudante | I33: K33 | K33: 144977 | L33: =+K33 -> 144977
C34: Vale transporte | I34: K34 | K34: 374208 | L34: =+K34 -> 374208
C35: Total | I35: K35 | K35: =SUM(K31:K34) -> 821756 | L35: =SUM(L31:L34) -> 821756
I36: K36
B37: 104 | C37: Percurso Mensal Programado em KM | I37: K37 | K37: 402640 | L37: =+K37 -> 402640
I38: K38
B39: 200 | C39: Coeficiente de reajuste | F39: =CONCATENATE(I41," + ",I42," + ",I43," + 1") -> K41 + K42 + K43 + 1 | I39: K39 | Q39: =+Q41+Q42+Q43+1 -> 1.042636
I40: K40
C41: Percentual de Reajuste Combustivel | F41: =CONCATENATE("(K2-K1)/K1*K4") -> (K2-K1)/K1*K4 | I41: K41 | K41: 2.82 | L41: =+Consumo!N158 -> 3.4 | M41: =+L41/K41-1 -> 0.2056737589 | O41: =+Apura!P436 -> 0.207300094 | Q41: =(ROUND((+L41-K41)/K41*O41,6)) -> 0.042636
C42: Percentual de Reajuste Salario Motorista | F42: =CONCATENATE("(K2-K1)/K1*K4") -> (K2-K1)/K1*K4 | I42: K42 | K42: 1720.78 | L42: =+K42 -> 1720.78 | M42: =+L42/K42-1 -> 0 | O42: =+Apura!P437 -> 0.3790709633 | Q42: =(ROUND((+L42-K42)/K42*O42,6)) -> 0
C43: Coeficiente de Reajuste do INPC | F43: =CONCATENATE("(K2-K1)/K1*K4") -> (K2-K1)/K1*K4 | I43: K43 | K43: 1 | L43: =+K43 -> 1 | M43: =+L43/K43-1 -> 0 | O43: =+Apura!P438 -> 0.4136289427 | Q43: 0
I44: K44
B45: 300 | C45: Tarifa atual | G45: ? | I45: K45 | Q45: =+K19 -> 2.98
I46: K46
B47: 400 | C47: Nova Tarifa | F47: =CONCATENATE(I45," x ",I16," x ",I39) -> K45 x K16 x K39 | I47: K47 | Q47: =+Q45*Q39*Q16 -> 3.10705528
I48: K48
C49: Antecipado e vale transporte | I49: K49 | L49: =+Q49/Q49 -> 1 | Q49: =ROUND(+Q47,2) -> 3.11
C50: Embarcado | I50: K50 | L50: =+Q50/Q50 -> 1 | Q50: =ROUNDDOWN((+Q$47*L25*2),1)/2 -> 3.35
C51: Estudante | I51: K51 | L51: 1 | Q51: =ROUNDDOWN((+Q$47*L26*2),1)/2 -> 1.1

Sheet Encargos
B2: Encargos Sociais
B3: =+Titulo_01 -> PREFEITURA MUNICIPAL DE CHAPECO
B4: =+Titulo_02 -> SECRETARIA DE DEFESA DO CIDADÃO
B5: =+Titulo_03 -> SISTEMA DE TRANSPORTE PÚBLICO DE PASSAGEIROS
B7: DEMONSTRAÇÃO DOS ENCARGOS SOCIAIS
B9: Item | C9: Discriminação | F9: % | I9: Indice acumulado
B11: 101 | C11: Encargos Sociais do Grupo A | I11: 1
C12: INSS | F12: 0 | I12: =+I11+F12 -> 1
C13: Acidente de trabalho | F13: 0.03 | I13: 1.03
C14: Salário Educação | F14: 0.025 | I14: 1.055
C15: INCRA | F15: 0.002 | I15: 1.057
C16: SEST | F16: 0.015 | I16: 1.072
C17: SENAT | F17: 0.01 | I17: 1.082
C18: SEBRAE | F18: 0.006 | I18: 1.088
C19: FGTS | F19: 0.08 | I19: 1.168
C20: TOTAL | G20: =SUM(F12:F19) -> 0.168 | I20: =+I19+F20 -> 1.168
I21: 1.168
B22: 102 | C22: Encargos Sociais do Grupo B | I22: 1.168
C23: Férias | F23: 0 | I23: =+I22+F23 -> 1.168
C24: Abono de férias | F24: 0.0278 | I24: 1.1958
C25: Aviso prévio trabalhado | F25: 0.0006 | I25: 1.1964
C26: 13º salario | F26: 0.0833 | I26: 1.2797
C27: Adicional notorno | F27: 0.0194 | I27: 1.2991
C28: Adicional tempo de serviço | F28: 0.0512 | I28: 1.3503
C29: TOTAL | G29: =SUM(F23:F28) -> 0.1823 | I29: =+I28+F29 -> 1.3503
I30: 1.3503
B31: 103 | C31: Encargos Sociais do Grupo C | I31: 1.3503
C32: Deposito por rescisão | F32: 0.0473 | I32: =+I31+F32 -> 1.3976
C33: Aviso prévio indeizado | F33: 0.005 | I33: 1.4026
C34: Indenização adicional | F34: 0.0009 | I34: 1.4035
C35: TOTAL | G35: =SUM(F32:F34) -> 0.0532 | I35: 1.4035
I36: 1.4035
B37: 104 | C37: Encargos Sociais do Grupo D | I37: 1.4035
C38: Grupo A sobre B | F38: =+G20*G29 -> 0.0306264 | I38: 1.4341264
C39: TOTAL | G39: =SUM(F38:F38) -> 0.0306264 | I39: 1.4341264
I40: 1.4341264
B41: 105 | C41: Encargos Sociais do Grupo D | G41: =+G20+G29+G35+G39 -> 0.4341264 | I41: 1.4341264

Sheet Custo Capital
B2: Custo de capital
B3: =+Titulo_01 -> PREFEITURA MUNICIPAL DE CHAPECO
B4: =+Titulo_02 -> SECRETARIA DE DEFESA DO CIDADÃO
B5: Cálculo do Custo Médio Ponderado de Capital
B7: Retorno Esperado do Mercado | D7: Mês | E7: Anual | G7: Base - referencia
B8: SELIC Banco central do Brasil | D8: =(1+G8)^(1/12)-1 -> 0.00518300143 | E8: =(1+D8)^12-1 -> 0.064 | G8: 0.064
B9: POUPANÇA | D9: 0.005001750285 | E9: =(1+D9)^12-1 -> 0.0617 | G9: 0.0617
B10: CDB | D10: 0.005654145387 | E10: =(1+D10)^12-1 -> 0.07 | G10: 0.07
B11: CDI | D11: 0.006169614749 | E11: =(1+D11)^12-1 -> 0.0766 | G11: 0.0766
B12: TJLP | D12: 0.00534031942 | G12: 0.066
B13: =+B79 -> Fundo de renda fixa indexados | D13: 0.009391096945 | G13: 0.1187
B14: =+B80 -> Fundo de renda fixa Simples | D14: 0.006836957827 | E14: =(1+D14)^12-1 -> 0.0852 | G14: 0.0852
B15: IBOVESPA
B16: MEDIA | D16: =(1+G16)^(1/12)-1 -> 0 | E16: =AVERAGE(E8:E15) -> 0.0715
B17: Inflação - INPC 12 mês nov-2017 | D17: =(1+G17)^(1/12)-1 -> 0.001602467491 | E17: =(1+D17)^12-1 -> 0.0194 | G17: 0.0194 | H17: Portal finanças
B18: Média + inflação | E18: =ROUND((1+E16)*(1+E17)-1,4) -> 0.0923
B20: Custo do Capital Próprio | D20: Mês | E20: Anual
B21: Retorno do Ativo livre de risco | D21: =(1+0.06)^(1/12)-1 -> 0.004867550565 | E21: 0.06 | F21: Rf
B22: Retorno esperado do mercado | E22: =+E18 -> 0.0923 | F22: E(Rm)
B23: Risco do Negócio | E23: 1.35 | F23: beta
B24: Custo do Capital próprio | E24: =ROUND(((((1+E22)/(1+E21)-1)*E23)+1)*(1+E21)-1,4) -> 0.1036
B27: RE - Taxa de custo capital Próprio
B28: Rf - Retorno do ativo livre de risco
B29: E(Rm) - Retorno esperado do Mercado
B30: Beta - Risco do Negócio
B32: Custo do Capital de Terceiros
B33: TJLP | E33: 0.066
B34: Remuneração e intermediação BNDES - 2,1 + 2,0 | E34: 0.041
B35: Custo Capital de Terceiros | E35: =+E33+E34 -> 0.107
B37: Cálculo do Custo Médio Ponderado de Capital
B38: % Recursos Proprios | E38: 0.95 | F38: E
B39: % Recursos Terceiros | E39: =1-E38 -> 0.05 | F39: D
B40: Custo capital próprio | E40: =+E24 -> 0.1036 | F40: RE
B41: Custo capital de terceiros | E41: =+E35 -> 0.107 | F41: RD
B42: Imposto | E42: 0.34 | F42: T
B44: WACC - CMPC | E44: =+E40*E38/1+E41*E39/1*(1-E42) -> 0.101951
B48: E - Percentual de Capital Proprio
B49: E - Percentual de Capital Terceiros
B50: RE - Taxa de custo capital Próprio
B51: RD - Taxa de custo capital de terceiros
B52: T - Taxa de Imposto
B54: WACC - Weighted Average Capital Cost
B55: CMPC - CUSTO MÉDIO PONDERADO DE CAPITAL
B61: CIDADE | D61: TIR | E61: % | G61: TARIFA | H61: %
B62: BLUMENAU | D62: 0.0963 | E62: =+D62/D$69 -> 0.9887063655 | G62: 3.9 | H62: =+G62/G$69 -> 0.9693294229
B63: SÃO PAULO | D63: 0.0985 | E63: 1.011293634 | G63: 4 | H63: 0.9941840235
B64: CURITIBA | D64: 0.0895 | E64: 0.9188911704 | G64: 4.25 | H64: 1.056320525
B65: BELO HORIZONTE | D65: 0.0895 | E65: 0.9188911704 | G65: 4.05 | H65: 1.006611324
B66: FLORIANÓPOLIS | D66: 0.0861 | E66: 0.8839835729 | G66: 3.99 | H66: 0.9916985634
B67: MARINGA | D67: 0.1244 | E67: 1.277207392 | G67: 3.95 | H67: 0.9817567232
B69: MÉDIA | D69: =ROUNDUP(AVERAGE(D62:D67),4) -> 0.0974 | E69: =+D69/D$69 -> 1 | G69: =ROUNDUP(AVERAGE(G62:G67),4) -> 4.0234 | H69: =+G69/G$69 -> 1
B71: CHAPECÓ | D71: 0.105 | E71: =+D71/D$69 -> 1.078028747 | G71: 2.98 | H71: =+G71/G$69 -> 0.7406670975
B73: Aplicação | D73: % aa | E73: % Am | H73: % aa
B74: SELIC | D74: 0.064 | E74: 0 | H74: 0.0985
B75: POUPANÇA | E75: 0.005 | H75: 0.0616
B76: CDI | D76: 0.0983 | H76: 0.0983
B77: IBOVESPA | D77: 0.2686 | H77: 0.268
B78: IPCA | D78: 0.0278 | H78: 0.0278
B79: Fundo de renda fixa indexados | D79: 0.1187
B80: Fundo de renda fixa Simples | D80: 0.0852
B81: CDB | D81: 0.0938 | H81: 0
B82: SELIC 2017 | D82: 0.0985 | E82: 0
B84: https://exame.abril.com.br/seu-dinheiro/os-melhores-e-os-piores-investimentos-de-2017/
B85: https://economia.estadao.com.br/blogs/regina-pitoscia/ranking-das-aplicacoes-em-2017-e-perspectivas-para-2018/
B86: http://www.portaldefinancas.com/ipca_completo.htm

Sheet Coeficientes
B2: COEFICIENTES | J2: =+Apura!U28 -> 2.973757531 | K2: =+Apura!V28 -> 2.973757531 | L2: =+Apura!W28 -> 0.7135887365 | M2: =+Apura!X28 -> 0.8524965276
B3: =+Titulo_01 -> PREFEITURA MUNICIPAL DE CHAPECO
B4: =+Titulo_02 -> SECRETARIA DE DEFESA DO CIDADÃO
B5: =+Titulo_03 -> SISTEMA DE TRANSPORTE PÚBLICO DE PASSAGEIROS
B7: CÁLCULO DOS COEFICIENTES DE DEPRECIAÇÃO E REMUNERAÇÃO
B9: Idade - Anos | C9: Seq | D9: Valor Residual | E9: Vida Util | F9: DEPRECIAÇÃO ACELERADA - COLE | L9: REMUNERAÇÃO | O9: DEPRECIAÇÃO LINEAR | S9: REMUNERAÇÃO
F10: Seq | G10: Seq Acum | H10: Coeficiente de Depreciação | I10: Coeficiente de Depr acum | J10: recuperação vlr residual | K10: Saldo Residual | L10: Saldo Inicial | M10: Coeficiente de remuneração | O10: Coeficiente de Depreciação | P10: Coeficiente de Depr acum | Q10: recuperação vlr residual | R10: Saldo Residual | S10: Saldo Inicial | T10: Coeficiente de remuneração
B13: Micro Onibus | C13: ? | D13: =+Consumo!K245 -> 0.15 | E13: =+Consumo!K251 -> 8
B14: Onibus Leve | C14: ? | D14: =+Consumo!K246 -> 0.15 | E14: =+Consumo!K252 -> 8
B15: Onibus Pesado | C15: ? | D15: =+Consumo!K247 -> 0.1 | E15: =+Consumo!K253 -> 10
B16: Onibus Articulado | C16: ? | D16: =+Consumo!K248 -> 0.1 | E16: =+Consumo!K254 -> 10
B20: Tipo de Bem | F20: MICRO ONIBUS | O20: =+F20 -> MICRO ONIBUS
B21: Vida Útil | F21: =+E$13 -> 8 | G21: ANOS
B22: Valor Residual | F22: =+D$13 -> 0.15 | Q22: =+J22 -> 0
B23: Taxa de Remuneração (% ao ano) | F23: =Taxa_remuner -> 0.12 | P23: =+P24-O23 -> 0.85 | Q23: 0
P24: =1*(1-F22) -> 0.85 | Q24: 0 | R24: 1
B25: 0 a 1 ano | C25: 1 | D25: =+F22 -> 0.15 | E25: =+F21 -> 8 | F25: =+E25 -> 8 | G25: =+E25*(1+E25)/2 -> 36 | H25: =ROUND((1-(1*D25))/G25*F25,8) -> 0.18888889 | I25: =+I24+H25 -> 0.18888889 | J25: =IF(F25=1,1*D25,0) -> 0 | K25: =1-I25 -> 0.81111111 | L25: 1 | M25: =ROUND(+L25*Taxa_remuner,8) -> 0.12 | O25: =IF(P24=0,0,+P24/F25) -> 0.10625 | P25: =+P24-O25 -> 0.74375 | Q25: 0 | R25: =+R24-O25-Q25 -> 0.89375 | S25: 1 | T25: =ROUND(+S25*Taxa_remuner,8) -> 0.12
B26: 1 a 2 anos | C26: =+C25+1 -> 2 | D26: =+D25 -> 0.15 | E26: =+E25 -> 8 | F26: =IF(F25<2,0,F25-1) -> 7 | G26: =+E26*(1+E26)/2 -> 36 | H26: =ROUND((1-(1*D26))/G26*F26,8) -> 0.16527778 | I26: 0.35416667 | J26: 0 | K26: 0.64583333 | L26: =+L25-H25-J26 -> 0.81111111 | M26: 0.09733333 | O26: 0.10625 | P26: 0.6375 | Q26: 0 | R26: =+R25-O26-Q26 -> 0.7875 | S26: =+S25-O25-Q25 -> 0.89375 | T26: 0.10725
B27: 2 a 3 anos | C27: 3 | D27: =+D26 -> 0.15 | E27: 8 | F27: 6 | G27: =+E27*(1+E27)/2 -> 36 | H27: =ROUND((1-(1*D27))/G27*F27,8) -> 0.14166667 | I27: 0.49583334 | J27: 0 | K27: 0.50416666 | L27: 0.64583333 | M27: 0.0775 | O27: 0.10625 | P27: 0.53125 | Q27: 0 | R27: 0.68125 | S27: 0.7875 | T27: 0.0945
B28: 3 a 4 anos | C28: 4 | D28: 0.15 | E28: 8 | F28: 5 | G28: 36 | H28: 0.11805556 | I28: 0.6138889 | J28: 0 | K28: 0.3861111 | L28: 0.50416666 | M28: 0.0605 | O28: 0.10625 | P28: 0.425 | Q28: 0 | R28: 0.575 | S28: 0.68125 | T28: 0.08175
B29: 4 a 5 anos | C29: 5 | D29: 0.15 | E29: 8 | F29: 4 | G29: 36 | H29: 0.09444444 | I29: 0.70833334 | J29: 0 | K29: 0.29166666 | L29: 0.3861111 | M29: 0.04633333 | O29: 0.10625 | P29: 0.31875 | Q29: 0 | R29: 0.46875 | S29: 0.575 | T29: 0.069
B30: 5 a 6 anos | C30: 6 | D30: 0.15 | E30: 8 | F30: 3 | G30: 36 | H30: 0.07083333 | I30: 0.77916667 | J30: 0 | K30: 0.22083333 | L30: 0.29166666 | M30: 0.035 | O30: 0.10625 | P30: 0.2125 | Q30: 0 | R30: 0.3625 | S30: 0.46875 | T30: 0.05625
B31: 6 a 7 anos | C31: 7 | D31: 0.15 | E31: 8 | F31: 2 | G31: 36 | H31: 0.04722222 | I31: 0.82638889 | J31: 0 | K31: =+K30-H31-J31 -> 0.17361111 | L31: 0.22083333 | M31: 0.0265 | O31: 0.10625 | P31: 0.10625 | Q31: 0 | R31: 0.25625 | S31: 0.3625 | T31: 0.0435
B32: 7 a 8 anos | C32: 8 | D32: 0.15 | E32: 8 | F32: 1 | G32: 36 | H32: 0.02361111 | I32: 0.85 | J32: 0.15 | K32: =+K31-H32-J32 -> 0 | L32: 0.02361111 | M32: 0.00283333 | O32: 0.10625 | P32: 0 | Q32: 0.15 | R32: 2.220446049e-16 | S32: 0.25625 | T32: 0.03075
B33: 8 a 9 anos | C33: 9 | D33: 0.15 | E33: 8 | F33: 0 | G33: 36 | H33: 0 | I33: 0.85 | J33: 0 | K33: =+K32-H33-J33 -> 0 | L33: -3.816391647e-17 | M33: 0 | O33: 0 | P33: 0 | Q33: 0 | R33: =+R32-O33-Q33 -> 2.220446049e-16 | S33: 2.220446049e-16 | T33: 0
B34: 9 a 10 anos | C34: 10 | D34: 0.15 | E34: 8 | F34: 0 | G34: 36 | H34: 0 | I34: 0.85 | J34: 0 | K34: 0 | L34: -3.816391647e-17 | M34: 0 | O34: 0 | P34: 0 | Q34: =+J34 -> 0 | R34: =+R33-O34-Q34 -> 2.220446049e-16 | S34: 2.220446049e-16 | T34: 0
B35: 10 a 11 anos | C35: 11 | D35: 0.15 | E35: 8 | F35: 0 | G35: 36 | H35: 0 | I35: 0.85 | J35: 0 | K35: 0 | L35: -3.816391647e-17 | M35: 0 | O35: =IF(P34=0,0,+P34/F35) -> 0 | P35: 0 | Q35: =+J35 -> 0 | R35: 2.220446049e-16 | S35: =+S34-O34-Q34 -> 2.220446049e-16 | T35: 0
B36: 11 a 12 anos | C36: 12 | D36: 0.15 | E36: 8 | F36: 0 | G36: 36 | H36: 0 | I36: 0.85 | J36: 0 | K36: 0 | L36: -3.816391647e-17 | M36: 0 | O36: =IF(P35=0,0,+P35/F36) -> 0 | P36: 0 | Q36: 0 | R36: 2.220446049e-16 | S36: =+S35-O35-Q35 -> 2.220446049e-16 | T36: 0
B37: 12 a 13 anos | C37: 13 | D37: 0.15 | E37: 8 | F37: 0 | G37: 36 | H37: 0 | I37: 0.85 | J37: 0 | K37: 0 | L37: -3.816391647e-17 | M37: 0 | O37: 0 | P37: =+P36-O37 -> 0 | Q37: 0 | R37: 2.220446049e-16 | S37: 2.220446049e-16 | T37: 0
B38: 13 a 14 anos | C38: 14 | D38: 0.15 | E38: 8 | F38: 0 | G38: 36 | H38: 0 | I38: 0.85 | J38: 0 | K38: 0 | L38: -3.816391647e-17 | M38: 0 | O38: 0 | P38: 0 | Q38: 0 | R38: 2.220446049e-16 | S38: 2.220446049e-16 | T38: 0
B39: 14 a 15 anos | C39: 15 | D39: 0.15 | E39: 8 | F39: 0 | G39: 36 | H39: 0 | I39: 0.85 | J39: 0 | K39: 0 | L39: -3.816391647e-17 | M39: 0 | O39: 0 | P39: 0 | Q39: 0 | R39: 2.220446049e-16 | S39: 2.220446049e-16 | T39: 0
B40: + de 15 anos | C40: 16 | D40: 0.15 | E40: 8 | F40: 0 | G40: 36 | H40: 0 | I40: 0.85 | J40: 0 | K40: 0 | L40: -3.816391647e-17 | M40: 0 | O40: 0 | P40: 0 | Q40: 0 | R40: 2.220446049e-16 | S40: 2.220446049e-16 | T40: 0
B43: Tipo de Bem | F43: ONIBUS LEVE | O43: =+F43 -> ONIBUS LEVE
B44: Vida Útil | F44: =+E$14 -> 8 | G44: ANOS
B45: Valor Residual | F45: =+D$14 -> 0.15 | Q45: =+J45 -> 0
B46: Taxa de Remuneração (% ao ano) | F46: =Taxa_remuner -> 0.12 | P46: =+P47-O46 -> 0.85 | Q46: 0
P47: =1*(1-F45) -> 0.85 | Q47: 0 | R47: 1
B48: 0 a 1 ano | C48: 1 | D48: =+F45 -> 0.15 | E48: =+F44 -> 8 | F48: =+E48 -> 8 | G48: =+E48*(1+E48)/2 -> 36 | H48: =ROUND((1-(1*D48))/G48*F48,8) -> 0.18888889 | I48: =+I47+H48 -> 0.18888889 | J48: =IF(F48=1,1*D48,0) -> 0 | K48: =1-I48 -> 0.81111111 | L48: 1 | M48: =ROUND(+L48*Taxa_remuner,8) -> 0.12 | O48: =IF(P47=0,0,+P47/F48) -> 0.10625 | P48: =+P47-O48 -> 0.74375 | Q48: 0 | R48: =+R47-O48-Q48 -> 0.89375 | S48: 1 | T48: =ROUND(+S48*Taxa_remuner,8) -> 0.12
B49: 1 a 2 anos | C49: =+C48+1 -> 2 | D49: =+D48 -> 0.15 | E49: =+E48 -> 8 | F49: =IF(F48<2,0,F48-1) -> 7 | G49: 36 | H49: 0.16527778 | I49: 0.35416667 | J49: 0 | K49: 0.64583333 | L49: =+L48-H48-J49 -> 0.81111111 | M49: 0.09733333 | O49: 0.10625 | P49: 0.6375 | Q49: 0 | R49: =+R48-O49-Q49 -> 0.7875 | S49: =+S48-O48-Q48 -> 0.89375 | T49: 0.10725
B50: 2 a 3 anos | C50: 3 | D50: 0.15 | E50: 8 | F50: 6 | G50: 36 | H50: 0.14166667 | I50: 0.49583334 | J50: 0 | K50: 0.50416666 | L50: 0.64583333 | M50: 0.0775 | O50: 0.10625 | P50: 0.53125 | Q50: 0 | R50: 0.68125 | S50: 0.7875 | T50: 0.0945
B51: 3 a 4 anos | C51: 4 | D51: 0.15 | E51: 8 | F51: 5 | G51: 36 | H51: 0.11805556 | I51: 0.6138889 | J51: 0 | K51: 0.3861111 | L51: 0.50416666 | M51: 0.0605 | O51: 0.10625 | P51: 0.425 | Q51: 0 | R51: 0.575 | S51: 0.68125 | T51: 0.08175
B52: 4 a 5 anos | C52: 5 | D52: 0.15 | E52: 8 | F52: 4 | G52: 36 | H52: 0.09444444 | I52: 0.70833334 | J52: 0 | K52: 0.29166666 | L52: 0.3861111 | M52: 0.04633333 | O52: 0.10625 | P52: 0.31875 | Q52: 0 | R52: 0.46875 | S52: 0.575 | T52: 0.069
B53: 5 a 6 anos | C53: 6 | D53: 0.15 | E53: 8 | F53: 3 | G53: 36 | H53: 0.07083333 | I53: 0.77916667 | J53: 0 | K53: 0.22083333 | L53: 0.29166666 | M53: 0.035 | O53: 0.10625 | P53: 0.2125 | Q53: 0 | R53: 0.3625 | S53: 0.46875 | T53: 0.05625
B54: 6 a 7 anos | C54: 7 | D54: 0.15 | E54: 8 | F54: 2 | G54: 36 | H54: 0.04722222 | I54: 0.82638889 | J54: 0 | K54: =+K53-H54-J54 -> 0.17361111 | L54: 0.22083333 | M54: 0.0265 | O54: 0.10625 | P54: 0.10625 | Q54: 0 | R54: 0.25625 | S54: 0.3625 | T54: 0.0435
B55: 7 a 8 anos | C55: 8 | D55: 0.15 | E55: 8 | F55: 1 | G55: 36 | H55: 0.02361111 | I55: 0.85 | J55: 0.15 | K55: 0 | L55: 0.02361111 | M55: 0.00283333 | O55: 0.10625 | P55: 0 | Q55: 0.15 | R55: 2.220446049e-16 | S55: 0.25625 | T55: 0.03075
B56: 8 a 9 anos | C56: 9 | D56: 0.15 | E56: 8 | F56: 0 | G56: 36 | H56: 0 | I56: 0.85 | J56: 0 | K56: 0 | L56: -3.816391647e-17 | M56: 0 | O56: 0 | P56: 0 | Q56: 0 | R56: =+R55-O56-Q56 -> 2.220446049e-16 | S56: 2.220446049e-16 | T56: 0
B57: 9 a 10 anos | C57: 10 | D57: 0.15 | E57: 8 | F57: 0 | G57: 36 | H57: 0 | I57: 0.85 | J57: 0 | K57: 0 | L57: -3.816391647e-17 | M57: 0 | O57: 0 | P57: 0 | Q57: =+J57 -> 0 | R57: =+R56-O57-Q57 -> 2.220446049e-16 | S57: 2.220446049e-16 | T57: 0
B58: 10 a 11 anos | C58: 11 | D58: 0.15 | E58: 8 | F58: 0 | G58: 36 | H58: 0 | I58: 0.85 | J58: 0 | K58: 0 | L58: -3.816391647e-17 | M58: 0 | O58: =IF(P57=0,0,+P57/F58) -> 0 | P58: 0 | Q58: =+J58 -> 0 | R58: 2.220446049e-16 | S58: 2.220446049e-16 | T58: 0
B59: 11 a 12 anos | C59: 12 | D59: 0.15 | E59: 8 | F59: 0 | G59: 36 | H59: 0 | I59: 0.85 | J59: 0 | K59: 0 | L59: -3.816391647e-17 | M59: 0 | O59: =IF(P58=0,0,+P58/F59) -> 0 | P59: 0 | Q59: 0 | R59: 2.220446049e-16 | S59: 2.220446049e-16 | T59: 0
B60: 12 a 13 anos | C60: 13 | D60: 0.15 | E60: 8 | F60: 0 | G60: 36 | H60: 0 | I60: 0.85 | J60: 0 | K60: 0 | L60: -3.816391647e-17 | M60: 0 | O60: 0 | P60: 0 | Q60: 0 | R60: 2.220446049e-16 | S60: 2.220446049e-16 | T60: 0
B61: 13 a 14 anos | C61: 14 | D61: 0.15 | E61: 8 | F61: 0 | G61: 36 | H61: 0 | I61: 0.85 | J61: 0 | K61: 0 | L61: -3.816391647e-17 | M61: 0 | O61: 0 | P61: 0 | Q61: 0 | R61: 2.220446049e-16 | S61: 2.220446049e-16 | T61: 0
B62: 14 a 15 anos | C62: 15 | D62: 0.15 | E62: 8 | F62: 0 | G62: 36 | H62: 0 | I62: 0.85 | J62: 0 | K62: 0 | L62: -3.816391647e-17 | M62: 0 | O62: 0 | P62: 0 | Q62: 0 | R62: 2.220446049e-16 | S62: 2.220446049e-16 | T62: 0
B63: + de 15 anos | C63: 16 | D63: 0.15 | E63: 8 | F63: 0 | G63: 36 | H63: 0 | I63: 0.85 | J63: 0 | K63: 0 | L63: -3.816391647e-17 | M63: 0 | O63: 0 | P63: 0 | Q63: 0 | R63: 2.220446049e-16 | S63: 2.220446049e-16 | T63: 0
B66: Tipo de Bem | F66: ONIBUS PESADO | O66: =+F66 -> ONIBUS PESADO
B67: Vida Útil | F67: =+E$15 -> 10 | G67: ANOS
B68: Valor Residual | F68: =+D$15 -> 0.1 | Q68: =+J68 -> 0
B69: Taxa de Remuneração (% ao ano) | F69: =Taxa_remuner -> 0.12 | P69: =+P70-O69 -> 0.9 | Q69: 0
P70: =1*(1-F68) -> 0.9 | Q70: 0 | R70: 1
B71: 0 a 1 ano | C71: 1 | D71: =+F68 -> 0.1 | E71: =+F67 -> 10 | F71: =+E71 -> 10 | G71: =+E71*(1+E71)/2 -> 55 | H71: =ROUND((1-(1*D71))/G71*F71,8) -> 0.16363636 | I71: =+I70+H71 -> 0.16363636 | J71: =IF(F71=1,1*D71,0) -> 0 | K71: =1-I71 -> 0.83636364 | L71: 1 | M71: =ROUND(+L71*Taxa_remuner,8) -> 0.12 | O71: =IF(P70=0,0,+P70/F71) -> 0.09 | P71: =+P70-O71 -> 0.81 | Q71: 0 | R71: =+R70-O71-Q71 -> 0.91 | S71: 1 | T71: =ROUND(+S71*Taxa_remuner,8) -> 0.12
B72: 1 a 2 anos | C72: =+C71+1 -> 2 | D72: =+D71 -> 0.1 | E72: =+E71 -> 10 | F72: =IF(F71<2,0,F71-1) -> 9 | G72: =+E72*(1+E72)/2 -> 55 | H72: =ROUND((1-(1*D72))/G72*F72,8) -> 0.14727273 | I72: 0.31090909 | J72: 0 | K72: 0.68909091 | L72: =+L71-H71-J72 -> 0.83636364 | M72: 0.10036364 | O72: 0.09 | P72: 0.72 | Q72: 0 | R72: =+R71-O72-Q72 -> 0.82 | S72: =+S71-O71-Q71 -> 0.91 | T72: 0.1092
B73: 2 a 3 anos | C73: 3 | D73: =+D72 -> 0.1 | E73: 10 | F73: 8 | G73: =+E73*(1+E73)/2 -> 55 | H73: =ROUND((1-(1*D73))/G73*F73,8) -> 0.13090909 | I73: 0.44181818 | J73: 0 | K73: 0.55818182 | L73: 0.68909091 | M73: 0.08269091 | O73: 0.09 | P73: 0.63 | Q73: 0 | R73: 0.73 | S73: 0.82 | T73: 0.0984
B74: 3 a 4 anos | C74: 4 | D74: 0.1 | E74: 10 | F74: 7 | G74: 55 | H74: 0.11454545 | I74: 0.55636363 | J74: 0 | K74: 0.44363637 | L74: 0.55818182 | M74: 0.06698182 | O74: 0.09 | P74: 0.54 | Q74: 0 | R74: 0.64 | S74: 0.73 | T74: 0.0876
B75: 4 a 5 anos | C75: 5 | D75: 0.1 | E75: 10 | F75: 6 | G75: 55 | H75: 0.09818182 | I75: 0.65454545 | J75: 0 | K75: 0.34545455 | L75: 0.44363637 | M75: 0.05323636 | O75: 0.09 | P75: 0.45 | Q75: 0 | R75: 0.55 | S75: 0.64 | T75: 0.0768
B76: 5 a 6 anos | C76: 6 | D76: 0.1 | E76: 10 | F76: 5 | G76: 55 | H76: 0.08181818 | I76: 0.73636363 | J76: 0 | K76: 0.26363637 | L76: 0.34545455 | M76: 0.04145455 | O76: 0.09 | P76: 0.36 | Q76: 0 | R76: 0.46 | S76: 0.55 | T76: 0.066
B77: 6 a 7 anos | C77: 7 | D77: 0.1 | E77: 10 | F77: 4 | G77: 55 | H77: 0.06545455 | I77: 0.80181818 | J77: 0 | K77: =+K76-H77-J77 -> 0.19818182 | L77: 0.26363637 | M77: 0.03163636 | O77: 0.09 | P77: 0.27 | Q77: 0 | R77: 0.37 | S77: 0.46 | T77: 0.0552
B78: 7 a 8 anos | C78: 8 | D78: 0.1 | E78: 10 | F78: 3 | G78: 55 | H78: 0.04909091 | I78: 0.85090909 | J78: 0 | K78: =+K77-H78-J78 -> 0.14909091 | L78: 0.19818182 | M78: 0.02378182 | O78: 0.09 | P78: 0.18 | Q78: 0 | R78: 0.28 | S78: 0.37 | T78: 0.0444
B79: 8 a 9 anos | C79: 9 | D79: 0.1 | E79: 10 | F79: 2 | G79: 55 | H79: 0.03272727 | I79: 0.88363636 | J79: 0 | K79: =+K78-H79-J79 -> 0.11636364 | L79: 0.14909091 | M79: 0.01789091 | O79: 0.09 | P79: 0.09 | Q79: 0 | R79: =+R78-O79-Q79 -> 0.19 | S79: 0.28 | T79: 0.0336
B80: 9 a 10 anos | C80: 10 | D80: 0.1 | E80: 10 | F80: 1 | G80: 55 | H80: 0.01636364 | I80: 0.9 | J80: 0.1 | K80: 0 | L80: 0.01636364 | M80: 0.00196364 | O80: 0.09 | P80: 0 | Q80: =+J80 -> 0.1 | R80: =+R79-O80-Q80 -> 0 | S80: 0.19 | T80: 0.0228
B81: 10 a 11 anos | C81: 11 | D81: 0.1 | E81: 10 | F81: 0 | G81: 55 | H81: 0 | I81: 0.9 | J81: 0 | K81: 0 | L81: -9.714451465e-17 | M81: 0 | O81: =IF(P80=0,0,+P80/F81) -> 0 | P81: 0 | Q81: =+J81 -> 0 | R81: 0 | S81: 0 | T81: 0
B82: 11 a 12 anos | C82: 12 | D82: 0.1 | E82: 10 | F82: 0 | G82: 55 | H82: 0 | I82: 0.9 | J82: 0 | K82: 0 | L82: -9.714451465e-17 | M82: 0 | O82: =IF(P81=0,0,+P81/F82) -> 0 | P82: 0 | Q82: 0 | R82: 0 | S82: 0 | T82: 0
B83: 12 a 13 anos | C83: 13 | D83: 0.1 | E83: 10 | F83: 0 | G83: 55 | H83: 0 | I83: 0.9 | J83: 0 | K83: 0 | L83: -9.714451465e-17 | M83: 0 | O83: 0 | P83: 0 | Q83: 0 | R83: 0 | S83: 0 | T83: 0
B84: 13 a 14 anos | C84: 14 | D84: 0.1 | E84: 10 | F84: 0 | G84: 55 | H84: 0 | I84: 0.9 | J84: 0 | K84: 0 | L84: -9.714451465e-17 | M84: 0 | O84: 0 | P84: 0 | Q84: 0 | R84: 0 | S84: 0 | T84: 0
B85: 14 a 15 anos | C85: 15 | D85: 0.1 | E85: 10 | F85: 0 | G85: 55 | H85: 0 | I85: 0.9 | J85: 0 | K85: 0 | L85: -9.714451465e-17 | M85: 0 | O85: 0 | P85: 0 | Q85: 0 | R85: 0 | S85: 0 | T85: 0
B86: + de 15 anos | C86: 16 | D86: 0.1 | E86: 10 | F86: 0 | G86: 55 | H86: 0 | I86: 0.9 | J86: 0 | K86: 0 | L86: -9.714451465e-17 | M86: 0 | O86: 0 | P86: 0 | Q86: 0 | R86: 0 | S86: 0 | T86: 0
B89: Tipo de Bem | F89: ONIBUS ARTICULADO | O89: =+F89 -> ONIBUS ARTICULADO
B90: Vida Útil | F90: =+E$16 -> 10 | G90: ANOS
B91: Valor Residual | F91: =+D$16 -> 0.1 | Q91: =+J91 -> 0
B92: Taxa de Remuneração (% ao ano) | F92: =Taxa_remuner -> 0.12 | P92: =+P93-O92 -> 0.9 | Q92: 0
P93: =1*(1-F91) -> 0.9 | Q93: 0 | R93: 1
B94: 0 a 1 ano | C94: 1 | D94: =+F91 -> 0.1 | E94: =+F90 -> 10 | F94: =+E94 -> 10 | G94: =+E94*(1+E94)/2 -> 55 | H94: =ROUND((1-(1*D94))/G94*F94,8) -> 0.16363636 | I94: =+I93+H94 -> 0.16363636 | J94: =IF(F94=1,1*D94,0) -> 0 | K94: =1-I94 -> 0.83636364 | L94: 1 | M94: =ROUND(+L94*Taxa_remuner,8) -> 0.12 | O94: =IF(P93=0,0,+P93/F94) -> 0.09 | P94: =+P93-O94 -> 0.81 | Q94: 0 | R94: =+R93-O94-Q94 -> 0.91 | S94: 1 | T94: =ROUND(+S94*Taxa_remuner,8) -> 0.12
B95: 1 a 2 anos | C95: =+C94+1 -> 2 | D95: =+D94 -> 0.1 | E95: =+E94 -> 10 | F95: =IF(F94<2,0,F94-1) -> 9 | G95: =+E95*(1+E95)/2 -> 55 | H95: =ROUND((1-(1*D95))/G95*F95,8) -> 0.14727273 | I95: 0.31090909 | J95: 0 | K95: 0.68909091 | L95: =+L94-H94-J95 -> 0.83636364 | M95: 0.10036364 | O95: 0.09 | P95: 0.72 | Q95: 0 | R95: =+R94-O95-Q95 -> 0.82 | S95: =+S94-O94-Q94 -> 0.91 | T95: 0.1092
B96: 2 a 3 anos | C96: 3 | D96: =+D95 -> 0.1 | E96: 10 | F96: 8 | G96: =+E96*(1+E96)/2 -> 55 | H96: =ROUND((1-(1*D96))/G96*F96,8) -> 0.13090909 | I96: 0.44181818 | J96: 0 | K96: 0.55818182 | L96: 0.68909091 | M96: 0.08269091 | O96: 0.09 | P96: 0.63 | Q96: 0 | R96: 0.73 | S96: 0.82 | T96: 0.0984
B97: 3 a 4 anos | C97: 4 | D97: 0.1 | E97: 10 | F97: 7 | G97: 55 | H97: 0.11454545 | I97: 0.55636363 | J97: 0 | K97: 0.44363637 | L97: 0.55818182 | M97: 0.06698182 | O97: 0.09 | P97: 0.54 | Q97: 0 | R97: 0.64 | S97: 0.73 | T97: 0.0876
B98: 4 a 5 anos | C98: 5 | D98: 0.1 | E98: 10 | F98: 6 | G98: 55 | H98: 0.09818182 | I98: 0.65454545 | J98: 0 | K98: 0.34545455 | L98: 0.44363637 | M98: 0.05323636 | O98: 0.09 | P98: 0.45 | Q98: 0 | R98: 0.55 | S98: 0.64 | T98: 0.0768
B99: 5 a 6 anos | C99: 6 | D99: 0.1 | E99: 10 | F99: 5 | G99: 55 | H99: 0.08181818 | I99: 0.73636363 | J99: 0 | K99: 0.26363637 | L99: 0.34545455 | M99: 0.04145455 | O99: 0.09 | P99: 0.36 | Q99: 0 | R99: 0.46 | S99: 0.55 | T99: 0.066
B100: 6 a 7 anos | C100: 7 | D100: 0.1 | E100: 10 | F100: 4 | G100: 55 | H100: 0.06545455 | I100: 0.80181818 | J100: 0 | K100: =+K99-H100-J100 -> 0.19818182 | L100: 0.26363637 | M100: 0.03163636 | O100: 0.09 | P100: 0.27 | Q100: 0 | R100: 0.37 | S100: 0.46 | T100: 0.0552
B101: 7 a 8 anos | C101: 8 | D101: 0.1 | E101: 10 | F101: 3 | G101: 55 | H101: 0.04909091 | I101: 0.85090909 | J101: 0 | K101: =+K100-H101-J101 -> 0.14909091 | L101: 0.19818182 | M101: 0.02378182 | O101: 0.09 | P101: 0.18 | Q101: 0 | R101: 0.28 | S101: 0.37 | T101: 0.0444
B102: 8 a 9 anos | C102: 9 | D102: 0.1 | E102: 10 | F102: 2 | G102: 55 | H102: 0.03272727 | I102: 0.88363636 | J102: 0 | K102: =+K101-H102-J102 -> 0.11636364 | L102: 0.14909091 | M102: 0.01789091 | O102: 0.09 | P102: 0.09 | Q102: 0 | R102: =+R101-O102-Q102 -> 0.19 | S102: 0.28 | T102: 0.0336
B103: 9 a 10 anos | C103: 10 | D103: 0.1 | E103: 10 | F103: 1 | G103: 55 | H103: 0.01636364 | I103: 0.9 | J103: 0.1 | K103: 0 | L103: 0.01636364 | M103: 0.00196364 | O103: 0.09 | P103: 0 | Q103: =+J103 -> 0.1 | R103: =+R102-O103-Q103 -> 0 | S103: 0.19 | T103: 0.0228
B104: 10 a 11 anos | C104: 11 | D104: 0.1 | E104: 10 | F104: 0 | G104: 55 | H104: 0 | I104: 0.9 | J104: 0 | K104: 0 | L104: -9.714451465e-17 | M104: 0 | O104: =IF(P103=0,0,+P103/F104) -> 0 | P104: 0 | Q104: =+J104 -> 0 | R104: 0 | S104: 0 | T104: 0
B105: 11 a 12 anos | C105: 12 | D105: 0.1 | E105: 10 | F105: 0 | G105: 55 | H105: 0 | I105: 0.9 | J105: 0 | K105: 0 | L105: -9.714451465e-17 | M105: 0 | O105: =IF(P104=0,0,+P104/F105) -> 0 | P105: 0 | Q105: 0 | R105: 0 | S105: 0 | T105: 0
B106: 12 a 13 anos | C106: 13 | D106: 0.1 | E106: 10 | F106: 0 | G106: 55 | H106: 0 | I106: 0.9 | J106: 0 | K106: 0 | L106: -9.714451465e-17 | M106: 0 | O106: 0 | P106: 0 | Q106: 0 | R106: 0 | S106: 0 | T106: 0
B107: 13 a 14 anos | C107: 14 | D107: 0.1 | E107: 10 | F107: 0 | G107: 55 | H107: 0 | I107: 0.9 | J107: 0 | K107: 0 | L107: -9.714451465e-17 | M107: 0 | O107: 0 | P107: 0 | Q107: 0 | R107: 0 | S107: 0 | T107: 0
B108: 14 a 15 anos | C108: 15 | D108: 0.1 | E108: 10 | F108: 0 | G108: 55 | H108: 0 | I108: 0.9 | J108: 0 | K108: 0 | L108: -9.714451465e-17 | M108: 0 | O108: 0 | P108: 0 | Q108: 0 | R108: 0 | S108: 0 | T108: 0
B109: + de 15 anos | C109: 16 | D109: 0.1 | E109: 10 | F109: 0 | G109: 55 | H109: 0 | I109: 0.9 | J109: 0 | K109: 0 | L109: -9.714451465e-17 | M109: 0 | O109: 0 | P109: 0 | Q109: 0 | R109: 0 | S109: 0 | T109: 0
B112: Tipo de Bem | F112: =+Consumo!C341 -> Sist. de Bilhetagem monitoramento/validação | O112: =+F112 -> Sist. de Bilhetagem monitoramento/validação
B113: Vida Útil | F113: 5 | G113: ANOS
B114: Valor Residual | F114: 0 | Q114: =+J114 -> 0
B115: Taxa de Remuneração (% ao ano) | F115: =Taxa_remuner -> 0.12 | P115: =+P116-O115 -> 1 | Q115: 0
P116: =1*(1-F114) -> 1 | Q116: 0 | R116: 1
B117: 0 a 1 ano | C117: 1 | D117: =+F114 -> 0 | E117: =+F113 -> 5 | F117: =+E117 -> 5 | G117: =+E117*(1+E117)/2 -> 15 | H117: =ROUND((1-(1*D117))/G117*F117,8) -> 0.33333333 | I117: =+I116+H117 -> 0.33333333 | J117: =IF(F117=1,1*D117,0) -> 0 | K117: =1-I117 -> 0.66666667 | L117: 1 | M117: =ROUND(+L117*Taxa_remuner,8) -> 0.12 | O117: =IF(P116=0,0,+P116/F117) -> 0.2 | P117: =+P116-O117 -> 0.8 | Q117: 0 | R117: =+R116-O117-Q117 -> 0.8 | S117: 1 | T117: =ROUND(+S117*Taxa_remuner,8) -> 0.12
B118: 1 a 2 anos | C118: =+C117+1 -> 2 | D118: =+D117 -> 0 | E118: =+E117 -> 5 | F118: =IF(F117<2,0,F117-1) -> 4 | G118: =+E118*(1+E118)/2 -> 15 | H118: =ROUND((1-(1*D118))/G118*F118,8) -> 0.26666667 | I118: 0.6 | J118: 0 | K118: 0.4 | L118: =+L117-H117-J118 -> 0.66666667 | M118: 0.08 | O118: 0.2 | P118: 0.6 | Q118: 0 | R118: =+R117-O118-Q118 -> 0.6 | S118: =+S117-O117-Q117 -> 0.8 | T118: 0.096
B119: 2 a 3 anos | C119: 3 | D119: =+D118 -> 0 | E119: 5 | F119: 3 | G119: =+E119*(1+E119)/2 -> 15 | H119: =ROUND((1-(1*D119))/G119*F119,8) -> 0.2 | I119: 0.8 | J119: 0 | K119: 0.2 | L119: 0.4 | M119: 0.048 | O119: 0.2 | P119: 0.4 | Q119: 0 | R119: 0.4 | S119: 0.6 | T119: 0.072
B120: 3 a 4 anos | C120: 4 | D120: 0 | E120: 5 | F120: 2 | G120: 15 | H120: 0.13333333 | I120: 0.93333333 | J120: 0 | K120: 0.06666667 | L120: 0.2 | M120: 0.024 | O120: 0.2 | P120: 0.2 | Q120: 0 | R120: 0.2 | S120: 0.4 | T120: 0.048
B121: 4 a 5 anos | C121: 5 | D121: 0 | E121: 5 | F121: 1 | G121: 15 | H121: 0.06666667 | I121: 1 | J121: 0 | K121: 0 | L121: 0.06666667 | M121: 0.008 | O121: 0.2 | P121: 0 | Q121: 0 | R121: 0 | S121: 0.2 | T121: 0.024
B122: 5 a 6 anos | C122: 6 | D122: 0 | E122: 5 | F122: 0 | G122: 15 | H122: 0 | I122: 1 | J122: 0 | K122: 0 | L122: 1.387778781e-17 | M122: 0 | O122: 0 | P122: 0 | Q122: 0 | R122: 0 | S122: 0 | T122: 0
B123: 6 a 7 anos | C123: 7 | D123: 0 | E123: 5 | F123: 0 | G123: 15 | H123: 0 | I123: 1 | J123: 0 | K123: =+K122-H123-J123 -> 0 | L123: 1.387778781e-17 | M123: 0 | O123: 0 | P123: 0 | Q123: 0 | R123: 0 | S123: 0 | T123: 0
B124: 7 a 8 anos | C124: 8 | D124: 0 | E124: 5 | F124: 0 | G124: 15 | H124: 0 | I124: 1 | J124: 0 | K124: =+K123-H124-J124 -> 0 | L124: 1.387778781e-17 | M124: 0 | O124: 0 | P124: 0 | Q124: 0 | R124: 0 | S124: 0 | T124: 0
B125: 8 a 9 anos | C125: 9 | D125: 0 | E125: 5 | F125: 0 | G125: 15 | H125: 0 | I125: 1 | J125: 0 | K125: =+K124-H125-J125 -> 0 | L125: 1.387778781e-17 | M125: 0 | O125: 0 | P125: 0 | Q125: 0 | R125: =+R124-O125-Q125 -> 0 | S125: 0 | T125: 0
B126: 9 a 10 anos | C126: 10 | D126: 0 | E126: 5 | F126: 0 | G126: 15 | H126: 0 | I126: 1 | J126: 0 | K126: 0 | L126: 1.387778781e-17 | M126: 0 | O126: 0 | P126: 0 | Q126: =+J126 -> 0 | R126: =+R125-O126-Q126 -> 0 | S126: 0 | T126: 0
B127: 10 a 11 anos | C127: 11 | D127: 0 | E127: 5 | F127: 0 | G127: 15 | H127: 0 | I127: 1 | J127: 0 | K127: 0 | L127: 1.387778781e-17 | M127: 0 | O127: =IF(P126=0,0,+P126/F127) -> 0 | P127: 0 | Q127: =+J127 -> 0 | R127: 0 | S127: 0 | T127: 0
B128: 11 a 12 anos | C128: 12 | D128: 0 | E128: 5 | F128: 0 | G128: 15 | H128: 0 | I128: 1 | J128: 0 | K128: 0 | L128: 1.387778781e-17 | M128: 0 | O128: =IF(P127=0,0,+P127/F128) -> 0 | P128: 0 | Q128: 0 | R128: 0 | S128: 0 | T128: 0
B129: 12 a 13 anos | C129: 13 | D129: 0 | E129: 5 | F129: 0 | G129: 15 | H129: 0 | I129: 1 | J129: 0 | K129: 0 | L129: 1.387778781e-17 | M129: 0 | O129: 0 | P129: 0 | Q129: 0 | R129: 0 | S129: 0 | T129: 0
B130: 13 a 14 anos | C130: 14 | D130: 0 | E130: 5 | F130: 0 | G130: 15 | H130: 0 | I130: 1 | J130: 0 | K130: 0 | L130: 1.387778781e-17 | M130: 0 | O130: 0 | P130: 0 | Q130: 0 | R130: 0 | S130: 0 | T130: 0
B131: 14 a 15 anos | C131: 15 | D131: 0 | E131: 5 | F131: 0 | G131: 15 | H131: 0 | I131: 1 | J131: 0 | K131: 0 | L131: 1.387778781e-17 | M131: 0 | O131: 0 | P131: 0 | Q131: 0 | R131: 0 | S131: 0 | T131: 0
B132: + de 15 anos | C132: 16 | D132: 0 | E132: 5 | F132: 0 | G132: 15 | H132: 0 | I132: 1 | J132: 0 | K132: 0 | L132: 1.387778781e-17 | M132: 0 | O132: 0 | P132: 0 | Q132: 0 | R132: 0 | S132: 0 | T132: 0
B135: Tipo de Bem | F135: =+Consumo!C342 -> Maquinas, Instalações e Equipamentos | O135: =+F135 -> Maquinas, Instalações e Equipamentos
B136: Vida Útil | F136: =+Consumo!K346 -> 10 | G136: ANOS
B137: Valor Residual | F137: =+Consumo!K342 -> 0 | Q137: =+J137 -> 0
B138: Taxa de Remuneração (% ao ano) | F138: =Taxa_remuner -> 0.12 | P138: =+P139-O138 -> 1 | Q138: 0
P139: =1*(1-F137) -> 1 | Q139: 0 | R139: 1
B140: 0 a 1 ano | C140: 1 | D140: =+F137 -> 0 | E140: =+F136 -> 10 | F140: =+E140 -> 10 | G140: =+E140*(1+E140)/2 -> 55 | H140: =ROUND((1-(1*D140))/G140*F140,8) -> 0.18181818 | I140: =+I139+H140 -> 0.18181818 | J140: =IF(F140=1,1*D140,0) -> 0 | K140: =1-I140 -> 0.81818182 | L140: 1 | M140: =ROUND(+L140*Taxa_remuner,8) -> 0.12 | O140: =IF(P139=0,0,+P139/F140) -> 0.1 | P140: =+P139-O140 -> 0.9 | Q140: 0 | R140: =+R139-O140-Q140 -> 0.9 | S140: 1 | T140: =ROUND(+S140*Taxa_remuner,8) -> 0.12
B141: 1 a 2 anos | C141: =+C140+1 -> 2 | D141: =+D140 -> 0 | E141: =+E140 -> 10 | F141: =IF(F140<2,0,F140-1) -> 9 | G141: =+E141*(1+E141)/2 -> 55 | H141: =ROUND((1-(1*D141))/G141*F141,8) -> 0.16363636 | I141: 0.34545454 | J141: 0 | K141: 0.65454546 | L141: =+L140-H140-J141 -> 0.81818182 | M141: 0.09818182 | O141: 0.1 | P141: 0.8 | Q141: 0 | R141: =+R140-O141-Q141 -> 0.8 | S141: =+S140-O140-Q140 -> 0.9 | T141: 0.108
B142: 2 a 3 anos | C142: 3 | D142: =+D141 -> 0 | E142: 10 | F142: 8 | G142: =+E142*(1+E142)/2 -> 55 | H142: =ROUND((1-(1*D142))/G142*F142,8) -> 0.14545455 | I142: 0.49090909 | J142: 0 | K142: 0.50909091 | L142: 0.65454546 | M142: 0.07854546 | O142: 0.1 | P142: 0.7 | Q142: 0 | R142: 0.7 | S142: 0.8 | T142: 0.096
B143: 3 a 4 anos | C143: 4 | D143: =+D142 -> 0 | E143: 10 | F143: 7 | G143: 55 | H143: 0.12727273 | I143: 0.61818182 | J143: 0 | K143: 0.38181818 | L143: 0.50909091 | M143: 0.06109091 | O143: 0.1 | P143: 0.6 | Q143: 0 | R143: 0.6 | S143: 0.7 | T143: 0.084
B144: 4 a 5 anos | C144: 5 | D144: =+D143 -> 0 | E144: 10 | F144: 6 | G144: 55 | H144: 0.10909091 | I144: 0.72727273 | J144: 0 | K144: 0.27272727 | L144: 0.38181818 | M144: 0.04581818 | O144: 0.1 | P144: 0.5 | Q144: 0 | R144: 0.5 | S144: 0.6 | T144: 0.072
B145: 5 a 6 anos | C145: 6 | D145: =+D144 -> 0 | E145: 10 | F145: 5 | G145: 55 | H145: 0.09090909 | I145: 0.81818182 | J145: 0 | K145: 0.18181818 | L145: 0.27272727 | M145: 0.03272727 | O145: 0.1 | P145: 0.4 | Q145: 0 | R145: 0.4 | S145: 0.5 | T145: 0.06
B146: 6 a 7 anos | C146: 7 | D146: =+D145 -> 0 | E146: 10 | F146: 4 | G146: 55 | H146: 0.07272727 | I146: 0.89090909 | J146: 0 | K146: =+K145-H146-J146 -> 0.10909091 | L146: 0.18181818 | M146: 0.02181818 | O146: 0.1 | P146: 0.3 | Q146: 0 | R146: 0.3 | S146: 0.4 | T146: 0.048
B147: 7 a 8 anos | C147: 8 | D147: =+D146 -> 0 | E147: 10 | F147: 3 | G147: 55 | H147: 0.05454545 | I147: 0.94545454 | J147: 0 | K147: =+K146-H147-J147 -> 0.05454546 | L147: 0.10909091 | M147: 0.01309091 | O147: 0.1 | P147: 0.2 | Q147: 0 | R147: 0.2 | S147: 0.3 | T147: 0.036
B148: 8 a 9 anos | C148: 9 | D148: =+D147 -> 0 | E148: 10 | F148: 2 | G148: 55 | H148: 0.03636364 | I148: 0.98181818 | J148: 0 | K148: =+K147-H148-J148 -> 0.01818182 | L148: 0.05454546 | M148: 0.00654546 | O148: 0.1 | P148: 0.1 | Q148: 0 | R148: =+R147-O148-Q148 -> 0.1 | S148: 0.2 | T148: 0.024
B149: 9 a 10 anos | C149: 10 | D149: =+D148 -> 0 | E149: 10 | F149: 1 | G149: 55 | H149: 0.01818182 | I149: 1 | J149: 0 | K149: -6.245004514e-17 | L149: 0.01818182 | M149: 0.00218182 | O149: 0.1 | P149: 0 | Q149: =+J149 -> 0 | R149: =+R148-O149-Q149 -> 0 | S149: 0.1 | T149: 0.012
B150: 10 a 11 anos | C150: 11 | D150: =+D149 -> 0 | E150: 10 | F150: 0 | G150: 55 | H150: 0 | I150: 1 | J150: 0 | K150: -6.245004514e-17 | L150: -3.469446952e-17 | M150: 0 | O150: =IF(P149=0,0,+P149/F150) -> 0 | P150: 0 | Q150: =+J150 -> 0 | R150: 0 | S150: 0 | T150: 0
B151: 11 a 12 anos | C151: 12 | D151: =+D150 -> 0 | E151: 10 | F151: 0 | G151: 55 | H151: 0 | I151: 1 | J151: 0 | K151: -6.245004514e-17 | L151: -3.469446952e-17 | M151: 0 | O151: =IF(P150=0,0,+P150/F151) -> 0 | P151: 0 | Q151: 0 | R151: 0 | S151: 0 | T151: 0
B152: 12 a 13 anos | C152: 13 | D152: =+D151 -> 0 | E152: 10 | F152: 0 | G152: 55 | H152: 0 | I152: 1 | J152: 0 | K152: -6.245004514e-17 | L152: -3.469446952e-17 | M152: 0 | O152: 0 | P152: 0 | Q152: 0 | R152: 0 | S152: 0 | T152: 0
B153: 13 a 14 anos | C153: 14 | D153: =+D152 -> 0 | E153: 10 | F153: 0 | G153: 55 | H153: 0 | I153: 1 | J153: 0 | K153: -6.245004514e-17 | L153: -3.469446952e-17 | M153: 0 | O153: 0 | P153: 0 | Q153: 0 | R153: 0 | S153: 0 | T153: 0
B154: 14 a 15 anos | C154: 15 | D154: =+D153 -> 0 | E154: 10 | F154: 0 | G154: 55 | H154: 0 | I154: 1 | J154: 0 | K154: -6.245004514e-17 | L154: -3.469446952e-17 | M154: 0 | O154: 0 | P154: 0 | Q154: 0 | R154: 0 | S154: 0 | T154: 0
B155: + de 15 anos | C155: 16 | D155: =+D154 -> 0 | E155: 10 | F155: 0 | G155: 55 | H155: 0 | I155: 1 | J155: 0 | K155: -6.245004514e-17 | L155: -3.469446952e-17 | M155: 0 | O155: 0 | P155: 0 | Q155: 0 | R155: 0 | S155: 0 | T155: 0
B158: Tipo de Bem | F158: CONSTRUÇÕES
B159: Vida Útil | F159: 20 | G159: ANOS
B160: Valor Residual | F160: 0.5 | G160: DEPRECIAÇÃO LINEAR
B161: Taxa de Remuneração (% ao ano) | F161: =Taxa_remuner -> 0.12
B163: =CONCATENATE("",C163-1," a ",C163," anos") -> 0 a 1 anos | C163: 1 | D163: =+F160 -> 0.5 | E163: =+F159 -> 20 | F163: =+F159 -> 20 | H163: =IF(F163=0,0,(1-(1*D163))/E163) -> 0.025 | I163: =+I162+H163 -> 0.025 | J163: =IF(F163=1,1*D163,0) -> 0 | K163: =1-I163 -> 0.975 | L163: 1 | M163: =ROUND(+L163*Taxa_remuner,8) -> 0.12
B164: 1 a 2 anos | C164: =+C163+1 -> 2 | D164: =+D163 -> 0.5 | E164: =+E163 -> 20 | F164: =IF(F163<2,0,F163-1) -> 19 | H164: =IF(F164=0,0,(1-(1*D164))/E164) -> 0.025 | I164: 0.05 | J164: 0 | K164: 0.95 | L164: =+L163-H163-J163 -> 0.975 | M164: 0.117
B165: 2 a 3 anos | C165: 3 | D165: 0.5 | E165: 20 | F165: 18 | H165: =IF(F165=0,0,(1-(1*D165))/E165) -> 0.025 | I165: 0.075 | J165: 0 | K165: 0.925 | L165: =+L164-H164-J164 -> 0.95 | M165: 0.114
B166: 3 a 4 anos | C166: 4 | D166: 0.5 | E166: 20 | F166: 17 | H166: =IF(F166=0,0,(1-(1*D166))/E166) -> 0.025 | I166: 0.1 | J166: 0 | K166: 0.9 | L166: 0.925 | M166: 0.111
B167: 4 a 5 anos | C167: 5 | D167: 0.5 | E167: 20 | F167: 16 | H167: =IF(F167=0,0,(1-(1*D167))/E167) -> 0.025 | I167: 0.125 | J167: 0 | K167: 0.875 | L167: 0.9 | M167: 0.108
B168: 5 a 6 anos | C168: 6 | D168: 0.5 | E168: 20 | F168: 15 | H168: 0.025 | I168: 0.15 | J168: 0 | K168: 0.85 | L168: 0.875 | M168: 0.105
B169: 6 a 7 anos | C169: 7 | D169: 0.5 | E169: 20 | F169: 14 | H169: 0.025 | I169: 0.175 | J169: 0 | K169: =+K168-H169-J169 -> 0.825 | L169: 0.85 | M169: 0.102
B170: 7 a 8 anos | C170: 8 | D170: 0.5 | E170: 20 | F170: 13 | H170: 0.025 | I170: 0.2 | J170: 0 | K170: =+K169-H170-J170 -> 0.8 | L170: 0.825 | M170: 0.099
B171: =CONCATENATE("",C171-1," a ",C171," anos") -> 8 a 9 anos | C171: 9 | D171: 0.5 | E171: 20 | F171: 12 | H171: 0.025 | I171: =+I170+H171 -> 0.225 | J171: =IF(F171=1,1*D171,0) -> 0 | K171: =+K170-H171-J171 -> 0.775 | L171: 0.8 | M171: 0.096
B172: 9 a 10 anos | C172: 10 | D172: 0.5 | E172: 20 | F172: 11 | H172: 0.025 | I172: 0.25 | J172: 0 | K172: 0.75 | L172: 0.775 | M172: 0.093
B173: 10 a 11 anos | C173: 11 | D173: 0.5 | E173: 20 | F173: 10 | H173: 0.025 | I173: 0.275 | J173: 0 | K173: 0.725 | L173: 0.75 | M173: 0.09
B174: 11 a 12 anos | C174: 12 | D174: 0.5 | E174: 20 | F174: 9 | H174: 0.025 | I174: 0.3 | J174: 0 | K174: 0.7 | L174: 0.725 | M174: 0.087
B175: 12 a 13 anos | C175: 13 | D175: 0.5 | E175: 20 | F175: 8 | H175: 0.025 | I175: 0.325 | J175: 0 | K175: 0.675 | L175: 0.7 | M175: 0.084
B176: 13 a 14 anos | C176: 14 | D176: 0.5 | E176: 20 | F176: 7 | H176: 0.025 | I176: 0.35 | J176: 0 | K176: 0.65 | L176: 0.675 | M176: 0.081
B177: 14 a 15 anos | C177: 15 | D177: 0.5 | E177: 20 | F177: 6 | H177: 0.025 | I177: 0.375 | J177: 0 | K177: 0.625 | L177: 0.65 | M177: 0.078
B178: 15 a 16 anos | C178: 16 | D178: 0.5 | E178: 20 | F178: 5 | H178: 0.025 | I178: 0.4 | J178: 0 | K178: 0.6 | L178: 0.625 | M178: 0.075
B179: 16 a 17 anos | C179: 17 | D179: 0.5 | E179: 20 | F179: 4 | H179: 0.025 | I179: 0.425 | J179: 0 | K179: 0.575 | L179: 0.6 | M179: 0.072
B180: 17 a 18 anos | C180: 18 | D180: 0.5 | E180: 20 | F180: 3 | H180: 0.025 | I180: 0.45 | J180: 0 | K180: 0.55 | L180: 0.575 | M180: 0.069
B181: 18 a 19 anos | C181: 19 | D181: 0.5 | E181: 20 | F181: 2 | H181: 0.025 | I181: 0.475 | J181: 0 | K181: 0.525 | L181: 0.55 | M181: 0.066
B182: 19 a 20 anos | C182: 20 | D182: 0.5 | E182: 20 | F182: 1 | H182: 0.025 | I182: 0.5 | J182: 0.5 | K182: 0 | L182: 0.525 | M182: 0.063
B183: 20 a 21 anos | C183: 21 | D183: 0.5 | E183: 20 | F183: 0 | H183: 0 | I183: 0.5 | J183: 0 | K183: 0 | L183: -4.440892099e-16 | M183: 0
B184: 21 a 22 anos | C184: 22 | D184: 0.5 | E184: 20 | F184: 0 | H184: 0 | I184: 0.5 | J184: 0 | K184: 0 | L184: -4.440892099e-16 | M184: 0
B185: 22 a 23 anos | C185: 23 | D185: 0.5 | E185: 20 | F185: 0 | H185: 0 | I185: 0.5 | J185: 0 | K185: 0 | L185: -4.440892099e-16 | M185: 0
B186: 23 a 24 anos | C186: 24 | D186: 0.5 | E186: 20 | F186: 0 | H186: 0 | I186: 0.5 | J186: 0 | K186: 0 | L186: =+L185-H185-J186 -> -4.440892099e-16 | M186: 0
B187: =CONCATENATE("",C187-1," a ",C187," anos") -> 24 a 25 anos | C187: 25 | D187: 0.5 | E187: 20 | F187: 0 | H187: 0 | I187: =+I186+H187 -> 0.5 | J187: =IF(F187=1,1*D187,0) -> 0 | K187: =+K186-H187-J187 -> 0 | L187: -4.440892099e-16 | M187: 0

Sheet Hist_Combustivel
B2: =+Titulo_01 -> PREFEITURA MUNICIPAL DE CHAPECO
B3: =+Titulo_02 -> SECRETARIA DE DEFESA DO CIDADÃO
B4: =+Titulo_03 -> SISTEMA DE TRANSPORTE PÚBLICO DE PASSAGEIROS
B5: Controle Custo Combustível
C7: Discriminação | D7: Micro Onibus | E7: Leve | F7: Pesado | G7: Articulado | H7: TOTAL
C9: Frota Operante | D9: 0 | E9: 14 | F9: 51 | G9: 1 | H9: =SUM(D9:G9) -> 66 | R9: =+Consumo!K161 -> 0.25
C10: Coeficiente de consumo | D10: 0.25 | E10: 0.35 | F10: 0.42 | G10: 0.55 | H10: =+H12/H9/H11 -> 0.4071212121 | R10: =+Consumo!K162 -> 0.35
C11: PMM - Percurso Médio Mensal por Veiculo | D11: =+Consumo!K53 -> 5033 | E11: =+D11 -> 5033 | F11: =+E11 -> 5033 | G11: =+F11 -> 5033 | H11: =+G11 -> 5033 | R11: =+Consumo!K163 -> 0.42
C12: Consumo de combustivel mês (litros) | D12: =+D9*D10*D11 -> 0 | E12: =+E9*E10*E11 -> 24661.7 | F12: =+F9*F10*F11 -> 107806.86 | G12: =+G9*G10*G11 -> 2768.15 | H12: =SUM(D12:G12) -> 135236.71 | R12: =+Consumo!K164 -> 0.55
C14: Frota Operante | D14: 0 | E14: 14 | F14: 51 | G14: 1 | H14: =SUM(D14:G14) -> 66
C15: Coeficiente de consumo | D15: =+D10 -> 0.25 | E15: =+E10 -> 0.35 | F15: 0.45 | G15: 0.55 | H15: =+H17/H14/H16 -> 0.4303030303
C16: PMM - Percurso Médio Mensal por Veiculo | D16: =+D11 -> 5033 | E16: =+D16 -> 5033 | F16: =+E16 -> 5033 | G16: =+F16 -> 5033 | H16: =+G16 -> 5033
C17: Consumo de combustivel mês (litros) | D17: =+D14*D15*D16 -> 0 | E17: =+E14*E15*E16 -> 24661.7 | F17: =+F14*F15*F16 -> 115507.35 | G17: =+G14*G15*G16 -> 2768.15 | H17: =SUM(D17:G17) -> 142937.2
B19: DATA | C19: Fornecedor | D19: Nota Fiscal | E19: tipo | F19: Quantidade Litros | G19: Unitário | H19: Valor | J19: Quant acum | K19: Valor acum | L19: Média p/ Litros | N19: Media mês
B21: 2017-07-28 | C21: Safra Diesel Ltda | D21: 83098 | E21: S-10 | F21: 15000 | G21: 2.57 | H21: =+F21*G21 -> 38550 | J21: =+J20+F21 -> 15000 | K21: =+K20+H21 -> 38550 | L21: =+K21/J21 -> 2.57
B22: 2017-07-28 | C22: Safra Diesel Ltda | D22: 83098 | E22: S-500 | F22: 10000 | G22: 2.51 | H22: 25100 | J22: =+J21+F22 -> 25000 | K22: 63650 | L22: 2.546
B23: 2017-07-04 | C23: Maxsul Distribuidora de Combustiveis Ltda | D23: 102499 | E23: S-500 | F23: 10000 | G23: 2.36 | H23: 23600 | J23: =+J22+F23 -> 35000 | K23: 87250 | L23: 2.492857143
B24: 2017-07-04 | C24: Maxsul Distribuidora de Combustiveis Ltda | D24: 102603 | E24: S-10 | F24: 10000 | G24: 2.43 | H24: 24300 | J24: =+J23+F24 -> 45000 | K24: 111550 | L24: 2.478888889
B25: 2017-07-10 | C25: Maxsul Distribuidora de Combustiveis Ltda | D25: 103163 | E25: S-10 | F25: 10000 | G25: 2.43 | H25: 24300 | J25: 55000 | K25: 135850 | L25: 2.47
B26: 2017-07-10 | C26: Maxsul Distribuidora de Combustiveis Ltda | D26: 103164 | E26: S-500 | F26: 10000 | G26: 2.369 | H26: 23690 | J26: 65000 | K26: 159540 | L26: 2.454461538
B27: 2017-07-17 | C27: Maxsul Distribuidora de Combustiveis Ltda | D27: 103702 | E27: S-10 | F27: 13000 | G27: 2.415 | H27: 31395 | J27: 78000 | K27: 190935 | L27: 2.447884615
B28: 2017-07-17 | C28: Maxsul Distribuidora de Combustiveis Ltda | D28: 103703 | E28: S-500 | F28: 10000 | G28: 2.354 | H28: 23540 | J28: 88000 | K28: 214475 | L28: 2.437215909
B29: 2017-07-20 | C29: Maxsul Distribuidora de Combustiveis Ltda | D29: 104116 | E29: S-500 | F29: 10000 | G29: 2.384 | H29: 23840 | J29: 98000 | K29: 238315 | L29: 2.431785714
B30: 2017-07-20 | C30: Maxsul Distribuidora de Combustiveis Ltda | D30: 104117 | E30: S-10 | F30: 15000 | G30: 2.445 | H30: 36675 | J30: 113000 | K30: 274990 | L30: 2.433539823 | N30: =+J30/5000/66 -> 0.3424242424
B32: 2017-08-04 | C32: Safra Diesel Ltda | D32: 83426 | E32: S-500 | F32: 10000 | G32: 2.61 | H32: =+F32*G32 -> 26100 | J32: =+J6+F32 -> 10000 | K32: =+K6+H32 -> 26100 | L32: =+K32/J32 -> 2.61
B33: 2017-08-04 | C33: Safra Diesel Ltda | D33: 83426 | E33: S-10 | F33: 15000 | G33: 2.67 | H33: 40050 | J33: =+J32+F33 -> 25000 | K33: =+K32+H33 -> 66150 | L33: 2.646
B34: 2017-08-09 | C34: Maxsul Distribuidora de Combustiveis Ltda | D34: 105897 | E34: S-500 | F34: 8000 | G34: 2.595 | H34: 20760 | J34: =+J33+F34 -> 33000 | K34: 86910 | L34: 2.633636364
B35: 2017-08-09 | C35: Maxsul Distribuidora de Combustiveis Ltda | D35: 105898 | E35: S-10 | F35: 15000 | G35: 2.645 | H35: 39675 | J35: =+J34+F35 -> 48000 | K35: 126585 | L35: 2.6371875
B36: 2017-08-16 | C36: Maxsul Distribuidora de Combustiveis Ltda | D36: 106449 | E36: S-500 | F36: 10000 | G36: 2.6 | H36: 26000 | J36: 58000 | K36: 152585 | L36: 2.630775862
B37: 2017-08-16 | C37: Maxsul Distribuidora de Combustiveis Ltda | D37: 106450 | E37: S-10 | F37: 15000 | G37: 2.65 | H37: 39750 | J37: 73000 | K37: 192335 | L37: 2.634726027
B38: 2017-08-23 | C38: Maxsul Distribuidora de Combustiveis Ltda | D38: 107045 | E38: S-10 | F38: 15000 | G38: 2.665 | H38: 39975 | J38: 88000 | K38: 232310 | L38: 2.639886364
B39: 2017-08-23 | C39: Maxsul Distribuidora de Combustiveis Ltda | D39: 107047 | E39: S-500 | F39: 10000 | G39: 2.615 | H39: 26150 | J39: 98000 | K39: 258460 | L39: 2.637346939
B40: 2017-08-30 | C40: Maxsul Distribuidora de Combustiveis Ltda | D40: 107661 | E40: S-500 | F40: 10000 | G40: 2.67 | H40: 26700 | J40: 108000 | K40: 285160 | L40: 2.64037037
B41: 2017-08-30 | C41: Maxsul Distribuidora de Combustiveis Ltda | D41: 107662 | E41: S-10 | F41: 15000 | G41: 2.72 | H41: 40800 | J41: 123000 | K41: 325960 | L41: 2.650081301 | N41: =+J41/5000/66 -> 0.3727272727
B43: 2017-09-04 | C43: Maxsul Distribuidora de Combustiveis Ltda | D43: 108028 | E43: S-500 | F43: 10000 | G43: 2.81 | H43: =+F43*G43 -> 28100 | J43: =+J20+F43 -> 10000 | K43: =+K20+H43 -> 28100 | L43: =+K43/J43 -> 2.81
B44: 2017-09-04 | C44: Maxsul Distribuidora de Combustiveis Ltda | D44: 108029 | E44: S-10 | F44: 10000 | G44: 2.86 | H44: 28600 | J44: =+J43+F44 -> 20000 | K44: =+K43+H44 -> 56700 | L44: 2.835
B45: 2017-09-08 | C45: Safra Diesel Ltda | D45: 85088 | E45: S-10 | F45: 12000 | G45: 2.85 | H45: 34200 | J45: =+J44+F45 -> 32000 | K45: 90900 | L45: 2.840625
B46: 2017-09-08 | C46: Safra Diesel Ltda | D46: 85088 | E46: S-500 | F46: 10000 | G46: 2.76 | H46: 27600 | J46: =+J45+F46 -> 42000 | K46: 118500 | L46: 2.821428571
B47: 2017-09-14 | C47: Safra Diesel Ltda | D47: 85380 | E47: S-500 | F47: 10000 | G47: 2.76 | H47: 27600 | J47: 52000 | K47: 146100 | L47: 2.809615385
B48: 2017-09-14 | C48: Safra Diesel Ltda | D48: 85380 | E48: S-10 | F48: 10000 | G48: 2.85 | H48: 28500 | J48: 62000 | K48: 174600 | L48: 2.816129032
B49: 2017-09-20 | C49: Maxsul Distribuidora de Combustiveis Ltda | D49: 109009 | E49: S-500 | F49: 10000 | G49: 2.775 | H49: 27750 | J49: 72000 | K49: 202350 | L49: 2.810416667
B50: 2017-09-20 | C50: Maxsul Distribuidora de Combustiveis Ltda | D50: 109008 | E50: S-10 | F50: 13000 | G50: 2.855 | H50: 37115 | J50: 85000 | K50: 239465 | L50: 2.817235294
B51: 2017-09-25 | C51: Abastecedoroa Gral Ltda | D51: 100450 | E51: S-10 | F51: 15000 | G51: 2.82 | H51: 42300 | J51: 100000 | K51: 281765 | L51: 2.81765
B52: 2017-09-25 | C52: Abastecedoroa Gral Ltda | D52: 100451 | E52: S-500 | F52: 10000 | G52: 2.74 | H52: 27400 | J52: 110000 | K52: 309165 | L52: 2.810590909 | N52: =+J52/5000/66 -> 0.3333333333
B53: 2017-09-29 | C53: Abastecedoroa Gral Ltda | D53: 100831 | E53: S-10 | F53: 15000 | G53: 2.88 | H53: 43200 | J53: 125000 | K53: 352365 | L53: =+K53/J53 -> 2.81892 | N53: =+J53/5000/66 -> 0.3787878788
B54: 2017-09-29 | C54: Abastecedoroa Gral Ltda | D54: 100832 | E54: S-500 | F54: 10000 | G54: 2.8 | H54: 28000 | J54: 135000 | K54: 380365 | L54: =+K54/J54 -> 2.817518519 | N54: =+J54/5000/66 -> 0.4090909091
B56: 2017-10-06 | C56: Maxsul Distribuidora de Combustiveis Ltda | D56: 110032 | E56: S-10 | F56: 15000 | G56: 2.8 | H56: =+F56*G56 -> 42000 | J56: =+J55+F56 -> 15000 | K56: =+K55+H56 -> 42000 | L56: =+K56/J56 -> 2.8
B57: 2017-10-06 | C57: Maxsul Distribuidora de Combustiveis Ltda | D57: 110033 | E57: S-500 | F57: 8000 | G57: 2.72 | H57: 21760 | J57: 23000 | K57: 63760 | L57: 2.772173913
B58: 2017-10-11 | C58: Maxsul Distribuidora de Combustiveis Ltda | D58: 110388 | E58: S-10 | F58: 13000 | G58: 2.79 | H58: 36270 | J58: 36000 | K58: 100030 | L58: 2.778611111
B59: 2017-10-17 | C59: Safra Diesel Ltda | D59: 86839 | E59: S-10 | F59: 15000 | G59: 2.76 | H59: 41400 | J59: 51000 | K59: 141430 | L59: 2.773137255
B60: 2017-10-17 | C60: Safra Diesel Ltda | D60: 86839 | E60: S-500 | F60: 10000 | G60: 2.67 | H60: 26700 | J60: 61000 | K60: 168130 | L60: 2.756229508
B61: 2017-10-26 | C61: Safra Diesel Ltda | D61: 87332 | E61: S-10 | F61: 15000 | G61: 2.8 | H61: 42000 | J61: 76000 | K61: 210130 | L61: 2.764868421 | N61: =+J61/5000/66 -> 0.2303030303
B63: 2017-11-07 | C63: Maxsul Distribuidora de Combustiveis Ltda | D63: 111984 | E63: S-10 | F63: 15000 | G63: 2.905 | H63: =+F63*G63 -> 43575 | J63: =+J62+F63 -> 15000 | K63: =+K62+H63 -> 43575 | L63: =+K63/J63 -> 2.905
B64: 2017-11-07 | C64: Maxsul Distribuidora de Combustiveis Ltda | D64: 111983 | E64: S-500 | F64: 8000 | G64: 2.825 | H64: 22600 | J64: 23000 | K64: 66175 | L64: 2.877173913
B65: 2017-11-08 | C65: Safra Diesel Ltda | D65: 88312 | E65: S-10 | F65: 20000 | G65: 2.92 | H65: 58400 | J65: 43000 | K65: 124575 | L65: 2.897093023
B66: 2017-11-13 | C66: Safra Diesel Ltda | D66: 88065 | E66: S-10 | F66: 5000 | G66: 2.91 | H66: 14550 | J66: 48000 | K66: 139125 | L66: 2.8984375
B67: 2017-11-13 | C67: Safra Diesel Ltda | D67: 88065 | E67: S-500 | F67: 15000 | G67: 2.88 | H67: 43200 | J67: 63000 | K67: 182325 | L67: 2.894047619
B68: 2017-11-14 | C68: Safra Diesel Ltda | D68: 88187 | E68: S-10 | F68: 10000 | G68: 2.92 | H68: 29200 | J68: 73000 | K68: 211525 | L68: 2.89760274
B69: 2017-11-14 | C69: Safra Diesel Ltda | D69: 88187 | E69: S-500 | F69: 5000 | G69: 2.84 | H69: 14200 | J69: 78000 | K69: 225725 | L69: 2.893910256
B70: 2017-11-24 | C70: Maxsul Distribuidora de Combustiveis Ltda | D70: 113016 | E70: S-10 | F70: 15000 | G70: 2.94 | H70: 44100 | J70: 93000 | K70: 269825 | L70: 2.901344086
B71: 2017-11-24 | C71: Maxsul Distribuidora de Combustiveis Ltda | D71: 113015 | E71: S-500 | F71: 8000 | G71: 2.86 | H71: 22880 | J71: 101000 | K71: 292705 | L71: 2.898069307
B72: 2017-11-28 | C72: Maxsul Distribuidora de Combustiveis Ltda | D72: 113289 | E72: S-10 | F72: 20000 | G72: 2.93 | H72: 58600 | J72: 121000 | K72: 351305 | L72: 2.903347107 | N72: =+J72/5000/66 -> 0.3666666667
B74: 2017-12-05 | C74: Safra Diesel Ltda | D74: 89040 | E74: S-500 | F74: 10000 | G74: 2.8 | H74: =+F74*G74 -> 28000 | J74: =+J73+F74 -> 10000 | K74: =+K73+H74 -> 28000 | L74: =+K74/J74 -> 2.8
B75: 2017-12-05 | C75: Safra Diesel Ltda | D75: 89040 | E75: S-10 | F75: 20000 | G75: 2.86 | H75: 57200 | J75: 30000 | K75: 85200 | L75: 2.84
B76: 2017-12-11 | C76: Maxsul Distribuidora de Combustiveis Ltda | D76: 114173 | E76: S-10 | F76: 20000 | G76: 2.885 | H76: 57700 | J76: 50000 | K76: 142900 | L76: 2.858
B77: 2017-12-18 | C77: Safra Diesel Ltda | D77: 89574 | E77: S-10 | F77: 10000 | G77: 2.9 | H77: 29000 | J77: 60000 | K77: 171900 | L77: 2.865
B78: 2017-12-19 | C78: Safra Diesel Ltda | D78: 89627 | E78: S-500 | F78: 11000 | G78: 2.85 | H78: 31350 | J78: 71000 | K78: 203250 | L78: 2.862676056
B79: 2017-12-20 | C79: Safra Diesel Ltda | D79: 89690 | E79: S-10 | F79: 20000 | G79: 2.9 | H79: 58000 | J79: 91000 | K79: 261250 | L79: 2.870879121
B80: 2017-12-27 | C80: Safra Diesel Ltda | D80: 89861 | E80: S-10 | F80: 20000 | G80: 2.91 | H80: 58200 | J80: 111000 | K80: 319450 | L80: 2.877927928 | N80: =+J80/5000/66 -> 0.3363636364
B82: 2018-01-03 | C82: Safra Diesel Ltda | D82: 90043 | E82: S-10 | F82: 20000 | G82: 2.97 | H82: =+F82*G82 -> 59400 | J82: =+J81+F82 -> 20000 | K82: =+K81+H82 -> 59400 | L82: =+K82/J82 -> 2.97
B83: 2018-01-03 | C83: Safra Diesel Ltda | D83: 90043 | E83: S-500 | F83: 10000 | G83: 2.92 | H83: 29200 | J83: 30000 | K83: 88600 | L83: 2.953333333
B84: 2018-01-10 | C84: Maxsul Distribuidora de Combustiveis Ltda | D84: 115979 | E84: S-10 | F84: 20000 | G84: 2.945 | H84: 58900 | J84: 50000 | K84: 147500 | L84: 2.95
B85: 2018-01-16 | C85: Maxsul Distribuidora de Combustiveis Ltda | D85: 116379 | E85: S-500 | F85: 8000 | G85: 2.905 | H85: 23240 | J85: 58000 | K85: 170740 | L85: 2.943793103
B86: 2018-01-16 | C86: Maxsul Distribuidora de Combustiveis Ltda | D86: 116380 | E86: S-10 | F86: 20000 | G86: 2.965 | H86: 59300 | J86: 78000 | K86: 230040 | L86: 2.949230769
B87: 2018-01-23 | C87: Safra Diesel Ltda | D87: 91196 | E87: S-10 | F87: 20000 | G87: 2.9 | H87: 58000 | J87: 98000 | K87: 288040 | L87: 2.939183673 | N87: =+J87/5000/66 -> 0.296969697
B88: 2018-01-30 | C88: Safra Diesel Ltda | D88: 91195 | E88: S-10 | F88: 10000 | G88: 2.9 | H88: 29000 | J88: 108000 | K88: 317040 | L88: 2.935555556 | N88: =+J88/5000/66 -> 0.3272727273
B89: 2018-01-30 | C89: Safra Diesel Ltda | D89: 91196 | E89: S-500 | F89: 8000 | G89: 2.86 | H89: 22880 | J89: 116000 | K89: 339920 | L89: 2.930344828 | N89: =+J89/5000/66 -> 0.3515151515
B90: 2018-01-31 | C90: Safra Diesel Ltda | D90: 91216 | E90: S-10 | F90: 10000 | G90: 2.9 | H90: =+F90*G90 -> 29000 | J90: 126000 | K90: 368920 | L90: 2.927936508 | N90: =+J90/5000/66 -> 0.3818181818

Sheet Hist_salarial
B2: SISTEMA DE TRANSPORTE COLETIVO URBANO DE CHAPECÓ
B3: SERVIÇO PÚBLICO DE TRANSPORTE COLETIVO URBANO
B4: RESUMO DE VALORES DA FOLHA DE PAGAMENTO - AUTO VIAÇÃO CHAPECO
B6: DATA | C6: FROTA | D6: SALARIO BASE
D7: Motorista | E7: Adic Motorista | F7: Gratificacao motorista | G7: Cobrador | H7: Despachante | I7: Vendas | J7: Oficina | K7: Lavagem | L7: Adm | M7: Gerencia | N7: Total | P7: Enc | Q7: Valor Encargos | R7: Total
B9: 2017-05-31 | C9: 66 | D9: 248287.85 | E9: =12850+12800 -> 25650 | G9: 2098.44 | H9: 22777.77 | I9: 8927.78 | J9: 38124.21 | K9: 14955.7 | L9: 41799.71 | M9: 26937.84 | N9: =SUM(D9:M9) -> 429559.3 | P9: 0.4341 | Q9: =+N9*P9 -> 186471.6921 | R9: =+N9+Q9 -> 616030.9921 | S9: =+R9/C9 -> 9333.802911
B10: =+B9+32-DAY(B9+32) -> 2017-06-30 | C10: =+C9 -> 66 | D10: 244350.76 | E10: =13520.01+12420.01 -> 25940.02 | F10: 43520.01 | G10: 1078 | H10: 25799.66 | I10: 8995.87 | J10: 38898.34 | K10: 15479.75 | L10: 42131.82 | M10: 27054.72 | N10: 473248.95 | P10: =+P9 -> 0.4341 | Q10: =+N10*P10 -> 205437.3692 | R10: =+N10+Q10 -> 678686.3192 | S10: 10283.12605
B11: 2017-07-31 | C11: 66 | D11: 244350.76 | E11: =12136.66+12836.66 -> 24973.32 | G11: 1078 | H11: 24286.61 | I11: 8995.87 | J11: 40515.34 | K11: 12245.75 | L11: 41393.22 | M11: 27054.72 | N11: 424893.59 | P11: =+P10 -> 0.4341 | Q11: 184446.3074 | R11: 609339.8974 | S11: =+R11/C11 -> 9232.422688
B12: 2017-08-31 | C12: 66 | D12: 247792.32 | E12: =13300+12650 -> 25950 | G12: 0 | H12: 24286.61 | I12: 8934 | J12: 35046.87 | K12: 12245.75 | L12: 38654.22 | M12: 20571.96 | N12: 413481.73 | P12: 0.4341 | Q12: 179492.419 | R12: 592974.149 | S12: =+R12/C12 -> 8984.456803
B13: 2017-09-30 | C13: 66 | D13: 246071.54 | E13: =13100+13400 -> 26500 | F13: 46241.39 | G13: 0 | H13: 24286.61 | I13: 8934 | J13: 35046.87 | K13: 12245.75 | L13: 38903.72 | M13: 20571.96 | N13: 458801.84 | P13: 0.4341 | Q13: 199165.8787 | R13: 657967.7187 | S13: 9969.20786
B14: 2017-10-31 | C14: 66 | D14: 239138.42 | E14: 26366.66 | G14: 0 | H14: 23747.61 | I14: 8934 | J14: 35585.87 | K14: 14401.75 | L14: 38903.72 | M14: 20571.96 | N14: 407649.99 | P14: 0.4341 | Q14: 176960.8607 | R14: 584610.8507 | S14: 8857.740162
B15: TOTAL | C15: =SUM(C9:C14) -> 396 | D15: =SUM(D9:D14) -> 1469991.65 | E15: =SUM(E9:E14) -> 155380 | F15: 89761.4 | G15: 4254.44 | H15: 145184.87 | I15: 53721.52 | J15: 223217.5 | K15: 81574.45 | L15: 241786.41 | M15: 142763.16 | N15: 2607635.4 | P15: 0.4341 | Q15: =SUM(Q9:Q14) -> 1131974.527 | R15: =SUM(R9:R14) -> 3739609.927 | S15: 9443.459412
B17: média | C17: =+C15/6 -> 66 | D17: 244998.6083 | E17: 25896.66667 | F17: 14960.23333 | G17: 709.0733333 | H17: 24197.47833 | I17: 8953.586667 | J17: 37202.91667 | K17: 13595.74167 | L17: 40297.735 | M17: 23793.86 | N17: 434605.9 | Q17: =+Q15/6 -> 188662.4212 | R17: 623268.3212 | S17: 9443.459412
D19: =+D17+E17+F17 -> 285855.5083 | H19: =+H17 -> 24197.47833 | I19: =+I17 -> 8953.586667 | J19: =+J17+K17 -> 50798.65833 | L19: =+L17+M17 -> 64091.595 | N19: =+N17 -> 434605.9
D20: =+D19*$P$15+D19 -> 409945.3845 | H20: =+H19*$P$15+H19 -> 34701.60368 | I20: =+I19*$P$15+I19 -> 12840.33864 | J20: =+J19*$P$15+J19 -> 72850.35592 | L20: =+L19*$P$15+L19 -> 91913.75639 | N20: =+N19*$P$15+N19 -> 623268.3212
D21: =+D20/66 -> 6211.293705 | H21: =+H20/66 -> 525.7818739 | I21: 194.5505854 | J21: 1103.793271 | L21: 1392.632673 | N21: 9443.459412

Sheet Hist_Motorista
B2: =+Titulo_01 -> PREFEITURA MUNICIPAL DE CHAPECO
B3: =+Titulo_02 -> SECRETARIA DE DEFESA DO CIDADÃO
B4: =+Titulo_03 -> SISTEMA DE TRANSPORTE PÚBLICO DE PASSAGEIROS
B5: Controle de Custo Motorista - Auto Viação Chapecó
B7: DATA | C7: FROTA | D7: MOTORISTAS | G7: REMUNERAÇÃO TOTAL | O7: CALCULO TARIFA - AVC | S7: VARIAÇ | U7: Média 12 meses | Y7: VARIAÇ | AA7: FROTA | AB7: MOTORISTAS | AE7: REMUNERAÇÃO TOTAL
D8: ATIVOS | E8: AFAST | F8: TOTAL | G8: Base | H8: Adic | I8: Premiação | J8: Total | K8: MÉDIA | L8: T | M8: FATOR UTILIZ | O8: SALARIO BASE | P8: FATOR UTILIZ | Q8: CUTO TOTAL | U8: SALARIO BASE | V8: FATOR UTILIZ | W8: CUTO TOTAL | AB8: ATIVOS | AC8: AFAST | AD8: TOTAL | AE8: Base | AF8: Adic | AG8: Premiação | AO8: 1 | AP8: 60000 | AQ8: 0.01 | AR8: =+AP8*AQ8 -> 600 | AS8: =+AP8+AR8 -> 60600
AO9: =+AO8+1 -> 2 | AP9: =+AP8 -> 60000 | AQ9: =+AQ8 -> 0.01 | AR9: =+AS8*AQ9 -> 606 | AS9: =+AP9+AR9+AS8 -> 121206
B10: 2015-12-31 | C10: 67 | D10: 129 | E10: 11 | F10: =+D10+E10 -> 140 | G10: 206753.4 | H10: =9500+9500 -> 19000 | I10: 43889.5 | J10: =+G10+H10+I10 -> 269642.9 | K10: =+J10/F10 -> 1926.020714 | L10: 1 | M10: =+F10/C10 -> 2.089552239 | O10: 1932.33 | P10: 2.8 | Q10: =+O10*P10*C10 -> 362505.108 | S10: =+Q10/J10-1 -> 0.3443895908 | AO10: =+AO9+1 -> 3 | AP10: =+AP9 -> 60000 | AQ10: =+AQ9 -> 0.01 | AR10: =+AS9*AQ10 -> 1212.06 | AS10: =+AP10+AR10+AS9 -> 182418.06
B11: 2016-01-31 | C11: 67 | D11: 132 | E11: 10 | F11: 142 | G11: 209707.02 | H11: =10300+10300 -> 20600 | J11: 230307.02 | K11: 1621.880423 | L11: 1 | M11: =+F11/C11 -> 2.119402985 | O11: 1632.87 | P11: =+P10 -> 2.8 | Q11: 306326.412 | S11: 0.3300784839 | AO11: 4 | AP11: 60000 | AQ11: 0.01 | AR11: =+AS10*AQ11 -> 1824.1806 | AS11: 244242.2406
B12: 2016-02-28 | C12: 67 | D12: 130 | E12: 11 | F12: 141 | G12: 208230.21 | H12: =10400+10400 -> 20800 | J12: 229030.21 | K12: 1624.32773 | L12: 1 | M12: =+F12/C12 -> 2.104477612 | O12: 1636.81 | P12: 2.8 | Q12: 307065.556 | S12: 0.3407207547 | AO12: 5 | AP12: 60000 | AQ12: 0.01 | AR12: 2442.422406 | AS12: 306684.663
B13: 2016-03-31 | C13: 67 | D13: 130 | E13: 10 | F13: 140 | G13: 206753.4 | H13: =10900+10650 -> 21550 | I13: 44060.78 | J13: 272364.18 | K13: 1945.458429 | L13: 1 | M13: =+D13/C13 -> 1.940298507 | O13: 1981.51 | P13: 2.8 | Q13: 371731.276 | S13: 0.3648317337 | AO13: 6 | AP13: 60000 | AQ13: 0.01 | AR13: 3066.84663 | AS13: 369751.5096
B14: 2016-04-30 | C14: 67 | D14: 132 | E14: 0 | F14: 132 | G14: 194938.92 | H14: =11200+10800 -> 22000 | J14: 216938.92 | K14: 1643.476667 | L14: 1 | M14: =+D14/C14 -> 1.970149254 | O14: 1643.48 | P14: 2.8 | Q14: 308316.848 | S14: 0.4212150037 | AO14: 7 | AP14: 60000 | AQ14: 0.01 | AR14: 3697.515096 | AS14: 433449.0247
B15: 2016-05-31 | C15: 67 | D15: 132 | E15: 9 | F15: 141 | G15: 228699.18 | H15: =11800+11100 -> 22900 | J15: 251599.18 | K15: 1784.391348 | L15: 1 | M15: =+D15/C15 -> 1.970149254 | O15: 1795.46 | P15: 2.8 | Q15: 336828.296 | S15: 0.3387495778 | AO15: 8 | AP15: 60000 | AQ15: 0.01 | AR15: 4334.490247 | AS15: 497783.515
B16: 2016-06-30 | C16: 67 | D16: 131 | E16: 7 | F16: =+D16+E16 -> 138 | G16: 225455.22 | H16: =11900+11700 -> 23600 | I16: 42270.47 | J16: 291325.69 | K16: 2111.055725 | L16: 1 | M16: =+F16/C16 -> 2.059701493 | O16: 2124.81 | P16: 2.8 | Q16: 398614.356 | S16: 0.3682773943 | AO16: 9 | AP16: 60000 | AQ16: 0.01 | AR16: 4977.83515 | AS16: 562761.3501
B17: 2016-07-31 | C17: 66 | D17: 133 | E17: 9 | F17: 142 | G17: 230321.16 | H17: =11816.66+11166.66 -> 22983.32 | J17: 253304.48 | K17: 1783.834366 | L17: 1 | M17: 2.151515152 | O17: 1794.79 | P17: 2.8 | Q17: 331677.192 | S17: 0.3094012076 | AO17: 10 | AP17: 60000 | AQ17: 0.01 | AR17: 5627.613501 | AS17: 628388.9636
B18: 2016-08-31 | C18: =+C17 -> 66 | D18: 132 | E18: 9 | F18: 141 | G18: 228699.18 | H18: =11250+11900 -> 23150 | J18: 251849.18 | K18: 1786.164397 | L18: 1 | M18: 2.136363636 | O18: 1797.16 | P18: 2.8 | Q18: 332115.168 | S18: 0.3187065687 | AO18: 11 | AP18: 60000 | AQ18: 0.01 | AR18: 6283.889636 | AS18: 694672.8533
B19: =+B18+32-DAY(B18+32) -> 2016-09-30 | C19: =+C18 -> 66 | D19: 131 | E19: 9 | F19: 140 | G19: 227077.2 | H19: =12000+11450 -> 23450 | I19: 44115.31 | J19: 294642.51 | K19: 2104.589357 | L19: 1 | M19: 2.121212121 | O19: 2137.75 | P19: 2.8 | Q19: 395056.2 | S19: 0.3407983797 | AO19: 12 | AP19: 60000 | AQ19: 0.01 | AR19: 6946.728533 | AS19: 761619.5818
B20: =+B19+32-DAY(B19+32) -> 2016-10-31 | C20: 66 | D20: 133 | E20: 10 | F20: 143 | G20: 231943.14 | H20: =12600+11400 -> 24000 | J20: 255943.14 | K20: 1789.812168 | L20: 1 | M20: 2.166666667 | O20: 1802.73 | P20: 2.8 | Q20: 333144.504 | S20: 0.301634824 | AO20: 13 | AP20: 60000 | AQ20: 0.01 | AR20: 7616.195818 | AS20: 829235.7776
B21: 2016-11-30 | C21: 66 | D21: 129 | E21: 10 | F21: 139 | G21: 225455.22 | H21: =12389.99+11639.99 -> 24029.98 | J21: 249485.2 | K21: 1794.857554 | L21: 1 | M21: 2.106060606 | O21: 1808.26 | P21: 2.8 | Q21: 334166.448 | S21: 0.3394239338 | U21: =SUM(AE21:AG21)/AD21 -> 1901.787016 | V21: 2 | W21: =+U21*AD21 -> 266091.7 | Y21: =+W21/G21-1 -> 0.1802419123 | AA21: =IF($C21=0,AA20,SUM(C10:C21)/12) -> 66.58333333 | AB21: =IF($C21=0,AB20,SUM(D10:D21)/12) -> 131.1666667 | AC21: =IF($C21=0,AC20,SUM(E10:E21)/12) -> 8.75 | AD21: =IF($C21=0,AD20,SUM(F10:F21)/12) -> 139.9166667 | AE21: =IF($C21=0,AE20,SUM(G16:G21)/6) -> 228158.52 | AF21: =IF($C21=0,AF20,SUM(H16:H21)/6) -> 23535.55 | AG21: =IF($C21=0,AG20,SUM(I16:I21)/6) -> 14397.63 | AH21: =+G21/F21 -> 1621.98 | AO21: =+AO20+1 -> 14 | AP21: =+AP20 -> 60000 | AQ21: 0.01 | AR21: 8292.357776 | AS21: =+AP21+AR21+AS20 -> 897528.1354
B22: 2016-12-31 | C22: 66 | D22: 131 | E22: 9 | F22: 140 | G22: 227077.2 | H22: =11823.33+11173.33 -> 22996.66 | I22: 47877.98 | J22: 297951.84 | K22: 2128.227429 | L22: 1 | M22: 2.121212121 | O22: 2163.01 | P22: 2.8 | Q22: 399724.248 | S22: 0.3415733496 | U22: 1909.679988 | V22: =+V21 -> 2 | W22: =+U22*AD22 -> 267196.0583 | Y22: 0.1766749737 | AA22: 66.5 | AB22: 131.3333333 | AC22: 8.583333333 | AD22: 139.9166667 | AE22: 228428.85 | AF22: 23434.99333 | AG22: 15332.215 | AH22: 1621.98 | AO22: =+AO21+1 -> 15 | AP22: 60000 | AQ22: 0.01 | AR22: 8975.281354 | AS22: =+AP22+AR22+AS21 -> 966503.4167
B23: 2017-01-31 | C23: 66 | D23: 126 | E23: 8 | F23: 134 | G23: 217345.32 | H23: =11900+11150 -> 23050 | J23: 240395.32 | K23: 1793.994925 | L23: 1 | M23: 2.03030303 | O23: 1804.92 | P23: 2.8 | Q23: 333549.216 | S23: 0.3875029514 | U23: 1903.371861 | V23: 2 | W23: 265044.5317 | Y23: 0.2194627962 | AA23: 66.41666667 | AB23: 130.8333333 | AC23: 8.416666667 | AD23: 139.25 | AE23: 226266.21 | AF23: 23446.10667 | AG23: 15332.215 | AH23: 1621.98 | AO23: =+AO22+1 -> 16 | AP23: 60000 | AQ23: 0.01 | AR23: 9665.034167 | AS23: =+AP23+AR23+AS22 -> 1036168.451
B24: 2017-02-28 | C24: 66 | D24: 131 | E24: 9 | F24: 140 | G24: 227077.2 | H24: =12200+11550 -> 23750 | J24: 250827.2 | K24: 1791.622857 | L24: 1 | M24: 2.121212121 | O24: 1803.28 | P24: 2.8 | Q24: 333246.144 | S24: 0.3285885422 | U24: 1903.287677 | V24: 2 | W24: 264874.2017 | Y24: 0.1664500076 | AA24: 66.33333333 | AB24: 130.9166667 | AC24: 8.25 | AD24: 139.1666667 | AE24: 225995.88 | AF24: 23546.10667 | AG24: 15332.215 | AH24: 1621.98
B25: 2017-03-31 | C25: 66 | D25: 133 | E25: 9 | F25: 142 | G25: 230321.16 | H25: =12000+12500 -> 24500 | I25: 41718.82 | J25: 296539.98 | K25: 2088.309718 | L25: 1 | M25: 2.151515152 | O25: 2119.897 | P25: 2.8 | Q25: 391756.9656 | S25: 0.3210932489 | U25: 1903.280718 | V25: 2 | W25: 265190.4467 | Y25: 0.1513941952 | AA25: 66.25 | AB25: 131.1666667 | AC25: 8.166666667 | AD25: 139.3333333 | AE25: 226536.54 | AF25: 23721.10667 | AG25: 14932.8 | AH25: 1621.98
B26: 2017-04-30 | C26: 66 | D26: 138 | E26: 8 | F26: 146 | G26: 236809.08 | H26: =13300+12200 -> 25500 | J26: 262309.08 | K26: 1796.637534 | L26: 1 | M26: =+F26/C26 -> 2.212121212 | O26: 1899.56 | P26: 2.8 | Q26: 351038.688 | S26: 0.3382635782 | U26: 1895.028019 | V26: 2 | W26: 266251.4367 | Y26: 0.1243295091 | AA26: 66.16666667 | AB26: 131.6666667 | AC26: 8.833333333 | AD26: 140.5 | AE26: 227347.53 | AF26: 23971.10667 | AG26: 14932.8 | AH26: 1621.98
B27: 2017-05-31 | C27: 66 | D27: 137 | E27: 8 | F27: 145 | G27: 248287.85 | H27: =12850+12800 -> 25650 | J27: 273937.85 | K27: 1889.226552 | L27: 1 | M27: 2.196969697 | O27: 1899.56 | P27: 2.8 | Q27: 351038.688 | S27: 0.2814537604 | U27: 1919.480793 | V27: 2 | W27: 270326.8783 | Y27: 0.08876402262 | AA27: 66.08333333 | AB27: 132.0833333 | AC27: 8.75 | AD27: 140.8333333 | AE27: 231152.9683 | AF27: 24241.11 | AG27: 14932.8 | AH27: 1712.33
B28: 2017-06-30 | C28: 66 | D28: 134 | E28: 8 | F28: 142 | G28: 244350.76 | H28: =12420+13520 -> 25940 | I28: 43520 | J28: =+G28+H28+I28 -> 313810.76 | K28: =+J28/F28 -> 2209.93493 | L28: 1 | M28: 2.151515152 | O28: 2239.14 | P28: 2.8 | Q28: 413793.072 | S28: 0.3186070229 | U28: 1933.672007 | V28: 2 | W28: 272970.0317 | Y28: 0.1171237268 | AA28: 66 | AB28: 132.3333333 | AC28: 8.833333333 | AD28: 141.1666667 | AE28: 234031.895 | AF28: 24731.66667 | AG28: 14206.47 | AH28: 1720.78
B29: 2017-07-31 | C29: 66 | D29: 136 | E29: 6 | F29: 142 | G29: 244350.76 | H29: =12836.66+12136.65 -> 24973.31 | J29: =+G29+H29+I29 -> 269324.07 | K29: =+J29/F29 -> 1896.64838 | L29: 1 | M29: 2.151515152 | O29: 1904.41 | P29: 2.8 | Q29: 351934.968 | S29: 0.3067341809 | U29: 1967.826375 | V29: 2 | W29: 277791.49 | Y29: 0.1368554368 | AA29: 66 | AB29: 132.5833333 | AC29: 8.583333333 | AD29: 141.1666667 | AE29: 238532.8017 | AF29: 25052.21833 | AG29: 14206.47 | AH29: 1720.78
B30: 2017-08-31 | C30: 66 | D30: 136 | E30: 8 | F30: 144 | G30: 247792.32 | H30: =12650+13300 -> 25950 | J30: =+G30+H30+I30 -> 273742.32 | K30: =+J30/F30 -> 1900.988333 | L30: 1 | M30: 2.181818182 | O30: 1904.41 | P30: 2.65 | Q30: 333081.309 | S30: 0.2167695116 | U30: 1991.354225 | V30: 2 | W30: 281610.6767 | Y30: 0.1364786312 | AA30: 66 | AB30: 132.9166667 | AC30: 8.5 | AD30: 141.4166667 | AE30: 241985.3217 | AF30: 25418.885 | AG30: 14206.47 | AH30: 1720.78
B31: 2017-09-30 | C31: 66 | D31: 136 | E31: 7 | F31: 143 | G31: 246071.54 | H31: =13400+14100 -> 27500 | I31: 46241.69 | J31: =+G31+H31+I31 -> 319813.23 | K31: =+J31/F31 -> 2236.456154 | L31: 1 | M31: 2.166666667 | O31: 2229.46 | P31: =+P30 -> 2.65 | Q31: 389932.554 | S31: =+Q31/J31-1 -> 0.2192508546 | U31: 2015.220365 | V31: 2 | W31: 285489.5517 | Y31: 0.1601892347 | AA31: 66 | AB31: 133.3333333 | AC31: 8.333333333 | AD31: 141.6666667 | AE31: 244610.385 | AF31: 25918.885 | AG31: 14960.28167 | AH31: 1720.78
B32: 2017-10-31 | C32: 66 | D32: 130 | E32: 9 | F32: 139 | G32: 239138.42 | H32: 26366.66 | J32: =+G32+H32+I32 -> 265505.08 | K32: =+J32/F32 -> 1910.108489 | L32: 1 | M32: 2.106060606 | P32: =+P31 -> 2.65 | Q32: 0 | S32: =+Q32/J32-1 -> -1 | U32: 2023.742111 | V32: 2 | W32: 286022.2183 | Y32: 0.1960529736 | AA32: 66 | AB32: 133.0833333 | AC32: 8.25 | AD32: 141.3333333 | AE32: 244998.6083 | AF32: 26063.32833 | AG32: 14960.28167 | AH32: =+G32/F32 -> 1720.420288
B33: 2017-11-30 | P33: =+P32 -> 2.65 | Q33: 0 | S33: =+Q33/J33-1 ->  | U33: 2023.742111 | V33: 2 | W33: 286022.2183 | AA33: 66 | AB33: 133.0833333 | AC33: 8.25 | AD33: 141.3333333 | AE33: 244998.6083 | AF33: 26063.32833 | AG33: 14960.28167
B34: 2017-12-31 | P34: =+P33 -> 2.65 | Q34: 0 | S34: =+Q34/G34-1 ->  | U34: 2023.742111 | V34: 2 | W34: 286022.2183 | AA34: 66 | AB34: 133.0833333 | AC34: 8.25 | AD34: 141.3333333 | AE34: =IF($C34=0,AE33,SUM(G29:G34)/6) -> 244998.6083 | AF34: =IF($C34=0,AF33,SUM(H29:H34)/6) -> 26063.32833 | AG34: =IF($C34=0,AG33,SUM(I29:I34)/6) -> 14960.28167 | AO34: =+AO23+1 -> 17 | AP34: =+AP23 -> 60000 | AQ34: =+AQ23 -> 0.01 | AR34: =+AS23*AQ34 -> 10361.68451 | AS34: =+AP34+AR34+AS23 -> 1106530.135
AO35: =+AO34+1 -> 18 | AP35: =+AP34 -> 60000 | AQ35: =+AQ34 -> 0.01 | AR35: 11065.30135 | AS35: =+AP35+AR35+AS34 -> 1177595.437
B36: Média | C36: =+AA34 -> 66 | D36: 133.0833333 | E36: 8.25 | F36: 141.3333333 | G36: 244998.6083 | H36: 26063.32833 | I36: 14960.28167 | J36: =+G36+H36+I36 -> 286022.2183 | K36: =+J36/F36 -> 2023.742111 | L36: =SUM(L12:L35) -> 21 | M36: =+F36/C36 -> 2.141414141 | AO36: =+#REF!+1 ->  | AP36: =+#REF! ->  | AQ36: =+#REF! ->  | AR36: =+#REF!*AQ36 ->  | AS36: =+AP36+AR36+#REF! -> 
AO37: =+AO36+1 ->  | AP37: =+AP36 ->  | AQ37: =+AQ36 ->  | AS37: =+AP37+AR37+AS36 -> 
K38: =+J36/C36 -> 4333.669975 | M38: =+K38/AH32 -> 2.51896005 | AO38: =+#REF!+1 ->  | AP38: =+#REF! ->  | AQ38: =+#REF! ->  | AR38: =+#REF!*AQ38 ->  | AS38: =+AP38+AR38+#REF! -> 
AO39: =+AO38+1 ->  | AP39: =+AP38 ->  | AQ39: =+AQ38 ->  | AR39: =+AS38*AQ39 ->  | AS39: =+AP39+AR39+AS38 -> 
G40: 239138.42 | H40: =+H39+G40 -> 239138.42
G41: 26366.66 | H41: =+H40+G41 -> 265505.08
G42: 23747.61 | H42: 289252.69
G43: 8934 | H43: 298186.69
G44: 14401.75 | H44: 312588.44
G45: 35585.87 | H45: 348174.31
G46: 38903.72 | H46: 387078.03
G47: 20571.96 | H47: 407649.99
H48: 407649.99
H49: =+H48*1.57 -> 640010.4843
AR81: =+AS80*AQ81 -> 
AO91: =+AO90+1 ->  | AP91: =+AP90 ->  | AQ91: =+AQ90 ->  | AS91: =+AP91+AR91+AS90 -> 
AO120: =+AO119+1 ->  | AP120: =+AP119 ->  | AQ120: =+AQ119 ->  | AS120: =+AP120+AR120+AS119 -> 
AR145: =+AS144*AQ145 -> 
AO155: =+AO154+1 ->  | AP155: =+AP154 ->  | AQ155: =+AQ154 ->  | AS155: =+AP155+AR155+AS154 -> 

Sheet Hist_Pessoal
B2: SISTEMA DE TRANSPORTE COLETIVO URBANO DE CHAPECÓ
B3: SERVIÇO PÚBLICO DE TRANSPORTE COLETIVO URBANO
B4: RESUMO DE VALORES DA FOLHA DE PAGAMENTO - AUTO VIAÇÃO CHAPECO
B6: DATA | C6: FROTA | D6: REMUNERAÇÃO TOTAL
D7: Proventos | E7: Deduções | F7: % Encargos | G7: Valor Encargos | H7: Custo Total | I7: Média Veiculo | J7: Planilha de Custo | K7: Dif % | M7: FROTA | N7: Proventos | O7: Deduções | P7: Valor Encargos | Q7: Custo Total | R7: Média Veiculo | S7: Planilha de Custo
B9: 2015-12-31 | C9: 67 | G9: =(D9-E9)*F9 -> 0 | H9: =+D9-E9+G9 -> 0 | I9: =+H9/C9 -> 0
B10: 2016-01-31 | C10: =+C9 -> 67 | F10: 0.56 | G10: 0 | H10: 0 | I10: 0
B11: 2016-02-28 | C11: 67 | F11: 0.44 | G11: 0 | H11: 0 | I11: 0
B12: 2016-03-31 | C12: 67 | F12: =+F11 -> 0.44 | G12: 0 | H12: 0 | I12: 0
B13: 2016-04-30 | C13: 67 | D13: 414567.56 | E13: 0 | F13: =+F12 -> 0.44 | G13: 182409.7264 | H13: 596977.2864 | I13: 8910.108752
B14: 2016-05-31 | C14: 67 | D14: 487361.46 | E14: 3977.94 | F14: =+F13 -> 0.44 | G14: 212688.7488 | H14: 696072.2688 | I14: 10389.13834
B15: 2016-06-30 | C15: 67 | D15: 500552.47 | E15: 3059.72 | F15: 0.44 | G15: 218896.81 | H15: 716389.56 | I15: 10692.38149 | J15: 19925.89 | K15: =+J15/I15-1 -> 0.8635595834
B16: 2016-07-31 | C16: 66 | D16: 472692.39 | E16: 17728.65 | F16: 0.44 | G16: 200184.0456 | H16: 655147.7856 | I16: 9926.4816 | J16: 18146.33 | K16: 0.828072698
B17: 2016-08-31 | C17: =+C16 -> 66 | D17: 501388.15 | E17: 27094.26 | F17: 0.44 | G17: 208689.3116 | H17: 682983.2016 | I17: 10348.23033 | J17: 18208.94 | K17: 0.7596187391
B18: =+B17+32-DAY(B17+32) -> 2016-09-30 | C18: =+C17 -> 66 | D18: 498268.29 | E18: 4259.3 | F18: 0.44 | G18: 217363.9556 | H18: 711372.9456 | I18: 10778.37796 | J18: 20115.54 | K18: 0.8662863807
B19: =+B18+32-DAY(B18+32) -> 2016-10-31 | C19: =+C18 -> 66 | D19: 454892.64 | E19: 3899.42 | F19: 0.44 | G19: 198437.0168 | H19: 649430.2368 | I19: 9839.852073 | J19: 18220.07 | K19: 0.8516609666 | M19: =IF($C19=0,M18,SUM(C8:C19)/12) -> 61.08333333 | N19: =IF($C19=0,N18,SUM(D14:D19)/6) -> 485859.2333 | O19: =IF($C19=0,O18,SUM(E14:E19)/6) -> 10003.215 | P19: =IF($C19=0,P18,SUM(G14:G19)/6) -> 209376.6481 | Q19: =IF($C19=0,Q18,SUM(H14:H19)/6) -> 685232.6664 | R19: =+Q19/M19 -> 11217.99727 | S19: =IF($C19=0,S18,SUM(J14:J19)/6) -> 15769.46167
B20: 2016-11-30 | C20: 66 | D20: 468732.8 | E20: 2378.02 | F20: 0.44 | G20: 205196.1032 | H20: 671550.8832 | I20: 10175.01338 | J20: 18171.1 | K20: 0.7858551452 | M20: 66.58333333 | N20: 482754.4567 | O20: 9736.561667 | P20: 208127.8738 | Q20: 681145.7688 | R20: 10229.974 | S20: 18797.97833
B21: 2016-12-31 | C21: 66 | D21: 490833.05 | E21: 4296.63 | F21: 0.44 | G21: 214076.0248 | H21: 700612.4448 | I21: 10615.34007 | J21: 20218.43 | K21: 0.9046427021 | M21: 66.5 | N21: 481134.5533 | O21: 9942.713333 | P21: 207324.4096 | Q21: 678516.2496 | R21: 10203.25187 | S21: 18846.735
B22: 2017-01-31 | C22: 66 | D22: 448890.09 | E22: 5270.14 | F22: 0.44 | G22: 195192.778 | H22: 638812.728 | I22: 9678.980727 | J22: 18120.7 | K22: 0.872170274 | M22: 66.41666667 | N22: 477167.5033 | O22: 7866.295 | P22: 206492.5317 | Q22: 675793.74 | R22: 10175.06258 | S22: 18842.46333
B23: 2017-02-28 | C23: 66 | D23: 434855.6 | E23: 24796.43 | F23: 0.44 | G23: 180426.0348 | H23: 590485.2048 | I23: 8946.745527 | J23: 18134.37 | K23: 1.026923639 | M23: 66.33333333 | N23: 466078.745 | O23: 7483.323333 | P23: 201781.9855 | Q23: 660377.4072 | R23: 9955.438299 | S23: 18830.035
B24: 2017-03-31 | C24: 66 | D24: 461911.4 | E24: 5655.7 | F24: 0.44 | G24: 200752.508 | H24: 657008.208 | I24: 9954.669818 | J24: 14970.4 | K24: 0.5038570112 | M24: 66.25 | N24: 460019.2633 | O24: 7716.056667 | P24: 199013.4109 | Q24: 651316.6176 | R24: 9831.194228 | S24: 17972.51167
B25: 2017-04-30 | C25: 66 | D25: 441709.05 | E25: 5933.39 | F25: 0.44 | G25: 191741.2904 | H25: 627516.9504 | I25: 9507.832582 | J25: 12565.7 | K25: 0.3216156145 | M25: 66.16666667 | N25: 457821.9983 | O25: 8055.051667 | P25: 197897.4565 | Q25: 647664.4032 | R25: 9788.37889 | S25: 17030.11667
B26: 2017-05-31 | C26: 66 | D26: 444893.88 | E26: 34220.76 | F26: 0.44 | G26: 180696.1728 | H26: 591369.2928 | I26: 8960.1408 | J26: 13425.49 | K26: 0.4983570347 | M26: 66.08333333 | N26: 453848.845 | O26: 13362.175 | P26: 193814.1348 | Q26: 634300.8048 | R26: 9598.498938 | S26: 16239.18167
B27: 2017-06-30 | C27: 66 | D27: 508228.5 | E27: =20468.73+38611.4 -> 59080.13 | F27: 0.44 | G27: 197625.2828 | H27: 646773.6528 | I27: 9799.6008 | J27: 14942.45 | K27: 0.5248019083 | M27: 66 | N27: 456748.0867 | O27: 22492.75833 | P27: 191072.3445 | Q27: 625327.6728 | R27: 9474.661709 | S27: 15359.85167
B28: 2017-07-31 | C28: 66 | D28: 546908.1 | E28: =58661.35+33988.76 -> 92650.11 | F28: 0.44 | G28: 199873.5156 | H28: 654131.5056 | I28: 9911.083418 | J28: 12983.42 | K28: 0.3099899832 | M28: 66 | N28: 473084.4217 | O28: 37056.08667 | P28: 191852.4674 | Q28: 627880.8024 | R28: 9513.345491 | S28: 14503.63833
B29: 2017-08-31 | C29: 66 | D29: 477924.27 | E29: =20155.88+34118.42 -> 54274.3 | F29: 0.44 | G29: 186405.9868 | H29: 610055.9568 | I29: 9243.272073 | J29: 12200.15 | K29: =+J29/I29-1 -> 0.3198951523 | M29: 66 | N29: 480262.5333 | O29: 41969.065 | P29: 192849.1261 | Q29: 631142.5944 | R29: 9562.766582 | S29: 13514.60167
B30: 2017-09-30 | C30: 66 | D30: 488403.45 | E30: =4369.68+34406.27 -> 38775.95 | F30: 0.44 | G30: 197836.1 | H30: 647463.6 | I30: 9810.054545 | J30: 13947.04 | K30: =+J30/I30-1 -> 0.4217087107 | M30: 66 | N30: 484677.875 | O30: 47489.10667 | P30: 192363.0581 | Q30: 629551.8264 | R30: 9538.664036 | S30: 13344.04167
B31: 2017-10-31 | C31: 66 | D31: 467626.62 | E31: =748.58+35430.35 -> 36178.93 | F31: 0.44 | G31: 189836.9836 | H31: 621284.6736 | I31: 9413.404145 | J31: 12244.17 | K31: =+J31/I31-1 -> 0.3007164901 | M31: 66 | N31: 488997.47 | O31: 52530.03 | P31: 192045.6736 | Q31: 628513.1136 | R31: =+Q31/M31 -> 9522.925964 | S31: =IF($C31=0,S30,SUM(J26:J31)/6) -> 13290.45333
B32: 2017-11-30 | M32: 66 | N32: 488997.47 | O32: 52530.03 | P32: 192045.6736 | Q32: 628513.1136 | R32: =+Q32/M32 -> 9522.925964 | S32: =IF($C32=0,S31,SUM(J27:J32)/6) -> 13290.45333
B33: 2017-12-31 | M33: 66 | N33: 488997.47 | O33: 52530.03 | P33: 192045.6736 | Q33: 628513.1136 | R33: =+Q33/M33 -> 9522.925964 | S33: =IF($C33=0,S32,SUM(J28:J33)/6) -> 13290.45333
B35: MÉDIA | C35: =+M33 -> 66 | D35: =+N33 -> 488997.47 | E35: =+O33 -> 52530.03 | G35: =+P33 -> 192045.6736 | H35: =+Q33 -> 628513.1136 | I35: =+R33 -> 9522.925964 | J35: =+S33 -> 13290.45333 | K35: =+J35/I35-1 -> 0.3956270777
D41: 239138.42 | E41: =+E40+D41 -> 239138.42
D42: 26366.66 | E42: =+E41+D42 -> 265505.08
D43: 23747.61 | E43: 289252.69
D44: 8934 | E44: 298186.69
D45: 14401.75 | E45: 312588.44
D46: 35585.87 | E46: 348174.31
D47: 38903.72 | E47: 387078.03
D48: 20571.96 | E48: 407649.99
E49: 407649.99
E50: =+E49*1.57 -> 640010.4843 | F50: =+E50/C31 -> 9697.12855

Sheet Hist_PassAVC
B2: AUTO VIAÇÃO CHAPECO
B4: PREFEITURA MUNICIPAL DE CHAPECO
B5: CONTROLADORIA GERAL DO MUNICIPIO
B6: SISTEMA DE TRANSPORTE COLETIVO URBANO DE CHAPECÓ
B7: PASSAGEIROS TRANSPORTADOS - AUTO VIAÇÃO CHAPECO
B9: Período/Mês | C9: E | D9: Passageiros Pagantes | P9: QUILOMETRAGEM
D10: Antecipado (comum) | F10: Embarcado (cobrador) | H10: Estudante | J10: Vale Transporte | L10: Soma | M10: Passag. Equival. | N10: Gratuid | O10: Passag. Transport | P10: Km Program | Q10: Km Ocioso | T10: KM Total | V10: IPK mês | W10: Pass Eq Média | X10: KM Mé | Y10: IPK média | AA10: Media antecip | AB10: Media embarc | AC10: Media estud | AD10: Media VT | AE10: S | AN10: =+L10 -> Soma | AO10: =+M10 -> Passag. Equival.
B11: (a) | C11: (b) | D11: (c) | E11: (d) | F11: (e) | G11: (f) | H11: (g) | I11: (h) | J11: (i) | K11: (j) | L11: (k) | M11: (l) | N11: (m) | O11: (n) | P11: (o) | Q11: (p) | R11: (q) | S11: (r) | T11: (s) | V11: (t) | W11: (u) | X11: (t) | Y11: (t)
B13: 2009-07-31 | C13: =IF(D13=0,0,1) -> 0
B14: =+B13+32-DAY(B13+32) -> 2009-08-31 | C14: 0
B15: =+B14+32-DAY(B14+32) -> 2009-09-30 | C15: 0
B16: 2009-10-31 | C16: 0
B17: 2009-11-30 | C17: 0
B18: 2009-12-31 | C18: 1 | D18: 274584 | E18: 2.03 | F18: 88665 | G18: 2.3 | H18: 64075 | I18: 1 | J18: 359475 | K18: =+E18 -> 2.03 | L18: =+D18+F18+H18+J18 -> 786799 | M18: =(+D18*E18+F18*G18+H18*I18+J18*K18)/K18 -> 766080.9212 | N18: 100793 | O18: =+L18+N18 -> 887592 | P18: 324729.4 | Q18: =ROUND(+P18*R18,0) -> 16236 | R18: 0.05 | S18: =IF(P18=0,0,+Q18/P18) -> 0.04999855264 | T18: =+P18+Q18 -> 340965.4 | V18: =IF(T18=0,0,ROUND(+M18/T18,4)) -> 2.2468 | W18: =IF(S18=0,0,SUM(M6:M18)/SUM(AE6:AE18)) -> 766080.9212 | X18: =IF(T18=0,0,SUM(T6:T18)/SUM(AE6:AE18)) -> 340965.4 | Y18: =IF(T18=0,0,ROUND(W18/X18,4)) -> 2.2468 | AE18: =IF(M18=0,0,1) -> 1
B19: 2010-01-31 | C19: =IF(D19=0,0,1) -> 1 | D19: 83998 | E19: =+E18 -> 2.03 | F19: 230840 | G19: =+G18 -> 2.3 | H19: 2492 | I19: =+I18 -> 1 | J19: 319984 | K19: 2.03 | L19: =+D19+F19+H19+J19 -> 637314 | M19: 666752.4433 | N19: 69576 | O19: =+L19+N19 -> 706890 | P19: 293056.3 | Q19: =ROUND(+P19*R19,0) -> 14653 | R19: 0.05 | S19: 0.05000063128 | T19: 307709.3 | V19: 2.1668 | W19: =IF(S19=0,0,SUM(M6:M19)/SUM(AE6:AE19)) -> 716416.6823 | X19: =IF(T19=0,0,SUM(T6:T19)/SUM(AE6:AE19)) -> 324337.35 | Y19: 2.2089 | AE19: 1
B20: 2010-02-28 | C20: 1 | D20: 71265 | E20: =+E19 -> 2.03 | F20: 206546 | G20: 2.3 | H20: 35689 | I20: 1 | J20: 272840 | K20: 2.03 | L20: =+D20+F20+H20+J20 -> 586340 | M20: 595703.4236 | N20: 65838 | O20: =+L20+N20 -> 652178 | P20: 284151.3 | Q20: =ROUND(+P20*R20,0) -> 14208 | R20: 0.05 | S20: 0.05000153087 | T20: 298359.3 | V20: 1.9966 | W20: =IF(S20=0,0,SUM(M7:M20)/SUM(AE7:AE20)) -> 676178.9294 | X20: =IF(T20=0,0,SUM(T7:T20)/SUM(AE7:AE20)) -> 315678 | Y20: 2.142 | AE20: 1
B21: =+B20+32-DAY(B20+32) -> 2010-03-31 | C21: 1 | D21: 121814 | E21: 2.03 | F21: 244148 | G21: 2.3 | H21: 149419 | I21: 1 | J21: 391291 | K21: 2.03 | L21: =+D21+F21+H21+J21 -> 906672 | M21: 863331.3054 | N21: 121739 | O21: =+L21+N21 -> 1028411 | P21: 338954.6 | Q21: =ROUND(+P21*R21,0) -> 16948 | R21: 0.05 | S21: 0.05000079657 | T21: 355902.6 | V21: 2.4258 | W21: =IF(S21=0,0,SUM(M7:M21)/SUM(AE7:AE21)) -> 722967.0234 | X21: =IF(T21=0,0,SUM(T7:T21)/SUM(AE7:AE21)) -> 325734.15 | Y21: 2.2195 | AE21: 1
B22: =+B21+32-DAY(B21+32) -> 2010-04-30 | C22: 1 | D22: 113107 | E22: 2.03 | F22: 206508 | G22: 2.3 | H22: 134204 | I22: 1 | J22: 356390 | K22: 2.03 | L22: 810209 | M22: 769581.9261 | N22: 108584 | O22: 918793 | P22: 311440.7 | Q22: =ROUND(+P22*R22,0) -> 15572 | R22: 0.05 | S22: 0.04999988762 | T22: 327012.7 | V22: 2.3534 | W22: 732290.0039 | X22: 325989.86 | Y22: 2.2464 | AE22: 1
B23: 2010-05-31 | C23: 1 | D23: 119188 | E23: 2.03 | F23: 212984 | G23: 2.3 | H23: 145197 | I23: 1 | J23: 381363 | K23: 2.03 | L23: 858732 | M23: 813388.5369 | N23: 109896 | O23: 968628 | P23: 325026.4 | Q23: 16251 | R23: 0.05 | S23: 0.04999901546 | T23: 341277.4 | V23: 2.3834 | W23: 745806.4261 | X23: 328537.7833 | Y23: 2.2701 | AE23: 1
B24: 2010-06-30 | C24: 1 | D24: 117715 | E24: 2.03 | F24: 202987 | G24: 2.3 | H24: 136514 | I24: 1 | J24: 372332 | K24: 2.03 | L24: 829548 | M24: 787280.5468 | N24: 111380 | O24: 940928 | P24: 317712 | Q24: 15886 | R24: 0.05 | S24: 0.050001259 | T24: 333598 | V24: 2.36 | W24: 751731.3005 | X24: 329260.6714 | Y24: 2.2831 | AE24: 1
B25: 2010-07-31 | C25: 1 | D25: 122252 | E25: 2.03 | F25: 211052 | G25: 2.3 | H25: 84882 | I25: 1 | J25: 383025 | K25: 2.03 | L25: 801211 | M25: 786213.7488 | N25: 103473 | O25: 904684 | P25: 328781.1 | Q25: 16439 | R25: 0.05 | S25: 0.04999983272 | T25: 345220.1 | V25: 2.2774 | W25: 756041.6065 | X25: 331255.6 | Y25: 2.2824 | AE25: 1
B26: 2010-08-31 | C26: 1 | D26: 118771 | E26: 2.03 | F26: 217312 | G26: 2.3 | H26: 135095 | I26: 1 | J26: 373777 | K26: 2.03 | L26: 844955 | M26: 805312.8276 | N26: 111324 | O26: 956279 | P26: 323966.11 | Q26: 16198 | R26: 0.05 | S26: 0.049999057 | T26: 340164.11 | V26: 2.3674 | W26: 761516.1866 | X26: 332245.4344 | Y26: 2.292 | AE26: 1
B27: 2010-09-30 | C27: 1 | D27: 115997 | E27: 2.03 | F27: 211995 | G27: 2.3 | H27: 138424 | I27: 1 | J27: 370783 | K27: 2.03 | L27: 837199 | M27: 795160.5419 | N27: 113486 | O27: 950685 | P27: 322640 | Q27: 16132 | R27: 0.05 | S27: 0.05 | T27: 338772 | V27: 2.3472 | W27: 764880.6222 | X27: 332898.091 | Y27: 2.2976 | AE27: 1
B28: 2010-10-31 | C28: 1 | D28: 111756 | E28: 2.03 | F28: 211401 | G28: 2.3 | H28: 130119 | I28: 1 | J28: 362244 | K28: 2.03 | L28: 815520 | M28: 777616.4039 | N28: 110715 | O28: 926235 | P28: 317752.5 | Q28: 15888 | R28: 0.05 | S28: 0.05000118016 | T28: 333640.5 | V28: 2.3307 | W28: 766038.4205 | X28: =IF(T28=0,0,SUM(T13:T28)/SUM(AE13:AE28)) -> 332965.5827 | Y28: 2.3007 | AE28: 1
B29: 2010-11-30 | C29: 1 | D29: 110343 | E29: 2.03 | F29: 209761 | G29: 2.3 | H29: 133725 | I29: 1 | J29: 360129 | K29: 2.03 | L29: 813958 | M29: =(+D29*E29+F29*G29+H29*I29+J29*K29)/K29 -> 774006.6305 | N29: 113670 | O29: 927628 | P29: 306854.8 | Q29: 15343 | R29: 0.05 | S29: 0.05000084731 | T29: 322197.8 | V29: 2.4023 | W29: 766702.438 | X29: =IF(T29=0,0,SUM(T18:T29)/SUM(AE18:AE29)) -> 332068.2675 | Y29: 2.3089 | AE29: 1
B30: 2010-12-31 | C30: 0 | E30: 2.03 | G30: 2.3 | I30: 1 | K30: 2.03 | L30: 0 | M30: 0 | O30: 0 | S30: 0 | T30: 0 | V30: =IF(T30=0,0,ROUND(+M30/T30,4)) -> 0 | W30: 0 | X30: 0 | Y30: 0 | AE30: 0
B31: 2011-01-31 | C31: 0 | E31: 2.03 | G31: 2.3 | I31: 1 | K31: 2.03 | L31: 0 | M31: 0 | O31: 0 | S31: 0 | T31: 0 | V31: 0 | W31: 0 | X31: 0 | Y31: 0 | AE31: 0
B32: 2011-02-28 | C32: 0 | E32: 2.03 | G32: 2.3 | I32: 1 | K32: 2.03 | L32: 0 | M32: 0 | O32: 0 | S32: 0 | T32: 0 | V32: 0 | W32: 0 | X32: 0 | Y32: 0 | AE32: 0
B33: 2011-03-31 | C33: 0 | E33: 2.03 | G33: 2.3 | I33: 1 | K33: 2.03 | L33: 0 | M33: 0 | O33: 0 | S33: 0 | T33: 0 | V33: 0 | W33: 0 | X33: 0 | Y33: 0 | AE33: 0
